Workbook

Sheet AGENCE
G1: Synth_MTD | H1: Synth_MTD | L1: Synth_YTD | M1: Synth_YTD | Q1: Synth_FY | R1: Synth_FY
D5: SUIVI AGENCE
E8: Choix AGENCES | G8: ATTILA PAU
A10: C | E10: ID INTRANET | G10: =_xlfn.XLOOKUP($G$8,Synth_FY!$D:$D,Synth_FY!$C:$C,"ERREUR") -> 1164
E12: Région | G12: =_xlfn.XLOOKUP($G$8,Synth_FY!$D:$D,Synth_FY!$F:$F,"ERREUR") -> SUD-OUEST
E14: Active: O/N | G14: =_xlfn.XLOOKUP($G$8,Synth_FY!$D:$D,Synth_FY!$G:$G,"ERREUR") -> OUI
E16: Age | G16: =_xlfn.XLOOKUP($G$8,Synth_FY!$D:$D,Synth_FY!$H:$H,"ERREUR") -> ANNEE 5
E18: Date signature | G18: =_xlfn.XLOOKUP($G$8,Synth_FY!$D:$D,Synth_FY!$J:$J,"ERREUR") -> 2021-08-03
H21: ="Mois: "&DE!$C$5 -> Mois: Janvier | M21: ="Cumulé à fin: "&DE!$C$5 -> Cumulé à fin: Janvier | R21: ="Année Complète" -> Année Complète
E23: Indicateurs | G23: =DE!$C$3 -> 2026 | H23: =DE!$C$3-1 -> 2025 | I23: Ecart en Mtt | J23: Ecart en % | L23: =DE!$C$3 -> 2026 | M23: =DE!$C$3-1 -> 2025 | N23: Ecart en Mtt | O23: Ecart en % | Q23: ="Projection "&DE!$C$3 -> Projection 2026 | R23: =DE!$C$3-1 -> 2025 | S23: Ecart en Mtt | T23: Ecart en %
A24: K | B24: L | E24: CA HT | G24: =_xlfn.XLOOKUP($G$10,INDIRECT("'"&G$1&"'!"&$A$10&":"&$A$10),INDIRECT("'"&G$1&"'!"&$A24&":"&$A24),0) -> 65108.09 | H24: =_xlfn.XLOOKUP($G$10,INDIRECT("'"&H$1&"'!"&$A$10&":"&$A$10),INDIRECT("'"&H$1&"'!"&$B24&":"&$B24),0) -> 93211.4 | I24: =G24-H24 -> -28103.31 | J24: =IF(H24=0,0,I24/H24) -> -0.3015007821 | L24: =_xlfn.XLOOKUP($G$10,INDIRECT("'"&L$1&"'!"&$A$10&":"&$A$10),INDIRECT("'"&L$1&"'!"&$A24&":"&$A24),0) -> 65108.09 | M24: =_xlfn.XLOOKUP($G$10,INDIRECT("'"&M$1&"'!"&$A$10&":"&$A$10),INDIRECT("'"&M$1&"'!"&$B24&":"&$B24),0) -> 93211.4 | N24: =L24-M24 -> -28103.31 | O24: =IF(M24=0,0,N24/M24) -> -0.3015007821 | Q24: =SUMIF(D_Budget!$F:$F,$G$10,D_Budget!$I:$I) -> 781321.1337 | R24: =_xlfn.XLOOKUP($G$10,INDIRECT("'"&Q$1&"'!"&$A$10&":"&$A$10),INDIRECT("'"&Q$1&"'!"&$B24&":"&$B24),0) -> 1136984.19 | S24: =Q24-R24 -> -355663.0563 | T24: =IF(R24=0,0,S24/R24) -> -0.3128126666
A25: O | B25: P | E25: Mtt Cde HT | G25: =_xlfn.XLOOKUP($G$10,INDIRECT("'"&G$1&"'!"&$A$10&":"&$A$10),INDIRECT("'"&G$1&"'!"&$A25&":"&$A25),0) -> 136843.8 | H25: =_xlfn.XLOOKUP($G$10,INDIRECT("'"&H$1&"'!"&$A$10&":"&$A$10),INDIRECT("'"&H$1&"'!"&$B25&":"&$B25),0) -> 60311.84 | I25: =G25-H25 -> 76531.96 | J25: =IF(H25=0,0,I25/H25) -> 1.268937575 | L25: =_xlfn.XLOOKUP($G$10,INDIRECT("'"&L$1&"'!"&$A$10&":"&$A$10),INDIRECT("'"&L$1&"'!"&$A25&":"&$A25),0) -> 136843.8 | M25: =_xlfn.XLOOKUP($G$10,INDIRECT("'"&M$1&"'!"&$A$10&":"&$A$10),INDIRECT("'"&M$1&"'!"&$B25&":"&$B25),0) -> 60311.84 | N25: =L25-M25 -> 76531.96 | O25: =IF(M25=0,0,N25/M25) -> 1.268937575 | R25: =_xlfn.XLOOKUP($G$10,INDIRECT("'"&Q$1&"'!"&$A$10&":"&$A$10),INDIRECT("'"&Q$1&"'!"&$B25&":"&$B25),0) -> 1154801.183
A26: S | B26: T | E26: Mtt devis | G26: =_xlfn.XLOOKUP($G$10,INDIRECT("'"&G$1&"'!"&$A$10&":"&$A$10),INDIRECT("'"&G$1&"'!"&$A26&":"&$A26),0) -> 210687.2 | H26: =_xlfn.XLOOKUP($G$10,INDIRECT("'"&H$1&"'!"&$A$10&":"&$A$10),INDIRECT("'"&H$1&"'!"&$B26&":"&$B26),0) -> 302097.16 | I26: -91409.96 | J26: -0.3025846387 | L26: =_xlfn.XLOOKUP($G$10,INDIRECT("'"&L$1&"'!"&$A$10&":"&$A$10),INDIRECT("'"&L$1&"'!"&$A26&":"&$A26),0) -> 210687.2 | M26: =_xlfn.XLOOKUP($G$10,INDIRECT("'"&M$1&"'!"&$A$10&":"&$A$10),INDIRECT("'"&M$1&"'!"&$B26&":"&$B26),0) -> 302097.16 | N26: -91409.96 | O26: -0.3025846387 | R26: =_xlfn.XLOOKUP($G$10,INDIRECT("'"&Q$1&"'!"&$A$10&":"&$A$10),INDIRECT("'"&Q$1&"'!"&$B26&":"&$B26),0) -> 3523062.971
A27: W | B27: X | E27: Nbre devis | G27: =_xlfn.XLOOKUP($G$10,INDIRECT("'"&G$1&"'!"&$A$10&":"&$A$10),INDIRECT("'"&G$1&"'!"&$A27&":"&$A27),0) -> 59 | H27: =_xlfn.XLOOKUP($G$10,INDIRECT("'"&H$1&"'!"&$A$10&":"&$A$10),INDIRECT("'"&H$1&"'!"&$B27&":"&$B27),0) -> 73 | I27: -14 | J27: -0.1917808219 | L27: =_xlfn.XLOOKUP($G$10,INDIRECT("'"&L$1&"'!"&$A$10&":"&$A$10),INDIRECT("'"&L$1&"'!"&$A27&":"&$A27),0) -> 59 | M27: =_xlfn.XLOOKUP($G$10,INDIRECT("'"&M$1&"'!"&$A$10&":"&$A$10),INDIRECT("'"&M$1&"'!"&$B27&":"&$B27),0) -> 73 | N27: -14 | O27: -0.1917808219 | R27: =_xlfn.XLOOKUP($G$10,INDIRECT("'"&Q$1&"'!"&$A$10&":"&$A$10),INDIRECT("'"&Q$1&"'!"&$B27&":"&$B27),0) -> 788
A28: AA | B28: AB | E28: Mtt Moyen devis | G28: =_xlfn.XLOOKUP($G$10,INDIRECT("'"&G$1&"'!"&$A$10&":"&$A$10),INDIRECT("'"&G$1&"'!"&$A28&":"&$A28),0) -> 3570.969492 | H28: =_xlfn.XLOOKUP($G$10,INDIRECT("'"&H$1&"'!"&$A$10&":"&$A$10),INDIRECT("'"&H$1&"'!"&$B28&":"&$B28),0) -> 4138.31726 | I28: -567.3477687 | J28: -0.1370962478 | L28: =_xlfn.XLOOKUP($G$10,INDIRECT("'"&L$1&"'!"&$A$10&":"&$A$10),INDIRECT("'"&L$1&"'!"&$A28&":"&$A28),0) -> 3570.969492 | M28: =_xlfn.XLOOKUP($G$10,INDIRECT("'"&M$1&"'!"&$A$10&":"&$A$10),INDIRECT("'"&M$1&"'!"&$B28&":"&$B28),0) -> 4138.31726 | N28: -567.3477687 | O28: -0.1370962478 | R28: =_xlfn.XLOOKUP($G$10,INDIRECT("'"&Q$1&"'!"&$A$10&":"&$A$10),INDIRECT("'"&Q$1&"'!"&$B28&":"&$B28),0) -> 4470.892095
A29: AE | B29: AF | E29: Nb de Cde | G29: =_xlfn.XLOOKUP($G$10,INDIRECT("'"&G$1&"'!"&$A$10&":"&$A$10),INDIRECT("'"&G$1&"'!"&$A29&":"&$A29),0) -> 31 | H29: =_xlfn.XLOOKUP($G$10,INDIRECT("'"&H$1&"'!"&$A$10&":"&$A$10),INDIRECT("'"&H$1&"'!"&$B29&":"&$B29),0) -> 28 | I29: 3 | J29: 0.1071428571 | L29: =_xlfn.XLOOKUP($G$10,INDIRECT("'"&L$1&"'!"&$A$10&":"&$A$10),INDIRECT("'"&L$1&"'!"&$A29&":"&$A29),0) -> 31 | M29: =_xlfn.XLOOKUP($G$10,INDIRECT("'"&M$1&"'!"&$A$10&":"&$A$10),INDIRECT("'"&M$1&"'!"&$B29&":"&$B29),0) -> 28 | N29: 3 | O29: 0.1071428571 | R29: =_xlfn.XLOOKUP($G$10,INDIRECT("'"&Q$1&"'!"&$A$10&":"&$A$10),INDIRECT("'"&Q$1&"'!"&$B29&":"&$B29),0) -> 371
A30: AI | B30: AJ | E30: Hres prévues | G30: =_xlfn.XLOOKUP($G$10,INDIRECT("'"&G$1&"'!"&$A$10&":"&$A$10),INDIRECT("'"&G$1&"'!"&$A30&":"&$A30),0) -> 1220.098885 | H30: =_xlfn.XLOOKUP($G$10,INDIRECT("'"&H$1&"'!"&$A$10&":"&$A$10),INDIRECT("'"&H$1&"'!"&$B30&":"&$B30),0) -> 1820.375614 | I30: -600.2767292 | J30: -0.3297543236 | L30: =_xlfn.XLOOKUP($G$10,INDIRECT("'"&L$1&"'!"&$A$10&":"&$A$10),INDIRECT("'"&L$1&"'!"&$A30&":"&$A30),0) -> 1220.098885 | M30: =_xlfn.XLOOKUP($G$10,INDIRECT("'"&M$1&"'!"&$A$10&":"&$A$10),INDIRECT("'"&M$1&"'!"&$B30&":"&$B30),0) -> 1820.375614 | N30: -600.2767292 | O30: -0.3297543236 | R30: =_xlfn.XLOOKUP($G$10,INDIRECT("'"&Q$1&"'!"&$A$10&":"&$A$10),INDIRECT("'"&Q$1&"'!"&$B30&":"&$B30),0) -> 19254.04981
A31: AM | B31: AN | E31: Hres Cde | G31: =_xlfn.XLOOKUP($G$10,INDIRECT("'"&G$1&"'!"&$A$10&":"&$A$10),INDIRECT("'"&G$1&"'!"&$A31&":"&$A31),0) -> 758.5138201 | H31: =_xlfn.XLOOKUP($G$10,INDIRECT("'"&H$1&"'!"&$A$10&":"&$A$10),INDIRECT("'"&H$1&"'!"&$B31&":"&$B31),0) -> 367.2118633 | I31: 391.3019568 | J31: 1.06560271 | L31: =_xlfn.XLOOKUP($G$10,INDIRECT("'"&L$1&"'!"&$A$10&":"&$A$10),INDIRECT("'"&L$1&"'!"&$A31&":"&$A31),0) -> 758.5138201 | M31: =_xlfn.XLOOKUP($G$10,INDIRECT("'"&M$1&"'!"&$A$10&":"&$A$10),INDIRECT("'"&M$1&"'!"&$B31&":"&$B31),0) -> 367.2118633 | N31: 391.3019568 | O31: 1.06560271 | R31: =_xlfn.XLOOKUP($G$10,INDIRECT("'"&Q$1&"'!"&$A$10&":"&$A$10),INDIRECT("'"&Q$1&"'!"&$B31&":"&$B31),0) -> 6890.460772
A32: AQ | B32: AR | E32: Taux de transfo. | G32: =_xlfn.XLOOKUP($G$10,INDIRECT("'"&G$1&"'!"&$A$10&":"&$A$10),INDIRECT("'"&G$1&"'!"&$A32&":"&$A32),0) -> 0.6216822502 | H32: =_xlfn.XLOOKUP($G$10,INDIRECT("'"&H$1&"'!"&$A$10&":"&$A$10),INDIRECT("'"&H$1&"'!"&$B32&":"&$B32),0) -> 0.2017231282 | I32: 0.419959122 | J32: 2.08185906 | L32: =_xlfn.XLOOKUP($G$10,INDIRECT("'"&L$1&"'!"&$A$10&":"&$A$10),INDIRECT("'"&L$1&"'!"&$A32&":"&$A32),0) -> 0.6216822502 | M32: =_xlfn.XLOOKUP($G$10,INDIRECT("'"&M$1&"'!"&$A$10&":"&$A$10),INDIRECT("'"&M$1&"'!"&$B32&":"&$B32),0) -> 0.2017231282 | N32: 0.419959122 | O32: 2.08185906 | R32: =_xlfn.XLOOKUP($G$10,INDIRECT("'"&Q$1&"'!"&$A$10&":"&$A$10),INDIRECT("'"&Q$1&"'!"&$B32&":"&$B32),0) -> 0.3578707254
A34: AT | B34: AU | E34: CA AGC | G34: =_xlfn.XLOOKUP($G$10,INDIRECT("'"&G$1&"'!"&$A$10&":"&$A$10),INDIRECT("'"&G$1&"'!"&$A34&":"&$A34),0) -> 1328.13 | H34: =_xlfn.XLOOKUP($G$10,INDIRECT("'"&H$1&"'!"&$A$10&":"&$A$10),INDIRECT("'"&H$1&"'!"&$B34&":"&$B34),0) -> 3066 | I34: =G34-H34 -> -1737.87 | J34: =IF(H34=0,0,I34/H34) -> -0.5668199609 | L34: =_xlfn.XLOOKUP($G$10,INDIRECT("'"&L$1&"'!"&$A$10&":"&$A$10),INDIRECT("'"&L$1&"'!"&$A34&":"&$A34),0) -> 1328.13 | M34: =_xlfn.XLOOKUP($G$10,INDIRECT("'"&M$1&"'!"&$A$10&":"&$A$10),INDIRECT("'"&M$1&"'!"&$B34&":"&$B34),0) -> 3066 | N34: =L34-M34 -> -1737.87 | O34: =IF(M34=0,0,N34/M34) -> -0.5668199609 | R34: =_xlfn.XLOOKUP($G$10,INDIRECT("'"&Q$1&"'!"&$A$10&":"&$A$10),INDIRECT("'"&Q$1&"'!"&$B34&":"&$B34),0) -> 23348.35
A35: AX | B35: AY | E35: Taux CA AGC | G35: =_xlfn.XLOOKUP($G$10,INDIRECT("'"&G$1&"'!"&$A$10&":"&$A$10),INDIRECT("'"&G$1&"'!"&$A35&":"&$A35),0) -> 0.02039884752 | H35: =_xlfn.XLOOKUP($G$10,INDIRECT("'"&H$1&"'!"&$A$10&":"&$A$10),INDIRECT("'"&H$1&"'!"&$B35&":"&$B35),0) -> 0.03289297232 | I35: -0.0124941248 | J35: -0.3798417693 | L35: =_xlfn.XLOOKUP($G$10,INDIRECT("'"&L$1&"'!"&$A$10&":"&$A$10),INDIRECT("'"&L$1&"'!"&$A35&":"&$A35),0) -> 0.02039884752 | M35: =_xlfn.XLOOKUP($G$10,INDIRECT("'"&M$1&"'!"&$A$10&":"&$A$10),INDIRECT("'"&M$1&"'!"&$B35&":"&$B35),0) -> 0.03289297232 | N35: -0.0124941248 | O35: -0.3798417693 | R35: =_xlfn.XLOOKUP($G$10,INDIRECT("'"&Q$1&"'!"&$A$10&":"&$A$10),INDIRECT("'"&Q$1&"'!"&$B35&":"&$B35),0) -> 0.02053533392
A37: BA | B37: BB | E37: CA ACA | G37: =_xlfn.XLOOKUP($G$10,INDIRECT("'"&G$1&"'!"&$A$10&":"&$A$10),INDIRECT("'"&G$1&"'!"&$A37&":"&$A37),0) -> 1189.91 | H37: =_xlfn.XLOOKUP($G$10,INDIRECT("'"&H$1&"'!"&$A$10&":"&$A$10),INDIRECT("'"&H$1&"'!"&$B37&":"&$B37),0) -> 251.14 | I37: =G37-H37 -> 938.77 | J37: =IF(H37=0,0,I37/H37) -> 3.738034562 | L37: =_xlfn.XLOOKUP($G$10,INDIRECT("'"&L$1&"'!"&$A$10&":"&$A$10),INDIRECT("'"&L$1&"'!"&$A37&":"&$A37),0) -> 1189.91 | M37: =_xlfn.XLOOKUP($G$10,INDIRECT("'"&M$1&"'!"&$A$10&":"&$A$10),INDIRECT("'"&M$1&"'!"&$B37&":"&$B37),0) -> 251.14 | N37: =L37-M37 -> 938.77 | O37: =IF(M37=0,0,N37/M37) -> 3.738034562 | R37: =_xlfn.XLOOKUP($G$10,INDIRECT("'"&Q$1&"'!"&$A$10&":"&$A$10),INDIRECT("'"&Q$1&"'!"&$B37&":"&$B37),0) -> 28726.09
A38: BE | B38: BF | E38: Taux de captage ACA | G38: =_xlfn.XLOOKUP($G$10,INDIRECT("'"&G$1&"'!"&$A$10&":"&$A$10),INDIRECT("'"&G$1&"'!"&$A38&":"&$A38),0) -> 0.01827591625 | H38: =_xlfn.XLOOKUP($G$10,INDIRECT("'"&H$1&"'!"&$A$10&":"&$A$10),INDIRECT("'"&H$1&"'!"&$B38&":"&$B38),0) -> 0.002694305632 | I38: 0.01558161062 | J38: 5.783163733 | L38: =_xlfn.XLOOKUP($G$10,INDIRECT("'"&L$1&"'!"&$A$10&":"&$A$10),INDIRECT("'"&L$1&"'!"&$A38&":"&$A38),0) -> 0.01827591625 | M38: =_xlfn.XLOOKUP($G$10,INDIRECT("'"&M$1&"'!"&$A$10&":"&$A$10),INDIRECT("'"&M$1&"'!"&$B38&":"&$B38),0) -> 0.002694305632 | N38: 0.01558161062 | O38: 5.783163733 | R38: =_xlfn.XLOOKUP($G$10,INDIRECT("'"&Q$1&"'!"&$A$10&":"&$A$10),INDIRECT("'"&Q$1&"'!"&$B38&":"&$B38),0) -> 0.02526516222

Sheet Recap_CA
C4: ="Suivi du réseau - fin: "&DE!$C$5&" "&DE!$C$3 -> Suivi du réseau - fin: Janvier 2026
K6: CA HT du mois | Q6: CA HT cumulé
J7: =DE!$C$3-1 -> 2025 | K7: ="B"&DE!$C$3 -> B2026 | L7: =DE!$C$3 -> 2026 | M7: Ecart vs N-1 | N7: Ecart vs Budget | P7: =DE!$C$3-1 -> 2025 | Q7: ="B"&DE!$C$3 -> B2026 | R7: =DE!$C$3 -> 2026 | S7: Ecart vs N-1 | T7: Ecart vs Budget
F9: TOTAL RESEAU | J9: =SUM(J$25:J$167) -> 8937733.32 | K9: =SUM(K$25:K$167) -> 9146175.571 | L9: =SUM(L$25:L$167) -> 7946997.98 | M9: =$L9-$J9 -> -990735.34 | N9: =$L9-$K9 -> -1199177.591 | P9: =SUM(P$25:P$167) -> 8937733.32 | Q9: =SUM(Q$25:Q$167) -> 9146175.571 | R9: =SUM(R$25:R$167) -> 7946997.98 | S9: =$R9-$P9 -> -990735.34 | T9: =$R9-$Q9 -> -1199177.591
F10: Nb d'agence | J10: =COUNT(J$25:J$167)-COUNTIFS(J$25:J$167,"<=0") -> 120 | K10: =COUNT(K$25:K$167)-COUNTIFS(K$25:K$167,"<=0") -> 130 | L10: =COUNT(L$25:L$167)-COUNTIFS(L$25:L$167,"<=0") -> 123 | M10: =$L10-$J10 -> 3 | N10: =$L10-$K10 -> -7 | P10: =COUNT(P$25:P$167)-COUNTIFS(P$25:P$167,"<=0") -> 120 | Q10: =COUNT(Q$25:Q$167)-COUNTIFS(Q$25:Q$167,"<=0") -> 130 | R10: =COUNT(R$25:R$167)-COUNTIFS(R$25:R$167,"<=0") -> 123 | S10: =$R10-$P10 -> 3 | T10: =$R10-$Q10 -> -7
F11: CA moyen par agence | J11: =J$9/J$10 -> 74481.111 | K11: =K$9/K$10 -> 70355.1967 | L11: =L$9/L$10 -> 64609.73967 | M11: =$L11-$J11 -> -9871.371325 | N11: =$L11-$K11 -> -5745.457027 | P11: =P$9/P$10 -> 74481.111 | Q11: =Q$9/Q$10 -> 70355.1967 | R11: =R$9/R$10 -> 64609.73967 | S11: -9871.371325 | T11: -5745.457027
F13: SOUS-TOTAL (en fonction des filtres ligne 17) | J13: =SUBTOTAL(9,J$25:J$167) -> 8937733.32 | K13: =SUBTOTAL(9,K$25:K$167) -> 9146175.571 | L13: =SUBTOTAL(9,L$25:L$167) -> 7946997.98 | M13: =$L13-$J13 -> -990735.34 | N13: =$L13-$K13 -> -1199177.591 | P13: =SUBTOTAL(9,P$25:P$167) -> 8937733.32 | Q13: =SUBTOTAL(9,Q$25:Q$167) -> 9146175.571 | R13: =SUBTOTAL(9,R$25:R$167) -> 7946997.98 | S13: =$R13-$P13 -> -990735.34 | T13: =$R13-$Q13 -> -1199177.591
F17: Nombre de jours ouvrés | J17: =DE!$C$11 -> 21 | K17: =DE!$C$16 -> 22 | L17: =DE!$C$16 -> 22 | M17: =$L17-$J17 -> 1 | N17: =$L17-$K17 -> 0 | P17: =DE!$C$11 -> 21 | Q17: =DE!$C$16 -> 22 | R17: =DE!$C$16 -> 22 | S17: =$R17-$P17 -> 1 | T17: =$R17-$Q17 -> 0
F18: CA moyen jours | J18: =J$9/J$17 -> 425606.3486 | K18: =K$9/K$17 -> 415735.2532 | L18: =L$9/L$17 -> 361227.1809 | M18: =$L18-$J18 -> -64379.16766 | N18: =$L18-$K18 -> -54508.07233 | P18: =P$9/P$17 -> 425606.3486 | Q18: =Q$9/Q$17 -> 415735.2532 | R18: =R$9/R$17 -> 361227.1809 | S18: =$R18-$P18 -> -64379.16766 | T18: =$R18-$Q18 -> -54508.07233
B21: Détail par agences
K23: CA HT du mois | Q23: CA HT cumulé
A24: Périmêtre | B24: ID ATLAS | C24: ID AG Intranet | D24: Agences | E24: Franchisés | F24: Régions | G24: Active | H24: Age | I24: Date de signature | J24: =DE!$C$3-1 -> 2025 | K24: ="B"&DE!$C$3 -> B2026 | L24: =DE!$C$3 -> 2026 | M24: Ecart vs N-1 | N24: Ecart vs Budget | P24: =DE!$C$3-1 -> 2025 | Q24: ="B"&DE!$C$3 -> B2026 | R24: =DE!$C$3 -> 2026 | S24: Ecart vs N-1 | T24: Ecart vs Budget
B25: 3 | C25: 3 | D25: ATTILA LYON SUD OUEST | E25: LAHAYE Benoit | F25: RHONE-ALPES | G25: OUI | H25: +5ANS | I25: 2009-10-28 | J25: =SUMIF(Synth_MTD!$C:$C,$C25,Synth_MTD!$L:$L) -> 128823.25 | K25: =IF($C25="","",SUMIF(D_Budget!$F:$F,$C25,D_Budget!$A:$A)) -> 133479.6567 | L25: =SUMIF(Synth_MTD!$C:$C,$C25,Synth_MTD!$K:$K) -> 103671.1 | M25: =IF($C25="","",$L25-$J25) -> -25152.15 | N25: =IF($C25="","",$L25-$K25) -> -29808.55667 | P25: =SUMIF(Synth_YTD!$C:$C,$C25,Synth_YTD!$L:$L) -> 128823.25 | Q25: =IF($C25="","",SUMIF(D_Budget!$F:$F,$C25,D_Budget!$B:$B)) -> 133479.6567 | R25: =SUMIF(Synth_YTD!$C:$C,$C25,Synth_YTD!$K:$K) -> 103671.1 | S25: =IF($C25="","",$R25-$P25) -> -25152.15 | T25: =IF($C25="","",$R25-$Q25) -> -29808.55667
B26: 6 | C26: 6 | D26: ATTILA MONTARGIS | E26: LAHAYE Benoit | F26: CENTRE VAL-DE-LOIRE | G26: OUI | H26: +5ANS | I26: 2003-05-01 | J26: =SUMIF(Synth_MTD!$C:$C,$C26,Synth_MTD!$L:$L) -> 223155.34 | K26: =IF($C26="","",SUMIF(D_Budget!$F:$F,$C26,D_Budget!$A:$A)) -> 133578.4551 | L26: =SUMIF(Synth_MTD!$C:$C,$C26,Synth_MTD!$K:$K) -> 130076.64 | M26: =IF($C26="","",$L26-$J26) -> -93078.7 | N26: =IF($C26="","",$L26-$K26) -> -3501.815103 | P26: =SUMIF(Synth_MTD!$C:$C,$C26,Synth_MTD!$L:$L) -> 223155.34 | Q26: =IF($C26="","",SUMIF(D_Budget!$F:$F,$C26,D_Budget!$A:$A)) -> 133578.4551 | R26: =SUMIF(Synth_YTD!$C:$C,$C26,Synth_YTD!$K:$K) -> 130076.64 | S26: =IF($C26="","",$R26-$P26) -> -93078.7 | T26: =IF($C26="","",$R26-$Q26) -> -3501.815103
B27: 9 | C27: 9 | D27: ATTILA CLERMONT-FERRAND | E27: GROUFFAL Eric | F27: CENTRE | G27: OUI | H27: +5ANS | I27: 2010-02-15 | J27: =SUMIF(Synth_MTD!$C:$C,$C27,Synth_MTD!$L:$L) -> 121802.96 | K27: =IF($C27="","",SUMIF(D_Budget!$F:$F,$C27,D_Budget!$A:$A)) -> 114489.2705 | L27: =SUMIF(Synth_MTD!$C:$C,$C27,Synth_MTD!$K:$K) -> 105566.41 | M27: -16236.55 | N27: -8922.860539 | P27: =SUMIF(Synth_MTD!$C:$C,$C27,Synth_MTD!$L:$L) -> 121802.96 | Q27: =IF($C27="","",SUMIF(D_Budget!$F:$F,$C27,D_Budget!$A:$A)) -> 114489.2705 | R27: =SUMIF(Synth_YTD!$C:$C,$C27,Synth_YTD!$K:$K) -> 105566.41 | S27: -16236.55 | T27: -8922.860539
B28: 11 | C28: 11 | D28: ATTILA ANGLET | E28: CURUTCHET Jean-Bernard | F28: SUD-OUEST | G28: OUI | H28: +5ANS | I28: 2010-02-15 | J28: =SUMIF(Synth_MTD!$C:$C,$C28,Synth_MTD!$L:$L) -> 87680.01 | K28: =IF($C28="","",SUMIF(D_Budget!$F:$F,$C28,D_Budget!$A:$A)) -> 88777.5456 | L28: =SUMIF(Synth_MTD!$C:$C,$C28,Synth_MTD!$K:$K) -> 88598.92 | M28: 918.91 | N28: -178.6256002 | P28: =SUMIF(Synth_MTD!$C:$C,$C28,Synth_MTD!$L:$L) -> 87680.01 | Q28: =IF($C28="","",SUMIF(D_Budget!$F:$F,$C28,D_Budget!$A:$A)) -> 88777.5456 | R28: =SUMIF(Synth_YTD!$C:$C,$C28,Synth_YTD!$K:$K) -> 88598.92 | S28: 918.91 | T28: -178.6256002
B29: 19 | C29: 19 | D29: ATTILA ANCENIS - NANTES EST | E29: BOUCHER François | F29: BRETAGNE | G29: OUI | H29: +5ANS | I29: 2011-01-29 | J29: =SUMIF(Synth_MTD!$C:$C,$C29,Synth_MTD!$L:$L) -> 100142.53 | K29: =IF($C29="","",SUMIF(D_Budget!$F:$F,$C29,D_Budget!$A:$A)) -> 138607.3622 | L29: =SUMIF(Synth_MTD!$C:$C,$C29,Synth_MTD!$K:$K) -> 60652.26 | M29: -39490.27 | N29: -77955.10217 | P29: =SUMIF(Synth_MTD!$C:$C,$C29,Synth_MTD!$L:$L) -> 100142.53 | Q29: =IF($C29="","",SUMIF(D_Budget!$F:$F,$C29,D_Budget!$A:$A)) -> 138607.3622 | R29: =SUMIF(Synth_YTD!$C:$C,$C29,Synth_YTD!$K:$K) -> 60652.26 | S29: -39490.27 | T29: -77955.10217
B30: 23 | C30: 23 | D30: ATTILA VILLEFRANCHE-SUR-SAONE | E30: BELLOT Marc | F30: RHONE-ALPES | G30: OUI | H30: +5ANS | I30: 2011-06-06 | J30: =SUMIF(Synth_MTD!$C:$C,$C30,Synth_MTD!$L:$L) -> 111406.96 | K30: =IF($C30="","",SUMIF(D_Budget!$F:$F,$C30,D_Budget!$A:$A)) -> 96610.23526 | L30: =SUMIF(Synth_MTD!$C:$C,$C30,Synth_MTD!$K:$K) -> 80492.69 | M30: -30914.27 | N30: -16117.54526 | P30: =SUMIF(Synth_MTD!$C:$C,$C30,Synth_MTD!$L:$L) -> 111406.96 | Q30: =IF($C30="","",SUMIF(D_Budget!$F:$F,$C30,D_Budget!$A:$A)) -> 96610.23526 | R30: =SUMIF(Synth_YTD!$C:$C,$C30,Synth_YTD!$K:$K) -> 80492.69 | S30: -30914.27 | T30: -16117.54526
B31: 25 | C31: 25 | D31: ATTILA NANTES OUEST | E31: HEMERY Gildas | F31: BRETAGNE | G31: OUI | H31: ANNEE 2 | I31: 2024-05-16 | J31: =SUMIF(Synth_MTD!$C:$C,$C31,Synth_MTD!$L:$L) -> 117928.1 | K31: =IF($C31="","",SUMIF(D_Budget!$F:$F,$C31,D_Budget!$A:$A)) -> 104475.3516 | L31: =SUMIF(Synth_MTD!$C:$C,$C31,Synth_MTD!$K:$K) -> 80076.09 | M31: -37852.01 | N31: -24399.26161 | P31: =SUMIF(Synth_MTD!$C:$C,$C31,Synth_MTD!$L:$L) -> 117928.1 | Q31: =IF($C31="","",SUMIF(D_Budget!$F:$F,$C31,D_Budget!$A:$A)) -> 104475.3516 | R31: =SUMIF(Synth_YTD!$C:$C,$C31,Synth_YTD!$K:$K) -> 80076.09 | S31: -37852.01 | T31: -24399.26161
B32: 26 | C32: 26 | D32: ATTILA LIMOGES NORD | E32: PELTIER Romain | F32: CENTRE | G32: OUI | H32: +5ANS | I32: 2011-07-29 | J32: =SUMIF(Synth_MTD!$C:$C,$C32,Synth_MTD!$L:$L) -> 96619.86 | K32: =IF($C32="","",SUMIF(D_Budget!$F:$F,$C32,D_Budget!$A:$A)) -> 94385.57292 | L32: =SUMIF(Synth_MTD!$C:$C,$C32,Synth_MTD!$K:$K) -> 92168.49 | M32: -4451.37 | N32: -2217.082917 | P32: =SUMIF(Synth_MTD!$C:$C,$C32,Synth_MTD!$L:$L) -> 96619.86 | Q32: =IF($C32="","",SUMIF(D_Budget!$F:$F,$C32,D_Budget!$A:$A)) -> 94385.57292 | R32: =SUMIF(Synth_YTD!$C:$C,$C32,Synth_YTD!$K:$K) -> 92168.49 | S32: -4451.37 | T32: -2217.082917
B33: 29 | C33: 29 | D33: ATTILA ROISSY-EN-BRIE | E33: LOUPI Renaud | F33: NORD-EST | G33: OUI | H33: +5ANS | I33: 2011-11-08 | J33: =SUMIF(Synth_MTD!$C:$C,$C33,Synth_MTD!$L:$L) -> 14856.44 | K33: =IF($C33="","",SUMIF(D_Budget!$F:$F,$C33,D_Budget!$A:$A)) -> 0 | L33: =SUMIF(Synth_MTD!$C:$C,$C33,Synth_MTD!$K:$K) -> 0 | M33: -14856.44 | N33: 0 | P33: =SUMIF(Synth_MTD!$C:$C,$C33,Synth_MTD!$L:$L) -> 14856.44 | Q33: =IF($C33="","",SUMIF(D_Budget!$F:$F,$C33,D_Budget!$A:$A)) -> 0 | R33: =SUMIF(Synth_YTD!$C:$C,$C33,Synth_YTD!$K:$K) -> 0 | S33: -14856.44 | T33: 0
B34: 33 | C34: 33 | D34: ATTILA SAINT-ETIENNE ANDREZIEUX | E34: BASTIN Thierry | F34: CENTRE | G34: OUI | H34: +5ANS | I34: 2012-05-02 | J34: =SUMIF(Synth_MTD!$C:$C,$C34,Synth_MTD!$L:$L) -> 77265.16 | K34: =IF($C34="","",SUMIF(D_Budget!$F:$F,$C34,D_Budget!$A:$A)) -> 85773.882 | L34: =SUMIF(Synth_MTD!$C:$C,$C34,Synth_MTD!$K:$K) -> 49365.42 | M34: -27899.74 | N34: -36408.462 | P34: =SUMIF(Synth_MTD!$C:$C,$C34,Synth_MTD!$L:$L) -> 77265.16 | Q34: =IF($C34="","",SUMIF(D_Budget!$F:$F,$C34,D_Budget!$A:$A)) -> 85773.882 | R34: =SUMIF(Synth_YTD!$C:$C,$C34,Synth_YTD!$K:$K) -> 49365.42 | S34: -27899.74 | T34: -36408.462
B35: 35 | C35: 35 | D35: ATTILA LA ROCHE-SUR-YON | E35: GODDE Fabien | F35: DEUX-SEVRES | G35: OUI | H35: ANNEE 1 | I35: 2025-04-10 | J35: =SUMIF(Synth_MTD!$C:$C,$C35,Synth_MTD!$L:$L) -> 75845.08 | K35: =IF($C35="","",SUMIF(D_Budget!$F:$F,$C35,D_Budget!$A:$A)) -> 84357.69017 | L35: =SUMIF(Synth_MTD!$C:$C,$C35,Synth_MTD!$K:$K) -> 53196.43 | M35: -22648.65 | N35: -31161.26017 | P35: =SUMIF(Synth_MTD!$C:$C,$C35,Synth_MTD!$L:$L) -> 75845.08 | Q35: =IF($C35="","",SUMIF(D_Budget!$F:$F,$C35,D_Budget!$A:$A)) -> 84357.69017 | R35: =SUMIF(Synth_YTD!$C:$C,$C35,Synth_YTD!$K:$K) -> 53196.43 | S35: -22648.65 | T35: -31161.26017
B36: 43 | C36: 43 | D36: ATTILA ANGERS SUD | E36: FORESTIER Xavier | F36: DEUX-SEVRES | G36: OUI | H36: +5ANS | I36: 2013-06-07 | J36: =SUMIF(Synth_MTD!$C:$C,$C36,Synth_MTD!$L:$L) -> 112764.17 | K36: =IF($C36="","",SUMIF(D_Budget!$F:$F,$C36,D_Budget!$A:$A)) -> 89688.65237 | L36: =SUMIF(Synth_MTD!$C:$C,$C36,Synth_MTD!$K:$K) -> 69306.62 | M36: -43457.55 | N36: -20382.03237 | P36: =SUMIF(Synth_MTD!$C:$C,$C36,Synth_MTD!$L:$L) -> 112764.17 | Q36: =IF($C36="","",SUMIF(D_Budget!$F:$F,$C36,D_Budget!$A:$A)) -> 89688.65237 | R36: =SUMIF(Synth_YTD!$C:$C,$C36,Synth_YTD!$K:$K) -> 69306.62 | S36: -43457.55 | T36: -20382.03237
B37: 45 | C37: 45 | D37: ATTILA GRENOBLE | E37: FAGES Thierry | F37: RHONE-ALPES | G37: OUI | H37: +5ANS | I37: 2013-05-21 | J37: =SUMIF(Synth_MTD!$C:$C,$C37,Synth_MTD!$L:$L) -> 36574.33 | K37: =IF($C37="","",SUMIF(D_Budget!$F:$F,$C37,D_Budget!$A:$A)) -> 47562.71647 | L37: =SUMIF(Synth_MTD!$C:$C,$C37,Synth_MTD!$K:$K) -> 28811.31 | M37: -7763.02 | N37: -18751.40647 | P37: =SUMIF(Synth_MTD!$C:$C,$C37,Synth_MTD!$L:$L) -> 36574.33 | Q37: =IF($C37="","",SUMIF(D_Budget!$F:$F,$C37,D_Budget!$A:$A)) -> 47562.71647 | R37: =SUMIF(Synth_YTD!$C:$C,$C37,Synth_YTD!$K:$K) -> 28811.31 | S37: -7763.02 | T37: -18751.40647
B38: 48 | C38: 48 | D38: ATTILA TOULOUSE NORD | E38: BELLOT Marc | F38: SUD-OUEST | G38: OUI | H38: +5ANS | I38: 2013-11-13 | J38: =SUMIF(Synth_MTD!$C:$C,$C38,Synth_MTD!$L:$L) -> 109641.19 | K38: =IF($C38="","",SUMIF(D_Budget!$F:$F,$C38,D_Budget!$A:$A)) -> 100812.0914 | L38: =SUMIF(Synth_MTD!$C:$C,$C38,Synth_MTD!$K:$K) -> 92217.76 | M38: -17423.43 | N38: -8594.331389 | P38: =SUMIF(Synth_MTD!$C:$C,$C38,Synth_MTD!$L:$L) -> 109641.19 | Q38: =IF($C38="","",SUMIF(D_Budget!$F:$F,$C38,D_Budget!$A:$A)) -> 100812.0914 | R38: =SUMIF(Synth_YTD!$C:$C,$C38,Synth_YTD!$K:$K) -> 92217.76 | S38: -17423.43 | T38: -8594.331389
B39: 49 | C39: 49 | D39: ATTILA LORIENT | E39: LE CLOËREC Sylvain | F39: BRETAGNE | G39: OUI | H39: ANNEE 3 | I39: 2023-04-26 | J39: =SUMIF(Synth_MTD!$C:$C,$C39,Synth_MTD!$L:$L) -> 104363.11 | K39: =IF($C39="","",SUMIF(D_Budget!$F:$F,$C39,D_Budget!$A:$A)) -> 123664.9212 | L39: =SUMIF(Synth_MTD!$C:$C,$C39,Synth_MTD!$K:$K) -> 156856.87 | M39: 52493.76 | N39: 33191.94885 | P39: =SUMIF(Synth_MTD!$C:$C,$C39,Synth_MTD!$L:$L) -> 104363.11 | Q39: =IF($C39="","",SUMIF(D_Budget!$F:$F,$C39,D_Budget!$A:$A)) -> 123664.9212 | R39: =SUMIF(Synth_YTD!$C:$C,$C39,Synth_YTD!$K:$K) -> 156856.87 | S39: 52493.76 | T39: 33191.94885
B40: 52 | C40: 52 | D40: ATTILA VILLENEUVE D'ASCQ | E40: RECQ Romuald | F40: NORMANDIE-PARIS | G40: OUI | H40: +5ANS | I40: 2013-11-10 | J40: =SUMIF(Synth_MTD!$C:$C,$C40,Synth_MTD!$L:$L) -> 58209.23 | K40: =IF($C40="","",SUMIF(D_Budget!$F:$F,$C40,D_Budget!$A:$A)) -> 62668.24029 | L40: =SUMIF(Synth_MTD!$C:$C,$C40,Synth_MTD!$K:$K) -> 52435.93 | M40: -5773.3 | N40: -10232.31029 | P40: =SUMIF(Synth_MTD!$C:$C,$C40,Synth_MTD!$L:$L) -> 58209.23 | Q40: =IF($C40="","",SUMIF(D_Budget!$F:$F,$C40,D_Budget!$A:$A)) -> 62668.24029 | R40: =SUMIF(Synth_YTD!$C:$C,$C40,Synth_YTD!$K:$K) -> 52435.93 | S40: -5773.3 | T40: -10232.31029
B41: 55 | C41: 55 | D41: ATTILA AVIGNON | E41: DECAVATA Franck | F41: SUD-EST | G41: OUI | H41: +5ANS | I41: 2014-05-28 | J41: =SUMIF(Synth_MTD!$C:$C,$C41,Synth_MTD!$L:$L) -> 42534.55 | K41: =IF($C41="","",SUMIF(D_Budget!$F:$F,$C41,D_Budget!$A:$A)) -> 36063.75605 | L41: =SUMIF(Synth_MTD!$C:$C,$C41,Synth_MTD!$K:$K) -> 51527.55 | M41: 8993 | N41: 15463.79395 | P41: =SUMIF(Synth_MTD!$C:$C,$C41,Synth_MTD!$L:$L) -> 42534.55 | Q41: =IF($C41="","",SUMIF(D_Budget!$F:$F,$C41,D_Budget!$A:$A)) -> 36063.75605 | R41: =SUMIF(Synth_YTD!$C:$C,$C41,Synth_YTD!$K:$K) -> 51527.55 | S41: 8993 | T41: 15463.79395
B42: 56 | C42: 56 | D42: ATTILA BORDEAUX EST | E42: BEX Thomas | F42: SUD-OUEST | G42: OUI | H42: +5ANS | I42: 2014-08-07 | J42: =SUMIF(Synth_MTD!$C:$C,$C42,Synth_MTD!$L:$L) -> 104494.38 | K42: =IF($C42="","",SUMIF(D_Budget!$F:$F,$C42,D_Budget!$A:$A)) -> 93535.46515 | L42: =SUMIF(Synth_MTD!$C:$C,$C42,Synth_MTD!$K:$K) -> 88711.43 | M42: -15782.95 | N42: -4824.035149 | P42: =SUMIF(Synth_MTD!$C:$C,$C42,Synth_MTD!$L:$L) -> 104494.38 | Q42: =IF($C42="","",SUMIF(D_Budget!$F:$F,$C42,D_Budget!$A:$A)) -> 93535.46515 | R42: =SUMIF(Synth_YTD!$C:$C,$C42,Synth_YTD!$K:$K) -> 88711.43 | S42: -15782.95 | T42: -4824.035149
B43: 57 | C43: 57 | D43: ATTILA LA TOUR-DU-PIN | E43: RANDON Bruce | F43: RHONE-ALPES | G43: OUI | H43: +5ANS | I43: 2014-05-28 | J43: =SUMIF(Synth_MTD!$C:$C,$C43,Synth_MTD!$L:$L) -> 83072.4 | K43: =IF($C43="","",SUMIF(D_Budget!$F:$F,$C43,D_Budget!$A:$A)) -> 97342.75566 | L43: =SUMIF(Synth_MTD!$C:$C,$C43,Synth_MTD!$K:$K) -> 82736.99 | M43: -335.41 | N43: -14605.76566 | P43: =SUMIF(Synth_MTD!$C:$C,$C43,Synth_MTD!$L:$L) -> 83072.4 | Q43: =IF($C43="","",SUMIF(D_Budget!$F:$F,$C43,D_Budget!$A:$A)) -> 97342.75566 | R43: =SUMIF(Synth_YTD!$C:$C,$C43,Synth_YTD!$K:$K) -> 82736.99 | S43: -335.41 | T43: -14605.76566
B44: 58 | C44: 58 | D44: ATTILA VIENNE | E44: REVEL Aurélien | F44: CENTRE | G44: OUI | H44: +5ANS | I44: 2014-05-28 | J44: =SUMIF(Synth_MTD!$C:$C,$C44,Synth_MTD!$L:$L) -> 55222.88 | K44: =IF($C44="","",SUMIF(D_Budget!$F:$F,$C44,D_Budget!$A:$A)) -> 44563.60344 | L44: =SUMIF(Synth_MTD!$C:$C,$C44,Synth_MTD!$K:$K) -> 39959.62 | M44: -15263.26 | N44: -4603.983436 | P44: =SUMIF(Synth_MTD!$C:$C,$C44,Synth_MTD!$L:$L) -> 55222.88 | Q44: =IF($C44="","",SUMIF(D_Budget!$F:$F,$C44,D_Budget!$A:$A)) -> 44563.60344 | R44: =SUMIF(Synth_YTD!$C:$C,$C44,Synth_YTD!$K:$K) -> 39959.62 | S44: -15263.26 | T44: -4603.983436
B45: 60 | C45: 60 | D45: ATTILA ISSOIRE | E45: VILLIET Philippe | F45: CENTRE | G45: OUI | H45: +5ANS | I45: 2015-02-16 | J45: =SUMIF(Synth_MTD!$C:$C,$C45,Synth_MTD!$L:$L) -> 36219.07 | K45: =IF($C45="","",SUMIF(D_Budget!$F:$F,$C45,D_Budget!$A:$A)) -> 52601.48371 | L45: =SUMIF(Synth_MTD!$C:$C,$C45,Synth_MTD!$K:$K) -> 22719.41 | M45: -13499.66 | N45: -29882.07371 | P45: =SUMIF(Synth_MTD!$C:$C,$C45,Synth_MTD!$L:$L) -> 36219.07 | Q45: =IF($C45="","",SUMIF(D_Budget!$F:$F,$C45,D_Budget!$A:$A)) -> 52601.48371 | R45: =SUMIF(Synth_YTD!$C:$C,$C45,Synth_YTD!$K:$K) -> 22719.41 | S45: -13499.66 | T45: -29882.07371
B46: 63 | C46: 63 | D46: ATTILA PERIGUEUX | E46: VALETTE Mathieu | F46: DEUX-SEVRES | G46: OUI | H46: ANNEE 2 | I46: 2024-10-15 | J46: =SUMIF(Synth_MTD!$C:$C,$C46,Synth_MTD!$L:$L) -> 85240.57 | K46: =IF($C46="","",SUMIF(D_Budget!$F:$F,$C46,D_Budget!$A:$A)) -> 103465.8075 | L46: =SUMIF(Synth_MTD!$C:$C,$C46,Synth_MTD!$K:$K) -> 96878.28 | M46: 11637.71 | N46: -6587.527475 | P46: =SUMIF(Synth_MTD!$C:$C,$C46,Synth_MTD!$L:$L) -> 85240.57 | Q46: =IF($C46="","",SUMIF(D_Budget!$F:$F,$C46,D_Budget!$A:$A)) -> 103465.8075 | R46: =SUMIF(Synth_YTD!$C:$C,$C46,Synth_YTD!$K:$K) -> 96878.28 | S46: 11637.71 | T46: -6587.527475
B47: 65 | C47: 65 | D47: ATTILA STRASBOURG OUEST | E47: DELON Sylvain | F47: SORTIE | G47: NON | H47: +5ANS | I47: 2015-05-12 | J47: =SUMIF(Synth_MTD!$C:$C,$C47,Synth_MTD!$L:$L) -> 62591 | K47: =IF($C47="","",SUMIF(D_Budget!$F:$F,$C47,D_Budget!$A:$A)) -> 0 | L47: =SUMIF(Synth_MTD!$C:$C,$C47,Synth_MTD!$K:$K) -> 0 | M47: -62591 | N47: 0 | P47: =SUMIF(Synth_MTD!$C:$C,$C47,Synth_MTD!$L:$L) -> 62591 | Q47: =IF($C47="","",SUMIF(D_Budget!$F:$F,$C47,D_Budget!$A:$A)) -> 0 | R47: =SUMIF(Synth_YTD!$C:$C,$C47,Synth_YTD!$K:$K) -> 0 | S47: -62591 | T47: 0
B48: 66 | C48: 66 | D48: ATTILA TOURS OUEST | E48: MOREAU Jean-François | F48: CENTRE VAL-DE-LOIRE | G48: OUI | H48: +5ANS | I48: 2015-06-08 | J48: =SUMIF(Synth_MTD!$C:$C,$C48,Synth_MTD!$L:$L) -> 175210.99 | K48: =IF($C48="","",SUMIF(D_Budget!$F:$F,$C48,D_Budget!$A:$A)) -> 144887.9071 | L48: =SUMIF(Synth_MTD!$C:$C,$C48,Synth_MTD!$K:$K) -> 172813.19 | M48: -2397.8 | N48: 27925.2829 | P48: =SUMIF(Synth_MTD!$C:$C,$C48,Synth_MTD!$L:$L) -> 175210.99 | Q48: =IF($C48="","",SUMIF(D_Budget!$F:$F,$C48,D_Budget!$A:$A)) -> 144887.9071 | R48: =SUMIF(Synth_YTD!$C:$C,$C48,Synth_YTD!$K:$K) -> 172813.19 | S48: -2397.8 | T48: 27925.2829
B49: 69 | C49: 69 | D49: ATTILA CHOLET OUEST | E49: PASQUET Christophe | F49: DEUX-SEVRES | G49: OUI | H49: +5ANS | I49: 2015-06-29 | J49: =SUMIF(Synth_MTD!$C:$C,$C49,Synth_MTD!$L:$L) -> 92595.99 | K49: =IF($C49="","",SUMIF(D_Budget!$F:$F,$C49,D_Budget!$A:$A)) -> 96580.42743 | L49: =SUMIF(Synth_MTD!$C:$C,$C49,Synth_MTD!$K:$K) -> 57668.57 | M49: -34927.42 | N49: -38911.85743 | P49: =SUMIF(Synth_MTD!$C:$C,$C49,Synth_MTD!$L:$L) -> 92595.99 | Q49: =IF($C49="","",SUMIF(D_Budget!$F:$F,$C49,D_Budget!$A:$A)) -> 96580.42743 | R49: =SUMIF(Synth_YTD!$C:$C,$C49,Synth_YTD!$K:$K) -> 57668.57 | S49: -34927.42 | T49: -38911.85743
B50: 73 | C50: 73 | D50: ATTILA DIJON OUEST | E50: BAILLY David | F50: SORTIE | G50: NON | H50: +5ANS | I50: 2015-09-28 | J50: =SUMIF(Synth_MTD!$C:$C,$C50,Synth_MTD!$L:$L) -> 61663.29 | K50: =IF($C50="","",SUMIF(D_Budget!$F:$F,$C50,D_Budget!$A:$A)) -> 0 | L50: =SUMIF(Synth_MTD!$C:$C,$C50,Synth_MTD!$K:$K) -> 0 | M50: -61663.29 | N50: 0 | P50: =SUMIF(Synth_MTD!$C:$C,$C50,Synth_MTD!$L:$L) -> 61663.29 | Q50: =IF($C50="","",SUMIF(D_Budget!$F:$F,$C50,D_Budget!$A:$A)) -> 0 | R50: =SUMIF(Synth_YTD!$C:$C,$C50,Synth_YTD!$K:$K) -> 0 | S50: -61663.29 | T50: 0
B51: 75 | C51: 75 | D51: ATTILA YVETOT/BARENTIN | E51: PEYRUSSE DIONISI Arnaud | F51: NORMANDIE-PARIS | G51: OUI | H51: +5ANS | I51: 2015-12-02 | J51: =SUMIF(Synth_MTD!$C:$C,$C51,Synth_MTD!$L:$L) -> 86002.99 | K51: =IF($C51="","",SUMIF(D_Budget!$F:$F,$C51,D_Budget!$A:$A)) -> 61133.77759 | L51: =SUMIF(Synth_MTD!$C:$C,$C51,Synth_MTD!$K:$K) -> 87248.94 | M51: 1245.95 | N51: 26115.16241 | P51: =SUMIF(Synth_MTD!$C:$C,$C51,Synth_MTD!$L:$L) -> 86002.99 | Q51: =IF($C51="","",SUMIF(D_Budget!$F:$F,$C51,D_Budget!$A:$A)) -> 61133.77759 | R51: =SUMIF(Synth_YTD!$C:$C,$C51,Synth_YTD!$K:$K) -> 87248.94 | S51: 1245.95 | T51: 26115.16241
B52: 76 | C52: 76 | D52: ATTILA ROANNE | E52: COSSARD François | F52: CENTRE | G52: OUI | H52: +5ANS | I52: 2015-09-28 | J52: =SUMIF(Synth_MTD!$C:$C,$C52,Synth_MTD!$L:$L) -> 116276.48 | K52: =IF($C52="","",SUMIF(D_Budget!$F:$F,$C52,D_Budget!$A:$A)) -> 105026.2574 | L52: =SUMIF(Synth_MTD!$C:$C,$C52,Synth_MTD!$K:$K) -> 77203.62 | M52: -39072.86 | N52: -27822.63743 | P52: =SUMIF(Synth_MTD!$C:$C,$C52,Synth_MTD!$L:$L) -> 116276.48 | Q52: =IF($C52="","",SUMIF(D_Budget!$F:$F,$C52,D_Budget!$A:$A)) -> 105026.2574 | R52: =SUMIF(Synth_YTD!$C:$C,$C52,Synth_YTD!$K:$K) -> 77203.62 | S52: -39072.86 | T52: -27822.63743
B53: 77 | C53: 77 | D53: ATTILA SAINT-GERMAIN-EN-LAYE | E53: CATHERINE Philippe | F53: NORMANDIE-PARIS | G53: OUI | H53: +5ANS | I53: 2016-02-08 | J53: =SUMIF(Synth_MTD!$C:$C,$C53,Synth_MTD!$L:$L) -> 55315.38 | K53: =IF($C53="","",SUMIF(D_Budget!$F:$F,$C53,D_Budget!$A:$A)) -> 63195.30859 | L53: =SUMIF(Synth_MTD!$C:$C,$C53,Synth_MTD!$K:$K) -> 39009.06 | M53: -16306.32 | N53: -24186.24859 | P53: =SUMIF(Synth_MTD!$C:$C,$C53,Synth_MTD!$L:$L) -> 55315.38 | Q53: =IF($C53="","",SUMIF(D_Budget!$F:$F,$C53,D_Budget!$A:$A)) -> 63195.30859 | R53: =SUMIF(Synth_YTD!$C:$C,$C53,Synth_YTD!$K:$K) -> 39009.06 | S53: -16306.32 | T53: -24186.24859
B54: 80 | C54: 80 | D54: ATTILA BOURG-EN-BRESSE | E54: BELLOT Marc | F54: RHONE-ALPES | G54: OUI | H54: +5ANS | I54: 2014-07-17 | J54: =SUMIF(Synth_MTD!$C:$C,$C54,Synth_MTD!$L:$L) -> 79082.85 | K54: =IF($C54="","",SUMIF(D_Budget!$F:$F,$C54,D_Budget!$A:$A)) -> 58116.40493 | L54: =SUMIF(Synth_MTD!$C:$C,$C54,Synth_MTD!$K:$K) -> 56037.5 | M54: -23045.35 | N54: -2078.904927 | P54: =SUMIF(Synth_MTD!$C:$C,$C54,Synth_MTD!$L:$L) -> 79082.85 | Q54: =IF($C54="","",SUMIF(D_Budget!$F:$F,$C54,D_Budget!$A:$A)) -> 58116.40493 | R54: =SUMIF(Synth_YTD!$C:$C,$C54,Synth_YTD!$K:$K) -> 56037.5 | S54: -23045.35 | T54: -2078.904927
B55: 82 | C55: 82 | D55: ATTILA BORDEAUX NORD | E55: MOAL Yannick | F55: SUD-OUEST | G55: OUI | H55: +5ANS | I55: 2016-08-02 | J55: =SUMIF(Synth_MTD!$C:$C,$C55,Synth_MTD!$L:$L) -> 67222.98 | K55: =IF($C55="","",SUMIF(D_Budget!$F:$F,$C55,D_Budget!$A:$A)) -> 75868.60285 | L55: =SUMIF(Synth_MTD!$C:$C,$C55,Synth_MTD!$K:$K) -> 56240.79 | M55: -10982.19 | N55: -19627.81285 | P55: =SUMIF(Synth_MTD!$C:$C,$C55,Synth_MTD!$L:$L) -> 67222.98 | Q55: =IF($C55="","",SUMIF(D_Budget!$F:$F,$C55,D_Budget!$A:$A)) -> 75868.60285 | R55: =SUMIF(Synth_YTD!$C:$C,$C55,Synth_YTD!$K:$K) -> 56240.79 | S55: -10982.19 | T55: -19627.81285
B56: 83 | C56: 83 | D56: ATTILA POITIERS NORD | E56: DENIS Matthieu | F56: DEUX-SEVRES | G56: OUI | H56: ANNEE 3 | I56: 2023-01-05 | J56: =SUMIF(Synth_MTD!$C:$C,$C56,Synth_MTD!$L:$L) -> 36432.91 | K56: =IF($C56="","",SUMIF(D_Budget!$F:$F,$C56,D_Budget!$A:$A)) -> 60650.09887 | L56: =SUMIF(Synth_MTD!$C:$C,$C56,Synth_MTD!$K:$K) -> 17826.26 | M56: -18606.65 | N56: -42823.83887 | P56: =SUMIF(Synth_MTD!$C:$C,$C56,Synth_MTD!$L:$L) -> 36432.91 | Q56: =IF($C56="","",SUMIF(D_Budget!$F:$F,$C56,D_Budget!$A:$A)) -> 60650.09887 | R56: =SUMIF(Synth_YTD!$C:$C,$C56,Synth_YTD!$K:$K) -> 17826.26 | S56: -18606.65 | T56: -42823.83887
B57: 87 | C57: 87 | D57: ATTILA LYON SUD EST | E57: LAHAYE Benoit | F57: RHONE-ALPES | G57: OUI | H57: +5ANS | I57: 2019-05-17 | J57: =SUMIF(Synth_MTD!$C:$C,$C57,Synth_MTD!$L:$L) -> 204678.63 | K57: =IF($C57="","",SUMIF(D_Budget!$F:$F,$C57,D_Budget!$A:$A)) -> 107415.7439 | L57: =SUMIF(Synth_MTD!$C:$C,$C57,Synth_MTD!$K:$K) -> 83969.24 | M57: -120709.39 | N57: -23446.50389 | P57: =SUMIF(Synth_MTD!$C:$C,$C57,Synth_MTD!$L:$L) -> 204678.63 | Q57: =IF($C57="","",SUMIF(D_Budget!$F:$F,$C57,D_Budget!$A:$A)) -> 107415.7439 | R57: =SUMIF(Synth_YTD!$C:$C,$C57,Synth_YTD!$K:$K) -> 83969.24 | S57: -120709.39 | T57: -23446.50389
B58: 94 | C58: 94 | D58: ATTILA LE MANS SUD | E58: SAILLOUR Laure | F58: CENTRE VAL-DE-LOIRE | G58: OUI | H58: +5ANS | I58: 2016-12-12 | J58: =SUMIF(Synth_MTD!$C:$C,$C58,Synth_MTD!$L:$L) -> 175280.56 | K58: =IF($C58="","",SUMIF(D_Budget!$F:$F,$C58,D_Budget!$A:$A)) -> 185862.0697 | L58: =SUMIF(Synth_MTD!$C:$C,$C58,Synth_MTD!$K:$K) -> 152313.44 | M58: -22967.12 | N58: -33548.62971 | P58: =SUMIF(Synth_MTD!$C:$C,$C58,Synth_MTD!$L:$L) -> 175280.56 | Q58: =IF($C58="","",SUMIF(D_Budget!$F:$F,$C58,D_Budget!$A:$A)) -> 185862.0697 | R58: =SUMIF(Synth_YTD!$C:$C,$C58,Synth_YTD!$K:$K) -> 152313.44 | S58: -22967.12 | T58: -33548.62971
B59: 95 | C59: 95 | D59: ATTILA HAGUENAU | E59: GEAUFREAU Thomas | F59: SORTIE | G59: NON | H59: +5ANS | I59: 2017-01-25 | J59: =SUMIF(Synth_MTD!$C:$C,$C59,Synth_MTD!$L:$L) -> 71727.92 | K59: =IF($C59="","",SUMIF(D_Budget!$F:$F,$C59,D_Budget!$A:$A)) -> 0 | L59: =SUMIF(Synth_MTD!$C:$C,$C59,Synth_MTD!$K:$K) -> 0 | M59: -71727.92 | N59: 0 | P59: =SUMIF(Synth_MTD!$C:$C,$C59,Synth_MTD!$L:$L) -> 71727.92 | Q59: =IF($C59="","",SUMIF(D_Budget!$F:$F,$C59,D_Budget!$A:$A)) -> 0 | R59: =SUMIF(Synth_YTD!$C:$C,$C59,Synth_YTD!$K:$K) -> 0 | S59: -71727.92 | T59: 0
B60: 96 | C60: 96 | D60: ATTILA NIORT | E60: COUSIN Pascal | F60: DEUX-SEVRES | G60: OUI | H60: +5ANS | I60: 2016-12-12 | J60: =SUMIF(Synth_MTD!$C:$C,$C60,Synth_MTD!$L:$L) -> 76934.41 | K60: =IF($C60="","",SUMIF(D_Budget!$F:$F,$C60,D_Budget!$A:$A)) -> 112620.5802 | L60: =SUMIF(Synth_MTD!$C:$C,$C60,Synth_MTD!$K:$K) -> 77392.17 | M60: 457.76 | N60: -35228.41024 | P60: =SUMIF(Synth_MTD!$C:$C,$C60,Synth_MTD!$L:$L) -> 76934.41 | Q60: =IF($C60="","",SUMIF(D_Budget!$F:$F,$C60,D_Budget!$A:$A)) -> 112620.5802 | R60: =SUMIF(Synth_YTD!$C:$C,$C60,Synth_YTD!$K:$K) -> 77392.17 | S60: 457.76 | T60: -35228.41024
B61: 99 | C61: 99 | D61: ATTILA LA ROCHELLE SUD | E61: MARTINEAU Florian | F61: DEUX-SEVRES | G61: OUI | H61: ANNEE 1 | I61: 2025-09-26 | J61: =SUMIF(Synth_MTD!$C:$C,$C61,Synth_MTD!$L:$L) -> 109743.24 | K61: =IF($C61="","",SUMIF(D_Budget!$F:$F,$C61,D_Budget!$A:$A)) -> 114619.5044 | L61: =SUMIF(Synth_MTD!$C:$C,$C61,Synth_MTD!$K:$K) -> 60368.99 | M61: -49374.25 | N61: -54250.51441 | P61: =SUMIF(Synth_MTD!$C:$C,$C61,Synth_MTD!$L:$L) -> 109743.24 | Q61: =IF($C61="","",SUMIF(D_Budget!$F:$F,$C61,D_Budget!$A:$A)) -> 114619.5044 | R61: =SUMIF(Synth_YTD!$C:$C,$C61,Synth_YTD!$K:$K) -> 60368.99 | S61: -49374.25 | T61: -54250.51441
B62: 100 | C62: 101 | D62: ATTILA ANGOULEME | E62: TESSON-RICHEZ Jérôme | F62: DEUX-SEVRES | G62: OUI | H62: +5ANS | I62: 2017-05-30 | J62: =SUMIF(Synth_MTD!$C:$C,$C62,Synth_MTD!$L:$L) -> 160021.46 | K62: =IF($C62="","",SUMIF(D_Budget!$F:$F,$C62,D_Budget!$A:$A)) -> 136990.945 | L62: =SUMIF(Synth_MTD!$C:$C,$C62,Synth_MTD!$K:$K) -> 87682.39 | M62: -72339.07 | N62: -49308.55497 | P62: =SUMIF(Synth_MTD!$C:$C,$C62,Synth_MTD!$L:$L) -> 160021.46 | Q62: =IF($C62="","",SUMIF(D_Budget!$F:$F,$C62,D_Budget!$A:$A)) -> 136990.945 | R62: =SUMIF(Synth_YTD!$C:$C,$C62,Synth_YTD!$K:$K) -> 87682.39 | S62: -72339.07 | T62: -49308.55497
B63: 101 | C63: 102 | D63: ATTILA NICE OUEST | E63: DEBRET Jean-Charles | F63: SUD-EST | G63: OUI | H63: ANNEE 5 | I63: 2021-01-20 | J63: =SUMIF(Synth_MTD!$C:$C,$C63,Synth_MTD!$L:$L) -> 80956.22 | K63: =IF($C63="","",SUMIF(D_Budget!$F:$F,$C63,D_Budget!$A:$A)) -> 69027.06746 | L63: =SUMIF(Synth_MTD!$C:$C,$C63,Synth_MTD!$K:$K) -> 83600.53 | M63: 2644.31 | N63: 14573.46254 | P63: =SUMIF(Synth_MTD!$C:$C,$C63,Synth_MTD!$L:$L) -> 80956.22 | Q63: =IF($C63="","",SUMIF(D_Budget!$F:$F,$C63,D_Budget!$A:$A)) -> 69027.06746 | R63: =SUMIF(Synth_YTD!$C:$C,$C63,Synth_YTD!$K:$K) -> 83600.53 | S63: 2644.31 | T63: 14573.46254
B64: 102 | C64: 103 | D64: ATTILA CHAMBERY OUEST | E64: ADAM Thierry | F64: RHONE-ALPES | G64: OUI | H64: +5ANS | I64: 2017-05-30 | J64: =SUMIF(Synth_MTD!$C:$C,$C64,Synth_MTD!$L:$L) -> 64429.03 | K64: =IF($C64="","",SUMIF(D_Budget!$F:$F,$C64,D_Budget!$A:$A)) -> 80044.97035 | L64: =SUMIF(Synth_MTD!$C:$C,$C64,Synth_MTD!$K:$K) -> 42721.71 | M64: -21707.32 | N64: -37323.26035 | P64: =SUMIF(Synth_MTD!$C:$C,$C64,Synth_MTD!$L:$L) -> 64429.03 | Q64: =IF($C64="","",SUMIF(D_Budget!$F:$F,$C64,D_Budget!$A:$A)) -> 80044.97035 | R64: =SUMIF(Synth_YTD!$C:$C,$C64,Synth_YTD!$K:$K) -> 42721.71 | S64: -21707.32 | T64: -37323.26035
B65: 104 | C65: 105 | D65: ATTILA REIMS EST | E65: ETIENNE Nicolas | F65: NORD-EST | G65: OUI | H65: +5ANS | I65: 2017-05-02 | J65: =SUMIF(Synth_MTD!$C:$C,$C65,Synth_MTD!$L:$L) -> 107198.28 | K65: =IF($C65="","",SUMIF(D_Budget!$F:$F,$C65,D_Budget!$A:$A)) -> 129401.9996 | L65: =SUMIF(Synth_MTD!$C:$C,$C65,Synth_MTD!$K:$K) -> 150722.98 | M65: 43524.7 | N65: 21320.98037 | P65: =SUMIF(Synth_MTD!$C:$C,$C65,Synth_MTD!$L:$L) -> 107198.28 | Q65: =IF($C65="","",SUMIF(D_Budget!$F:$F,$C65,D_Budget!$A:$A)) -> 129401.9996 | R65: =SUMIF(Synth_YTD!$C:$C,$C65,Synth_YTD!$K:$K) -> 150722.98 | S65: 43524.7 | T65: 21320.98037
B66: 105 | C66: 106 | D66: ATTILA VITROLLES | E66: AVRIL Laurent | F66: SUD-EST | G66: OUI | H66: +5ANS | I66: 2016-01-29 | J66: =SUMIF(Synth_MTD!$C:$C,$C66,Synth_MTD!$L:$L) -> 69103.55 | K66: =IF($C66="","",SUMIF(D_Budget!$F:$F,$C66,D_Budget!$A:$A)) -> 94560.82379 | L66: =SUMIF(Synth_MTD!$C:$C,$C66,Synth_MTD!$K:$K) -> 91150.37 | M66: 22046.82 | N66: -3410.45379 | P66: =SUMIF(Synth_MTD!$C:$C,$C66,Synth_MTD!$L:$L) -> 69103.55 | Q66: =IF($C66="","",SUMIF(D_Budget!$F:$F,$C66,D_Budget!$A:$A)) -> 94560.82379 | R66: =SUMIF(Synth_YTD!$C:$C,$C66,Synth_YTD!$K:$K) -> 91150.37 | S66: 22046.82 | T66: -3410.45379
B67: 107 | C67: 109 | D67: ATTILA SAINT-QUENTIN | E67: TREPANT Raphaël | F67: NORD-EST | G67: OUI | H67: +5ANS | I67: 2017-10-16 | J67: =SUMIF(Synth_MTD!$C:$C,$C67,Synth_MTD!$L:$L) -> 122730.22 | K67: =IF($C67="","",SUMIF(D_Budget!$F:$F,$C67,D_Budget!$A:$A)) -> 99063.00634 | L67: =SUMIF(Synth_MTD!$C:$C,$C67,Synth_MTD!$K:$K) -> 139289.56 | M67: 16559.34 | N67: 40226.55366 | P67: =SUMIF(Synth_MTD!$C:$C,$C67,Synth_MTD!$L:$L) -> 122730.22 | Q67: =IF($C67="","",SUMIF(D_Budget!$F:$F,$C67,D_Budget!$A:$A)) -> 99063.00634 | R67: =SUMIF(Synth_YTD!$C:$C,$C67,Synth_YTD!$K:$K) -> 139289.56 | S67: 16559.34 | T67: 40226.55366
B68: 109 | C68: 111 | D68: ATTILA BEZIERS OUEST | E68: GERARDIN Marc | F68: SUD-EST | G68: OUI | H68: +5ANS | I68: 2018-03-14 | J68: =SUMIF(Synth_MTD!$C:$C,$C68,Synth_MTD!$L:$L) -> 67683.51 | K68: =IF($C68="","",SUMIF(D_Budget!$F:$F,$C68,D_Budget!$A:$A)) -> 130556.5954 | L68: =SUMIF(Synth_MTD!$C:$C,$C68,Synth_MTD!$K:$K) -> 158205.51 | M68: 90522 | N68: 27648.91458 | P68: =SUMIF(Synth_MTD!$C:$C,$C68,Synth_MTD!$L:$L) -> 67683.51 | Q68: =IF($C68="","",SUMIF(D_Budget!$F:$F,$C68,D_Budget!$A:$A)) -> 130556.5954 | R68: =SUMIF(Synth_YTD!$C:$C,$C68,Synth_YTD!$K:$K) -> 158205.51 | S68: 90522 | T68: 27648.91458
B69: 110 | C69: 112 | D69: ATTILA CHALLANS | E69: BUREAU Baptiste | F69: DEUX-SEVRES | G69: OUI | H69: +5ANS | I69: 2018-03-14 | J69: =SUMIF(Synth_MTD!$C:$C,$C69,Synth_MTD!$L:$L) -> 82137.81 | K69: =IF($C69="","",SUMIF(D_Budget!$F:$F,$C69,D_Budget!$A:$A)) -> 82197.82502 | L69: =SUMIF(Synth_MTD!$C:$C,$C69,Synth_MTD!$K:$K) -> 47899.99 | M69: -34237.82 | N69: -34297.83502 | P69: =SUMIF(Synth_MTD!$C:$C,$C69,Synth_MTD!$L:$L) -> 82137.81 | Q69: =IF($C69="","",SUMIF(D_Budget!$F:$F,$C69,D_Budget!$A:$A)) -> 82197.82502 | R69: =SUMIF(Synth_YTD!$C:$C,$C69,Synth_YTD!$K:$K) -> 47899.99 | S69: -34237.82 | T69: -34297.83502
B70: 113 | C70: 116 | D70: ATTILA LYON NORD OUEST | E70: LAURENT Aymeric | F70: CENTRE | G70: OUI | H70: +5ANS | I70: 2018-09-13 | J70: =SUMIF(Synth_MTD!$C:$C,$C70,Synth_MTD!$L:$L) -> 100018.84 | K70: =IF($C70="","",SUMIF(D_Budget!$F:$F,$C70,D_Budget!$A:$A)) -> 62667.63486 | L70: =SUMIF(Synth_MTD!$C:$C,$C70,Synth_MTD!$K:$K) -> 34670.22 | M70: -65348.62 | N70: -27997.41486 | P70: =SUMIF(Synth_MTD!$C:$C,$C70,Synth_MTD!$L:$L) -> 100018.84 | Q70: =IF($C70="","",SUMIF(D_Budget!$F:$F,$C70,D_Budget!$A:$A)) -> 62667.63486 | R70: =SUMIF(Synth_YTD!$C:$C,$C70,Synth_YTD!$K:$K) -> 34670.22 | S70: -65348.62 | T70: -27997.41486
B71: 115 | C71: 118 | D71: ATTILA VICHY | E71: COSSARD François | F71: CENTRE | G71: OUI | H71: ANNEE 3 | I71: 2023-01-02 | J71: =SUMIF(Synth_MTD!$C:$C,$C71,Synth_MTD!$L:$L) -> 74967.04 | K71: =IF($C71="","",SUMIF(D_Budget!$F:$F,$C71,D_Budget!$A:$A)) -> 107274.2742 | L71: =SUMIF(Synth_MTD!$C:$C,$C71,Synth_MTD!$K:$K) -> 45578.53 | M71: -29388.51 | N71: -61695.7442 | P71: =SUMIF(Synth_MTD!$C:$C,$C71,Synth_MTD!$L:$L) -> 74967.04 | Q71: =IF($C71="","",SUMIF(D_Budget!$F:$F,$C71,D_Budget!$A:$A)) -> 107274.2742 | R71: =SUMIF(Synth_YTD!$C:$C,$C71,Synth_YTD!$K:$K) -> 45578.53 | S71: -29388.51 | T71: -61695.7442
B72: 125 | C72: 125 | D72: ATTILA AUBAGNE | E72: MOLINO Gilles | F72: SUD-EST | G72: OUI | H72: ANNEE 4 | I72: 2022-02-02 | J72: =SUMIF(Synth_MTD!$C:$C,$C72,Synth_MTD!$L:$L) -> 92358.43 | K72: =IF($C72="","",SUMIF(D_Budget!$F:$F,$C72,D_Budget!$A:$A)) -> 76911.29928 | L72: =SUMIF(Synth_MTD!$C:$C,$C72,Synth_MTD!$K:$K) -> 97804.52 | M72: 5446.09 | N72: 20893.22072 | P72: =SUMIF(Synth_MTD!$C:$C,$C72,Synth_MTD!$L:$L) -> 92358.43 | Q72: =IF($C72="","",SUMIF(D_Budget!$F:$F,$C72,D_Budget!$A:$A)) -> 76911.29928 | R72: =SUMIF(Synth_YTD!$C:$C,$C72,Synth_YTD!$K:$K) -> 97804.52 | S72: 5446.09 | T72: 20893.22072
B73: 133 | C73: 129 | D73: ATTILA BORDEAUX SUD | E73: BEX Thomas | F73: SUD-OUEST | G73: OUI | H73: +5ANS | I73: 2018-12-18 | J73: =SUMIF(Synth_MTD!$C:$C,$C73,Synth_MTD!$L:$L) -> 121237.59 | K73: =IF($C73="","",SUMIF(D_Budget!$F:$F,$C73,D_Budget!$A:$A)) -> 77146.72409 | L73: =SUMIF(Synth_MTD!$C:$C,$C73,Synth_MTD!$K:$K) -> 68897.19 | M73: -52340.4 | N73: -8249.534087 | P73: =SUMIF(Synth_MTD!$C:$C,$C73,Synth_MTD!$L:$L) -> 121237.59 | Q73: =IF($C73="","",SUMIF(D_Budget!$F:$F,$C73,D_Budget!$A:$A)) -> 77146.72409 | R73: =SUMIF(Synth_YTD!$C:$C,$C73,Synth_YTD!$K:$K) -> 68897.19 | S73: -52340.4 | T73: -8249.534087
B74: 137 | C74: 133 | D74: ATTILA MARNE LA VALLEE | E74: LOUPI Renaud | F74: NORD-EST | G74: OUI | H74: +5ANS | I74: 2018-12-18 | J74: =SUMIF(Synth_MTD!$C:$C,$C74,Synth_MTD!$L:$L) -> 37441.87 | K74: =IF($C74="","",SUMIF(D_Budget!$F:$F,$C74,D_Budget!$A:$A)) -> 0 | L74: =SUMIF(Synth_MTD!$C:$C,$C74,Synth_MTD!$K:$K) -> 0 | M74: -37441.87 | N74: 0 | P74: =SUMIF(Synth_MTD!$C:$C,$C74,Synth_MTD!$L:$L) -> 37441.87 | Q74: =IF($C74="","",SUMIF(D_Budget!$F:$F,$C74,D_Budget!$A:$A)) -> 0 | R74: =SUMIF(Synth_YTD!$C:$C,$C74,Synth_YTD!$K:$K) -> 0 | S74: -37441.87 | T74: 0
B75: 138 | C75: 134 | D75: ATTILA ORLEANS NORD | E75: LAHAYE Benoit | F75: CENTRE VAL-DE-LOIRE | G75: OUI | H75: +5ANS | I75: 2019-07-17 | J75: =SUMIF(Synth_MTD!$C:$C,$C75,Synth_MTD!$L:$L) -> 71761.81 | K75: =IF($C75="","",SUMIF(D_Budget!$F:$F,$C75,D_Budget!$A:$A)) -> 88381.82743 | L75: =SUMIF(Synth_MTD!$C:$C,$C75,Synth_MTD!$K:$K) -> 26648.62 | M75: -45113.19 | N75: -61733.20743 | P75: =SUMIF(Synth_MTD!$C:$C,$C75,Synth_MTD!$L:$L) -> 71761.81 | Q75: =IF($C75="","",SUMIF(D_Budget!$F:$F,$C75,D_Budget!$A:$A)) -> 88381.82743 | R75: =SUMIF(Synth_YTD!$C:$C,$C75,Synth_YTD!$K:$K) -> 26648.62 | S75: -45113.19 | T75: -61733.20743
B76: 139 | C76: 135 | D76: ATTILA LIMOGES SUD | E76: PELTIER Romain | F76: CENTRE | G76: OUI | H76: +5ANS | I76: 2018-12-18 | J76: =SUMIF(Synth_MTD!$C:$C,$C76,Synth_MTD!$L:$L) -> 40177.29 | K76: =IF($C76="","",SUMIF(D_Budget!$F:$F,$C76,D_Budget!$A:$A)) -> 59196.69772 | L76: =SUMIF(Synth_MTD!$C:$C,$C76,Synth_MTD!$K:$K) -> 47688.79 | M76: 7511.5 | N76: -11507.90772 | P76: =SUMIF(Synth_MTD!$C:$C,$C76,Synth_MTD!$L:$L) -> 40177.29 | Q76: =IF($C76="","",SUMIF(D_Budget!$F:$F,$C76,D_Budget!$A:$A)) -> 59196.69772 | R76: =SUMIF(Synth_YTD!$C:$C,$C76,Synth_YTD!$K:$K) -> 47688.79 | S76: 7511.5 | T76: -11507.90772
B77: 140 | C77: 136 | D77: ATTILA QUIMPER | E77: LAUNAY Olivier | F77: BRETAGNE | G77: OUI | H77: ANNEE 2 | I77: 2024-05-16 | J77: =SUMIF(Synth_MTD!$C:$C,$C77,Synth_MTD!$L:$L) -> 111299.23 | K77: =IF($C77="","",SUMIF(D_Budget!$F:$F,$C77,D_Budget!$A:$A)) -> 121843.8482 | L77: =SUMIF(Synth_MTD!$C:$C,$C77,Synth_MTD!$K:$K) -> 111457.91 | M77: 158.68 | N77: -10385.9382 | P77: =SUMIF(Synth_MTD!$C:$C,$C77,Synth_MTD!$L:$L) -> 111299.23 | Q77: =IF($C77="","",SUMIF(D_Budget!$F:$F,$C77,D_Budget!$A:$A)) -> 121843.8482 | R77: =SUMIF(Synth_YTD!$C:$C,$C77,Synth_YTD!$K:$K) -> 111457.91 | S77: 158.68 | T77: -10385.9382
B78: 143 | C78: 140 | D78: ATTILA LE MANS NORD | E78: SAILLOUR Laure | F78: CENTRE VAL-DE-LOIRE | G78: OUI | H78: +5ANS | I78: 2019-09-18 | J78: =SUMIF(Synth_MTD!$C:$C,$C78,Synth_MTD!$L:$L) -> 117995.86 | K78: =IF($C78="","",SUMIF(D_Budget!$F:$F,$C78,D_Budget!$A:$A)) -> 129722.2761 | L78: =SUMIF(Synth_MTD!$C:$C,$C78,Synth_MTD!$K:$K) -> 153768.83 | M78: 35772.97 | N78: 24046.55389 | P78: =SUMIF(Synth_MTD!$C:$C,$C78,Synth_MTD!$L:$L) -> 117995.86 | Q78: =IF($C78="","",SUMIF(D_Budget!$F:$F,$C78,D_Budget!$A:$A)) -> 129722.2761 | R78: =SUMIF(Synth_YTD!$C:$C,$C78,Synth_YTD!$K:$K) -> 153768.83 | S78: 35772.97 | T78: 24046.55389
B79: 144 | C79: 141 | D79: ATTILA BRIVE | E79: GUEDELHA Antonio | F79: CENTRE | G79: OUI | H79: ANNEE 2 | I79: 2024-01-18 | J79: =SUMIF(Synth_MTD!$C:$C,$C79,Synth_MTD!$L:$L) -> 70676.93 | K79: =IF($C79="","",SUMIF(D_Budget!$F:$F,$C79,D_Budget!$A:$A)) -> 111508.744 | L79: =SUMIF(Synth_MTD!$C:$C,$C79,Synth_MTD!$K:$K) -> 123629.33 | M79: 52952.4 | N79: 12120.58601 | P79: =SUMIF(Synth_MTD!$C:$C,$C79,Synth_MTD!$L:$L) -> 70676.93 | Q79: =IF($C79="","",SUMIF(D_Budget!$F:$F,$C79,D_Budget!$A:$A)) -> 111508.744 | R79: =SUMIF(Synth_YTD!$C:$C,$C79,Synth_YTD!$K:$K) -> 123629.33 | S79: 52952.4 | T79: 12120.58601
B80: 145 | C80: 142 | D80: ATTILA TARARE - PLAINE DU FOREZ | E80: COSSARD François | F80: CENTRE | G80: OUI | H80: +5ANS | I80: 2019-09-17 | J80: =SUMIF(Synth_MTD!$C:$C,$C80,Synth_MTD!$L:$L) -> 107510.37 | K80: =IF($C80="","",SUMIF(D_Budget!$F:$F,$C80,D_Budget!$A:$A)) -> 144070.4355 | L80: =SUMIF(Synth_MTD!$C:$C,$C80,Synth_MTD!$K:$K) -> 90492.83 | M80: -17017.54 | N80: -53577.60554 | P80: =SUMIF(Synth_MTD!$C:$C,$C80,Synth_MTD!$L:$L) -> 107510.37 | Q80: =IF($C80="","",SUMIF(D_Budget!$F:$F,$C80,D_Budget!$A:$A)) -> 144070.4355 | R80: =SUMIF(Synth_YTD!$C:$C,$C80,Synth_YTD!$K:$K) -> 90492.83 | S80: -17017.54 | T80: -53577.60554
B81: 147 | C81: 144 | D81: ATTILA ANGERS NORD | E81: FORESTIER Xavier | F81: DEUX-SEVRES | G81: OUI | H81: +5ANS | I81: 2019-09-17 | J81: =SUMIF(Synth_MTD!$C:$C,$C81,Synth_MTD!$L:$L) -> 113281.3 | K81: =IF($C81="","",SUMIF(D_Budget!$F:$F,$C81,D_Budget!$A:$A)) -> 88913.34628 | L81: =SUMIF(Synth_MTD!$C:$C,$C81,Synth_MTD!$K:$K) -> 104515.26 | M81: -8766.04 | N81: 15601.91372 | P81: =SUMIF(Synth_MTD!$C:$C,$C81,Synth_MTD!$L:$L) -> 113281.3 | Q81: =IF($C81="","",SUMIF(D_Budget!$F:$F,$C81,D_Budget!$A:$A)) -> 88913.34628 | R81: =SUMIF(Synth_YTD!$C:$C,$C81,Synth_YTD!$K:$K) -> 104515.26 | S81: -8766.04 | T81: 15601.91372
B82: 148 | C82: 145 | D82: ATTILA LES SABLES D'OLONNE | E82: GODDE Fabien | F82: DEUX-SEVRES | G82: OUI | H82: ANNEE 1 | I82: 2025-04-10 | J82: =SUMIF(Synth_MTD!$C:$C,$C82,Synth_MTD!$L:$L) -> 42413.19 | K82: =IF($C82="","",SUMIF(D_Budget!$F:$F,$C82,D_Budget!$A:$A)) -> 33441.60777 | L82: =SUMIF(Synth_MTD!$C:$C,$C82,Synth_MTD!$K:$K) -> 29588.92 | M82: -12824.27 | N82: -3852.687772 | P82: =SUMIF(Synth_MTD!$C:$C,$C82,Synth_MTD!$L:$L) -> 42413.19 | Q82: =IF($C82="","",SUMIF(D_Budget!$F:$F,$C82,D_Budget!$A:$A)) -> 33441.60777 | R82: =SUMIF(Synth_YTD!$C:$C,$C82,Synth_YTD!$K:$K) -> 29588.92 | S82: -12824.27 | T82: -3852.687772
B83: 149 | C83: 146 | D83: ATTILA GRENOBLE OUEST | E83: FAGES Thierry | F83: RHONE-ALPES | G83: OUI | H83: +5ANS | I83: 2019-09-17 | J83: =SUMIF(Synth_MTD!$C:$C,$C83,Synth_MTD!$L:$L) -> 60756.44 | K83: =IF($C83="","",SUMIF(D_Budget!$F:$F,$C83,D_Budget!$A:$A)) -> 51277.19214 | L83: =SUMIF(Synth_MTD!$C:$C,$C83,Synth_MTD!$K:$K) -> 60310.03 | M83: -446.41 | N83: 9032.837859 | P83: =SUMIF(Synth_MTD!$C:$C,$C83,Synth_MTD!$L:$L) -> 60756.44 | Q83: =IF($C83="","",SUMIF(D_Budget!$F:$F,$C83,D_Budget!$A:$A)) -> 51277.19214 | R83: =SUMIF(Synth_YTD!$C:$C,$C83,Synth_YTD!$K:$K) -> 60310.03 | S83: -446.41 | T83: 9032.837859
B84: 150 | C84: 147 | D84: ATTILA SAINT-ETIENNE FIRMINY | E84: MIGLIORE Laetitia | F84: CENTRE | G84: OUI | H84: ANNEE 1 | I84: 2025-09-26 | J84: =SUMIF(Synth_MTD!$C:$C,$C84,Synth_MTD!$L:$L) -> 45967.66 | K84: =IF($C84="","",SUMIF(D_Budget!$F:$F,$C84,D_Budget!$A:$A)) -> 43516.28448 | L84: =SUMIF(Synth_MTD!$C:$C,$C84,Synth_MTD!$K:$K) -> 42286.95 | M84: -3680.71 | N84: -1229.334481 | P84: =SUMIF(Synth_MTD!$C:$C,$C84,Synth_MTD!$L:$L) -> 45967.66 | Q84: =IF($C84="","",SUMIF(D_Budget!$F:$F,$C84,D_Budget!$A:$A)) -> 43516.28448 | R84: =SUMIF(Synth_YTD!$C:$C,$C84,Synth_YTD!$K:$K) -> 42286.95 | S84: -3680.71 | T84: -1229.334481
B85: 151 | C85: 148 | D85: ATTILA SAINT JEAN DE LUZ | E85: CURUTCHET Jean-Bernard | F85: SUD-OUEST | G85: OUI | H85: +5ANS | I85: 2018-12-18 | J85: =SUMIF(Synth_MTD!$C:$C,$C85,Synth_MTD!$L:$L) -> 58858.5 | K85: =IF($C85="","",SUMIF(D_Budget!$F:$F,$C85,D_Budget!$A:$A)) -> 59110.5772 | L85: =SUMIF(Synth_MTD!$C:$C,$C85,Synth_MTD!$K:$K) -> 61772.47 | M85: 2913.97 | N85: 2661.892802 | P85: =SUMIF(Synth_MTD!$C:$C,$C85,Synth_MTD!$L:$L) -> 58858.5 | Q85: =IF($C85="","",SUMIF(D_Budget!$F:$F,$C85,D_Budget!$A:$A)) -> 59110.5772 | R85: =SUMIF(Synth_YTD!$C:$C,$C85,Synth_YTD!$K:$K) -> 61772.47 | S85: 2913.97 | T85: 2661.892802
B86: 153 | C86: 150 | D86: ATTILA BOURGES | E86: PERCHER Nicolas | F86: CENTRE VAL-DE-LOIRE | G86: OUI | H86: +5ANS | I86: 2020-07-02 | J86: =SUMIF(Synth_MTD!$C:$C,$C86,Synth_MTD!$L:$L) -> 76125.77 | K86: =IF($C86="","",SUMIF(D_Budget!$F:$F,$C86,D_Budget!$A:$A)) -> 61446.08719 | L86: =SUMIF(Synth_MTD!$C:$C,$C86,Synth_MTD!$K:$K) -> 40452.35 | M86: -35673.42 | N86: -20993.73719 | P86: =SUMIF(Synth_MTD!$C:$C,$C86,Synth_MTD!$L:$L) -> 76125.77 | Q86: =IF($C86="","",SUMIF(D_Budget!$F:$F,$C86,D_Budget!$A:$A)) -> 61446.08719 | R86: =SUMIF(Synth_YTD!$C:$C,$C86,Synth_YTD!$K:$K) -> 40452.35 | S86: -35673.42 | T86: -20993.73719
B87: 154 | C87: 151 | D87: ATTILA SAINT BRIEUC | E87: JACOB Stéphane | F87: BRETAGNE | G87: OUI | H87: ANNEE 2 | I87: 2024-05-16 | J87: =SUMIF(Synth_MTD!$C:$C,$C87,Synth_MTD!$L:$L) -> 112168.7 | K87: =IF($C87="","",SUMIF(D_Budget!$F:$F,$C87,D_Budget!$A:$A)) -> 89249.52537 | L87: =SUMIF(Synth_MTD!$C:$C,$C87,Synth_MTD!$K:$K) -> 79666.1 | M87: -32502.6 | N87: -9583.42537 | P87: =SUMIF(Synth_MTD!$C:$C,$C87,Synth_MTD!$L:$L) -> 112168.7 | Q87: =IF($C87="","",SUMIF(D_Budget!$F:$F,$C87,D_Budget!$A:$A)) -> 89249.52537 | R87: =SUMIF(Synth_YTD!$C:$C,$C87,Synth_YTD!$K:$K) -> 79666.1 | S87: -32502.6 | T87: -9583.42537
B88: 155 | C88: 152 | D88: ATTILA VALENCE | E88: BOUDROT Maxime | F88: CENTRE | G88: OUI | H88: +5ANS | I88: 2020-07-02 | J88: =SUMIF(Synth_MTD!$C:$C,$C88,Synth_MTD!$L:$L) -> 96448.12 | K88: =IF($C88="","",SUMIF(D_Budget!$F:$F,$C88,D_Budget!$A:$A)) -> 81685.34224 | L88: =SUMIF(Synth_MTD!$C:$C,$C88,Synth_MTD!$K:$K) -> 51891.57 | M88: -44556.55 | N88: -29793.77224 | P88: =SUMIF(Synth_MTD!$C:$C,$C88,Synth_MTD!$L:$L) -> 96448.12 | Q88: =IF($C88="","",SUMIF(D_Budget!$F:$F,$C88,D_Budget!$A:$A)) -> 81685.34224 | R88: =SUMIF(Synth_YTD!$C:$C,$C88,Synth_YTD!$K:$K) -> 51891.57 | S88: -44556.55 | T88: -29793.77224
B89: 156 | C89: 153 | D89: ATTILA NANCY | E89: GEAUFREAU Thomas | F89: SORTIE | G89: NON | H89: ANNEE 5 | I89: 2021-01-14 | J89: =SUMIF(Synth_MTD!$C:$C,$C89,Synth_MTD!$L:$L) -> 125560.35 | K89: =IF($C89="","",SUMIF(D_Budget!$F:$F,$C89,D_Budget!$A:$A)) -> 0 | L89: =SUMIF(Synth_MTD!$C:$C,$C89,Synth_MTD!$K:$K) -> 570.41 | M89: -124989.94 | N89: 570.41 | P89: =SUMIF(Synth_MTD!$C:$C,$C89,Synth_MTD!$L:$L) -> 125560.35 | Q89: =IF($C89="","",SUMIF(D_Budget!$F:$F,$C89,D_Budget!$A:$A)) -> 0 | R89: =SUMIF(Synth_YTD!$C:$C,$C89,Synth_YTD!$K:$K) -> 570.41 | S89: -124989.94 | T89: 570.41
B90: 157 | C90: 154 | D90: ATTILA NANTES SUD | E90: BOUCHER François | F90: BRETAGNE | G90: OUI | H90: +5ANS | I90: 2015-09-17 | J90: =SUMIF(Synth_MTD!$C:$C,$C90,Synth_MTD!$L:$L) -> 67350.92 | K90: =IF($C90="","",SUMIF(D_Budget!$F:$F,$C90,D_Budget!$A:$A)) -> 81195.94055 | L90: =SUMIF(Synth_MTD!$C:$C,$C90,Synth_MTD!$K:$K) -> 30575.37 | M90: =IF($C90="","",$L90-$J90) -> -36775.55 | N90: =IF($C90="","",$L90-$K90) -> -50620.57055 | P90: =SUMIF(Synth_MTD!$C:$C,$C90,Synth_MTD!$L:$L) -> 67350.92 | Q90: =IF($C90="","",SUMIF(D_Budget!$F:$F,$C90,D_Budget!$A:$A)) -> 81195.94055 | R90: =SUMIF(Synth_YTD!$C:$C,$C90,Synth_YTD!$K:$K) -> 30575.37 | S90: =IF($C90="","",$R90-$P90) -> -36775.55 | T90: =IF($C90="","",$R90-$Q90) -> -50620.57055
B91: 158 | C91: 155 | D91: ATTILA NEVERS | E91: LAHAYE Benoit | F91: CENTRE VAL-DE-LOIRE | G91: OUI | H91: ANNEE 5 | I91: 2021-01-14 | J91: =SUMIF(Synth_MTD!$C:$C,$C91,Synth_MTD!$L:$L) -> 76993.38 | K91: =IF($C91="","",SUMIF(D_Budget!$F:$F,$C91,D_Budget!$A:$A)) -> 80714.62057 | L91: =SUMIF(Synth_MTD!$C:$C,$C91,Synth_MTD!$K:$K) -> 80419.76 | M91: 3426.38 | N91: -294.8605699 | P91: =SUMIF(Synth_MTD!$C:$C,$C91,Synth_MTD!$L:$L) -> 76993.38 | Q91: =IF($C91="","",SUMIF(D_Budget!$F:$F,$C91,D_Budget!$A:$A)) -> 80714.62057 | R91: =SUMIF(Synth_YTD!$C:$C,$C91,Synth_YTD!$K:$K) -> 80419.76 | S91: 3426.38 | T91: -294.8605699
B92: 159 | C92: 156 | D92: ATTILA ROUEN SUD | E92: PEYRUSSE DIONISI Arnaud | F92: NORMANDIE-PARIS | G92: OUI | H92: ANNEE 5 | I92: 2021-01-14 | J92: =SUMIF(Synth_MTD!$C:$C,$C92,Synth_MTD!$L:$L) -> 41715.85 | K92: =IF($C92="","",SUMIF(D_Budget!$F:$F,$C92,D_Budget!$A:$A)) -> 57208.68594 | L92: =SUMIF(Synth_MTD!$C:$C,$C92,Synth_MTD!$K:$K) -> 68453.32 | M92: 26737.47 | N92: 11244.63406 | P92: =SUMIF(Synth_MTD!$C:$C,$C92,Synth_MTD!$L:$L) -> 41715.85 | Q92: =IF($C92="","",SUMIF(D_Budget!$F:$F,$C92,D_Budget!$A:$A)) -> 57208.68594 | R92: =SUMIF(Synth_YTD!$C:$C,$C92,Synth_YTD!$K:$K) -> 68453.32 | S92: 26737.47 | T92: 11244.63406
B93: 160 | C93: 1155 | D93: ATTILA RENNES SUD | E93: PLAIRE Hervé | F93: BRETAGNE | G93: OUI | H93: ANNEE 5 | I93: 2021-01-20 | J93: =SUMIF(Synth_MTD!$C:$C,$C93,Synth_MTD!$L:$L) -> 118217.54 | K93: =IF($C93="","",SUMIF(D_Budget!$F:$F,$C93,D_Budget!$A:$A)) -> 0 | L93: =SUMIF(Synth_MTD!$C:$C,$C93,Synth_MTD!$K:$K) -> -0.009999999998 | M93: -118217.55 | N93: -0.009999999998 | P93: =SUMIF(Synth_MTD!$C:$C,$C93,Synth_MTD!$L:$L) -> 118217.54 | Q93: =IF($C93="","",SUMIF(D_Budget!$F:$F,$C93,D_Budget!$A:$A)) -> 0 | R93: =SUMIF(Synth_YTD!$C:$C,$C93,Synth_YTD!$K:$K) -> -0.009999999998 | S93: -118217.55 | T93: -0.009999999998
B94: 161 | C94: 1156 | D94: ATTILA RENNES NORD | E94: BOIZIAU Julien | F94: BRETAGNE | G94: OUI | H94: ANNEE 5 | I94: 2021-01-20 | J94: =SUMIF(Synth_MTD!$C:$C,$C94,Synth_MTD!$L:$L) -> 93913.66 | K94: =IF($C94="","",SUMIF(D_Budget!$F:$F,$C94,D_Budget!$A:$A)) -> 111689.6865 | L94: =SUMIF(Synth_MTD!$C:$C,$C94,Synth_MTD!$K:$K) -> 112919.12 | M94: 19005.46 | N94: 1229.433548 | P94: =SUMIF(Synth_MTD!$C:$C,$C94,Synth_MTD!$L:$L) -> 93913.66 | Q94: =IF($C94="","",SUMIF(D_Budget!$F:$F,$C94,D_Budget!$A:$A)) -> 111689.6865 | R94: =SUMIF(Synth_YTD!$C:$C,$C94,Synth_YTD!$K:$K) -> 112919.12 | S94: 19005.46 | T94: 1229.433548
B95: 162 | C95: 1157 | D95: ATTILA LAVAL | E95: GIBIER Valentin | F95: BRETAGNE | G95: OUI | H95: ANNEE 5 | I95: 2021-01-20 | J95: =SUMIF(Synth_MTD!$C:$C,$C95,Synth_MTD!$L:$L) -> 141767.72 | K95: =IF($C95="","",SUMIF(D_Budget!$F:$F,$C95,D_Budget!$A:$A)) -> 135791.8465 | L95: =SUMIF(Synth_MTD!$C:$C,$C95,Synth_MTD!$K:$K) -> 115322.16 | M95: -26445.56 | N95: -20469.6865 | P95: =SUMIF(Synth_MTD!$C:$C,$C95,Synth_MTD!$L:$L) -> 141767.72 | Q95: =IF($C95="","",SUMIF(D_Budget!$F:$F,$C95,D_Budget!$A:$A)) -> 135791.8465 | R95: =SUMIF(Synth_YTD!$C:$C,$C95,Synth_YTD!$K:$K) -> 115322.16 | S95: -26445.56 | T95: -20469.6865
B96: 166 | C96: 1161 | D96: ATTILA LYON PLAINE DE L'AIN | E96: LAHAYE Benoit | F96: RHONE-ALPES | G96: OUI | H96: ANNEE 5 | I96: 2021-05-28 | J96: =SUMIF(Synth_MTD!$C:$C,$C96,Synth_MTD!$L:$L) -> 69491.06 | K96: =IF($C96="","",SUMIF(D_Budget!$F:$F,$C96,D_Budget!$A:$A)) -> 90212.73912 | L96: =SUMIF(Synth_MTD!$C:$C,$C96,Synth_MTD!$K:$K) -> 46606.84 | M96: -22884.22 | N96: -43605.89912 | P96: =SUMIF(Synth_MTD!$C:$C,$C96,Synth_MTD!$L:$L) -> 69491.06 | Q96: =IF($C96="","",SUMIF(D_Budget!$F:$F,$C96,D_Budget!$A:$A)) -> 90212.73912 | R96: =SUMIF(Synth_YTD!$C:$C,$C96,Synth_YTD!$K:$K) -> 46606.84 | S96: -22884.22 | T96: -43605.89912
B97: 167 | C97: 1163 | D97: ATTILA ALBI | E97: JEANDEL Xavier | F97: SUD-EST | G97: OUI | H97: ANNEE 5 | I97: 2021-08-03 | J97: =SUMIF(Synth_MTD!$C:$C,$C97,Synth_MTD!$L:$L) -> 28713.16 | K97: =IF($C97="","",SUMIF(D_Budget!$F:$F,$C97,D_Budget!$A:$A)) -> 57913.2707 | L97: =SUMIF(Synth_MTD!$C:$C,$C97,Synth_MTD!$K:$K) -> 16327.85 | M97: -12385.31 | N97: -41585.4207 | P97: =SUMIF(Synth_MTD!$C:$C,$C97,Synth_MTD!$L:$L) -> 28713.16 | Q97: =IF($C97="","",SUMIF(D_Budget!$F:$F,$C97,D_Budget!$A:$A)) -> 57913.2707 | R97: =SUMIF(Synth_YTD!$C:$C,$C97,Synth_YTD!$K:$K) -> 16327.85 | S97: -12385.31 | T97: -41585.4207
B98: 168 | C98: 1164 | D98: ATTILA PAU | E98: SAUTIER Guillaume | F98: SUD-OUEST | G98: OUI | H98: ANNEE 5 | I98: 2021-08-03 | J98: =SUMIF(Synth_MTD!$C:$C,$C98,Synth_MTD!$L:$L) -> 93211.4 | K98: =IF($C98="","",SUMIF(D_Budget!$F:$F,$C98,D_Budget!$A:$A)) -> 98781.23306 | L98: =SUMIF(Synth_MTD!$C:$C,$C98,Synth_MTD!$K:$K) -> 65108.09 | M98: -28103.31 | N98: -33673.14306 | P98: =SUMIF(Synth_MTD!$C:$C,$C98,Synth_MTD!$L:$L) -> 93211.4 | Q98: =IF($C98="","",SUMIF(D_Budget!$F:$F,$C98,D_Budget!$A:$A)) -> 98781.23306 | R98: =SUMIF(Synth_YTD!$C:$C,$C98,Synth_YTD!$K:$K) -> 65108.09 | S98: -28103.31 | T98: -33673.14306
B99: 169 | C99: 1165 | D99: ATTILA ARRAS | E99: CHARLET Nicolas | F99: NORMANDIE-PARIS | G99: OUI | H99: ANNEE 5 | I99: 2021-06-17 | J99: =SUMIF(Synth_MTD!$C:$C,$C99,Synth_MTD!$L:$L) -> 67610.17 | K99: =IF($C99="","",SUMIF(D_Budget!$F:$F,$C99,D_Budget!$A:$A)) -> 81693.12483 | L99: =SUMIF(Synth_MTD!$C:$C,$C99,Synth_MTD!$K:$K) -> 85958.77 | M99: 18348.6 | N99: 4265.645173 | P99: =SUMIF(Synth_MTD!$C:$C,$C99,Synth_MTD!$L:$L) -> 67610.17 | Q99: =IF($C99="","",SUMIF(D_Budget!$F:$F,$C99,D_Budget!$A:$A)) -> 81693.12483 | R99: =SUMIF(Synth_YTD!$C:$C,$C99,Synth_YTD!$K:$K) -> 85958.77 | S99: 18348.6 | T99: 4265.645173
B100: 170 | C100: 1166 | D100: ATTILA ROUEN EST | E100: DE VILLERS Loïc | F100: NORMANDIE-PARIS | G100: OUI | H100: ANNEE 5 | I100: 2021-06-17 | J100: =SUMIF(Synth_MTD!$C:$C,$C100,Synth_MTD!$L:$L) -> 112489.75 | K100: =IF($C100="","",SUMIF(D_Budget!$F:$F,$C100,D_Budget!$A:$A)) -> 103416.1296 | L100: =SUMIF(Synth_MTD!$C:$C,$C100,Synth_MTD!$K:$K) -> 85771.15 | M100: -26718.6 | N100: -17644.97965 | P100: =SUMIF(Synth_MTD!$C:$C,$C100,Synth_MTD!$L:$L) -> 112489.75 | Q100: =IF($C100="","",SUMIF(D_Budget!$F:$F,$C100,D_Budget!$A:$A)) -> 103416.1296 | R100: =SUMIF(Synth_YTD!$C:$C,$C100,Synth_YTD!$K:$K) -> 85771.15 | S100: -26718.6 | T100: -17644.97965
B101: 171 | C101: 1167 | D101: ATTILA TARBES | E101: POLIER Alexis | F101: SUD-OUEST | G101: OUI | H101: ANNEE 5 | I101: 2021-06-17 | J101: =SUMIF(Synth_MTD!$C:$C,$C101,Synth_MTD!$L:$L) -> 65919.41 | K101: =IF($C101="","",SUMIF(D_Budget!$F:$F,$C101,D_Budget!$A:$A)) -> 65089.56902 | L101: =SUMIF(Synth_MTD!$C:$C,$C101,Synth_MTD!$K:$K) -> 78513.44 | M101: 12594.03 | N101: 13423.87098 | P101: =SUMIF(Synth_MTD!$C:$C,$C101,Synth_MTD!$L:$L) -> 65919.41 | Q101: =IF($C101="","",SUMIF(D_Budget!$F:$F,$C101,D_Budget!$A:$A)) -> 65089.56902 | R101: =SUMIF(Synth_YTD!$C:$C,$C101,Synth_YTD!$K:$K) -> 78513.44 | S101: 12594.03 | T101: 13423.87098
B102: 172 | C102: 1168 | D102: ATTILA BERNAY | E102: RENAULD Frédéric | F102: NORMANDIE-PARIS | G102: OUI | H102: ANNEE 5 | I102: 2021-08-26 | J102: =SUMIF(Synth_MTD!$C:$C,$C102,Synth_MTD!$L:$L) -> 89218.52 | K102: =IF($C102="","",SUMIF(D_Budget!$F:$F,$C102,D_Budget!$A:$A)) -> 87998.0142 | L102: =SUMIF(Synth_MTD!$C:$C,$C102,Synth_MTD!$K:$K) -> 57555.68 | M102: -31662.84 | N102: -30442.3342 | P102: =SUMIF(Synth_MTD!$C:$C,$C102,Synth_MTD!$L:$L) -> 89218.52 | Q102: =IF($C102="","",SUMIF(D_Budget!$F:$F,$C102,D_Budget!$A:$A)) -> 87998.0142 | R102: =SUMIF(Synth_YTD!$C:$C,$C102,Synth_YTD!$K:$K) -> 57555.68 | S102: -31662.84 | T102: -30442.3342
B103: 173 | C103: 1169 | D103: ATTILA YONNE CENTRE | E103: BERNOT Frédéric | F103: CENTRE VAL-DE-LOIRE | G103: OUI | H103: ANNEE 5 | I103: 2021-08-26 | J103: =SUMIF(Synth_MTD!$C:$C,$C103,Synth_MTD!$L:$L) -> 146992.34 | K103: =IF($C103="","",SUMIF(D_Budget!$F:$F,$C103,D_Budget!$A:$A)) -> 126032.0053 | L103: =SUMIF(Synth_MTD!$C:$C,$C103,Synth_MTD!$K:$K) -> 140013.77 | M103: -6978.57 | N103: 13981.76472 | P103: =SUMIF(Synth_MTD!$C:$C,$C103,Synth_MTD!$L:$L) -> 146992.34 | Q103: =IF($C103="","",SUMIF(D_Budget!$F:$F,$C103,D_Budget!$A:$A)) -> 126032.0053 | R103: =SUMIF(Synth_YTD!$C:$C,$C103,Synth_YTD!$K:$K) -> 140013.77 | S103: -6978.57 | T103: 13981.76472
B104: 197 | C104: 1171 | D104: ATTILA AMIENS NORD | E104: DE TAEYE Philippe | F104: NORMANDIE-PARIS | G104: OUI | H104: ANNEE 4 | I104: 2022-01-05 | J104: =SUMIF(Synth_MTD!$C:$C,$C104,Synth_MTD!$L:$L) -> 52449.87 | K104: =IF($C104="","",SUMIF(D_Budget!$F:$F,$C104,D_Budget!$A:$A)) -> 48452.43351 | L104: =SUMIF(Synth_MTD!$C:$C,$C104,Synth_MTD!$K:$K) -> 57369.79 | M104: 4919.92 | N104: 8917.356491 | P104: =SUMIF(Synth_MTD!$C:$C,$C104,Synth_MTD!$L:$L) -> 52449.87 | Q104: =IF($C104="","",SUMIF(D_Budget!$F:$F,$C104,D_Budget!$A:$A)) -> 48452.43351 | R104: =SUMIF(Synth_YTD!$C:$C,$C104,Synth_YTD!$K:$K) -> 57369.79 | S104: 4919.92 | T104: 8917.356491
B105: 198 | C105: 1172 | D105: ATTILA MONTELIMAR | E105: BERNARD Christophe | F105: SUD-EST | G105: OUI | H105: ANNEE 4 | I105: 2022-02-14 | J105: =SUMIF(Synth_MTD!$C:$C,$C105,Synth_MTD!$L:$L) -> 95590.85 | K105: =IF($C105="","",SUMIF(D_Budget!$F:$F,$C105,D_Budget!$A:$A)) -> 52224.26747 | L105: =SUMIF(Synth_MTD!$C:$C,$C105,Synth_MTD!$K:$K) -> 61720.07 | M105: -33870.78 | N105: 9495.802527 | P105: =SUMIF(Synth_MTD!$C:$C,$C105,Synth_MTD!$L:$L) -> 95590.85 | Q105: =IF($C105="","",SUMIF(D_Budget!$F:$F,$C105,D_Budget!$A:$A)) -> 52224.26747 | R105: =SUMIF(Synth_YTD!$C:$C,$C105,Synth_YTD!$K:$K) -> 61720.07 | S105: -33870.78 | T105: 9495.802527
B106: 199 | C106: 1173 | D106: ATTILA OYONNAX | E106: PAVIET Louis | F106: RHONE-ALPES | G106: OUI | H106: ANNEE 4 | I106: 2022-02-02 | J106: =SUMIF(Synth_MTD!$C:$C,$C106,Synth_MTD!$L:$L) -> 216803.56 | K106: =IF($C106="","",SUMIF(D_Budget!$F:$F,$C106,D_Budget!$A:$A)) -> 164953.1575 | L106: =SUMIF(Synth_MTD!$C:$C,$C106,Synth_MTD!$K:$K) -> 176192.92 | M106: -40610.64 | N106: 11239.76254 | P106: =SUMIF(Synth_MTD!$C:$C,$C106,Synth_MTD!$L:$L) -> 216803.56 | Q106: =IF($C106="","",SUMIF(D_Budget!$F:$F,$C106,D_Budget!$A:$A)) -> 164953.1575 | R106: =SUMIF(Synth_YTD!$C:$C,$C106,Synth_YTD!$K:$K) -> 176192.92 | S106: -40610.64 | T106: 11239.76254
B107: 200 | C107: 1174 | D107: ATTILA ANNECY EST | E107: SCHILLER Gérald | F107: RHONE-ALPES | G107: OUI | H107: ANNEE 4 | I107: 2022-02-02 | J107: =SUMIF(Synth_MTD!$C:$C,$C107,Synth_MTD!$L:$L) -> 41631.54 | K107: =IF($C107="","",SUMIF(D_Budget!$F:$F,$C107,D_Budget!$A:$A)) -> 48706.27304 | L107: =SUMIF(Synth_MTD!$C:$C,$C107,Synth_MTD!$K:$K) -> 31695.75 | M107: -9935.79 | N107: -17010.52304 | P107: =SUMIF(Synth_MTD!$C:$C,$C107,Synth_MTD!$L:$L) -> 41631.54 | Q107: =IF($C107="","",SUMIF(D_Budget!$F:$F,$C107,D_Budget!$A:$A)) -> 48706.27304 | R107: =SUMIF(Synth_YTD!$C:$C,$C107,Synth_YTD!$K:$K) -> 31695.75 | S107: -9935.79 | T107: -17010.52304
B108: 201 | C108: 1175 | D108: ATTILA LE PUY EN VELAY | E108: BASTIN Thierry | F108: CENTRE | G108: OUI | H108: ANNEE 5 | I108: 2021-09-22 | J108: =SUMIF(Synth_MTD!$C:$C,$C108,Synth_MTD!$L:$L) -> 45528.23 | K108: =IF($C108="","",SUMIF(D_Budget!$F:$F,$C108,D_Budget!$A:$A)) -> 36676.91347 | L108: =SUMIF(Synth_MTD!$C:$C,$C108,Synth_MTD!$K:$K) -> 14046.35 | M108: -31481.88 | N108: -22630.56347 | P108: =SUMIF(Synth_MTD!$C:$C,$C108,Synth_MTD!$L:$L) -> 45528.23 | Q108: =IF($C108="","",SUMIF(D_Budget!$F:$F,$C108,D_Budget!$A:$A)) -> 36676.91347 | R108: =SUMIF(Synth_YTD!$C:$C,$C108,Synth_YTD!$K:$K) -> 14046.35 | S108: -31481.88 | T108: -22630.56347
B109: 202 | C109: 1176 | D109: ATTILA AGEN | E109: BONVILA Bruno | F109: SUD-OUEST | G109: OUI | H109: ANNEE 4 | I109: 2022-05-25 | J109: =SUMIF(Synth_MTD!$C:$C,$C109,Synth_MTD!$L:$L) -> 43217.28 | K109: =IF($C109="","",SUMIF(D_Budget!$F:$F,$C109,D_Budget!$A:$A)) -> 60728.63481 | L109: =SUMIF(Synth_MTD!$C:$C,$C109,Synth_MTD!$K:$K) -> 29934.72 | M109: -13282.56 | N109: -30793.91481 | P109: =SUMIF(Synth_MTD!$C:$C,$C109,Synth_MTD!$L:$L) -> 43217.28 | Q109: =IF($C109="","",SUMIF(D_Budget!$F:$F,$C109,D_Budget!$A:$A)) -> 60728.63481 | R109: =SUMIF(Synth_YTD!$C:$C,$C109,Synth_YTD!$K:$K) -> 29934.72 | S109: -13282.56 | T109: -30793.91481
B110: 203 | C110: 1177 | D110: ATTILA VANNES OUEST | E110: LANCHEC Yann | F110: BRETAGNE | G110: OUI | H110: ANNEE 4 | I110: 2022-05-25 | J110: =SUMIF(Synth_MTD!$C:$C,$C110,Synth_MTD!$L:$L) -> 124667 | K110: =IF($C110="","",SUMIF(D_Budget!$F:$F,$C110,D_Budget!$A:$A)) -> 131520.3229 | L110: =SUMIF(Synth_MTD!$C:$C,$C110,Synth_MTD!$K:$K) -> 156694.96 | M110: 32027.96 | N110: 25174.63712 | P110: =SUMIF(Synth_MTD!$C:$C,$C110,Synth_MTD!$L:$L) -> 124667 | Q110: =IF($C110="","",SUMIF(D_Budget!$F:$F,$C110,D_Budget!$A:$A)) -> 131520.3229 | R110: =SUMIF(Synth_YTD!$C:$C,$C110,Synth_YTD!$K:$K) -> 156694.96 | S110: 32027.96 | T110: 25174.63712
B111: 204 | C111: 1178 | D111: ATTILA DAX | E111: CURUTCHET Jean-Bernard | F111: SUD-OUEST | G111: OUI | H111: ANNEE 5 | I111: 2021-09-22 | J111: =SUMIF(Synth_MTD!$C:$C,$C111,Synth_MTD!$L:$L) -> 60160.89 | K111: =IF($C111="","",SUMIF(D_Budget!$F:$F,$C111,D_Budget!$A:$A)) -> 74080.80898 | L111: =SUMIF(Synth_MTD!$C:$C,$C111,Synth_MTD!$K:$K) -> 66725.51 | M111: 6564.62 | N111: -7355.298977 | P111: =SUMIF(Synth_MTD!$C:$C,$C111,Synth_MTD!$L:$L) -> 60160.89 | Q111: =IF($C111="","",SUMIF(D_Budget!$F:$F,$C111,D_Budget!$A:$A)) -> 74080.80898 | R111: =SUMIF(Synth_YTD!$C:$C,$C111,Synth_YTD!$K:$K) -> 66725.51 | S111: 6564.62 | T111: -7355.298977
B112: 205 | C112: 1179 | D112: ATTILA MONTPELLIER SUD | E112: GERARDIN Marc | F112: SUD-EST | G112: OUI | H112: ANNEE 5 | I112: 2021-09-14 | J112: =SUMIF(Synth_MTD!$C:$C,$C112,Synth_MTD!$L:$L) -> 48883.31 | K112: =IF($C112="","",SUMIF(D_Budget!$F:$F,$C112,D_Budget!$A:$A)) -> 34918.88126 | L112: =SUMIF(Synth_MTD!$C:$C,$C112,Synth_MTD!$K:$K) -> 28499.84 | M112: -20383.47 | N112: -6419.041257 | P112: =SUMIF(Synth_MTD!$C:$C,$C112,Synth_MTD!$L:$L) -> 48883.31 | Q112: =IF($C112="","",SUMIF(D_Budget!$F:$F,$C112,D_Budget!$A:$A)) -> 34918.88126 | R112: =SUMIF(Synth_YTD!$C:$C,$C112,Synth_YTD!$K:$K) -> 28499.84 | S112: -20383.47 | T112: -6419.041257
B113: 206 | C113: 1180 | D113: ATTILA CHOLET EST | E113: PASQUET Christophe | F113: DEUX-SEVRES | G113: OUI | H113: ANNEE 5 | I113: 2021-09-14 | J113: =SUMIF(Synth_MTD!$C:$C,$C113,Synth_MTD!$L:$L) -> 78373.02 | K113: =IF($C113="","",SUMIF(D_Budget!$F:$F,$C113,D_Budget!$A:$A)) -> 84923.24049 | L113: =SUMIF(Synth_MTD!$C:$C,$C113,Synth_MTD!$K:$K) -> 54461.12 | M113: -23911.9 | N113: -30462.12049 | P113: =SUMIF(Synth_MTD!$C:$C,$C113,Synth_MTD!$L:$L) -> 78373.02 | Q113: =IF($C113="","",SUMIF(D_Budget!$F:$F,$C113,D_Budget!$A:$A)) -> 84923.24049 | R113: =SUMIF(Synth_YTD!$C:$C,$C113,Synth_YTD!$K:$K) -> 54461.12 | S113: -23911.9 | T113: -30462.12049
B114: 207 | C114: 1181 | D114: ATTILA MONTPELLIER EST | E114: DARLET Jauffrey | F114: SUD-EST | G114: OUI | H114: ANNEE 4 | I114: 2022-06-13 | J114: =SUMIF(Synth_MTD!$C:$C,$C114,Synth_MTD!$L:$L) -> 24365.55 | K114: =IF($C114="","",SUMIF(D_Budget!$F:$F,$C114,D_Budget!$A:$A)) -> 37454.53599 | L114: =SUMIF(Synth_MTD!$C:$C,$C114,Synth_MTD!$K:$K) -> 56638.26 | M114: 32272.71 | N114: 19183.72401 | P114: =SUMIF(Synth_MTD!$C:$C,$C114,Synth_MTD!$L:$L) -> 24365.55 | Q114: =IF($C114="","",SUMIF(D_Budget!$F:$F,$C114,D_Budget!$A:$A)) -> 37454.53599 | R114: =SUMIF(Synth_YTD!$C:$C,$C114,Synth_YTD!$K:$K) -> 56638.26 | S114: 32272.71 | T114: 19183.72401
B115: 208 | C115: 1182 | D115: ATTILA CHARTRES | E115: MARTIN Nicolas | F115: CENTRE VAL-DE-LOIRE | G115: OUI | H115: ANNEE 4 | I115: 2022-07-21 | J115: =SUMIF(Synth_MTD!$C:$C,$C115,Synth_MTD!$L:$L) -> 72785.28 | K115: =IF($C115="","",SUMIF(D_Budget!$F:$F,$C115,D_Budget!$A:$A)) -> 66967.3116 | L115: =SUMIF(Synth_MTD!$C:$C,$C115,Synth_MTD!$K:$K) -> 84914.52 | M115: 12129.24 | N115: 17947.2084 | P115: =SUMIF(Synth_MTD!$C:$C,$C115,Synth_MTD!$L:$L) -> 72785.28 | Q115: =IF($C115="","",SUMIF(D_Budget!$F:$F,$C115,D_Budget!$A:$A)) -> 66967.3116 | R115: =SUMIF(Synth_YTD!$C:$C,$C115,Synth_YTD!$K:$K) -> 84914.52 | S115: 12129.24 | T115: 17947.2084
B116: 209 | C116: 1183 | D116: ATTILA PROVINS | E116: MAGLIANO Marc | F116: NORD-EST | G116: OUI | H116: ANNEE 4 | I116: 2022-06-13 | J116: =SUMIF(Synth_MTD!$C:$C,$C116,Synth_MTD!$L:$L) -> 47568.58 | K116: =IF($C116="","",SUMIF(D_Budget!$F:$F,$C116,D_Budget!$A:$A)) -> 35301.83855 | L116: =SUMIF(Synth_MTD!$C:$C,$C116,Synth_MTD!$K:$K) -> 22334.73 | M116: -25233.85 | N116: -12967.10855 | P116: =SUMIF(Synth_MTD!$C:$C,$C116,Synth_MTD!$L:$L) -> 47568.58 | Q116: =IF($C116="","",SUMIF(D_Budget!$F:$F,$C116,D_Budget!$A:$A)) -> 35301.83855 | R116: =SUMIF(Synth_YTD!$C:$C,$C116,Synth_YTD!$K:$K) -> 22334.73 | S116: -25233.85 | T116: -12967.10855
B117: 210 | C117: 1184 | D117: ATTILA NARBONNE | E117: BAUZOU Guillaume | F117: SUD-EST | G117: OUI | H117: ANNEE 4 | I117: 2022-08-17 | J117: =SUMIF(Synth_MTD!$C:$C,$C117,Synth_MTD!$L:$L) -> 8894.66 | K117: =IF($C117="","",SUMIF(D_Budget!$F:$F,$C117,D_Budget!$A:$A)) -> 8291.213551 | L117: =SUMIF(Synth_MTD!$C:$C,$C117,Synth_MTD!$K:$K) -> 11816.41 | M117: 2921.75 | N117: 3525.196449 | P117: =SUMIF(Synth_MTD!$C:$C,$C117,Synth_MTD!$L:$L) -> 8894.66 | Q117: =IF($C117="","",SUMIF(D_Budget!$F:$F,$C117,D_Budget!$A:$A)) -> 8291.213551 | R117: =SUMIF(Synth_YTD!$C:$C,$C117,Synth_YTD!$K:$K) -> 11816.41 | S117: 2921.75 | T117: 3525.196449
B118: 211 | C118: 1185 | D118: ATTILA ORANGE 2 | E118: ARSIQUAUD Cédric | F118: SUD-EST | G118: OUI | H118: +5ANS | I118: 2014-08-07 | J118: =SUMIF(Synth_MTD!$C:$C,$C118,Synth_MTD!$L:$L) -> 61217.32 | K118: =IF($C118="","",SUMIF(D_Budget!$F:$F,$C118,D_Budget!$A:$A)) -> 65969.87742 | L118: =SUMIF(Synth_MTD!$C:$C,$C118,Synth_MTD!$K:$K) -> 86943.17 | M118: 25725.85 | N118: 20973.29258 | P118: =SUMIF(Synth_MTD!$C:$C,$C118,Synth_MTD!$L:$L) -> 61217.32 | Q118: =IF($C118="","",SUMIF(D_Budget!$F:$F,$C118,D_Budget!$A:$A)) -> 65969.87742 | R118: =SUMIF(Synth_YTD!$C:$C,$C118,Synth_YTD!$K:$K) -> 86943.17 | S118: 25725.85 | T118: 20973.29258
B119: 212 | C119: 1187 | D119: ATTILA SAUMUR | E119: FORESTIER Xavier | F119: DEUX-SEVRES | G119: OUI | H119: ANNEE 5 | I119: 2021-09-22 | J119: =SUMIF(Synth_MTD!$C:$C,$C119,Synth_MTD!$L:$L) -> 73528.97 | K119: =IF($C119="","",SUMIF(D_Budget!$F:$F,$C119,D_Budget!$A:$A)) -> 57738.28791 | L119: =SUMIF(Synth_MTD!$C:$C,$C119,Synth_MTD!$K:$K) -> 37741.7 | M119: -35787.27 | N119: -19996.58791 | P119: =SUMIF(Synth_MTD!$C:$C,$C119,Synth_MTD!$L:$L) -> 73528.97 | Q119: =IF($C119="","",SUMIF(D_Budget!$F:$F,$C119,D_Budget!$A:$A)) -> 57738.28791 | R119: =SUMIF(Synth_YTD!$C:$C,$C119,Synth_YTD!$K:$K) -> 37741.7 | S119: -35787.27 | T119: -19996.58791
B120: 213 | C120: 1188 | D120: ATTILA COGNAC | E120: TESSON-RICHEZ Jérôme | F120: DEUX-SEVRES | G120: OUI | H120: ANNEE 5 | I120: 2021-09-14 | J120: =SUMIF(Synth_MTD!$C:$C,$C120,Synth_MTD!$L:$L) -> 29480.17 | K120: =IF($C120="","",SUMIF(D_Budget!$F:$F,$C120,D_Budget!$A:$A)) -> 43071.93873 | L120: =SUMIF(Synth_MTD!$C:$C,$C120,Synth_MTD!$K:$K) -> 15017.79 | M120: -14462.38 | N120: -28054.14873 | P120: =SUMIF(Synth_MTD!$C:$C,$C120,Synth_MTD!$L:$L) -> 29480.17 | Q120: =IF($C120="","",SUMIF(D_Budget!$F:$F,$C120,D_Budget!$A:$A)) -> 43071.93873 | R120: =SUMIF(Synth_YTD!$C:$C,$C120,Synth_YTD!$K:$K) -> 15017.79 | S120: -14462.38 | T120: -28054.14873
B121: 214 | C121: 1189 | D121: ATTILA SAINT NAZAIRE | E121: CLENET Benoit | F121: BRETAGNE | G121: OUI | H121: ANNEE 3 | I121: 2023-01-05 | J121: =SUMIF(Synth_MTD!$C:$C,$C121,Synth_MTD!$L:$L) -> 50628.14 | K121: =IF($C121="","",SUMIF(D_Budget!$F:$F,$C121,D_Budget!$A:$A)) -> 52601.24506 | L121: =SUMIF(Synth_MTD!$C:$C,$C121,Synth_MTD!$K:$K) -> 36465.58 | M121: -14162.56 | N121: -16135.66506 | P121: =SUMIF(Synth_MTD!$C:$C,$C121,Synth_MTD!$L:$L) -> 50628.14 | Q121: =IF($C121="","",SUMIF(D_Budget!$F:$F,$C121,D_Budget!$A:$A)) -> 52601.24506 | R121: =SUMIF(Synth_YTD!$C:$C,$C121,Synth_YTD!$K:$K) -> 36465.58 | S121: -14162.56 | T121: -16135.66506
B122: 215 | C122: 1190 | D122: ATTILA MONTPELLIER NORD | E122: BILLON David | F122: SUD-EST | G122: OUI | H122: ANNEE 4 | I122: 2022-10-27 | J122: =SUMIF(Synth_MTD!$C:$C,$C122,Synth_MTD!$L:$L) -> 58401.8 | K122: =IF($C122="","",SUMIF(D_Budget!$F:$F,$C122,D_Budget!$A:$A)) -> 51537.2514 | L122: =SUMIF(Synth_MTD!$C:$C,$C122,Synth_MTD!$K:$K) -> 50676.98 | M122: -7724.82 | N122: -860.2713995 | P122: =SUMIF(Synth_MTD!$C:$C,$C122,Synth_MTD!$L:$L) -> 58401.8 | Q122: =IF($C122="","",SUMIF(D_Budget!$F:$F,$C122,D_Budget!$A:$A)) -> 51537.2514 | R122: =SUMIF(Synth_YTD!$C:$C,$C122,Synth_YTD!$K:$K) -> 50676.98 | S122: -7724.82 | T122: -860.2713995
B123: 216 | C123: 1191 | D123: ATTILA CHALON-SUR-SAONE | E123: VIDAL Alexandre | F123: RHONE-ALPES | G123: OUI | H123: ANNEE 3 | I123: 2023-04-12 | J123: =SUMIF(Synth_MTD!$C:$C,$C123,Synth_MTD!$L:$L) -> 45803.35 | K123: =IF($C123="","",SUMIF(D_Budget!$F:$F,$C123,D_Budget!$A:$A)) -> 77485.19163 | L123: =SUMIF(Synth_MTD!$C:$C,$C123,Synth_MTD!$K:$K) -> 103551.49 | M123: 57748.14 | N123: 26066.29837 | P123: =SUMIF(Synth_MTD!$C:$C,$C123,Synth_MTD!$L:$L) -> 45803.35 | Q123: =IF($C123="","",SUMIF(D_Budget!$F:$F,$C123,D_Budget!$A:$A)) -> 77485.19163 | R123: =SUMIF(Synth_YTD!$C:$C,$C123,Synth_YTD!$K:$K) -> 103551.49 | S123: 57748.14 | T123: 26066.29837
B124: 218 | C124: 1193 | D124: ATTILA CAEN OUEST | E124: TAVELIN Emilie | F124: NORMANDIE-PARIS | G124: OUI | H124: ANNEE 3 | I124: 2023-07-12 | J124: =SUMIF(Synth_MTD!$C:$C,$C124,Synth_MTD!$L:$L) -> 30647.99 | K124: =IF($C124="","",SUMIF(D_Budget!$F:$F,$C124,D_Budget!$A:$A)) -> 40819.89644 | L124: =SUMIF(Synth_MTD!$C:$C,$C124,Synth_MTD!$K:$K) -> 21586.2 | M124: -9061.79 | N124: -19233.69644 | P124: =SUMIF(Synth_MTD!$C:$C,$C124,Synth_MTD!$L:$L) -> 30647.99 | Q124: =IF($C124="","",SUMIF(D_Budget!$F:$F,$C124,D_Budget!$A:$A)) -> 40819.89644 | R124: =SUMIF(Synth_YTD!$C:$C,$C124,Synth_YTD!$K:$K) -> 21586.2 | S124: -9061.79 | T124: -19233.69644
B125: 219 | C125: 1194 | D125: ATTILA SAINTES | E125: BAZECK Eric | F125: DEUX-SEVRES | G125: OUI | H125: ANNEE 3 | I125: 2023-07-26 | J125: =SUMIF(Synth_MTD!$C:$C,$C125,Synth_MTD!$L:$L) -> 65541.5 | K125: =IF($C125="","",SUMIF(D_Budget!$F:$F,$C125,D_Budget!$A:$A)) -> 82659.29636 | L125: =SUMIF(Synth_MTD!$C:$C,$C125,Synth_MTD!$K:$K) -> 56602.32 | M125: -8939.18 | N125: -26056.97636 | P125: =SUMIF(Synth_MTD!$C:$C,$C125,Synth_MTD!$L:$L) -> 65541.5 | Q125: =IF($C125="","",SUMIF(D_Budget!$F:$F,$C125,D_Budget!$A:$A)) -> 82659.29636 | R125: =SUMIF(Synth_YTD!$C:$C,$C125,Synth_YTD!$K:$K) -> 56602.32 | S125: -8939.18 | T125: -26056.97636
B126: 220 | C126: 1195 | D126: ATTILA RODEZ | E126: CANEVET Christophe | F126: SUD-EST | G126: OUI | H126: ANNEE 3 | I126: 2023-07-25 | J126: =SUMIF(Synth_MTD!$C:$C,$C126,Synth_MTD!$L:$L) -> 58485.28 | K126: =IF($C126="","",SUMIF(D_Budget!$F:$F,$C126,D_Budget!$A:$A)) -> 55844.11479 | L126: =SUMIF(Synth_MTD!$C:$C,$C126,Synth_MTD!$K:$K) -> 17082.42 | M126: -41402.86 | N126: -38761.69479 | P126: =SUMIF(Synth_MTD!$C:$C,$C126,Synth_MTD!$L:$L) -> 58485.28 | Q126: =IF($C126="","",SUMIF(D_Budget!$F:$F,$C126,D_Budget!$A:$A)) -> 55844.11479 | R126: =SUMIF(Synth_YTD!$C:$C,$C126,Synth_YTD!$K:$K) -> 17082.42 | S126: -41402.86 | T126: -38761.69479
B127: 221 | C127: 1196 | D127: ATTILA MACON | E127: TOMAS Alexis | F127: RHONE-ALPES | G127: OUI | H127: ANNEE 3 | I127: 2023-07-25 | J127: =SUMIF(Synth_MTD!$C:$C,$C127,Synth_MTD!$L:$L) -> 27545.72 | K127: =IF($C127="","",SUMIF(D_Budget!$F:$F,$C127,D_Budget!$A:$A)) -> 68784.43112 | L127: =SUMIF(Synth_MTD!$C:$C,$C127,Synth_MTD!$K:$K) -> 77524.53 | M127: 49978.81 | N127: 8740.098883 | P127: =SUMIF(Synth_MTD!$C:$C,$C127,Synth_MTD!$L:$L) -> 27545.72 | Q127: =IF($C127="","",SUMIF(D_Budget!$F:$F,$C127,D_Budget!$A:$A)) -> 68784.43112 | R127: =SUMIF(Synth_YTD!$C:$C,$C127,Synth_YTD!$K:$K) -> 77524.53 | S127: 49978.81 | T127: 8740.098883
B128: 222 | C128: 1197 | D128: ATTILA VITRE-FOUGERES | E128: LE MEZO Yoann | F128: BRETAGNE | G128: OUI | H128: ANNEE 3 | I128: 2023-04-26 | J128: =SUMIF(Synth_MTD!$C:$C,$C128,Synth_MTD!$L:$L) -> 15029.69 | K128: =IF($C128="","",SUMIF(D_Budget!$F:$F,$C128,D_Budget!$A:$A)) -> 77431.01836 | L128: =SUMIF(Synth_MTD!$C:$C,$C128,Synth_MTD!$K:$K) -> 65436.84 | M128: 50407.15 | N128: -11994.17836 | P128: =SUMIF(Synth_MTD!$C:$C,$C128,Synth_MTD!$L:$L) -> 15029.69 | Q128: =IF($C128="","",SUMIF(D_Budget!$F:$F,$C128,D_Budget!$A:$A)) -> 77431.01836 | R128: =SUMIF(Synth_YTD!$C:$C,$C128,Synth_YTD!$K:$K) -> 65436.84 | S128: 50407.15 | T128: -11994.17836
B129: 223 | C129: 1198 | D129: ATTILA DREUX | E129: BOONE Jean-Baptiste | F129: CENTRE VAL-DE-LOIRE | G129: OUI | H129: ANNEE 3 | I129: 2023-07-12 | J129: =SUMIF(Synth_MTD!$C:$C,$C129,Synth_MTD!$L:$L) -> 51261.85 | K129: =IF($C129="","",SUMIF(D_Budget!$F:$F,$C129,D_Budget!$A:$A)) -> 90049.17631 | L129: =SUMIF(Synth_MTD!$C:$C,$C129,Synth_MTD!$K:$K) -> 37094.56 | M129: -14167.29 | N129: -52954.61631 | P129: =SUMIF(Synth_MTD!$C:$C,$C129,Synth_MTD!$L:$L) -> 51261.85 | Q129: =IF($C129="","",SUMIF(D_Budget!$F:$F,$C129,D_Budget!$A:$A)) -> 90049.17631 | R129: =SUMIF(Synth_YTD!$C:$C,$C129,Synth_YTD!$K:$K) -> 37094.56 | S129: -14167.29 | T129: -52954.61631
B130: 224 | C130: 1199 | D130: ATTILA PONTIVY LOUDEAC | E130: LANCHEC Yann | F130: BRETAGNE | G130: OUI | H130: ANNEE 3 | I130: 2023-09-29 | J130: =SUMIF(Synth_MTD!$C:$C,$C130,Synth_MTD!$L:$L) -> 55302.83 | K130: =IF($C130="","",SUMIF(D_Budget!$F:$F,$C130,D_Budget!$A:$A)) -> 88936.25252 | L130: =SUMIF(Synth_MTD!$C:$C,$C130,Synth_MTD!$K:$K) -> 120547.13 | M130: 65244.3 | N130: 31610.87748 | P130: =SUMIF(Synth_MTD!$C:$C,$C130,Synth_MTD!$L:$L) -> 55302.83 | Q130: =IF($C130="","",SUMIF(D_Budget!$F:$F,$C130,D_Budget!$A:$A)) -> 88936.25252 | R130: =SUMIF(Synth_YTD!$C:$C,$C130,Synth_YTD!$K:$K) -> 120547.13 | S130: 65244.3 | T130: 31610.87748
B131: 225 | C131: 1200 | D131: ATTILA ANNEMASSE | E131: PAVIET Louis | F131: RHONE-ALPES | G131: OUI | H131: ANNEE 3 | I131: 2023-09-29 | J131: =SUMIF(Synth_MTD!$C:$C,$C131,Synth_MTD!$L:$L) -> 30267.03 | K131: =IF($C131="","",SUMIF(D_Budget!$F:$F,$C131,D_Budget!$A:$A)) -> 66199.60518 | L131: =SUMIF(Synth_MTD!$C:$C,$C131,Synth_MTD!$K:$K) -> 36687.74 | M131: 6420.71 | N131: -29511.86518 | P131: =SUMIF(Synth_MTD!$C:$C,$C131,Synth_MTD!$L:$L) -> 30267.03 | Q131: =IF($C131="","",SUMIF(D_Budget!$F:$F,$C131,D_Budget!$A:$A)) -> 66199.60518 | R131: =SUMIF(Synth_YTD!$C:$C,$C131,Synth_YTD!$K:$K) -> 36687.74 | S131: 6420.71 | T131: -29511.86518
B132: 226 | C132: 1201 | D132: ATTILA CERGY-PONTOISE | E132: FOURCADE Sébastien | F132: NORMANDIE-PARIS | G132: OUI | H132: ANNEE 2 | I132: 2024-02-01 | J132: =SUMIF(Synth_MTD!$C:$C,$C132,Synth_MTD!$L:$L) -> 39293.03 | K132: =IF($C132="","",SUMIF(D_Budget!$F:$F,$C132,D_Budget!$A:$A)) -> 53672.94115 | L132: =SUMIF(Synth_MTD!$C:$C,$C132,Synth_MTD!$K:$K) -> 50617.7 | M132: 11324.67 | N132: -3055.241152 | P132: =SUMIF(Synth_MTD!$C:$C,$C132,Synth_MTD!$L:$L) -> 39293.03 | Q132: =IF($C132="","",SUMIF(D_Budget!$F:$F,$C132,D_Budget!$A:$A)) -> 53672.94115 | R132: =SUMIF(Synth_YTD!$C:$C,$C132,Synth_YTD!$K:$K) -> 50617.7 | S132: 11324.67 | T132: -3055.241152
B133: 227 | C133: 1202 | D133: ATTILA DIJON NORD | E133: TOUVREY Florent | F133: NORD-EST | G133: OUI | H133: ANNEE 2 | I133: 2024-02-01 | J133: =SUMIF(Synth_MTD!$C:$C,$C133,Synth_MTD!$L:$L) -> 61798.82 | K133: =IF($C133="","",SUMIF(D_Budget!$F:$F,$C133,D_Budget!$A:$A)) -> 64485.04622 | L133: =SUMIF(Synth_MTD!$C:$C,$C133,Synth_MTD!$K:$K) -> 69828.06 | M133: 8029.24 | N133: 5343.013778 | P133: =SUMIF(Synth_MTD!$C:$C,$C133,Synth_MTD!$L:$L) -> 61798.82 | Q133: =IF($C133="","",SUMIF(D_Budget!$F:$F,$C133,D_Budget!$A:$A)) -> 64485.04622 | R133: =SUMIF(Synth_YTD!$C:$C,$C133,Synth_YTD!$K:$K) -> 69828.06 | S133: 8029.24 | T133: 5343.013778
B134: 228 | C134: 1203 | D134: ATTILA MONTAUBAN | E134: FANTINEL Albéric | F134: SUD-OUEST | G134: OUI | H134: ANNEE 3 | I134: 2023-11-20 | J134: =SUMIF(Synth_MTD!$C:$C,$C134,Synth_MTD!$L:$L) -> 28426.09 | K134: =IF($C134="","",SUMIF(D_Budget!$F:$F,$C134,D_Budget!$A:$A)) -> 71401.18779 | L134: =SUMIF(Synth_MTD!$C:$C,$C134,Synth_MTD!$K:$K) -> 68947.28 | M134: 40521.19 | N134: -2453.907791 | P134: =SUMIF(Synth_MTD!$C:$C,$C134,Synth_MTD!$L:$L) -> 28426.09 | Q134: =IF($C134="","",SUMIF(D_Budget!$F:$F,$C134,D_Budget!$A:$A)) -> 71401.18779 | R134: =SUMIF(Synth_YTD!$C:$C,$C134,Synth_YTD!$K:$K) -> 68947.28 | S134: 40521.19 | T134: -2453.907791
B135: 229 | C135: 1204 | D135: ATTILA TOULOUSE SUD | E135: DE BODINAT Maxime | F135: SUD-OUEST | G135: OUI | H135: ANNEE 3 | I135: 2023-11-20 | J135: =SUMIF(Synth_MTD!$C:$C,$C135,Synth_MTD!$L:$L) -> 7604.78 | K135: =IF($C135="","",SUMIF(D_Budget!$F:$F,$C135,D_Budget!$A:$A)) -> 43693.02036 | L135: =SUMIF(Synth_MTD!$C:$C,$C135,Synth_MTD!$K:$K) -> 46277.79 | M135: 38673.01 | N135: 2584.769636 | P135: =SUMIF(Synth_MTD!$C:$C,$C135,Synth_MTD!$L:$L) -> 7604.78 | Q135: =IF($C135="","",SUMIF(D_Budget!$F:$F,$C135,D_Budget!$A:$A)) -> 43693.02036 | R135: =SUMIF(Synth_YTD!$C:$C,$C135,Synth_YTD!$K:$K) -> 46277.79 | S135: 38673.01 | T135: 2584.769636
B136: 230 | C136: 1205 | D136: ATTILA NANCY SUD | E136: RICKAL Pierre | F136: NORD-EST | G136: OUI | H136: ANNEE 2 | I136: 2024-04-03 | J136: =SUMIF(Synth_MTD!$C:$C,$C136,Synth_MTD!$L:$L) -> 8919.62 | K136: =IF($C136="","",SUMIF(D_Budget!$F:$F,$C136,D_Budget!$A:$A)) -> 52942.57806 | L136: =SUMIF(Synth_MTD!$C:$C,$C136,Synth_MTD!$K:$K) -> 56834.37 | M136: 47914.75 | N136: 3891.791935 | P136: =SUMIF(Synth_MTD!$C:$C,$C136,Synth_MTD!$L:$L) -> 8919.62 | Q136: =IF($C136="","",SUMIF(D_Budget!$F:$F,$C136,D_Budget!$A:$A)) -> 52942.57806 | R136: =SUMIF(Synth_YTD!$C:$C,$C136,Synth_YTD!$K:$K) -> 56834.37 | S136: 47914.75 | T136: 3891.791935
B137: 231 | C137: 1206 | D137: ATTILA SETE | E137: GERARDIN Marc | F137: SUD-EST | G137: OUI | H137: ANNEE 2 | I137: 2024-06-05 | J137: =SUMIF(Synth_MTD!$C:$C,$C137,Synth_MTD!$L:$L) -> 5126.74 | K137: =IF($C137="","",SUMIF(D_Budget!$F:$F,$C137,D_Budget!$A:$A)) -> 30195.1798 | L137: =SUMIF(Synth_MTD!$C:$C,$C137,Synth_MTD!$K:$K) -> 2879.38 | M137: -2247.36 | N137: -27315.7998 | P137: =SUMIF(Synth_MTD!$C:$C,$C137,Synth_MTD!$L:$L) -> 5126.74 | Q137: =IF($C137="","",SUMIF(D_Budget!$F:$F,$C137,D_Budget!$A:$A)) -> 30195.1798 | R137: =SUMIF(Synth_YTD!$C:$C,$C137,Synth_YTD!$K:$K) -> 2879.38 | S137: -2247.36 | T137: -27315.7998
B138: 233 | C138: 1207 | D138: ATTILA BORDEAUX MERIGNAC | E138: MOAL Yannick | F138: SUD-OUEST | G138: OUI | H138: ANNEE 2 | I138: 2024-05-16 | J138: =SUMIF(Synth_MTD!$C:$C,$C138,Synth_MTD!$L:$L) -> 7630.22 | K138: =IF($C138="","",SUMIF(D_Budget!$F:$F,$C138,D_Budget!$A:$A)) -> 18294.08829 | L138: =SUMIF(Synth_MTD!$C:$C,$C138,Synth_MTD!$K:$K) -> 19343.9 | M138: 11713.68 | N138: 1049.811713 | P138: =SUMIF(Synth_MTD!$C:$C,$C138,Synth_MTD!$L:$L) -> 7630.22 | Q138: =IF($C138="","",SUMIF(D_Budget!$F:$F,$C138,D_Budget!$A:$A)) -> 18294.08829 | R138: =SUMIF(Synth_YTD!$C:$C,$C138,Synth_YTD!$K:$K) -> 19343.9 | S138: 11713.68 | T138: 1049.811713
B139: 234 | C139: 1208 | D139: ATTILA REIMS OUEST | E139: DIONISI Camille | F139: NORD-EST | G139: OUI | H139: ANNEE 2 | I139: 2024-05-16 | J139: =SUMIF(Synth_MTD!$C:$C,$C139,Synth_MTD!$L:$L) -> 3600.28 | K139: =IF($C139="","",SUMIF(D_Budget!$F:$F,$C139,D_Budget!$A:$A)) -> 40802.72422 | L139: =SUMIF(Synth_MTD!$C:$C,$C139,Synth_MTD!$K:$K) -> 30648.6 | M139: 27048.32 | N139: -10154.12422 | P139: =SUMIF(Synth_MTD!$C:$C,$C139,Synth_MTD!$L:$L) -> 3600.28 | Q139: =IF($C139="","",SUMIF(D_Budget!$F:$F,$C139,D_Budget!$A:$A)) -> 40802.72422 | R139: =SUMIF(Synth_YTD!$C:$C,$C139,Synth_YTD!$K:$K) -> 30648.6 | S139: 27048.32 | T139: -10154.12422
B140: 235 | C140: 1209 | D140: ATTILA MASSY | E140: FOUQUET Jean-Pierre | F140: CENTRE VAL-DE-LOIRE | G140: OUI | H140: ANNEE 2 | I140: 2024-07-10 | J140: =SUMIF(Synth_MTD!$C:$C,$C140,Synth_MTD!$L:$L) -> 0 | K140: =IF($C140="","",SUMIF(D_Budget!$F:$F,$C140,D_Budget!$A:$A)) -> 40895.79 | L140: =SUMIF(Synth_MTD!$C:$C,$C140,Synth_MTD!$K:$K) -> 22474.16 | M140: 22474.16 | N140: -18421.63 | P140: =SUMIF(Synth_MTD!$C:$C,$C140,Synth_MTD!$L:$L) -> 0 | Q140: =IF($C140="","",SUMIF(D_Budget!$F:$F,$C140,D_Budget!$A:$A)) -> 40895.79 | R140: =SUMIF(Synth_YTD!$C:$C,$C140,Synth_YTD!$K:$K) -> 22474.16 | S140: 22474.16 | T140: -18421.63
B141: 236 | C141: 1210 | D141: ATTILA MONT-DE-MARSAN | E141: MEZIL James | F141: SUD-OUEST | G141: OUI | H141: ANNEE 2 | I141: 2024-07-10 | J141: =SUMIF(Synth_MTD!$C:$C,$C141,Synth_MTD!$L:$L) -> 1778.99 | K141: =IF($C141="","",SUMIF(D_Budget!$F:$F,$C141,D_Budget!$A:$A)) -> 33506.31727 | L141: =SUMIF(Synth_MTD!$C:$C,$C141,Synth_MTD!$K:$K) -> 24555.41 | M141: 22776.42 | N141: -8950.907273 | P141: =SUMIF(Synth_MTD!$C:$C,$C141,Synth_MTD!$L:$L) -> 1778.99 | Q141: =IF($C141="","",SUMIF(D_Budget!$F:$F,$C141,D_Budget!$A:$A)) -> 33506.31727 | R141: =SUMIF(Synth_YTD!$C:$C,$C141,Synth_YTD!$K:$K) -> 24555.41 | S141: 22776.42 | T141: -8950.907273
B142: 237 | C142: 1211 | D142: ATTILA VERSAILLES | E142: RIGAUD Lionel | F142: NORMANDIE-PARIS | G142: OUI | H142: ANNEE 2 | I142: 2024-08-30 | J142: =SUMIF(Synth_MTD!$C:$C,$C142,Synth_MTD!$L:$L) -> 8407.84 | K142: =IF($C142="","",SUMIF(D_Budget!$F:$F,$C142,D_Budget!$A:$A)) -> 40942.92755 | L142: =SUMIF(Synth_MTD!$C:$C,$C142,Synth_MTD!$K:$K) -> 39788.34 | M142: 31380.5 | N142: -1154.587548 | P142: =SUMIF(Synth_MTD!$C:$C,$C142,Synth_MTD!$L:$L) -> 8407.84 | Q142: =IF($C142="","",SUMIF(D_Budget!$F:$F,$C142,D_Budget!$A:$A)) -> 40942.92755 | R142: =SUMIF(Synth_YTD!$C:$C,$C142,Synth_YTD!$K:$K) -> 39788.34 | S142: 31380.5 | T142: -1154.587548
B143: 238 | C143: 1212 | D143: ATTILA CARCASSONNE | E143: FAVIER Bertrand | F143: SUD-EST | G143: OUI | H143: ANNEE 2 | I143: 2024-08-30 | J143: =SUMIF(Synth_MTD!$C:$C,$C143,Synth_MTD!$L:$L) -> 1493.71 | K143: =IF($C143="","",SUMIF(D_Budget!$F:$F,$C143,D_Budget!$A:$A)) -> 8295.930449 | L143: =SUMIF(Synth_MTD!$C:$C,$C143,Synth_MTD!$K:$K) -> 13113.37 | M143: 11619.66 | N143: 4817.439551 | P143: =SUMIF(Synth_MTD!$C:$C,$C143,Synth_MTD!$L:$L) -> 1493.71 | Q143: =IF($C143="","",SUMIF(D_Budget!$F:$F,$C143,D_Budget!$A:$A)) -> 8295.930449 | R143: =SUMIF(Synth_YTD!$C:$C,$C143,Synth_YTD!$K:$K) -> 13113.37 | S143: 11619.66 | T143: 4817.439551
B144: 239 | C144: 1213 | D144: ATTILA LYON NORD EST | E144: LAURENT Aymeric | F144: CENTRE | G144: OUI | H144: ANNEE 3 | I144: 2023-09-29 | J144: =SUMIF(Synth_MTD!$C:$C,$C144,Synth_MTD!$L:$L) -> 11347.8 | K144: =IF($C144="","",SUMIF(D_Budget!$F:$F,$C144,D_Budget!$A:$A)) -> 22309.29076 | L144: =SUMIF(Synth_MTD!$C:$C,$C144,Synth_MTD!$K:$K) -> 45776.04 | M144: 34428.24 | N144: 23466.74924 | P144: =SUMIF(Synth_MTD!$C:$C,$C144,Synth_MTD!$L:$L) -> 11347.8 | Q144: =IF($C144="","",SUMIF(D_Budget!$F:$F,$C144,D_Budget!$A:$A)) -> 22309.29076 | R144: =SUMIF(Synth_YTD!$C:$C,$C144,Synth_YTD!$K:$K) -> 45776.04 | S144: 34428.24 | T144: 23466.74924
B145: 240 | C145: 1214 | D145: ATTILA SENS | E145: LAHAYE Benoit | F145: CENTRE VAL-DE-LOIRE | G145: OUI | H145: ANNEE 2 | I145: 2024-12-10 | J145: =SUMIF(Synth_MTD!$C:$C,$C145,Synth_MTD!$L:$L) -> 38732.7 | K145: =IF($C145="","",SUMIF(D_Budget!$F:$F,$C145,D_Budget!$A:$A)) -> 58857.18716 | L145: =SUMIF(Synth_MTD!$C:$C,$C145,Synth_MTD!$K:$K) -> 51540.6 | M145: 12807.9 | N145: -7316.587157 | P145: =SUMIF(Synth_MTD!$C:$C,$C145,Synth_MTD!$L:$L) -> 38732.7 | Q145: =IF($C145="","",SUMIF(D_Budget!$F:$F,$C145,D_Budget!$A:$A)) -> 58857.18716 | R145: =SUMIF(Synth_YTD!$C:$C,$C145,Synth_YTD!$K:$K) -> 51540.6 | S145: 12807.9 | T145: -7316.587157
B146: 241 | C146: 1215 | D146: ATTILA LIBOURNE | E146: DUPIOT Michael | F146: SUD-OUEST | G146: OUI | H146: ANNEE 1 | I146: 2025-04-10 | J146: =SUMIF(Synth_MTD!$C:$C,$C146,Synth_MTD!$L:$L) -> 0 | K146: =IF($C146="","",SUMIF(D_Budget!$F:$F,$C146,D_Budget!$A:$A)) -> 20000 | L146: =SUMIF(Synth_MTD!$C:$C,$C146,Synth_MTD!$K:$K) -> 7990.88 | M146: 7990.88 | N146: -12009.12 | P146: =SUMIF(Synth_MTD!$C:$C,$C146,Synth_MTD!$L:$L) -> 0 | Q146: =IF($C146="","",SUMIF(D_Budget!$F:$F,$C146,D_Budget!$A:$A)) -> 20000 | R146: =SUMIF(Synth_YTD!$C:$C,$C146,Synth_YTD!$K:$K) -> 7990.88 | S146: 7990.88 | T146: -12009.12
B147: 242 | C147: 1216 | D147: ATTILA FONTAINEBLEAU | E147: LECRIVAIN Kévin | F147: NORD-EST | G147: OUI | H147: ANNEE 1 | I147: 2025-02-21 | J147: =SUMIF(Synth_MTD!$C:$C,$C147,Synth_MTD!$L:$L) -> 0 | K147: =IF($C147="","",SUMIF(D_Budget!$F:$F,$C147,D_Budget!$A:$A)) -> 10000 | L147: =SUMIF(Synth_MTD!$C:$C,$C147,Synth_MTD!$K:$K) -> 22612.29 | M147: 22612.29 | N147: 12612.29 | P147: =SUMIF(Synth_MTD!$C:$C,$C147,Synth_MTD!$L:$L) -> 0 | Q147: =IF($C147="","",SUMIF(D_Budget!$F:$F,$C147,D_Budget!$A:$A)) -> 10000 | R147: =SUMIF(Synth_YTD!$C:$C,$C147,Synth_YTD!$K:$K) -> 22612.29 | S147: 22612.29 | T147: 12612.29
B148: 243 | C148: 1217 | D148: ATTILA LILLE SECLIN | E148: OVINET Michael | F148: NORMANDIE-PARIS | G148: OUI | H148: ANNEE 1 | I148: 2025-04-10 | J148: =SUMIF(Synth_MTD!$C:$C,$C148,Synth_MTD!$L:$L) -> 0 | K148: =IF($C148="","",SUMIF(D_Budget!$F:$F,$C148,D_Budget!$A:$A)) -> 0 | L148: =SUMIF(Synth_MTD!$C:$C,$C148,Synth_MTD!$K:$K) -> 36204.77 | M148: 36204.77 | N148: 36204.77 | P148: =SUMIF(Synth_MTD!$C:$C,$C148,Synth_MTD!$L:$L) -> 0 | Q148: =IF($C148="","",SUMIF(D_Budget!$F:$F,$C148,D_Budget!$A:$A)) -> 0 | R148: =SUMIF(Synth_YTD!$C:$C,$C148,Synth_YTD!$K:$K) -> 36204.77 | S148: 36204.77 | T148: 36204.77
B149: 244 | C149: 1218 | D149: ATTILA DUNKERQUE | E149: BUDZIN Jonathan | F149: NORMANDIE-PARIS | G149: OUI | H149: ANNEE 1 | I149: 2025-04-10 | J149: =SUMIF(Synth_MTD!$C:$C,$C149,Synth_MTD!$L:$L) -> 0 | K149: =IF($C149="","",SUMIF(D_Budget!$F:$F,$C149,D_Budget!$A:$A)) -> 5000 | L149: =SUMIF(Synth_MTD!$C:$C,$C149,Synth_MTD!$K:$K) -> 11712.74 | M149: 11712.74 | N149: 6712.74 | P149: =SUMIF(Synth_MTD!$C:$C,$C149,Synth_MTD!$L:$L) -> 0 | Q149: =IF($C149="","",SUMIF(D_Budget!$F:$F,$C149,D_Budget!$A:$A)) -> 5000 | R149: =SUMIF(Synth_YTD!$C:$C,$C149,Synth_YTD!$K:$K) -> 11712.74 | S149: 11712.74 | T149: 6712.74
B150: 245 | C150: 1219 | D150: ATTILA MAYENNE | E150: GIBIER Valentin | F150: BRETAGNE | G150: OUI | H150: ANNEE 1 | I150: 2025-04-22 | J150: =SUMIF(Synth_MTD!$C:$C,$C150,Synth_MTD!$L:$L) -> 0 | K150: =IF($C150="","",SUMIF(D_Budget!$F:$F,$C150,D_Budget!$A:$A)) -> 30000 | L150: =SUMIF(Synth_MTD!$C:$C,$C150,Synth_MTD!$K:$K) -> 35500.73 | M150: 35500.73 | N150: 5500.73 | P150: =SUMIF(Synth_MTD!$C:$C,$C150,Synth_MTD!$L:$L) -> 0 | Q150: =IF($C150="","",SUMIF(D_Budget!$F:$F,$C150,D_Budget!$A:$A)) -> 30000 | R150: =SUMIF(Synth_YTD!$C:$C,$C150,Synth_YTD!$K:$K) -> 35500.73 | S150: 35500.73 | T150: 5500.73
B151: 246 | C151: 1220 | D151: ATTILA VOIRON | E151: DUCHAMP Thomas | F151: RHONE-ALPES | G151: OUI | H151: ANNEE 1 | I151: 2025-09-12 | J151: =SUMIF(Synth_MTD!$C:$C,$C151,Synth_MTD!$L:$L) -> 0 | K151: =IF($C151="","",SUMIF(D_Budget!$F:$F,$C151,D_Budget!$A:$A)) -> 5000 | L151: =SUMIF(Synth_MTD!$C:$C,$C151,Synth_MTD!$K:$K) -> 8616.81 | M151: 8616.81 | N151: 3616.81 | P151: =SUMIF(Synth_MTD!$C:$C,$C151,Synth_MTD!$L:$L) -> 0 | Q151: =IF($C151="","",SUMIF(D_Budget!$F:$F,$C151,D_Budget!$A:$A)) -> 5000 | R151: =SUMIF(Synth_YTD!$C:$C,$C151,Synth_YTD!$K:$K) -> 8616.81 | S151: 8616.81 | T151: 3616.81
B152: 247 | C152: 1221 | D152: ATTILA AUCH | E152: MAGNANOU Rémi | F152: SUD-OUEST | G152: OUI | H152: ANNEE 1 | I152: 2025-09-11 | J152: =SUMIF(Synth_MTD!$C:$C,$C152,Synth_MTD!$L:$L) -> 0 | K152: =IF($C152="","",SUMIF(D_Budget!$F:$F,$C152,D_Budget!$A:$A)) -> 5000 | L152: =SUMIF(Synth_MTD!$C:$C,$C152,Synth_MTD!$K:$K) -> 40918.31 | M152: 40918.31 | N152: 35918.31 | P152: =SUMIF(Synth_MTD!$C:$C,$C152,Synth_MTD!$L:$L) -> 0 | Q152: =IF($C152="","",SUMIF(D_Budget!$F:$F,$C152,D_Budget!$A:$A)) -> 5000 | R152: =SUMIF(Synth_YTD!$C:$C,$C152,Synth_YTD!$K:$K) -> 40918.31 | S152: 40918.31 | T152: 35918.31
B153: 248 | C153: 1222 | D153: ATTILA TOULON OUEST | E153: FIEVRE Jérôme | F153: SUD-EST | G153: OUI | H153: ANNEE 1 | I153: 2025-06-01 | J153: =SUMIF(Synth_MTD!$C:$C,$C153,Synth_MTD!$L:$L) -> 0 | K153: =IF($C153="","",SUMIF(D_Budget!$F:$F,$C153,D_Budget!$A:$A)) -> 5000 | L153: =SUMIF(Synth_MTD!$C:$C,$C153,Synth_MTD!$K:$K) -> 4185.88 | M153: 4185.88 | N153: -814.12 | P153: =SUMIF(Synth_MTD!$C:$C,$C153,Synth_MTD!$L:$L) -> 0 | Q153: =IF($C153="","",SUMIF(D_Budget!$F:$F,$C153,D_Budget!$A:$A)) -> 5000 | R153: =SUMIF(Synth_YTD!$C:$C,$C153,Synth_YTD!$K:$K) -> 4185.88 | S153: 4185.88 | T153: -814.12
B154: 250 | C154: 1224 | D154: ATTILA BAIN-DE-BRETAGNE–JANZE | E154: HILLENWECK Marc | F154: BRETAGNE | G154: OUI | H154: ANNEE 1 | I154: 2025-09-02 | J154: =SUMIF(Synth_MTD!$C:$C,$C154,Synth_MTD!$L:$L) -> 0 | K154: =IF($C154="","",SUMIF(D_Budget!$F:$F,$C154,D_Budget!$A:$A)) -> 1000 | L154: =SUMIF(Synth_MTD!$C:$C,$C154,Synth_MTD!$K:$K) -> 0 | M154: =IF($C154="","",$L154-$J154) -> 0 | N154: =IF($C154="","",$L154-$K154) -> -1000 | P154: =SUMIF(Synth_MTD!$C:$C,$C154,Synth_MTD!$L:$L) -> 0 | Q154: =IF($C154="","",SUMIF(D_Budget!$F:$F,$C154,D_Budget!$A:$A)) -> 1000 | R154: =SUMIF(Synth_YTD!$C:$C,$C154,Synth_YTD!$K:$K) -> 0 | S154: =IF($C154="","",$R154-$P154) -> 0 | T154: =IF($C154="","",$R154-$Q154) -> -1000
B155: 251 | C155: 1225 | D155: ATTILA MELUN | E155: ENGEL Morgan | F155: NORD-EST | G155: OUI | H155: ANNEE 1 | I155: 2025-09-02 | J155: =SUMIF(Synth_MTD!$C:$C,$C155,Synth_MTD!$L:$L) -> 0 | K155: =IF($C155="","",SUMIF(D_Budget!$F:$F,$C155,D_Budget!$A:$A)) -> 1000 | L155: =SUMIF(Synth_MTD!$C:$C,$C155,Synth_MTD!$K:$K) -> 0 | M155: 0 | N155: -1000 | P155: =SUMIF(Synth_MTD!$C:$C,$C155,Synth_MTD!$L:$L) -> 0 | Q155: =IF($C155="","",SUMIF(D_Budget!$F:$F,$C155,D_Budget!$A:$A)) -> 1000 | R155: =SUMIF(Synth_YTD!$C:$C,$C155,Synth_YTD!$K:$K) -> 0 | S155: 0 | T155: -1000
B156: 252 | C156: 1226 | D156: ATTILA PLOERMEL - REDON | E156: BAUVIN Xavier | F156: BRETAGNE | G156: OUI | H156: ANNEE 1 | I156: 2025-09-02 | J156: =SUMIF(Synth_MTD!$C:$C,$C156,Synth_MTD!$L:$L) -> 0 | K156: =IF($C156="","",SUMIF(D_Budget!$F:$F,$C156,D_Budget!$A:$A)) -> 1000 | L156: =SUMIF(Synth_MTD!$C:$C,$C156,Synth_MTD!$K:$K) -> 0 | M156: 0 | N156: -1000 | P156: =SUMIF(Synth_MTD!$C:$C,$C156,Synth_MTD!$L:$L) -> 0 | Q156: =IF($C156="","",SUMIF(D_Budget!$F:$F,$C156,D_Budget!$A:$A)) -> 1000 | R156: =SUMIF(Synth_YTD!$C:$C,$C156,Synth_YTD!$K:$K) -> 0 | S156: 0 | T156: -1000
B157: 253 | C157: 1227 | D157: ATTILA TOURS EST | E157: Elements budgétaires | F157: CENTRE VAL-DE-LOIRE | G157: OUI | H157: ANNEE 1 | J157: =SUMIF(Synth_MTD!$C:$C,$C157,Synth_MTD!$L:$L) -> 0 | K157: =IF($C157="","",SUMIF(D_Budget!$F:$F,$C157,D_Budget!$A:$A)) -> 74128.92466 | L157: =SUMIF(Synth_MTD!$C:$C,$C157,Synth_MTD!$K:$K) -> 0 | M157: 0 | N157: -74128.92466 | P157: =SUMIF(Synth_MTD!$C:$C,$C157,Synth_MTD!$L:$L) -> 0 | Q157: =IF($C157="","",SUMIF(D_Budget!$F:$F,$C157,D_Budget!$A:$A)) -> 74128.92466 | R157: =SUMIF(Synth_YTD!$C:$C,$C157,Synth_YTD!$K:$K) -> 0 | S157: 0 | T157: -74128.92466
B158: 249 | C158: 1223 | D158: ATTILA COLMAR | E158: Elements budgétaires | F158: NORD-EST | G158: OUI | H158: ANNEE 1 | J158: =SUMIF(Synth_MTD!$C:$C,$C158,Synth_MTD!$L:$L) -> 0 | K158: =IF($C158="","",SUMIF(D_Budget!$F:$F,$C158,D_Budget!$A:$A)) -> 1000 | L158: =SUMIF(Synth_MTD!$C:$C,$C158,Synth_MTD!$K:$K) -> 0 | M158: 0 | N158: -1000 | P158: =SUMIF(Synth_MTD!$C:$C,$C158,Synth_MTD!$L:$L) -> 0 | Q158: =IF($C158="","",SUMIF(D_Budget!$F:$F,$C158,D_Budget!$A:$A)) -> 1000 | R158: =SUMIF(Synth_YTD!$C:$C,$C158,Synth_YTD!$K:$K) -> 0 | S158: 0 | T158: -1000
B159: X15 | C159: X15 | D159: Pornic | E159: Elements budgétaires | G159: NON | J159: =SUMIF(Synth_MTD!$C:$C,$C159,Synth_MTD!$L:$L) -> 0 | K159: =IF($C159="","",SUMIF(D_Budget!$F:$F,$C159,D_Budget!$A:$A)) -> 1000 | L159: =SUMIF(Synth_MTD!$C:$C,$C159,Synth_MTD!$K:$K) -> 0 | M159: 0 | N159: -1000 | P159: =SUMIF(Synth_MTD!$C:$C,$C159,Synth_MTD!$L:$L) -> 0 | Q159: =IF($C159="","",SUMIF(D_Budget!$F:$F,$C159,D_Budget!$A:$A)) -> 1000 | R159: =SUMIF(Synth_YTD!$C:$C,$C159,Synth_YTD!$K:$K) -> 0 | S159: 0 | T159: -1000
B160: X16 | C160: X16 | D160: Chateaubriant | E160: Elements budgétaires | G160: NON | J160: =SUMIF(Synth_MTD!$C:$C,$C160,Synth_MTD!$L:$L) -> 0 | K160: =IF($C160="","",SUMIF(D_Budget!$F:$F,$C160,D_Budget!$A:$A)) -> 1000 | L160: =SUMIF(Synth_MTD!$C:$C,$C160,Synth_MTD!$K:$K) -> 0 | M160: 0 | N160: -1000 | P160: =SUMIF(Synth_MTD!$C:$C,$C160,Synth_MTD!$L:$L) -> 0 | Q160: =IF($C160="","",SUMIF(D_Budget!$F:$F,$C160,D_Budget!$A:$A)) -> 1000 | R160: =SUMIF(Synth_YTD!$C:$C,$C160,Synth_YTD!$K:$K) -> 0 | S160: 0 | T160: -1000
B161: X19 | C161: X19 | D161: Brest Sud | E161: Elements budgétaires | G161: NON | J161: =SUMIF(Synth_MTD!$C:$C,$C161,Synth_MTD!$L:$L) -> 0 | K161: =IF($C161="","",SUMIF(D_Budget!$F:$F,$C161,D_Budget!$A:$A)) -> 1000 | L161: =SUMIF(Synth_MTD!$C:$C,$C161,Synth_MTD!$K:$K) -> 0 | M161: 0 | N161: -1000 | P161: =SUMIF(Synth_MTD!$C:$C,$C161,Synth_MTD!$L:$L) -> 0 | Q161: =IF($C161="","",SUMIF(D_Budget!$F:$F,$C161,D_Budget!$A:$A)) -> 1000 | R161: =SUMIF(Synth_YTD!$C:$C,$C161,Synth_YTD!$K:$K) -> 0 | S161: 0 | T161: -1000
B162: XX1 | C162: XX1 | D162: Combourg (à confirmer) | E162: Elements budgétaires | G162: NON | J162: =SUMIF(Synth_MTD!$C:$C,$C162,Synth_MTD!$L:$L) -> 0 | K162: =IF($C162="","",SUMIF(D_Budget!$F:$F,$C162,D_Budget!$A:$A)) -> 1000 | L162: =SUMIF(Synth_MTD!$C:$C,$C162,Synth_MTD!$K:$K) -> 0 | M162: 0 | N162: -1000 | P162: =SUMIF(Synth_MTD!$C:$C,$C162,Synth_MTD!$L:$L) -> 0 | Q162: =IF($C162="","",SUMIF(D_Budget!$F:$F,$C162,D_Budget!$A:$A)) -> 1000 | R162: =SUMIF(Synth_YTD!$C:$C,$C162,Synth_YTD!$K:$K) -> 0 | S162: 0 | T162: -1000
J163: =SUMIF(Synth_MTD!$C:$C,$C163,Synth_MTD!$L:$L) -> 0 | K163: =IF($C163="","",SUMIF(D_Budget!$F:$F,$C163,D_Budget!$A:$A)) ->  | L163: =SUMIF(Synth_MTD!$C:$C,$C163,Synth_MTD!$K:$K) -> 0 | P163: =SUMIF(Synth_MTD!$C:$C,$C163,Synth_MTD!$L:$L) -> 0 | Q163: =IF($C163="","",SUMIF(D_Budget!$F:$F,$C163,D_Budget!$A:$A)) ->  | R163: =SUMIF(Synth_YTD!$C:$C,$C163,Synth_YTD!$K:$K) -> 0
J164: =SUMIF(Synth_MTD!$C:$C,$C164,Synth_MTD!$L:$L) -> 0 | K164: =IF($C164="","",SUMIF(D_Budget!$F:$F,$C164,D_Budget!$A:$A)) ->  | L164: =SUMIF(Synth_MTD!$C:$C,$C164,Synth_MTD!$K:$K) -> 0 | P164: =SUMIF(Synth_MTD!$C:$C,$C164,Synth_MTD!$L:$L) -> 0 | Q164: =IF($C164="","",SUMIF(D_Budget!$F:$F,$C164,D_Budget!$A:$A)) ->  | R164: =SUMIF(Synth_YTD!$C:$C,$C164,Synth_YTD!$K:$K) -> 0
J165: =SUMIF(Synth_MTD!$C:$C,$C165,Synth_MTD!$L:$L) -> 0 | K165: =IF($C165="","",SUMIF(D_Budget!$F:$F,$C165,D_Budget!$A:$A)) ->  | L165: =SUMIF(Synth_MTD!$C:$C,$C165,Synth_MTD!$K:$K) -> 0 | P165: =SUMIF(Synth_MTD!$C:$C,$C165,Synth_MTD!$L:$L) -> 0 | Q165: =IF($C165="","",SUMIF(D_Budget!$F:$F,$C165,D_Budget!$A:$A)) ->  | R165: =SUMIF(Synth_YTD!$C:$C,$C165,Synth_YTD!$K:$K) -> 0
J166: =SUMIF(Synth_MTD!$C:$C,$C166,Synth_MTD!$L:$L) -> 0 | K166: =IF($C166="","",SUMIF(D_Budget!$F:$F,$C166,D_Budget!$A:$A)) ->  | L166: =SUMIF(Synth_MTD!$C:$C,$C166,Synth_MTD!$K:$K) -> 0 | P166: =SUMIF(Synth_MTD!$C:$C,$C166,Synth_MTD!$L:$L) -> 0 | Q166: =IF($C166="","",SUMIF(D_Budget!$F:$F,$C166,D_Budget!$A:$A)) ->  | R166: =SUMIF(Synth_YTD!$C:$C,$C166,Synth_YTD!$K:$K) -> 0
J167: =SUMIF(Synth_MTD!$C:$C,$C167,Synth_MTD!$L:$L) -> 0 | K167: =IF($C167="","",SUMIF(D_Budget!$F:$F,$C167,D_Budget!$A:$A)) ->  | L167: =SUMIF(Synth_MTD!$C:$C,$C167,Synth_MTD!$K:$K) -> 0 | P167: =SUMIF(Synth_MTD!$C:$C,$C167,Synth_MTD!$L:$L) -> 0 | Q167: =IF($C167="","",SUMIF(D_Budget!$F:$F,$C167,D_Budget!$A:$A)) ->  | R167: =SUMIF(Synth_YTD!$C:$C,$C167,Synth_YTD!$K:$K) -> 0

Sheet Synth_MTD
D4: ="Suivi du réseau - période mensuelle: "&DE!$C$5 -> Suivi du réseau - période mensuelle: Janvier
G6: TOTAL RESEAU | K6: =SUM(K$17:K$197) -> 7946997.98 | L6: =SUM(L$17:L$197) -> 8937733.32 | M6: =K6-L6 -> -990735.34 | N6: =M6/L6 -> -0.1108486128 | O6: =SUM(O$17:O$197) -> 10621307.39 | P6: =SUM(P$17:P$197) -> 9276860.998 | Q6: =O6-P6 -> 1344446.389 | R6: =Q6/P6 -> 0.1449247099 | S6: =SUM(S$17:S$197) -> 41032408.53 | T6: =SUM(T$17:T$197) -> 38925959.65 | U6: =S6-T6 -> 2106448.885 | V6: =U6/T6 -> 0.05411424418 | W6: =SUM(W$17:W$197) -> 8317 | X6: =SUM(X$17:X$197) -> 8103 | Y6: =W6-X6 -> 214 | Z6: =Y6/X6 -> 0.02640997162 | AA6: =$S$6/$W$6 -> 4933.558799 | AB6: =$T$6/$X$6 -> 4803.89481 | AC6: =AA6-AB6 -> 129.6639889 | AD6: =AC6/AB6 -> 0.02699142968 | AE6: =SUM(AE$17:AE$197) -> 3826 | AF6: =SUM(AF$17:AF$197) -> 3710 | AG6: =AE6-AF6 -> 116 | AH6: =AG6/AF6 -> 0.03126684636 | AI6: =SUM(AI$17:AI$197) -> 215829.6055 | AJ6: =SUM(AJ$17:AJ$197) -> 212860.1858 | AK6: =AI6-AJ6 -> 2969.419675 | AL6: =AK6/AJ6 -> 0.01395009435 | AM6: =SUM(AM$17:AM$197) -> 63899.14447 | AN6: =SUM(AN$17:AN$197) -> 58409.82412 | AO6: =AM6-AN6 -> 5489.320351 | AP6: =AO6/AN6 -> 0.09397940217 | AQ6: =AM6/AI6 -> 0.2960629258 | AR6: =AN6/AJ6 -> 0.2744046469 | AS6: =($AQ6-$AR6) -> 0.02165827892 | AT6: =SUM(AT$17:AT$197) -> 351041.51 | AU6: =SUM(AU$17:AU$197) -> 574010.26 | AV6: =AT6-AU6 -> -222968.75 | AW6: =AV6/AU6 -> -0.3884403564 | AX6: =$AT6/$K6 -> 0.044172845 | AY6: =$AU6/$L6 -> 0.0642232476 | AZ6: =(AX6-AY6)*100 -> -2.00504026 | BA6: =SUM(BA$17:BA$197) -> 212999.53 | BB6: =SUM(BB$17:BB$197) -> 293406.39 | BC6: =BA6-BB6 -> -80406.86 | BD6: =BC6/BB6 -> -0.2740460424 | BE6: =$BA6/$K6 -> 0.02680251468 | BF6: =$BB6/$L6 -> 0.03282783 | BG6: =(BE6-BF6)*100 -> -0.6025315321
H7: Nb d'agence totale | K7: =COUNT(K$17:K$197)-COUNTIFS(K$17:K$197,0) -> 124 | L7: =COUNT(L$17:L$197)-COUNTIFS(L$17:L$197,0) -> 120 | M7: =K7-L7 -> 4 | N7: =M7/L7 -> 0.03333333333 | O7: =COUNT(O$17:O$197)-COUNTIFS(O$17:O$197,0) -> 128 | P7: =COUNT(P$17:P$197)-COUNTIFS(P$17:P$197,0) -> 120 | Q7: =O7-P7 -> 8 | R7: =Q7/P7 -> 0.06666666667 | S7: =COUNT(S$17:S$197)-COUNTIFS(S$17:S$197,0) -> 128 | T7: =COUNT(T$17:T$197)-COUNTIFS(T$17:T$197,0) -> 121 | U7: =S7-T7 -> 7 | V7: =U7/T7 -> 0.05785123967 | W7: =COUNT(W$17:W$197)-COUNTIFS(W$17:W$197,0) -> 128 | X7: =COUNT(X$17:X$197)-COUNTIFS(X$17:X$197,0) -> 121 | Y7: =W7-X7 -> 7 | Z7: =Y7/X7 -> 0.05785123967 | AE7: =COUNT(AE$17:AE$197)-COUNTIFS(AE$17:AE$197,0) -> 128 | AF7: =COUNT(AF$17:AF$197)-COUNTIFS(AF$17:AF$197,0) -> 120 | AG7: =AE7-AF7 -> 8 | AH7: =AG7/AF7 -> 0.06666666667 | AI7: =COUNT(AI$17:AI$197)-COUNTIFS(AI$17:AI$197,0) -> 128 | AJ7: =COUNT(AJ$17:AJ$197)-COUNTIFS(AJ$17:AJ$197,0) -> 121 | AK7: =AI7-AJ7 -> 7 | AL7: =AK7/AJ7 -> 0.05785123967 | AM7: =COUNT(AM$17:AM$197)-COUNTIFS(AM$17:AM$197,0) -> 128 | AN7: =COUNT(AN$17:AN$197)-COUNTIFS(AN$17:AN$197,0) -> 120 | AO7: =AM7-AN7 -> 8 | AP7: =AO7/AN7 -> 0.06666666667 | AT7: =COUNT(AT$17:AT$197)-COUNTIFS(AT$17:AT$197,0) -> 77 | AU7: =COUNT(AU$17:AU$197)-COUNTIFS(AU$17:AU$197,0) -> 84 | AV7: =AT7-AU7 -> -7 | AW7: =AV7/AU7 -> -0.08333333333 | AZ7: =AX7-AY7 -> 0 | BA7: =COUNT(BA$17:BA$197)-COUNTIFS(BA$17:BA$197,"<=0") -> 94 | BB7: =COUNT(BB$17:BB$197)-COUNTIFS(BB$17:BB$197,"<=0") -> 91 | BC7: =BA7-BB7 -> 3 | BD7: =BC7/BB7 -> 0.03296703297 | BG7: =BE7-BF7 -> 0
G9: TOTAL AGENCE ACTIVES | K9: =SUMIF($G$17:$G$197,"oui",K$17:K$197) -> 7946427.58 | L9: =SUMIF($G$17:$G$197,"oui",L$17:L$197) -> 8497973.22 | M9: =K9-L9 -> -551545.64 | N9: =M9/L9 -> -0.06490319818 | O9: =SUMIF($G$17:$G$197,"oui",O$17:O$197) -> 10476096.13 | P9: =SUMIF($G$17:$G$197,"oui",P$17:P$197) -> 8661902.074 | Q9: =O9-P9 -> 1814194.053 | R9: =Q9/P9 -> 0.2094452278 | S9: =SUMIF($G$17:$G$197,"oui",S$17:S$197) -> 40931787.33 | T9: =SUMIF($G$17:$G$197,"oui",T$17:T$197) -> 36328613.03 | U9: =S9-T9 -> 4603174.299 | V9: =U9/T9 -> 0.1267093322 | W9: =SUMIF($G$17:$G$197,"oui",W$17:W$197) -> 8300 | X9: =SUMIF($G$17:$G$197,"oui",X$17:X$197) -> 7691 | Y9: =W9-X9 -> 609 | Z9: =Y9/X9 -> 0.07918346119 | AA9: =$S$9/$W$9 -> 4931.540642 | AB9: =$T$9/$X$9 -> 4723.522693 | AC9: =AA9-AB9 -> 208.0179492 | AD9: =AC9/AB9 -> 0.04403873184 | AE9: =SUMIF($G$17:$G$197,"oui",AE$17:AE$197) -> 3797 | AF9: =SUMIF($G$17:$G$197,"oui",AF$17:AF$197) -> 3534 | AG9: =AE9-AF9 -> 263 | AH9: =AG9/AF9 -> 0.07441992077 | AI9: =SUMIF($G$17:$G$197,"oui",AI$17:AI$197) -> 215298.652 | AJ9: =SUMIF($G$17:$G$197,"oui",AJ$17:AJ$197) -> 200955.8428 | AK9: =AI9-AJ9 -> 14342.80921 | AL9: =AK9/AJ9 -> 0.07137293948 | AM9: =SUMIF($G$17:$G$197,"oui",AM$17:AM$197) -> 63016.49786 | AN9: =SUMIF($G$17:$G$197,"oui",AN$17:AN$197) -> 54692.73659 | AO9: =AM9-AN9 -> 8323.761273 | AP9: =AO9/AN9 -> 0.1521913474 | AQ9: =AM9/AI9 -> 0.2926934158 | AR9: =AN9/AJ9 -> 0.2721629579 | AS9: =($AQ9-$AR9) -> 0.02053045782 | AT9: =SUMIF($G$17:$G$197,"oui",AT$17:AT$197) -> 351041.51 | AU9: =SUMIF($G$17:$G$197,"oui",AU$17:AU$197) -> 497914.69 | AV9: =AT9-AU9 -> -146873.18 | AW9: =AV9/AU9 -> -0.2949765953 | AX9: =$AT9/$K9 -> 0.04417601576 | AY9: =$AU9/$L9 -> 0.05859216982 | AZ9: =(AX9-AY9)*100 -> -1.441615406 | BA9: =SUMIF($G$17:$G$197,"oui",BA$17:BA$197) -> 212757.61 | BB9: =SUMIF($G$17:$G$197,"oui",BB$17:BB$197) -> 283941.8 | BC9: =BA9-BB9 -> -71184.19 | BD9: =BC9/BB9 -> -0.2506999322 | BE9: =$BA9/$K9 -> 0.02677399471 | BF9: =$BB9/$L9 -> 0.03341288477 | BG9: =(BE9-BF9)*100 -> -0.6638890061
H10: Nb d'agence totale | K10: =COUNTIF($G$17:$G$197,"oui")-COUNTIFS(K$17:K$197,0,$G$17:$G$197,"oui") -> 122 | L10: =COUNTIF($G$17:$G$197,"oui")-COUNTIFS(L$17:L$197,0,$G$17:$G$197,"oui") -> 115 | M10: =K10-L10 -> 7 | N10: =M10/L10 -> 0.06086956522 | O10: =COUNTIF($G$17:$G$197,"oui")-COUNTIFS(O$17:O$197,0,$G$17:$G$197,"oui") -> 125 | P10: =COUNTIF($G$17:$G$197,"oui")-COUNTIFS(P$17:P$197,0,$G$17:$G$197,"oui") -> 115 | Q10: =O10-P10 -> 10 | R10: =Q10/P10 -> 0.08695652174 | S10: =COUNTIF($G$17:$G$197,"oui")-COUNTIFS(S$17:S$197,0,$G$17:$G$197,"oui") -> 125 | T10: =COUNTIF($G$17:$G$197,"oui")-COUNTIFS(T$17:T$197,0,$G$17:$G$197,"oui") -> 116 | U10: =S10-T10 -> 9 | V10: =U10/T10 -> 0.0775862069 | W10: =COUNTIF($G$17:$G$197,"oui")-COUNTIFS(W$17:W$197,0,$G$17:$G$197,"oui") -> 125 | X10: =COUNTIF($G$17:$G$197,"oui")-COUNTIFS(X$17:X$197,0,$G$17:$G$197,"oui") -> 116 | Y10: =W10-X10 -> 9 | Z10: =Y10/X10 -> 0.0775862069 | AE10: =COUNTIF($G$17:$G$197,"oui")-COUNTIFS(AE$17:AE$197,0,$G$17:$G$197,"oui") -> 125 | AF10: =COUNTIF($G$17:$G$197,"oui")-COUNTIFS(AF$17:AF$197,0,$G$17:$G$197,"oui") -> 115 | AG10: =AE10-AF10 -> 10 | AH10: =AG10/AF10 -> 0.08695652174 | AI10: =COUNTIF($G$17:$G$197,"oui")-COUNTIFS(AI$17:AI$197,0,$G$17:$G$197,"oui") -> 125 | AJ10: =COUNTIF($G$17:$G$197,"oui")-COUNTIFS(AJ$17:AJ$197,0,$G$17:$G$197,"oui") -> 116 | AK10: =AI10-AJ10 -> 9 | AL10: =AK10/AJ10 -> 0.0775862069 | AM10: =COUNTIF($G$17:$G$197,"oui")-COUNTIFS(AM$17:AM$197,0,$G$17:$G$197,"oui") -> 125 | AN10: =COUNTIF($G$17:$G$197,"oui")-COUNTIFS(AN$17:AN$197,0,$G$17:$G$197,"oui") -> 115 | AO10: =AM10-AN10 -> 10 | AP10: =AO10/AN10 -> 0.08695652174 | AT10: =COUNTIF($G$17:$G$197,"oui")-COUNTIFS(AT$17:AT$197,0,$G$17:$G$197,"oui") -> 77 | AU10: =COUNTIF($G$17:$G$197,"oui")-COUNTIFS(AU$17:AU$197,0,$G$17:$G$197,"oui") -> 81 | AV10: =AT10-AU10 -> -4 | AW10: =AV10/AU10 -> -0.04938271605 | AZ10: =AX10-AY10 -> 0 | BA10: =COUNTIF($G$17:$G$197,"oui")-COUNTIFS(BA$17:BA$197,0,$G$17:$G$197,"oui") -> 98 | BB10: =COUNTIF($G$17:$G$197,"oui")-COUNTIFS(BB$17:BB$197,0,$G$17:$G$197,"oui") -> 88 | BC10: =BA10-BB10 -> 10 | BD10: =BC10/BB10 -> 0.1136363636 | BG10: =BE10-BF10 -> 0
G12: TOTAL AGENCES ACTIVES A PERIM. CST | K12: =SUMIFS(K$17:K$197,$G$17:$G$197,"oui",$A$17:$A$197,"C") -> 7756211.01 | L12: =SUMIFS(L$17:L$197,$G$17:$G$197,"oui",$A$17:$A$197,"C") -> 8445674.91 | M12: =K12-L12 -> -689463.9 | N12: =M12/L12 -> -0.08163514549 | O12: =SUMIFS(O$17:O$197,$G$17:$G$197,"oui",$A$17:$A$197,"C") -> 10093787.56 | P12: =SUMIFS(P$17:P$197,$G$17:$G$197,"oui",$A$17:$A$197,"C") -> 8633622.666 | Q12: =O12-P12 -> 1460164.889 | R12: =Q12/P12 -> 0.1691254003 | S12: =SUMIFS(S$17:S$197,$G$17:$G$197,"oui",$A$17:$A$197,"C") -> 38650463.82 | T12: =SUMIFS(T$17:T$197,$G$17:$G$197,"oui",$A$17:$A$197,"C") -> 36042590.67 | U12: =S12-T12 -> 2607873.153 | V12: =U12/T12 -> 0.07235531923 | W12: =SUMIFS(W$17:W$197,$G$17:$G$197,"oui",$A$17:$A$197,"C") -> 7961 | X12: =SUMIFS(X$17:X$197,$G$17:$G$197,"oui",$A$17:$A$197,"C") -> 7603 | Y12: =W12-X12 -> 358 | Z12: =Y12/X12 -> 0.04708667631 | AA12: =$S$12/$W$12 -> 4854.975986 | AB12: =$T$12/$X$12 -> 4740.574861 | AC12: =AA12-AB12 -> 114.4011246 | AD12: =AC12/AB12 -> 0.02413233163 | AE12: =SUMIFS(AE$17:AE$197,$G$17:$G$197,"oui",$A$17:$A$197,"C") -> 3674 | AF12: =SUMIFS(AF$17:AF$197,$G$17:$G$197,"oui",$A$17:$A$197,"C") -> 3514 | AG12: =AE12-AF12 -> 160 | AH12: =AG12/AF12 -> 0.04553215709 | AI12: =SUMIFS(AI$17:AI$197,$G$17:$G$197,"oui",$A$17:$A$197,"C") -> 204748.4725 | AJ12: =SUMIFS(AJ$17:AJ$197,$G$17:$G$197,"oui",$A$17:$A$197,"C") -> 199275.6444 | AK12: =AI12-AJ12 -> 5472.828045 | AL12: =AK12/AJ12 -> 0.02746360731 | AM12: =SUMIFS(AM$17:AM$197,$G$17:$G$197,"oui",$A$17:$A$197,"C") -> 60781.98046 | AN12: =SUMIFS(AN$17:AN$197,$G$17:$G$197,"oui",$A$17:$A$197,"C") -> 54505.31726 | AO12: =AM12-AN12 -> 6276.663199 | AP12: =AO12/AN12 -> 0.1151568969 | AQ12: =AM12/AI12 -> 0.2968617041 | AR12: =AN12/AJ12 -> 0.2735172048 | AS12: =($AQ12-$AR12) -> 0.02334449929 | AT12: =SUMIFS(AT$17:AT$197,$G$17:$G$197,"oui",$A$17:$A$197,"C") -> 346191.92 | AU12: =SUMIFS(AU$17:AU$197,$G$17:$G$197,"oui",$A$17:$A$197,"C") -> 484588.57 | AV12: =AT12-AU12 -> -138396.65 | AW12: =AV12/AU12 -> -0.2855961914 | AX12: =$AT12/$K12 -> 0.04463415443 | AY12: =$AU12/$L12 -> 0.05737712796 | AZ12: =(AX12-AY12)*100 -> -1.274297353 | BA12: =SUMIFS(BA$17:BA$197,$G$17:$G$197,"oui",$A$17:$A$197,"C") -> 203348.69 | BB12: =SUMIFS(BB$17:BB$197,$G$17:$G$197,"oui",$A$17:$A$197,"C") -> 279153.69 | BC12: =BA12-BB12 -> -75805 | BD12: =BC12/BB12 -> -0.2715529213 | BE12: =$BA12/$K12 -> 0.02621752938 | BF12: =$BB12/$L12 -> 0.03305285758 | BG12: =(BE12-BF12)*100 -> -0.6835328208
H13: Nb d'agence | K13: =COUNTIFS($G$17:$G$197,"oui",$A$17:$A$197,"C")-COUNTIFS(K$17:K$197,"<=0",$G$17:$G$197,"oui",$A$17:$A$197,"C") -> 113 | L13: =COUNTIFS($G$17:$G$197,"oui",$A$17:$A$197,"C")-COUNTIFS(L$17:L$197,"<=0",$G$17:$G$197,"oui",$A$17:$A$197,"C") -> 113 | M13: =K13-L13 -> 0 | N13: =M13/L13 -> 0 | O13: =COUNTIFS($G$17:$G$197,"oui",$A$17:$A$197,"C")-COUNTIFS(O$17:O$197,"<=0",$G$17:$G$197,"oui",$A$17:$A$197,"C") -> 113 | P13: =COUNTIFS($G$17:$G$197,"oui",$A$17:$A$197,"C")-COUNTIFS(P$17:P$197,"<=0",$G$17:$G$197,"oui",$A$17:$A$197,"C") -> 112 | Q13: =O13-P13 -> 1 | R13: =Q13/P13 -> 0.008928571429 | S13: =COUNTIFS($G$17:$G$197,"oui",$A$17:$A$197,"C")-COUNTIFS(S$17:S$197,"<=0",$G$17:$G$197,"oui",$A$17:$A$197,"C") -> 113 | T13: =COUNTIFS($G$17:$G$197,"oui",$A$17:$A$197,"C")-COUNTIFS(T$17:T$197,"<=0",$G$17:$G$197,"oui",$A$17:$A$197,"C") -> 113 | U13: =S13-T13 -> 0 | V13: =U13/T13 -> 0 | W13: =COUNTIFS($G$17:$G$197,"oui",$A$17:$A$197,"C")-COUNTIFS(W$17:W$197,"<=0",$G$17:$G$197,"oui",$A$17:$A$197,"C") -> 113 | X13: =COUNTIFS($G$17:$G$197,"oui",$A$17:$A$197,"C")-COUNTIFS(X$17:X$197,"<=0",$G$17:$G$197,"oui",$A$17:$A$197,"C") -> 113 | Y13: =W13-X13 -> 0 | Z13: =Y13/X13 -> 0 | AE13: =COUNTIFS($G$17:$G$197,"oui",$A$17:$A$197,"C")-COUNTIFS(AE$17:AE$197,"<=0",$G$17:$G$197,"oui",$A$17:$A$197,"C") -> 113 | AF13: =COUNTIFS($G$17:$G$197,"oui",$A$17:$A$197,"C")-COUNTIFS(AF$17:AF$197,"<=0",$G$17:$G$197,"oui",$A$17:$A$197,"C") -> 112 | AG13: =AE13-AF13 -> 1 | AH13: =AG13/AF13 -> 0.008928571429 | AI13: =COUNTIFS($G$17:$G$197,"oui",$A$17:$A$197,"C")-COUNTIFS(AI$17:AI$197,"<=0",$G$17:$G$197,"oui",$A$17:$A$197,"C") -> 113 | AJ13: =COUNTIFS($G$17:$G$197,"oui",$A$17:$A$197,"C")-COUNTIFS(AJ$17:AJ$197,"<=0",$G$17:$G$197,"oui",$A$17:$A$197,"C") -> 113 | AK13: =AI13-AJ13 -> 0 | AL13: =AK13/AJ13 -> 0 | AM13: =COUNTIFS($G$17:$G$197,"oui",$A$17:$A$197,"C")-COUNTIFS(AM$17:AM$197,"<=0",$G$17:$G$197,"oui",$A$17:$A$197,"C") -> 113 | AN13: =COUNTIFS($G$17:$G$197,"oui",$A$17:$A$197,"C")-COUNTIFS(AN$17:AN$197,"<=0",$G$17:$G$197,"oui",$A$17:$A$197,"C") -> 112 | AO13: =AM13-AN13 -> 1 | AP13: =AO13/AN13 -> 0.008928571429 | AT13: =COUNTIFS($G$17:$G$197,"oui",$A$17:$A$197,"C")-COUNTIFS(AT$17:AT$197,"<=0",$G$17:$G$197,"oui",$A$17:$A$197,"C") -> 75 | AU13: =COUNTIFS($G$17:$G$197,"oui",$A$17:$A$197,"C")-COUNTIFS(AU$17:AU$197,"<=0",$G$17:$G$197,"oui",$A$17:$A$197,"C") -> 79 | AV13: =AT13-AU13 -> -4 | AW13: =AV13/AU13 -> -0.05063291139 | AZ13: =AX13-AY13 -> 0 | BA13: =COUNTIFS($G$17:$G$197,"oui",$A$17:$A$197,"C")-COUNTIFS(BA$17:BA$197,"<=0",$G$17:$G$197,"oui",$A$17:$A$197,"C") -> 85 | BB13: =COUNTIFS($G$17:$G$197,"oui",$A$17:$A$197,"C")-COUNTIFS(BB$17:BB$197,"<=0",$G$17:$G$197,"oui",$A$17:$A$197,"C") -> 83 | BC13: =BA13-BB13 -> 2 | BD13: =BC13/BB13 -> 0.02409638554 | BG13: =BE13-BF13 -> 0
L15: CA HT | P15: Mtt Cde HT | T15: Mtt devis | X15: Nbre devis | AB15: Mtt Moyen devis | AF15: Nb de Cde | AJ15: Hres prévues | AN15: Hres Cde | AR15: Taux de transfo. | AU15: CA AGC | AY15: Taux CA AGC | BB15: CA ACA | BF15: Taux de captage ACA
A16: Périmêtre | B16: ID_Atlas | C16: ID Agences | D16: Agences | E16: Franchisés | F16: Régions | G16: Active | H16: Age | I16: Ecart de mois | J16: Date de création | K16: =DE!$C$3&" "&L$15 -> 2026 CA HT | L16: =DE!$C$3-1&" "&L$15 -> 2025 CA HT | M16: Ecart en Mtt | N16: Ecart en % | O16: =DE!$C$3&" "&P$15 -> 2026 Mtt Cde HT | P16: =DE!$C$3-1&" "&P$15 -> 2025 Mtt Cde HT | Q16: Ecart en Mtt | R16: Ecart en % | S16: =DE!$C$3&" "&T$15 -> 2026 Mtt devis | T16: =DE!$C$3-1&" "&T$15 -> 2025 Mtt devis | U16: Ecart en Mtt | V16: Ecart en % | W16: =DE!$C$3&" "&X$15 -> 2026 Nbre devis | X16: =DE!$C$3-1&" "&X$15 -> 2025 Nbre devis | Y16: Ecart en Mtt | Z16: Ecart en % | AA16: =DE!$C$3&" "&AB$15 -> 2026 Mtt Moyen devis | AB16: =DE!$C$3-1&" "&AB$15 -> 2025 Mtt Moyen devis | AC16: Ecart en Mtt | AD16: Ecart en % | AE16: =DE!$C$3&" "&AF$15 -> 2026 Nb de Cde | AF16: =DE!$C$3-1&" "&AF$15 -> 2025 Nb de Cde | AG16: Ecart en Mtt | AH16: Ecart en % | AI16: =DE!$C$3&" "&AJ$15 -> 2026 Hres prévues | AJ16: =DE!$C$3-1&" "&AJ$15 -> 2025 Hres prévues | AK16: Ecart en Mtt | AL16: Ecart en % | AM16: =DE!$C$3&" "&AN$15 -> 2026 Hres Cde | AN16: =DE!$C$3-1&" "&AN$15 -> 2025 Hres Cde | AO16: Ecart en Mtt | AP16: Ecart en % | AQ16: =DE!$C$3&" "&AR$15 -> 2026 Taux de transfo. | AR16: =DE!$C$3-1&" "&AR$15 -> 2025 Taux de transfo. | AS16: Tx de transfo écart à date | AT16: =DE!$C$3&" "&AU$15 -> 2026 CA AGC | AU16: =DE!$C$3-1&" "&AU$15 -> 2025 CA AGC | AV16: Ecart en Mtt | AW16: Ecart en % | AX16: =DE!$C$3&" "&AY$15 -> 2026 Taux CA AGC | AY16: =DE!$C$3-1&" "&AY$15 -> 2025 Taux CA AGC | AZ16: Ecart en pts | BA16: =DE!$C$3&" "&BB$15 -> 2026 CA ACA | BB16: =DE!$C$3-1&" "&BB$15 -> 2025 CA ACA | BC16: Ecart en Mtt | BD16: Ecart en % | BE16: =DE!$C$3&" "&BF$15 -> 2026 Taux de captage ACA | BF16: =DE!$C$3-1&" "&BF$15 -> 2025 Taux de captage ACA | BG16: Ecart en pts
A17: C | B17: 236 | C17: 1210 | D17: ATTILA MONT-DE-MARSAN | E17: MEZIL James | F17: SUD-OUEST | G17: OUI | H17: ANNEE 2 | I17: 17 | J17: 2024-07-10 | K17: 24555.41 | L17: 1778.99 | M17: 22776.42 | N17: 12.8030062 | O17: 34707.4686 | P17: 12475.1 | Q17: 22232.3686 | R17: 1.78213951 | S17: 171992.1686 | T17: 62433.2 | U17: 109558.9686 | V17: 1.754819048 | W17: 43 | X17: 24 | Y17: 19 | Z17: 0.7916666667 | AA17: 3999.817874 | AB17: 2601.383333 | AC17: 1398.434541 | AD17: 0.5375734223 | AE17: 14 | AF17: 3 | AG17: 11 | AH17: 3.666666667 | AI17: 945.8833333 | AJ17: 347.8666667 | AK17: 598.0166667 | AL17: 1.719097355 | AM17: 191.8158602 | AN17: 65.58333333 | AO17: 126.2325269 | AP17: 1.92476534 | AQ17: 0.2027901893 | AR17: 0.1885300882 | AS17: 0.01426010112 | AT17: 0 | AU17: 0 | AV17: 0 | AW17: 0 | AX17: 0 | AY17: 0 | AZ17: 0 | BA17: 1640.63 | BB17: 0 | BC17: 1640.63 | BD17: 0 | BE17: 0.06681338247 | BF17: 0 | BG17: 6.681338247
A18: C | B18: 238 | C18: 1212 | D18: ATTILA CARCASSONNE | E18: FAVIER Bertrand | F18: SUD-OUEST | G18: OUI | H18: ANNEE 2 | I18: 16 | J18: 2024-08-30 | K18: 13113.37 | L18: 1493.71 | M18: 11619.66 | N18: 7.779060192 | O18: 32385.72 | P18: 2636.63 | Q18: 29749.09 | R18: 11.28299761 | S18: 67015.93 | T18: 41437.72 | U18: 25578.21 | V18: 0.617268759 | W18: 36 | X18: 11 | Y18: 25 | Z18: 2.272727273 | AA18: 1861.553611 | AB18: 3767.065455 | AC18: -1905.511843 | AD18: -0.5058345459 | AE18: 12 | AF18: 4 | AG18: 8 | AH18: 2 | AI18: 471.848848 | AJ18: 132.0333333 | AK18: 339.8155146 | AL18: 2.573710033 | AM18: 208.3675573 | AN18: 15.55 | AO18: 192.8175573 | AP18: 12.39984291 | AQ18: 0.4415981053 | AR18: 0.1177732896 | AS18: 0.3238248157 | AT18: 0 | AU18: 0 | AV18: 0 | AW18: 0 | AX18: 0 | AY18: 0 | AZ18: 0 | BA18: 0 | BB18: 0 | BC18: 0 | BD18: 0 | BE18: 0 | BF18: 0 | BG18: 0
A19: C | B19: 234 | C19: 1208 | D19: ATTILA REIMS OUEST | E19: DIONISI Camille | F19: NORD-EST | G19: OUI | H19: ANNEE 2 | I19: 19 | J19: 2024-05-16 | K19: 30648.6 | L19: 3600.28 | M19: 27048.32 | N19: 7.51283789 | O19: 29544.54 | P19: 7646.55 | Q19: 21897.99 | R19: 2.863773859 | S19: 305365.12 | T19: 111846.15 | U19: 193518.97 | V19: 1.730224688 | W19: 53 | X19: 26 | Y19: 27 | Z19: 1.038461538 | AA19: 5761.606038 | AB19: 4301.775 | AC19: 1459.831038 | AD19: 0.3393555074 | AE19: 23 | AF19: 6 | AG19: 17 | AH19: 2.833333333 | AI19: 1571.576614 | AJ19: 524.9358896 | AK19: 1046.640725 | AL19: 1.993844859 | AM19: 217.2104693 | AN19: 55.38064103 | AO19: 161.8298283 | AP19: 2.922137145 | AQ19: 0.1382118233 | AR19: 0.1054998184 | AS19: 0.03271200487 | AT19: 861.63 | AU19: 0 | AV19: 861.63 | AW19: 0 | AX19: 0.02811319277 | AY19: 0 | AZ19: 2.811319277 | BA19: 843.37 | BB19: 581.5 | BC19: 261.87 | BD19: 0.4503353396 | BE19: 0.02751740699 | BF19: 0.1615152155 | BG19: -13.39978085
A20: C | B20: 230 | C20: 1205 | D20: ATTILA NANCY SUD | E20: RICKAL Pierre | F20: NORD-EST | G20: OUI | H20: ANNEE 2 | I20: 20 | J20: 2024-04-03 | K20: 56834.37 | L20: 8919.62 | M20: 47914.75 | N20: 5.371837589 | O20: 51304.45 | P20: 18786.87 | Q20: 32517.58 | R20: 1.730867356 | S20: 147674.45 | T20: 394535.89 | U20: -246861.44 | V20: -0.6257008456 | W20: 36 | X20: 33 | Y20: 3 | Z20: 0.09090909091 | AA20: 4102.068056 | AB20: 11955.63303 | AC20: -7853.564975 | AD20: -0.6568924418 | AE20: 19 | AF20: 12 | AG20: 7 | AH20: 0.5833333333 | AI20: 1171.083333 | AJ20: 1483.916667 | AK20: -312.8333333 | AL20: -0.2108159712 | AM20: 321.25 | AN20: 123.0833333 | AO20: 198.1666667 | AP20: 1.610020311 | AQ20: 0.2743186508 | AR20: 0.08294490931 | AS20: 0.1913737415 | AT20: 8730.09 | AU20: 0 | AV20: 8730.09 | AW20: 0 | AX20: 0.1536058199 | AY20: 0 | AZ20: 15.36058199 | BA20: 4179.7 | BB20: 3205.11 | BC20: 974.59 | BD20: 0.3040738071 | BE20: 0.07354176707 | BF20: 0.3593325725 | BG20: -28.57908054
A21: C | B21: 229 | C21: 1204 | D21: ATTILA TOULOUSE SUD | E21: DE BODINAT Maxime | F21: SUD-OUEST | G21: OUI | H21: ANNEE 3 | I21: 25 | J21: 2023-11-20 | K21: 46277.79 | L21: 7604.78 | M21: 38673.01 | N21: 5.085355526 | O21: 57454.52 | P21: 16117.12 | Q21: 41337.4 | R21: 2.564813068 | S21: 174926.86 | T21: 88618.13 | U21: 86308.73 | V21: 0.9739398699 | W21: 54 | X21: 31 | Y21: 23 | Z21: 0.7419354839 | AA21: 3239.386296 | AB21: 2858.649355 | AC21: 380.7369415 | AD21: 0.1331877031 | AE21: 30 | AF21: 10 | AG21: 20 | AH21: 2 | AI21: 995.0677121 | AJ21: 449.85 | AK21: 545.2177121 | AL21: 1.211998915 | AM21: 316.3861667 | AN21: 112.65 | AO21: 203.7361667 | AP21: 1.808576713 | AQ21: 0.3179544094 | AR21: 0.2504168056 | AS21: 0.06753760375 | AT21: 18011.8 | AU21: 0 | AV21: 18011.8 | AW21: 0 | AX21: 0.3892104614 | AY21: 0 | AZ21: 38.92104614 | BA21: 4209.79 | BB21: 1980.46 | BC21: 2229.33 | BD21: 1.125662725 | BE21: 0.09096782712 | BF21: 0.2604230497 | BG21: -16.94552226
A22: C | B22: 237 | C22: 1211 | D22: ATTILA VERSAILLES | E22: RIGAUD Lionel | F22: NORMANDIE-PARIS | G22: OUI | H22: ANNEE 2 | I22: 16 | J22: 2024-08-30 | K22: 39788.34 | L22: 8407.84 | M22: 31380.5 | N22: 3.732290339 | O22: 53511.654 | P22: 26082.03 | Q22: 27429.624 | R22: 1.051667527 | S22: 86135.69 | T22: 110195.08 | U22: -24059.39 | V22: -0.2183345209 | W22: 41 | X22: 26 | Y22: 15 | Z22: 0.5769230769 | AA22: 2100.870488 | AB22: 4238.272308 | AC22: -2137.40182 | AD22: -0.5043096962 | AE22: 29 | AF22: 10 | AG22: 19 | AH22: 1.9 | AI22: 439.0903981 | AJ22: 696.88 | AK22: -257.7896019 | AL22: -0.3699196445 | AM22: 331.5794074 | AN22: 144.95 | AO22: 186.6294074 | AP22: 1.287543342 | AQ22: 0.7551506678 | AR22: 0.2079985076 | AS22: 0.5471521602 | AT22: 2994 | AU22: 0 | AV22: 2994 | AW22: 0 | AX22: 0.07524817572 | AY22: 0 | AZ22: 7.524817572 | BA22: 3228.79 | BB22: 2533.64 | BC22: 695.15 | BD22: 0.2743681028 | BE22: 0.08114915073 | BF22: 0.3013425565 | BG22: -22.01934057
A23: C | B23: 222 | C23: 1197 | D23: ATTILA VITRE-FOUGERES | E23: LE MEZO Yoann | F23: BRETAGNE | G23: OUI | H23: ANNEE 3 | I23: 32 | J23: 2023-04-26 | K23: 65436.84 | L23: 15029.69 | M23: 50407.15 | N23: 3.353838303 | O23: 139500.244 | P23: 54194.2 | Q23: 85306.044 | R23: 1.574080695 | S23: 461021.1862 | T23: 381608.8475 | U23: 79412.3387 | V23: 0.2080987881 | W23: 74 | X23: 45 | Y23: 29 | Z23: 0.6444444444 | AA23: 6230.01603 | AB23: 8480.196611 | AC23: -2250.180581 | AD23: -0.2653453315 | AE23: 38 | AF23: 14 | AG23: 24 | AH23: 1.714285714 | AI23: 1960.655362 | AJ23: 2079.75702 | AK23: -119.1016586 | AL23: -0.05726710256 | AM23: 731.653886 | AN23: 343.4075194 | AO23: 388.2463667 | AP23: 1.130570371 | AQ23: 0.3731680235 | AR23: 0.1651190577 | AS23: 0.2080489658 | AT23: 0 | AU23: 0 | AV23: 0 | AW23: 0 | AX23: 0 | AY23: 0 | AZ23: 0 | BA23: 5295.91 | BB23: 5029.05 | BC23: 266.86 | BD23: 0.0530636999 | BE23: 0.08093162812 | BF23: 0.3346076998 | BG23: -25.36760717
A24: C | B24: 239 | C24: 1213 | D24: ATTILA LYON NORD EST | E24: LAURENT Aymeric | F24: CENTRE | G24: OUI | H24: ANNEE 3 | I24: 27 | J24: 2023-09-29 | K24: 45776.04 | L24: 11347.8 | M24: 34428.24 | N24: 3.033913181 | O24: 15976.88 | P24: 15434.79 | Q24: 542.09 | R24: 0.03512130713 | S24: 43909.34 | T24: 37916.54 | U24: 5992.8 | V24: 0.1580523961 | W24: 18 | X24: 27 | Y24: -9 | Z24: -0.3333333333 | AA24: 2439.407778 | AB24: 1404.316296 | AC24: 1035.091481 | AD24: 0.7370785942 | AE24: 6 | AF24: 15 | AG24: -9 | AH24: -0.6 | AI24: 259.557265 | AJ24: 226.100089 | AK24: 33.45717602 | AL24: 0.1479750679 | AM24: 99.95074341 | AN24: 92.70125204 | AO24: 7.249491365 | AP24: 0.07820273411 | AQ24: 0.3850816636 | AR24: 0.4100009534 | AS24: -0.02491928978 | AT24: 0 | AU24: 0 | AV24: 0 | AW24: 0 | AX24: 0 | AY24: 0 | AZ24: 0 | BA24: 0 | BB24: 0 | BC24: 0 | BD24: 0 | BE24: 0 | BF24: 0 | BG24: 0
A25: C | B25: 221 | C25: 1196 | D25: ATTILA MACON | E25: TOMAS Alexis | F25: RHONE-ALPES | G25: OUI | H25: ANNEE 3 | I25: 29 | J25: 2023-07-25 | K25: 77524.53 | L25: 27545.72 | M25: 49978.81 | N25: 1.814394759 | O25: 95328.57 | P25: 20005.13 | Q25: 75323.44 | R25: 3.765206225 | S25: 203850.63 | T25: 270016.9025 | U25: -66166.2725 | V25: -0.2450449283 | W25: 54 | X25: 35 | Y25: 19 | Z25: 0.5428571429 | AA25: 3775.011667 | AB25: 7714.768643 | AC25: -3939.756976 | AD25: -0.5106772683 | AE25: 26 | AF25: 12 | AG25: 14 | AH25: 1.166666667 | AI25: 1198.098826 | AJ25: 1453.151125 | AK25: -255.0522994 | AL25: -0.1755167064 | AM25: 556.7145029 | AN25: 132.903125 | AO25: 423.8113779 | AP25: 3.188874437 | AQ25: 0.4646649266 | AR25: 0.09145857077 | AS25: 0.3732063559 | AT25: 0 | AU25: 1354.07 | AV25: -1354.07 | AW25: -1 | AX25: 0 | AY25: 0.04915718304 | AZ25: -4.915718304 | BA25: 6652.06 | BB25: 3808.81 | BC25: 2843.25 | BD25: 0.7464929991 | BE25: 0.08580587332 | BF25: 0.1382722978 | BG25: -5.246642452
A26: C | B26: 233 | C26: 1207 | D26: ATTILA BORDEAUX MERIGNAC | E26: MOAL Yannick | F26: SUD-OUEST | G26: OUI | H26: ANNEE 2 | I26: 19 | J26: 2024-05-16 | K26: 19343.9 | L26: 7630.22 | M26: 11713.68 | N26: 1.535169366 | O26: 15584.6128 | P26: 13180.5123 | Q26: 2404.1005 | R26: 0.1823981075 | S26: 140202.0028 | T26: 84744.8323 | U26: 55457.1705 | V26: 0.6544017965 | W26: 41 | X26: 25 | Y26: 16 | Z26: 0.64 | AA26: 3419.561044 | AB26: 3389.793292 | AC26: 29.7677519 | AD26: 0.008781583223 | AE26: 12 | AF26: 9 | AG26: 3 | AH26: 0.3333333333 | AI26: 662.4610706 | AJ26: 576.8672093 | AK26: 85.59386126 | AL26: 0.1483770613 | AM26: 99.03333333 | AN26: 96.59950326 | AO26: 2.433830078 | AP26: 0.0251950579 | AQ26: 0.1494930612 | AR26: 0.1674553549 | AS26: -0.01796229373 | AT26: 0 | AU26: 0 | AV26: 0 | AW26: 0 | AX26: 0 | AY26: 0 | AZ26: 0 | BA26: 0 | BB26: 0 | BC26: 0 | BD26: 0 | BE26: 0 | BF26: 0 | BG26: 0
A27: C | B27: 228 | C27: 1203 | D27: ATTILA MONTAUBAN | E27: FANTINEL Albéric | F27: SUD-OUEST | G27: OUI | H27: ANNEE 3 | I27: 25 | J27: 2023-11-20 | K27: 68947.28 | L27: 28426.09 | M27: 40521.19 | N27: 1.425492919 | O27: 54115.35 | P27: 30849.29 | Q27: 23266.06 | R27: 0.7541846182 | S27: 246625.97 | T27: 409357.6644 | U27: -162731.6944 | V27: -0.3975293699 | W27: 50 | X27: 57 | Y27: -7 | Z27: -0.1228070175 | AA27: 4932.5194 | AB27: 7181.713411 | AC27: -2249.194011 | AD27: -0.3131834817 | AE27: 20 | AF27: 6 | AG27: 14 | AH27: 2.333333333 | AI27: 1540.407967 | AJ27: 2468.933198 | AK27: -928.5252317 | AL27: -0.3760835782 | AM27: 318.0960689 | AN27: 167.523991 | AO27: 150.5720779 | AP27: 0.8988090425 | AQ27: 0.206501184 | AR27: 0.06785278398 | AS27: 0.1386484 | AT27: 683 | AU27: 0 | AV27: 683 | AW27: 0 | AX27: 0.009906119574 | AY27: 0 | AZ27: 0.9906119574 | BA27: 3965.76 | BB27: 5343.37 | BC27: -1377.61 | BD27: -0.2578166962 | BE27: 0.05751873025 | BF27: 0.1879741463 | BG27: -13.0455416
A28: C | B28: 109 | C28: 111 | D28: ATTILA BEZIERS OUEST | E28: GERARDIN Marc | F28: NORD-EST | G28: OUI | H28: +5ANS | I28: 93 | J28: 2018-03-14 | K28: 158205.51 | L28: 67683.51 | M28: 90522 | N28: 1.337430639 | O28: 135037.2898 | P28: 123706.3752 | Q28: 11330.9146 | R28: 0.09159523575 | S28: 667019.6395 | T28: 296538.6202 | U28: 370481.0193 | V28: 1.249351666 | W28: 120 | X28: 86 | Y28: 34 | Z28: 0.3953488372 | AA28: 5558.496996 | AB28: 3448.123491 | AC28: 2110.373505 | AD28: 0.6120353609 | AE28: 41 | AF28: 43 | AG28: -2 | AH28: -0.04651162791 | AI28: 3341.923291 | AJ28: 1592.178134 | AK28: 1749.745157 | AL28: 1.098963187 | AM28: 669.3880922 | AN28: 683.80101 | AO28: -14.41291778 | AP28: -0.02107764915 | AQ28: 0.2003002564 | AR28: 0.4294751921 | AS28: -0.2291749356 | AT28: 1817.24 | AU28: 604.56 | AV28: 1212.68 | AW28: 2.00588858 | AX28: 0.01148657844 | AY28: 0.008932160876 | AZ28: 0.2554417562 | BA28: 2321.13 | BB28: 4129.94 | BC28: -1808.81 | BD28: -0.4379748858 | BE28: 0.01467161289 | BF28: 0.06101840759 | BG28: -4.634679469
A29: C | B29: 207 | C29: 1181 | D29: ATTILA MONTPELLIER EST | E29: DARLET Jauffrey | F29: NORD-EST | G29: OUI | H29: ANNEE 4 | I29: 42 | J29: 2022-06-13 | K29: 56638.26 | L29: 24365.55 | M29: 32272.71 | N29: 1.324522122 | O29: 45436.69 | P29: 41463.36 | Q29: 3973.33 | R29: 0.09582749686 | S29: 192471.04 | T29: 243438.04 | U29: -50967 | V29: -0.2093633353 | W29: 49 | X29: 42 | Y29: 7 | Z29: 0.1666666667 | AA29: 3927.980408 | AB29: 5796.14381 | AC29: -1868.163401 | AD29: -0.3223114303 | AE29: 22 | AF29: 26 | AG29: -4 | AH29: -0.1538461538 | AI29: 1035.105577 | AJ29: 1124.492986 | AK29: -89.38740801 | AL29: -0.07949129889 | AM29: 278.7335 | AN29: 259.0318333 | AO29: 19.70166667 | AP29: 0.07605886278 | AQ29: 0.2692802609 | AR29: 0.2303543345 | AS29: 0.03892592642 | AT29: 0 | AU29: 945 | AV29: -945 | AW29: -1 | AX29: 0 | AY29: 0.03878426713 | AZ29: -3.878426713 | BA29: 239.5 | BB29: 0 | BC29: 239.5 | BD29: 0 | BE29: 0.004228590356 | BF29: 0 | BG29: 0.4228590356
A30: C | B30: 216 | C30: 1191 | D30: ATTILA CHALON-SUR-SAONE | E30: VIDAL Alexandre | F30: RHONE-ALPES | G30: OUI | H30: ANNEE 3 | I30: 32 | J30: 2023-04-12 | K30: 103551.49 | L30: 45803.35 | M30: 57748.14 | N30: 1.2607842 | O30: 104968.46 | P30: 56904.25 | Q30: 48064.21 | R30: 0.8446506192 | S30: 602260.28 | T30: 249702.43 | U30: 352557.85 | V30: 1.411911971 | W30: 78 | X30: 61 | Y30: 17 | Z30: 0.2786885246 | AA30: 7721.285641 | AB30: 4093.482459 | AC30: 3627.803182 | AD30: 0.8862388488 | AE30: 30 | AF30: 14 | AG30: 16 | AH30: 1.142857143 | AI30: 2778.270951 | AJ30: 1406.182754 | AK30: 1372.088198 | AL30: 0.9757538229 | AM30: 584.2755098 | AN30: 282.0122078 | AO30: 302.263302 | AP30: 1.071809282 | AQ30: 0.210301846 | AR30: 0.2005516047 | AS30: 0.009750241301 | AT30: 1532 | AU30: 0 | AV30: 1532 | AW30: 0 | AX30: 0.01479457225 | AY30: 0 | AZ30: 1.479457225 | BA30: -650 | BB30: 3224.23 | BC30: -3874.23 | BD30: -1.201598521 | BE30: -0.00627707047 | BF30: 0.07039288611 | BG30: -7.666995658
A31: C | B31: 224 | C31: 1199 | D31: ATTILA PONTIVY LOUDEAC | E31: LANCHEC Yann | F31: BRETAGNE | G31: OUI | H31: ANNEE 3 | I31: 27 | J31: 2023-09-29 | K31: 120547.13 | L31: 55302.83 | M31: 65244.3 | N31: 1.179764218 | O31: 227841.183 | P31: 97392.0164 | Q31: 130449.1666 | R31: 1.339423614 | S31: 732794.3256 | T31: 427900.171 | U31: 304894.1546 | V31: 0.7125357157 | W31: 105 | X31: 60 | Y31: 45 | Z31: 0.75 | AA31: 6978.993577 | AB31: 7131.669517 | AC31: -152.6759395 | AD31: -0.02140816245 | AE31: 51 | AF31: 26 | AG31: 25 | AH31: 0.9615384615 | AI31: 4280.276325 | AJ31: 2317.287147 | AK31: 1962.989178 | AL31: 0.8471065749 | AM31: 1372.123853 | AN31: 665.2881899 | AO31: 706.8356634 | AP31: 1.06245034 | AQ31: 0.3205689888 | AR31: 0.2870978639 | AS31: 0.0334711249 | AT31: 7661.5 | AU31: 0 | AV31: 7661.5 | AW31: 0 | AX31: 0.0635560548 | AY31: 0 | AZ31: 6.35560548 | BA31: 3024.1 | BB31: 2218.7 | BC31: 805.4 | BD31: 0.3630053635 | BE31: 0.02508645374 | BF31: 0.04011910421 | BG31: -1.503265047
A32: C | B32: 144 | C32: 141 | D32: ATTILA BRIVE | E32: GUEDELHA Antonio | F32: CENTRE | G32: OUI | H32: ANNEE 2 | I32: 23 | J32: 2024-01-18 | K32: 123629.33 | L32: 70676.93 | M32: 52952.4 | N32: 0.7492176018 | O32: 86274.4125 | P32: 122204.701 | Q32: -35930.2885 | R32: -0.2940172367 | S32: 303316.082 | T32: 195972.476 | U32: 107343.606 | V32: 0.5477483787 | W32: 142 | X32: 95 | Y32: 47 | Z32: 0.4947368421 | AA32: 2136.028746 | AB32: 2062.868168 | AC32: 73.16057806 | AD32: 0.03546546463 | AE32: 78 | AF32: 79 | AG32: -1 | AH32: -0.01265822785 | AI32: 1785.19148 | AJ32: 1232.735048 | AK32: 552.4564321 | AL32: 0.4481550459 | AM32: 559.6002487 | AN32: 813.7419648 | AO32: -254.1417161 | AP32: -0.3123124124 | AQ32: 0.3134679136 | AR32: 0.6601109996 | AS32: -0.346643086 | AT32: 3604.09 | AU32: 10607.88 | AV32: -7003.79 | AW32: -0.6602440827 | AX32: 0.02915238641 | AY32: 0.150089711 | AZ32: -12.09373246 | BA32: 6568.97 | BB32: 2379.74 | BC32: 4189.23 | BD32: 1.760372982 | BE32: 0.0531343978 | BF32: 0.03367067585 | BG32: 1.946372195
A33: C | B33: 159 | C33: 156 | D33: ATTILA ROUEN SUD | E33: PEYRUSSE DIONISI Arnaud | F33: NORMANDIE-PARIS | G33: OUI | H33: ANNEE 5 | I33: 59 | J33: 2021-01-14 | K33: 68453.32 | L33: 41715.85 | M33: 26737.47 | N33: 0.6409427112 | O33: 58152.81 | P33: 73428.29 | Q33: -15275.48 | R33: -0.2080326261 | S33: 198280.02 | T33: 138257.18 | U33: 60022.84 | V33: 0.4341390444 | W33: 120 | X33: 55 | Y33: 65 | Z33: 1.181818182 | AA33: 1652.3335 | AB33: 2513.766909 | AC33: -861.4334091 | AD33: -0.3426862713 | AE33: 72 | AF33: 32 | AG33: 40 | AH33: 1.25 | AI33: 1157.922315 | AJ33: 933.6603842 | AK33: 224.2619307 | AL33: 0.2401964723 | AM33: 402.0661979 | AN33: 487.7368913 | AO33: -85.67069337 | AP33: -0.1756494022 | AQ33: 0.347230719 | AR33: 0.5223921884 | AS33: -0.1751614694 | AT33: 9252.8 | AU33: 12461.5 | AV33: -3208.7 | AW33: -0.2574890663 | AX33: 0.1351694848 | AY33: 0.2987233869 | AZ33: -16.35539021 | BA33: 1814.54 | BB33: 3165.1 | BC33: -1350.56 | BD33: -0.4267037376 | BE33: 0.02650769897 | BF33: 0.0758728397 | BG33: -4.936514073
A34: C | B34: 49 | C34: 49 | D34: ATTILA LORIENT | E34: LE CLOËREC Sylvain | F34: BRETAGNE | G34: OUI | H34: ANNEE 3 | I34: 32 | J34: 2023-04-26 | K34: 156856.87 | L34: 104363.11 | M34: 52493.76 | N34: 0.5029915264 | O34: 239231.61 | P34: 103583.55 | Q34: 135648.06 | R34: 1.309552144 | S34: 440416.16 | T34: 308127.06 | U34: 132289.1 | V34: 0.4293329512 | W34: 93 | X34: 67 | Y34: 26 | Z34: 0.3880597015 | AA34: 4735.657634 | AB34: 4598.911343 | AC34: 136.7462911 | AD34: 0.02973449169 | AE34: 58 | AF34: 42 | AG34: 16 | AH34: 0.380952381 | AI34: 2755.648603 | AJ34: 1928.363736 | AK34: 827.2848669 | AL34: 0.4290087246 | AM34: 1530.886144 | AN34: 698.2520025 | AO34: 832.6341414 | AP34: 1.192455071 | AQ34: 0.5555447608 | AR34: 0.3620955889 | AS34: 0.1934491719 | AT34: 2483 | AU34: 4962.64 | AV34: -2479.64 | AW34: -0.4996614705 | AX34: 0.01582971788 | AY34: 0.0475516684 | AZ34: -3.172195052 | BA34: 1317.74 | BB34: 2357.23 | BC34: -1039.49 | BD34: -0.4409794547 | BE34: 0.008400907145 | BF34: 0.02258681252 | BG34: -1.418590538
A35: C | B35: 211 | C35: 1185 | D35: ATTILA ORANGE 2 | E35: ARSIQUAUD Cédric | F35: CENTRE | G35: OUI | H35: +5ANS | I35: 136 | J35: 2014-08-07 | K35: 86943.17 | L35: 61217.32 | M35: 25725.85 | N35: 0.420238096 | O35: 120710.52 | P35: 43586.17 | Q35: 77124.35 | R35: 1.769468389 | S35: 294562.05 | T35: 503499.49 | U35: -208937.44 | V35: -0.4149705097 | W35: 56 | X35: 58 | Y35: -2 | Z35: -0.03448275862 | AA35: 5260.036607 | AB35: 8681.02569 | AC35: -3420.989083 | AD35: -0.3940765993 | AE35: 26 | AF35: 16 | AG35: 10 | AH35: 0.625 | AI35: 1493.380409 | AJ35: 2407.0195 | AK35: -913.6390911 | AL35: -0.3795727833 | AM35: 657.7399822 | AN35: 274.596 | AO35: 383.1439822 | AP35: 1.395300668 | AQ35: 0.4404369967 | AR35: 0.1140813359 | AS35: 0.3263556608 | AT35: 986.51 | AU35: 7976.94 | AV35: -6990.43 | AW35: -0.8763297706 | AX35: 0.01134660721 | AY35: 0.1303052796 | AZ35: -11.89586724 | BA35: 2073.6 | BB35: 2577 | BC35: -503.4 | BD35: -0.1953434226 | BE35: 0.02385006206 | BF35: 0.04209592971 | BG35: -1.824586766
A36: C | B36: 104 | C36: 105 | D36: ATTILA REIMS EST | E36: ETIENNE Nicolas | F36: NORD-EST | G36: OUI | H36: +5ANS | I36: 103 | J36: 2017-05-02 | K36: 150722.98 | L36: 107198.28 | M36: 43524.7 | N36: 0.406020507 | O36: 206216.75 | P36: 132412.62 | Q36: 73804.13 | R36: 0.5573798781 | S36: 489260.17 | T36: 267822.9635 | U36: 221437.2065 | V36: 0.8268044069 | W36: 113 | X36: 100 | Y36: 13 | Z36: 0.13 | AA36: 4329.736018 | AB36: 2678.229635 | AC36: 1651.506383 | AD36: 0.6166410681 | AE36: 87 | AF36: 73 | AG36: 14 | AH36: 0.1917808219 | AI36: 3097.233025 | AJ36: 1822.880856 | AK36: 1274.352169 | AL36: 0.699086923 | AM36: 1368.737023 | AN36: 1059.137323 | AO36: 309.5996999 | AP36: 0.2923130864 | AQ36: 0.4419225199 | AR36: 0.5810238885 | AS36: -0.1391013685 | AT36: 3388.04 | AU36: 6722.58 | AV36: -3334.54 | AW36: -0.4960208729 | AX36: 0.02247858953 | AY36: 0.06271164052 | AZ36: -4.023305099 | BA36: 6629.13 | BB36: 4590.07 | BC36: 2039.06 | BD36: 0.4442328766 | BE36: 0.0439822116 | BF36: 0.04281850418 | BG36: 0.1163707427
A37: C | B37: 240 | C37: 1214 | D37: ATTILA SENS | E37: LAHAYE Benoit | F37: CENTRE VAL-DE-LOIRE | G37: OUI | H37: ANNEE 1 | I37: 12 | J37: 2024-12-10 | K37: 51540.6 | L37: 38732.7 | M37: 12807.9 | N37: 0.3306740816 | O37: 47635.86 | P37: 0 | Q37: 47635.86 | R37: 0 | S37: 297677.02 | T37: 22.5 | U37: 297654.52 | V37: 13229.08978 | W37: 43 | X37: 1 | Y37: 42 | Z37: 42 | AA37: 6922.721395 | AB37: 22.5 | AC37: 6900.221395 | AD37: 306.6765065 | AE37: 7 | AF37: 0 | AG37: 7 | AH37: 0 | AI37: 1652.216667 | AJ37: 0.1666666667 | AK37: 1652.05 | AL37: 9912.3 | AM37: 242.55 | AN37: 0 | AO37: 242.55 | AP37: 0 | AQ37: 0.1468027801 | AR37: 0 | AS37: 0.1468027801 | AT37: 0 | AU37: 0 | AV37: 0 | AW37: 0 | AX37: 0 | AY37: 0 | AZ37: 0 | BA37: 381.81 | BB37: 1967.3 | BC37: -1585.49 | BD37: -0.8059218218 | BE37: 0.007407946357 | BF37: 0.0507917083 | BG37: -4.338376194
A38: C | B38: 210 | C38: 1184 | D38: ATTILA NARBONNE | E38: BAUZOU Guillaume | F38: NORD-EST | G38: OUI | H38: ANNEE 4 | I38: 40 | J38: 2022-08-17 | K38: 11816.41 | L38: 8894.66 | M38: 2921.75 | N38: 0.328483607 | O38: 6722.592 | P38: 15022.576 | Q38: -8299.984 | R38: -0.5525007163 | S38: 69980.75 | T38: 104592.82 | U38: -34612.07 | V38: -0.3309220461 | W38: 27 | X38: 64 | Y38: -37 | Z38: -0.578125 | AA38: 2591.87963 | AB38: 1634.262813 | AC38: 957.6168171 | AD38: 0.5859625574 | AE38: 5 | AF38: 7 | AG38: -2 | AH38: -0.2857142857 | AI38: 340.2028725 | AJ38: 713.4179115 | AK38: -373.2150389 | AL38: -0.5231366257 | AM38: 40.73333333 | AN38: 84.93069333 | AO38: -44.19736 | AP38: -0.5203932556 | AQ38: 0.1197324791 | AR38: 0.1190476045 | AS38: 0.0006848746701 | AT38: 0 | AU38: 0 | AV38: 0 | AW38: 0 | AX38: 0 | AY38: 0 | AZ38: 0 | BA38: 1005.29 | BB38: 82.64 | BC38: 922.65 | BD38: 11.16469022 | BE38: 0.08507575482 | BF38: 0.009290967839 | BG38: 7.578478698
A39: C | B39: 105 | C39: 106 | D39: ATTILA VITROLLES | E39: AVRIL Laurent | F39: RHONE-ALPES | G39: OUI | H39: +5ANS | I39: 119 | J39: 2016-01-29 | K39: 91150.37 | L39: 69103.55 | M39: 22046.82 | N39: 0.3190403387 | O39: 43658.67 | P39: 103299.69 | Q39: -59641.02 | R39: -0.5773591383 | S39: 363062.75 | T39: 292880.92 | U39: 70181.83 | V39: 0.2396258179 | W39: 60 | X39: 81 | Y39: -21 | Z39: -0.2592592593 | AA39: 6051.045833 | AB39: 3615.813827 | AC39: 2435.232006 | AD39: 0.6734948542 | AE39: 22 | AF39: 50 | AG39: -28 | AH39: -0.56 | AI39: 1848.376282 | AJ39: 1564.726081 | AK39: 283.6502012 | AL39: 0.1812778637 | AM39: 285.9690476 | AN39: 621.0263617 | AO39: -335.057314 | AP39: -0.5395218862 | AQ39: 0.1547136535 | AR39: 0.3968914235 | AS39: -0.24217777 | AT39: 4352.36 | AU39: 18917.61 | AV39: -14565.25 | AW39: -0.7699307682 | AX39: 0.0477492302 | AY39: 0.2737574264 | AZ39: -22.60081962 | BA39: 2292.12 | BB39: 319.1 | BC39: 1973.02 | BD39: 6.183077405 | BE39: 0.02514657922 | BF39: 0.004617707773 | BG39: 2.052887145
A40: C | B40: 143 | C40: 140 | D40: ATTILA LE MANS NORD | E40: SAILLOUR Laure | F40: CENTRE VAL-DE-LOIRE | G40: OUI | H40: +5ANS | I40: 75 | J40: 2019-09-18 | K40: 153768.83 | L40: 117995.86 | M40: 35772.97 | N40: 0.3031713994 | O40: 230387.3848 | P40: 124199.7716 | Q40: 106187.6132 | R40: 0.8549743034 | S40: 397090.4841 | T40: 440245.9201 | U40: -43155.436 | V40: -0.09802574886 | W40: 61 | X40: 57 | Y40: 4 | Z40: 0.0701754386 | AA40: 6509.680067 | AB40: 7723.612633 | AC40: -1213.932566 | AD40: -0.1571716014 | AE40: 50 | AF40: 21 | AG40: 29 | AH40: 1.380952381 | AI40: 1916.64117 | AJ40: 2163.452833 | AK40: -246.8116636 | AL40: -0.1140822946 | AM40: 1150.733333 | AN40: 607.4278333 | AO40: 543.3055 | AP40: 0.8944362938 | AQ40: 0.6003905955 | AR40: 0.2807677727 | AS40: 0.3196228228 | AT40: 9374.17 | AU40: 3389.5 | AV40: 5984.67 | AW40: 1.765649801 | AX40: 0.06096274518 | AY40: 0.0287255841 | AZ40: 3.223716108 | BA40: 5528.28 | BB40: 8790.92 | BC40: -3262.64 | BD40: -0.3711374919 | BE40: 0.0359518896 | BF40: 0.07450193592 | BG40: -3.855004632
A41: C | B41: 226 | C41: 1201 | D41: ATTILA CERGY-PONTOISE | E41: FOURCADE Sébastien | F41: NORMANDIE-PARIS | G41: OUI | H41: ANNEE 2 | I41: 23 | J41: 2024-02-01 | K41: 50617.7 | L41: 39293.03 | M41: 11324.67 | N41: 0.2882106572 | O41: 55173.6 | P41: 32349.63 | Q41: 22823.97 | R41: 0.7055403725 | S41: 160206.91 | T41: 152811.2228 | U41: 7395.6872 | V41: 0.04839753956 | W41: 39 | X41: 48 | Y41: -9 | Z41: -0.1875 | AA41: 4107.869487 | AB41: 3183.567142 | AC41: 924.3023455 | AD41: 0.2903354333 | AE41: 25 | AF41: 21 | AG41: 4 | AH41: 0.1904761905 | AI41: 957.6214437 | AJ41: 1020.500157 | AK41: -62.87871345 | AL41: -0.06161558429 | AM41: 316.3118333 | AN41: 209.7054825 | AO41: 106.6063508 | AP41: 0.5083622492 | AQ41: 0.3303098895 | AR41: 0.2054928469 | AS41: 0.1248170427 | AT41: 3304.76 | AU41: 3236.72 | AV41: 68.04 | AW41: 0.0210212808 | AX41: 0.06528862433 | AY41: 0.08237389685 | AZ41: -1.708527251 | BA41: 0 | BB41: 463.77 | BC41: -463.77 | BD41: -1 | BE41: 0 | BF41: 0.01180285664 | BG41: -1.180285664
A42: C | B42: 169 | C42: 1165 | D42: ATTILA ARRAS | E42: CHARLET Nicolas | F42: NORMANDIE-PARIS | G42: OUI | H42: ANNEE 5 | I42: 54 | J42: 2021-06-17 | K42: 85958.77 | L42: 67610.17 | M42: 18348.6 | N42: 0.2713881654 | O42: 174007.7418 | P42: 57742.52 | Q42: 116265.2218 | R42: 2.013511392 | S42: 328610 | T42: 285372.3393 | U42: 43237.6607 | V42: 0.1515131453 | W42: 83 | X42: 52 | Y42: 31 | Z42: 0.5961538462 | AA42: 3959.156627 | AB42: 5487.929602 | AC42: -1528.772975 | AD42: -0.2785700777 | AE42: 32 | AF42: 23 | AG42: 9 | AH42: 0.3913043478 | AI42: 1999.273689 | AJ42: 1655.491456 | AK42: 343.7822332 | AL42: 0.2076617381 | AM42: 863.1080695 | AN42: 428.6923184 | AO42: 434.4157511 | AP42: 1.01335091 | AQ42: 0.4317108129 | AR42: 0.2589516949 | AS42: 0.172759118 | AT42: 26073.48 | AU42: 10634.03 | AV42: 15439.45 | AW42: 1.45189077 | AX42: 0.3033254198 | AY42: 0.1572844736 | AZ42: 14.60409462 | BA42: 2751.87 | BB42: 1737.5 | BC42: 1014.37 | BD42: 0.5838100719 | BE42: 0.0320138364 | BF42: 0.0256987965 | BG42: 0.6315039903
A43: C | B43: 203 | C43: 1177 | D43: ATTILA VANNES OUEST | E43: LANCHEC Yann | F43: BRETAGNE | G43: OUI | H43: ANNEE 4 | I43: 43 | J43: 2022-05-25 | K43: 156694.96 | L43: 124667 | M43: 32027.96 | N43: 0.2569080831 | O43: 144972.2245 | P43: 72326.752 | Q43: 72645.4725 | R43: 1.004406675 | S43: 506443.7095 | T43: 341405.7156 | U43: 165037.9939 | V43: 0.4834072377 | W43: 111 | X43: 79 | Y43: 32 | Z43: 0.4050632911 | AA43: 4562.555941 | AB43: 4321.591337 | AC43: 240.9646047 | AD43: 0.05575830428 | AE43: 46 | AF43: 34 | AG43: 12 | AH43: 0.3529411765 | AI43: 2751.02977 | AJ43: 1857.76593 | AK43: 893.2638403 | AL43: 0.4808269039 | AM43: 822.0088868 | AN43: 459.08096 | AO43: 362.9279268 | AP43: 0.7905532104 | AQ43: 0.2988004331 | AR43: 0.2471145329 | AS43: 0.05168590019 | AT43: 0 | AU43: 2117.63 | AV43: -2117.63 | AW43: -1 | AX43: 0 | AY43: 0.01698629148 | AZ43: -1.698629148 | BA43: 1065.25 | BB43: 17207.55 | BC43: -16142.3 | BD43: -0.9380940343 | BE43: 0.006798240352 | BF43: 0.1380281069 | BG43: -13.12298665
A44: C | B44: 225 | C44: 1200 | D44: ATTILA ANNEMASSE | E44: PAVIET Louis | F44: RHONE-ALPES | G44: OUI | H44: ANNEE 3 | I44: 27 | J44: 2023-09-29 | K44: 36687.74 | L44: 30267.03 | M44: 6420.71 | N44: 0.212135449 | O44: 91402.29 | P44: 41935.5 | Q44: 49466.79 | R44: 1.179592231 | S44: 2191592.84 | T44: 1014812.49 | U44: 1176780.35 | V44: 1.159603731 | W44: 93 | X44: 60 | Y44: 33 | Z44: 0.55 | AA44: 23565.51441 | AB44: 16913.5415 | AC44: 6651.972909 | AD44: 0.3932927299 | AE44: 29 | AF44: 10 | AG44: 19 | AH44: 1.9 | AI44: 7485.322579 | AJ44: 4680.802667 | AK44: 2804.519913 | AL44: 0.5991536308 | AM44: 638.8329812 | AN44: 219.7276067 | AO44: 419.1053745 | AP44: 1.907386062 | AQ44: 0.0853447496 | AR44: 0.04694229225 | AS44: 0.03840245736 | AT44: 0 | AU44: 0 | AV44: 0 | AW44: 0 | AX44: 0 | AY44: 0 | AZ44: 0 | BA44: 202.48 | BB44: 0 | BC44: 202.48 | BD44: 0 | BE44: 0.005519009893 | BF44: 0 | BG44: 0.5519009893
A45: C | B45: 55 | C45: 55 | D45: ATTILA AVIGNON | E45: DECAVATA Franck | F45: CENTRE | G45: OUI | H45: +5ANS | I45: 139 | J45: 2014-05-28 | K45: 51527.55 | L45: 42534.55 | M45: 8993 | N45: 0.2114281214 | O45: 38436.72 | P45: 69146.17 | Q45: -30709.45 | R45: -0.4441236586 | S45: 228448.2 | T45: 129745.45 | U45: 98702.75 | V45: 0.7607415135 | W45: 50 | X45: 23 | Y45: 27 | Z45: 1.173913043 | AA45: 4568.964 | AB45: 5641.106522 | AC45: -1072.142522 | AD45: -0.1900589038 | AE45: 14 | AF45: 13 | AG45: 1 | AH45: 0.07692307692 | AI45: 1173.336976 | AJ45: 773.4930641 | AK45: 399.8439117 | AL45: 0.5169327694 | AM45: 227.9283704 | AN45: 451.20385 | AO45: -223.2754796 | AP45: -0.4948439151 | AQ45: 0.1942565308 | AR45: 0.5833327678 | AS45: -0.3890762371 | AT45: 7457.35 | AU45: 10491.63 | AV45: -3034.28 | AW45: -0.289209589 | AX45: 0.1447254915 | AY45: 0.2466613612 | AZ45: -10.19358697 | BA45: 0 | BB45: 529.09 | BC45: -529.09 | BD45: -1 | BE45: 0 | BF45: 0.01243906424 | BG45: -1.243906424
A46: C | B46: 161 | C46: 1156 | D46: ATTILA RENNES NORD | E46: BOIZIAU Julien | F46: BRETAGNE | G46: OUI | H46: ANNEE 5 | I46: 59 | J46: 2021-01-20 | K46: 112919.12 | L46: 93913.66 | M46: 19005.46 | N46: 0.2023716252 | O46: 186965.1129 | P46: 146283.986 | Q46: 40681.1269 | R46: 0.2780969265 | S46: 319507.4218 | T46: 532742.886 | U46: -213235.4642 | V46: -0.4002596183 | W46: 156 | X46: 165 | Y46: -9 | Z46: -0.05454545455 | AA46: 2048.124499 | AB46: 3228.744764 | AC46: -1180.620265 | AD46: -0.3656592117 | AE46: 85 | AF46: 82 | AG46: 3 | AH46: 0.03658536585 | AI46: 2115.979322 | AJ46: 3150.890715 | AK46: -1034.911393 | AL46: -0.3284504246 | AM46: 1049.561094 | AN46: 847.6738891 | AO46: 201.887205 | AP46: 0.2381661245 | AQ46: 0.4960167064 | AR46: 0.2690267501 | AS46: 0.2269899563 | AT46: 3599.19 | AU46: 4857.11 | AV46: -1257.92 | AW46: -0.2589852814 | AX46: 0.03187405286 | AY46: 0.05171888733 | AZ46: -1.984483447 | BA46: 2303.38 | BB46: 3571.35 | BC46: -1267.97 | BD46: -0.3550394109 | BE46: 0.02039849407 | BF46: 0.03802801424 | BG46: -1.762952017
A47: C | B47: 171 | C47: 1167 | D47: ATTILA TARBES | E47: POLIER Alexis | F47: SUD-OUEST | G47: OUI | H47: ANNEE 5 | I47: 54 | J47: 2021-06-17 | K47: 78513.44 | L47: 65919.41 | M47: 12594.03 | N47: 0.1910519223 | O47: 25324.15 | P47: 91411.3227 | Q47: -66087.1727 | R47: -0.7229648445 | S47: 56385.85 | T47: 332479.5662 | U47: -276093.7162 | V47: -0.830408074 | W47: 36 | X47: 60 | Y47: -24 | Z47: -0.4 | AA47: 1566.273611 | AB47: 5541.326103 | AC47: -3975.052492 | AD47: -0.7173467899 | AE47: 17 | AF47: 31 | AG47: -14 | AH47: -0.4516129032 | AI47: 368.3928333 | AJ47: 1821.110099 | AK47: -1452.717266 | AL47: -0.7977097412 | AM47: 194.6256863 | AN47: 547.1459324 | AO47: -352.5202462 | AP47: -0.6442892568 | AQ47: 0.5283101859 | AR47: 0.3004463776 | AS47: 0.2278638084 | AT47: 0 | AU47: 10346 | AV47: -10346 | AW47: -1 | AX47: 0 | AY47: 0.1569492203 | AZ47: -15.69492203 | BA47: 0 | BB47: 4892.55 | BC47: -4892.55 | BD47: -1 | BE47: 0 | BF47: 0.07422017278 | BG47: -7.422017278
A48: C | B48: 139 | C48: 135 | D48: ATTILA LIMOGES SUD | E48: PELTIER Romain | F48: CENTRE | G48: OUI | H48: +5ANS | I48: 84 | J48: 2018-12-18 | K48: 47688.79 | L48: 40177.29 | M48: 7511.5 | N48: 0.1869588516 | O48: 87131.0854 | P48: 46375.554 | Q48: 40755.5314 | R48: 0.8788149765 | S48: 239295.512 | T48: 191758.0805 | U48: 47537.4315 | V48: 0.2479031464 | W48: 84 | X48: 68 | Y48: 16 | Z48: 0.2352941176 | AA48: 2848.756095 | AB48: 2819.971772 | AC48: 28.78432318 | AD48: 0.01020730898 | AE48: 46 | AF48: 36 | AG48: 10 | AH48: 0.2777777778 | AI48: 1392.563927 | AJ48: 1135.600086 | AK48: 256.9638417 | AL48: 0.2262802239 | AM48: 529.9522839 | AN48: 291.0561922 | AO48: 238.8960917 | AP48: 0.8207902737 | AQ48: 0.3805586756 | AR48: 0.2563016645 | AS48: 0.124257011 | AT48: 0 | AU48: 2500 | AV48: -2500 | AW48: -1 | AX48: 0 | AY48: 0.06222420676 | AZ48: -6.222420676 | BA48: -300 | BB48: 0 | BC48: -300 | BD48: 0 | BE48: -0.006290786577 | BF48: 0 | BG48: -0.6290786577
A49: C | B49: 208 | C49: 1182 | D49: ATTILA CHARTRES | E49: MARTIN Nicolas | F49: CENTRE VAL-DE-LOIRE | G49: OUI | H49: ANNEE 4 | I49: 41 | J49: 2022-07-21 | K49: 84914.52 | L49: 72785.28 | M49: 12129.24 | N49: 0.1666441346 | O49: 38273.13 | P49: 70803.104 | Q49: -32529.974 | R49: -0.4594427668 | S49: 113947.84 | T49: 219936.644 | U49: -105988.804 | V49: -0.4819060711 | W49: 55 | X49: 80 | Y49: -25 | Z49: -0.3125 | AA49: 2071.778909 | AB49: 2749.20805 | AC49: -677.4291409 | AD49: -0.2464088307 | AE49: 21 | AF49: 43 | AG49: -22 | AH49: -0.511627907 | AI49: 645.2311912 | AJ49: 1401.852394 | AK49: -756.6212025 | AL49: -0.5397295792 | AM49: 212.1328095 | AN49: 525.2264728 | AO49: -313.0936633 | AP49: -0.5961117337 | AQ49: 0.3287702337 | AR49: 0.3746660313 | AS49: -0.04589579756 | AT49: 9423.47 | AU49: 1947.74 | AV49: 7475.73 | AW49: 3.838156017 | AX49: 0.1109759556 | AY49: 0.02676008116 | AZ49: 8.421587443 | BA49: 8346.75 | BB49: 4176.28 | BC49: 4170.47 | BD49: 0.9986088098 | BE49: 0.09829590982 | BF49: 0.05737808524 | BG49: 4.091782458
A50: C | B50: 63 | C50: 63 | D50: ATTILA PERIGUEUX | E50: VALETTE Mathieu | F50: DEUX-SEVRES | G50: OUI | H50: ANNEE 2 | I50: 14 | J50: 2024-10-15 | K50: 96878.28 | L50: 85240.57 | M50: 11637.71 | N50: 0.1365278294 | O50: 152157.72 | P50: 84523.76 | Q50: 67633.96 | R50: 0.800176897 | S50: 260316.009 | T50: 296443.56 | U50: -36127.551 | V50: -0.1218699134 | W50: 130 | X50: 137 | Y50: -7 | Z50: -0.05109489051 | AA50: 2002.430838 | AB50: 2163.821606 | AC50: -161.3907674 | AD50: -0.07458598571 | AE50: 90 | AF50: 95 | AG50: -5 | AH50: -0.05263157895 | AI50: 1372.09992 | AJ50: 1727.906533 | AK50: -355.806613 | AL50: -0.2059177428 | AM50: 984.3679941 | AN50: 575.0302291 | AO50: 409.337765 | AP50: 0.7118543414 | AQ50: 0.7174171354 | AR50: 0.3327901238 | AS50: 0.3846270116 | AT50: 2222.87 | AU50: 5939.05 | AV50: -3716.18 | AW50: -0.6257196016 | AX50: 0.02294497797 | AY50: 0.06967398271 | AZ50: -4.672900474 | BA50: -300 | BB50: 5601.92 | BC50: -5901.92 | BD50: -1.053553068 | BE50: -0.003096669346 | BF50: 0.06571894111 | BG50: -6.881561046
A51: C | B51: 107 | C51: 109 | D51: ATTILA SAINT-QUENTIN | E51: TREPANT Raphaël | F51: NORD-EST | G51: OUI | H51: +5ANS | I51: 98 | J51: 2017-10-16 | K51: 139289.56 | L51: 122730.22 | M51: 16559.34 | N51: 0.1349247154 | O51: 148829.3165 | P51: 143157.23 | Q51: 5672.0865 | R51: 0.03962137644 | S51: 405581.8065 | T51: 337954.5764 | U51: 67627.2301 | V51: 0.2001074547 | W51: 66 | X51: 75 | Y51: -9 | Z51: -0.12 | AA51: 6145.178886 | AB51: 4506.061019 | AC51: 1639.117868 | AD51: 0.3637584713 | AE51: 41 | AF51: 33 | AG51: 8 | AH51: 0.2424242424 | AI51: 2649.586061 | AJ51: 2215.976061 | AK51: 433.61 | AL51: 0.1956744965 | AM51: 1230.709545 | AN51: 1045.194394 | AO51: 185.5151515 | AP51: 0.1774934429 | AQ51: 0.4644912516 | AR51: 0.4716632154 | AS51: -0.007171963797 | AT51: 0 | AU51: 1543.66 | AV51: -1543.66 | AW51: -1 | AX51: 0 | AY51: 0.01257766832 | AZ51: -1.257766832 | BA51: 924.49 | BB51: 1970.23 | BC51: -1045.74 | BD51: -0.5307705192 | BE51: 0.006637180848 | BF51: 0.01605334041 | BG51: -0.941615956
A52: C | B52: 227 | C52: 1202 | D52: ATTILA DIJON NORD | E52: TOUVREY Florent | F52: NORD-EST | G52: OUI | H52: ANNEE 2 | I52: 23 | J52: 2024-02-01 | K52: 69828.06 | L52: 61798.82 | M52: 8029.24 | N52: 0.1299254581 | O52: 83921.76 | P52: 97993.32 | Q52: -14071.56 | R52: -0.143597135 | S52: 315906.99 | T52: 494145.7 | U52: -178238.71 | V52: -0.3607007205 | W52: 78 | X52: 50 | Y52: 28 | Z52: 0.56 | AA52: 4050.089615 | AB52: 9882.914 | AC52: -5832.824385 | AD52: -0.5901927695 | AE52: 27 | AF52: 18 | AG52: 9 | AH52: 0.5 | AI52: 1579.891654 | AJ52: 2579.86 | AK52: -999.9683462 | AL52: -0.3876056632 | AM52: 515.574641 | AN52: 588.9466667 | AO52: -73.37202564 | AP52: -0.1245817827 | AQ52: 0.3263354419 | AR52: 0.2282862894 | AS52: 0.09804915247 | AT52: 4131.68 | AU52: 0 | AV52: 4131.68 | AW52: 0 | AX52: 0.0591693368 | AY52: 0 | AZ52: 5.91693368 | BA52: 406.58 | BB52: 778.37 | BC52: -371.79 | BD52: -0.4776520164 | BE52: 0.005822587653 | BF52: 0.01259522431 | BG52: -0.6772636657
A53: C | B53: 204 | C53: 1178 | D53: ATTILA DAX | E53: CURUTCHET Jean-Bernard | F53: SUD-OUEST | G53: OUI | H53: ANNEE 5 | I53: 51 | J53: 2021-09-22 | K53: 66725.51 | L53: 60160.89 | M53: 6564.62 | N53: 0.1091177341 | O53: 110858.08 | P53: 83036.7708 | Q53: 27821.3092 | R53: 0.3350480628 | S53: 164186.75 | T53: 114397.59 | U53: 49789.16 | V53: 0.4352290988 | W53: 39 | X53: 37 | Y53: 2 | Z53: 0.05405405405 | AA53: 4209.916667 | AB53: 3091.826757 | AC53: 1118.08991 | AD53: 0.3616276065 | AE53: 17 | AF53: 26 | AG53: -9 | AH53: -0.3461538462 | AI53: 825.0074846 | AJ53: 762.5959793 | AK53: 62.41150534 | AL53: 0.08184085286 | AM53: 655.3344993 | AN53: 566.0344675 | AO53: 89.30003183 | AP53: 0.1577643005 | AQ53: 0.7943376412 | AR53: 0.7422468553 | AS53: 0.05209078592 | AT53: 1366 | AU53: 4551.05 | AV53: -3185.05 | AW53: -0.6998494853 | AX53: 0.02047193045 | AY53: 0.07564798327 | AZ53: -5.517605282 | BA53: 1985.15 | BB53: 6045.29 | BC53: -4060.14 | BD53: -0.6716203855 | BE53: 0.02975099029 | BF53: 0.1004853818 | BG53: -7.073439149
A54: C | B54: 197 | C54: 1171 | D54: ATTILA AMIENS NORD | E54: DE TAEYE Philippe | F54: NORMANDIE-PARIS | G54: OUI | H54: ANNEE 4 | I54: 47 | J54: 2022-01-05 | K54: 57369.79 | L54: 52449.87 | M54: 4919.92 | N54: 0.09380232973 | O54: 121609.57 | P54: 42017.3 | Q54: 79592.27 | R54: 1.894273787 | S54: 296960.47 | T54: 50621.16 | U54: 246339.31 | V54: 4.866330799 | W54: 67 | X54: 17 | Y54: 50 | Z54: 2.941176471 | AA54: 4432.245821 | AB54: 2977.715294 | AC54: 1454.530527 | AD54: 0.4884719938 | AE54: 25 | AF54: 20 | AG54: 5 | AH54: 0.25 | AI54: 1743.1951 | AJ54: 367.2464286 | AK54: 1375.948671 | AL54: 3.746663177 | AM54: 728.4695774 | AN54: 315.3625 | AO54: 413.1070774 | AP54: 1.309943565 | AQ54: 0.4178933142 | AR54: 0.8587217614 | AS54: -0.4408284472 | AT54: 3083.16 | AU54: 1209.3 | AV54: 1873.86 | AW54: 1.549541057 | AX54: 0.05374187355 | AY54: 0.02305630119 | AZ54: 3.068557237 | BA54: 0 | BB54: 0 | BC54: 0 | BD54: 0 | BE54: 0 | BF54: 0 | BG54: 0
A55: C | B55: 125 | C55: 125 | D55: ATTILA AUBAGNE | E55: MOLINO Gilles | F55: RHONE-ALPES | G55: OUI | H55: ANNEE 4 | I55: 46 | J55: 2022-02-02 | K55: 97804.52 | L55: 92358.43 | M55: 5446.09 | N55: 0.05896689669 | O55: 95350.02 | P55: 34571.2 | Q55: 60778.82 | R55: 1.758076665 | S55: 132447.395 | T55: 100199.48 | U55: 32247.915 | V55: 0.3218371493 | W55: 54 | X55: 45 | Y55: 9 | Z55: 0.2 | AA55: 2452.729537 | AB55: 2226.655111 | AC55: 226.0744259 | AD55: 0.1015309577 | AE55: 46 | AF55: 28 | AG55: 18 | AH55: 0.6428571429 | AI55: 854.3256007 | AJ55: 680.6359583 | AK55: 173.6896424 | AL55: 0.2551872851 | AM55: 647.7585727 | AN55: 249.5917935 | AO55: 398.1667793 | AP55: 1.595271919 | AQ55: 0.7582104203 | AR55: 0.3667038017 | AS55: 0.3915066186 | AT55: 5822.8 | AU55: 4596.07 | AV55: 1226.73 | AW55: 0.2669084675 | AX55: 0.05953508079 | AY55: 0.04976340546 | AZ55: 0.9771675329 | BA55: 281.8 | BB55: 1414.56 | BC55: -1132.76 | BD55: -0.8007861102 | BE55: 0.002881257431 | BF55: 0.01531598144 | BG55: -1.243472401
A56: C | B56: 151 | C56: 148 | D56: ATTILA SAINT JEAN DE LUZ | E56: CURUTCHET Jean-Bernard | F56: SUD-OUEST | G56: OUI | H56: +5ANS | I56: 84 | J56: 2018-12-18 | K56: 61772.47 | L56: 58858.5 | M56: 2913.97 | N56: 0.04950805746 | O56: 88837.53 | P56: 48084.63 | Q56: 40752.9 | R56: 0.8475244584 | S56: 314931.87 | T56: 279354.6 | U56: 35577.27 | V56: 0.1273552324 | W56: 51 | X56: 57 | Y56: -6 | Z56: -0.1052631579 | AA56: 6175.134706 | AB56: 4900.957895 | AC56: 1274.176811 | AD56: 0.2599852597 | AE56: 20 | AF56: 16 | AG56: 4 | AH56: 0.25 | AI56: 1840.493694 | AJ56: 1651.369329 | AK56: 189.1243656 | AL56: 0.1145257831 | AM56: 558.9249053 | AN56: 332.6068636 | AO56: 226.3180416 | AP56: 0.6804370757 | AQ56: 0.3036820539 | AR56: 0.2014127657 | AS56: 0.1022692882 | AT56: 0 | AU56: 0 | AV56: 0 | AW56: 0 | AX56: 0 | AY56: 0 | AZ56: 0 | BA56: 2740.25 | BB56: 1556.25 | BC56: 1184 | BD56: 0.7608032129 | BE56: 0.04436037607 | BF56: 0.0264405311 | BG56: 1.791984497
A57: C | B57: 158 | C57: 155 | D57: ATTILA NEVERS | E57: LAHAYE Benoit | F57: CENTRE VAL-DE-LOIRE | G57: OUI | H57: ANNEE 5 | I57: 59 | J57: 2021-01-14 | K57: 80419.76 | L57: 76993.38 | M57: 3426.38 | N57: 0.0445022676 | O57: 35054.57 | P57: 57563.1796 | Q57: -22508.6096 | R57: -0.3910244319 | S57: 262712.79 | T57: 319301.6096 | U57: -56588.8196 | V57: -0.1772268535 | W57: 74 | X57: 130 | Y57: -56 | Z57: -0.4307692308 | AA57: 3550.172838 | AB57: 2456.166228 | AC57: 1094.00661 | AD57: 0.4454122843 | AE57: 31 | AF57: 45 | AG57: -14 | AH57: -0.3111111111 | AI57: 1547.862074 | AJ57: 2133.372821 | AK57: -585.5107468 | AL57: -0.2744530825 | AM57: 238.7662113 | AN57: 406.4085562 | AO57: -167.6423449 | AP57: -0.4124970854 | AQ57: 0.1542554826 | AR57: 0.1905004846 | AS57: -0.03624500196 | AT57: 2898.81 | AU57: 1175 | AV57: 1723.81 | AW57: 1.46707234 | AX57: 0.03604599168 | AY57: 0.01526105231 | AZ57: 2.078493937 | BA57: 1366.02 | BB57: 0 | BC57: 1366.02 | BD57: 0 | BE57: 0.01698612381 | BF57: 0 | BG57: 1.698612381
A58: C | B58: 101 | C58: 102 | D58: ATTILA NICE OUEST | E58: DEBRET Jean-Charles | F58: RHONE-ALPES | G58: OUI | H58: ANNEE 5 | I58: 59 | J58: 2021-01-20 | K58: 83600.53 | L58: 80956.22 | M58: 2644.31 | N58: 0.03266345687 | O58: 80518.733 | P58: 79308.1 | Q58: 1210.633 | R58: 0.01526493511 | S58: 366863.9665 | T58: 177726.89 | U58: 189137.0765 | V58: 1.064200676 | W58: 63 | X58: 52 | Y58: 11 | Z58: 0.2115384615 | AA58: 5823.237563 | AB58: 3417.824808 | AC58: 2405.412756 | AD58: 0.703784685 | AE58: 23 | AF58: 18 | AG58: 5 | AH58: 0.2777777778 | AI58: 1941.339552 | AJ58: 1144.274535 | AK58: 797.0650171 | AL58: 0.6965679935 | AM58: 517.4451455 | AN58: 455.094471 | AO58: 62.35067452 | AP58: 0.1370060031 | AQ58: 0.2665402582 | AR58: 0.3977144094 | AS58: -0.1311741512 | AT58: 3332.71 | AU58: 23179.53 | AV58: -19846.82 | AW58: -0.8562218475 | AX58: 0.03986469942 | AY58: 0.2863217922 | AZ58: -24.64570928 | BA58: 3477.1 | BB58: 140.49 | BC58: 3336.61 | BD58: 23.74980426 | BE58: 0.04159184158 | BF58: 0.001735382408 | BG58: 3.985645917
A59: C | B59: 75 | C59: 75 | D59: ATTILA YVETOT/BARENTIN | E59: PEYRUSSE DIONISI Arnaud | F59: NORMANDIE-PARIS | G59: OUI | H59: +5ANS | I59: 120 | J59: 2015-12-02 | K59: 87248.94 | L59: 86002.99 | M59: 1245.95 | N59: 0.01448728701 | O59: 74298.526 | P59: 57403.21 | Q59: 16895.316 | R59: 0.2943270246 | S59: 303306.448 | T59: 309159.41 | U59: -5852.962 | V59: -0.01893185784 | W59: 80 | X59: 62 | Y59: 18 | Z59: 0.2903225806 | AA59: 3791.3306 | AB59: 4986.442097 | AC59: -1195.111497 | AD59: -0.2396721898 | AE59: 48 | AF59: 28 | AG59: 20 | AH59: 0.7142857143 | AI59: 1677.1275 | AJ59: 1701.071772 | AK59: -23.94427218 | AL59: -0.01407599172 | AM59: 484.8025 | AN59: 334.5317459 | AO59: 150.2707541 | AP59: 0.4491972911 | AQ59: 0.2890671699 | AR59: 0.1966593952 | AS59: 0.09240777469 | AT59: 33861.7 | AU59: 2866.36 | AV59: 30995.34 | AW59: 10.8134847 | AX59: 0.3881044285 | AY59: 0.03332860869 | AZ59: 35.47758199 | BA59: 0 | BB59: 89.04 | BC59: -89.04 | BD59: -1 | BE59: 0 | BF59: 0.001035312842 | BG59: -0.1035312842
A60: C | B60: 11 | C60: 11 | D60: ATTILA ANGLET | E60: CURUTCHET Jean-Bernard | F60: SUD-OUEST | G60: OUI | H60: +5ANS | I60: 190 | J60: 2010-02-15 | K60: 88598.92 | L60: 87680.01 | M60: 918.91 | N60: 0.01048026797 | O60: 126396.17 | P60: 107224.108 | Q60: 19172.062 | R60: 0.1788036511 | S60: 253564.72 | T60: 299699.935 | U60: -46135.215 | V60: -0.1539380214 | W60: 89 | X60: 125 | Y60: -36 | Z60: -0.288 | AA60: 2849.041798 | AB60: 2397.59948 | AC60: 451.4423178 | AD60: 0.1882892958 | AE60: 52 | AF60: 73 | AG60: -21 | AH60: -0.2876712329 | AI60: 1569.230009 | AJ60: 1890.795282 | AK60: -321.5652728 | AL60: -0.1700687937 | AM60: 831.854023 | AN60: 755.3050319 | AO60: 76.5489911 | AP60: 0.1013484458 | AQ60: 0.5301033106 | AR60: 0.3994642038 | AS60: 0.1306391068 | AT60: 5451.29 | AU60: 741 | AV60: 4710.29 | AW60: 6.356666667 | AX60: 0.06152772517 | AY60: 0.008451185168 | AZ60: 5.307654 | BA60: 45 | BB60: 3540.56 | BC60: -3495.56 | BD60: -0.9872901462 | BE60: 0.0005079068684 | BF60: 0.04038046985 | BG60: -3.987256298
A61: C | B61: 96 | C61: 96 | D61: ATTILA NIORT | E61: COUSIN Pascal | F61: DEUX-SEVRES | G61: OUI | H61: +5ANS | I61: 108 | J61: 2016-12-12 | K61: 77392.17 | L61: 76934.41 | M61: 457.76 | N61: 0.005950003386 | O61: 53903.03 | P61: 175602.18 | Q61: -121699.15 | R61: -0.6930389475 | S61: 237881.63 | T61: 302848.23 | U61: -64966.6 | V61: -0.2145186716 | W61: 69 | X61: 75 | Y61: -6 | Z61: -0.08 | AA61: 3447.559855 | AB61: 4037.9764 | AC61: -590.4165449 | AD61: -0.1462159474 | AE61: 28 | AF61: 59 | AG61: -31 | AH61: -0.5254237288 | AI61: 1168.429717 | AJ61: 1670.666083 | AK61: -502.2363657 | AL61: -0.3006204357 | AM61: 334.8351224 | AN61: 1094.238202 | AO61: -759.4030795 | AP61: -0.6940016152 | AQ61: 0.2865684752 | AR61: 0.6549712197 | AS61: -0.3684027445 | AT61: 0 | AU61: 10262.15 | AV61: -10262.15 | AW61: -1 | AX61: 0 | AY61: 0.1333882979 | AZ61: -13.33882979 | BA61: -150 | BB61: 0 | BC61: -150 | BD61: 0 | BE61: -0.001938180568 | BF61: 0 | BG61: -0.1938180568
A62: C | B62: 140 | C62: 136 | D62: ATTILA QUIMPER | E62: LAUNAY Olivier | F62: BRETAGNE | G62: OUI | H62: ANNEE 2 | I62: 19 | J62: 2024-05-16 | K62: 111457.91 | L62: 111299.23 | M62: 158.68 | N62: 0.00142570618 | O62: 214035.0997 | P62: 125116.73 | Q62: 88918.36971 | R62: 0.7106832932 | S62: 727819.9589 | T62: 378880.32 | U62: 348939.6389 | V62: 0.9209758873 | W62: 169 | X62: 94 | Y62: 75 | Z62: 0.7978723404 | AA62: 4306.626976 | AB62: 4030.641702 | AC62: 275.9852736 | AD62: 0.06847179531 | AE62: 69 | AF62: 42 | AG62: 27 | AH62: 0.6428571429 | AI62: 4211.529333 | AJ62: 2230.728872 | AK62: 1980.800461 | AL62: 0.887961099 | AM62: 1361.347833 | AN62: 758.2662315 | AO62: 603.0816018 | AP62: 0.7953428186 | AQ62: 0.3232431085 | AR62: 0.3399185983 | AS62: -0.0166754898 | AT62: 5617.73 | AU62: 900 | AV62: 4717.73 | AW62: 5.241922222 | AX62: 0.05040225499 | AY62: 0.008086309312 | AZ62: 4.231594567 | BA62: 2252.15 | BB62: 4402.28 | BC62: -2150.13 | BD62: -0.4884128224 | BE62: 0.02020628235 | BF62: 0.03955355307 | BG62: -1.934727071
A63: G | B63: 235 | C63: 1209 | D63: ATTILA MASSY | E63: FOUQUET Jean-Pierre | F63: CENTRE VAL-DE-LOIRE | G63: OUI | H63: ANNEE 2 | I63: 17 | J63: 2024-07-10 | K63: 22474.16 | L63: 0 | M63: 22474.16 | N63: 0 | O63: 45885.54 | P63: 974.8 | Q63: 44910.74 | R63: 46.07174805 | S63: 220918.14 | T63: 67125.21 | U63: 153792.93 | V63: 2.291135179 | W63: 42 | X63: 23 | Y63: 19 | Z63: 0.8260869565 | AA63: 5259.955714 | AB63: 2918.487391 | AC63: 2341.468323 | AD63: 0.8022883121 | AE63: 13 | AF63: 1 | AG63: 12 | AH63: 12 | AI63: 1358.567231 | AJ63: 397.9666667 | AK63: 960.6005641 | AL63: 2.413771415 | AM63: 289.3524872 | AN63: 4.25 | AO63: 285.1024872 | AP63: 67.08293816 | AQ63: 0.2129835614 | AR63: 0.01067928637 | AS63: 0.202304275 | AT63: 2292.63 | AU63: 0 | AV63: 2292.63 | AW63: 0 | AX63: 0.1020118216 | AY63: 0 | AZ63: 10.20118216 | BA63: 92.6 | BB63: 2739.82 | BC63: -2647.22 | BD63: -0.9662021593 | BE63: 0.004120287477 | BF63: 0 | BG63: 0.4120287477
A64: G | B64: 241 | C64: 1215 | D64: ATTILA LIBOURNE | E64: DUPIOT Michael | F64: SUD-OUEST | G64: OUI | H64: ANNEE 1 | I64: 8 | J64: 2025-04-10 | K64: 7990.88 | L64: 0 | M64: 7990.88 | N64: 0 | O64: 21857.684 | P64: 0 | Q64: 21857.684 | R64: 0 | S64: 806635.85 | T64: 0 | U64: 806635.85 | V64: 0 | W64: 25 | X64: 0 | Y64: 25 | Z64: 0 | AA64: 32265.434 | AB64: 0 | AC64: 32265.434 | AD64: 0 | AE64: 8 | AF64: 0 | AG64: 8 | AH64: 0 | AI64: 2754.835138 | AJ64: 0 | AK64: 2754.835138 | AL64: 0 | AM64: 152.700859 | AN64: 0 | AO64: 152.700859 | AP64: 0 | AQ64: 0.05543012606 | AR64: 0 | AS64: 0.05543012606 | AT64: 0 | AU64: 0 | AV64: 0 | AW64: 0 | AX64: 0 | AY64: 0 | AZ64: 0 | BA64: 1881.72 | BB64: 0 | BC64: 1881.72 | BD64: 0 | BE64: 0.2354834511 | BF64: 0 | BG64: 23.54834511
A65: G | B65: 242 | C65: 1216 | D65: ATTILA FONTAINEBLEAU | E65: LECRIVAIN Kévin | F65: NORD-EST | G65: OUI | H65: ANNEE 1 | I65: 10 | J65: 2025-02-21 | K65: 22612.29 | L65: 0 | M65: 22612.29 | N65: 0 | O65: 21630.54 | P65: 0 | Q65: 21630.54 | R65: 0 | S65: 147509.55 | T65: 0 | U65: 147509.55 | V65: 0 | W65: 21 | X65: 0 | Y65: 21 | Z65: 0 | AA65: 7024.264286 | AB65: 0 | AC65: 7024.264286 | AD65: 0 | AE65: 9 | AF65: 0 | AG65: 9 | AH65: 0 | AI65: 675.0997692 | AJ65: 0 | AK65: 675.0997692 | AL65: 0 | AM65: 146.9323077 | AN65: 0 | AO65: 146.9323077 | AP65: 0 | AQ65: 0.2176453235 | AR65: 0 | AS65: 0.2176453235 | AT65: 0 | AU65: 0 | AV65: 0 | AW65: 0 | AX65: 0 | AY65: 0 | AZ65: 0 | BA65: 0 | BB65: 0 | BC65: 0 | BD65: 0 | BE65: 0 | BF65: 0 | BG65: 0
A66: G | B66: 243 | C66: 1217 | D66: ATTILA LILLE SECLIN | E66: OVINET Michael | F66: NORMANDIE-PARIS | G66: OUI | H66: ANNEE 1 | I66: 8 | J66: 2025-04-10 | K66: 36204.77 | L66: 0 | M66: 36204.77 | N66: 0 | O66: 17833.22 | P66: 0 | Q66: 17833.22 | R66: 0 | S66: 249003.55 | T66: 0 | U66: 249003.55 | V66: 0 | W66: 77 | X66: 0 | Y66: 77 | Z66: 0 | AA66: 3233.812338 | AB66: 0 | AC66: 3233.812338 | AD66: 0 | AE66: 15 | AF66: 0 | AG66: 15 | AH66: 0 | AI66: 1317.446726 | AJ66: 0 | AK66: 1317.446726 | AL66: 0 | AM66: 119.6282051 | AN66: 0 | AO66: 119.6282051 | AP66: 0 | AQ66: 0.09080306839 | AR66: 0 | AS66: 0.09080306839 | AT66: 0 | AU66: 0 | AV66: 0 | AW66: 0 | AX66: 0 | AY66: 0 | AZ66: 0 | BA66: 743.58 | BB66: 0 | BC66: 743.58 | BD66: 0 | BE66: 0.0205381777 | BF66: 0 | BG66: 2.05381777
A67: G | B67: 244 | C67: 1218 | D67: ATTILA DUNKERQUE | E67: BUDZIN Jonathan | F67: NORMANDIE-PARIS | G67: OUI | H67: ANNEE 1 | I67: 8 | J67: 2025-04-10 | K67: 11712.74 | L67: 0 | M67: 11712.74 | N67: 0 | O67: 20157.58 | P67: 0 | Q67: 20157.58 | R67: 0 | S67: 28430.76 | T67: 0 | U67: 28430.76 | V67: 0 | W67: 14 | X67: 0 | Y67: 14 | Z67: 0 | AA67: 2030.768571 | AB67: 0 | AC67: 2030.768571 | AD67: 0 | AE67: 12 | AF67: 0 | AG67: 12 | AH67: 0 | AI67: 163.597881 | AJ67: 0 | AK67: 163.597881 | AL67: 0 | AM67: 118.707381 | AN67: 0 | AO67: 118.707381 | AP67: 0 | AQ67: 0.7256046366 | AR67: 0 | AS67: 0.7256046366 | AT67: 2556.96 | AU67: 0 | AV67: 2556.96 | AW67: 0 | AX67: 0.2183058789 | AY67: 0 | AZ67: 21.83058789 | BA67: 1452.21 | BB67: 0 | BC67: 1452.21 | BD67: 0 | BE67: 0.1239855064 | BF67: 0 | BG67: 12.39855064
A68: G | B68: 245 | C68: 1219 | D68: ATTILA MAYENNE | E68: GIBIER Valentin | F68: BRETAGNE | G68: OUI | H68: ANNEE 1 | I68: 8 | J68: 2025-04-22 | K68: 35500.73 | L68: 0 | M68: 35500.73 | N68: 0 | O68: 96756.7733 | P68: 0 | Q68: 96756.7733 | R68: 0 | S68: 199117.6566 | T68: 0 | U68: 199117.6566 | V68: 0 | W68: 33 | X68: 0 | Y68: 33 | Z68: 0 | AA68: 6033.868382 | AB68: 0 | AC68: 6033.868382 | AD68: 0 | AE68: 24 | AF68: 0 | AG68: 24 | AH68: 0 | AI68: 1249.994156 | AJ68: 0 | AK68: 1249.994156 | AL68: 0 | AM68: 591.6333333 | AN68: 0 | AO68: 591.6333333 | AP68: 0 | AQ68: 0.4733088795 | AR68: 0 | AS68: 0.4733088795 | AT68: 0 | AU68: 0 | AV68: 0 | AW68: 0 | AX68: 0 | AY68: 0 | AZ68: 0 | BA68: 0 | BB68: 0 | BC68: 0 | BD68: 0 | BE68: 0 | BF68: 0 | BG68: 0
A69: G | B69: 246 | C69: 1220 | D69: ATTILA VOIRON | E69: DUCHAMP Thomas | F69: RHONE-ALPES | G69: OUI | H69: ANNEE 1 | I69: 3 | J69: 2025-09-12 | K69: 8616.81 | L69: 0 | M69: 8616.81 | N69: 0 | O69: 29401.154 | P69: 0 | Q69: 29401.154 | R69: 0 | S69: 123001.713 | T69: 0 | U69: 123001.713 | V69: 0 | W69: 34 | X69: 0 | Y69: 34 | Z69: 0 | AA69: 3617.697441 | AB69: 0 | AC69: 3617.697441 | AD69: 0 | AE69: 16 | AF69: 0 | AG69: 16 | AH69: 0 | AI69: 593.8545 | AJ69: 0 | AK69: 593.8545 | AL69: 0 | AM69: 159.6166667 | AN69: 0 | AO69: 159.6166667 | AP69: 0 | AQ69: 0.2687807648 | AR69: 0 | AS69: 0.2687807648 | AT69: 0 | AU69: 0 | AV69: 0 | AW69: 0 | AX69: 0 | AY69: 0 | AZ69: 0 | BA69: 1114.27 | BB69: 0 | BC69: 1114.27 | BD69: 0 | BE69: 0.1293135163 | BF69: 0 | BG69: 12.93135163
A70: G | B70: 247 | C70: 1221 | D70: ATTILA AUCH | E70: MAGNANOU Rémi | F70: SUD-OUEST | G70: OUI | H70: ANNEE 1 | I70: 3 | J70: 2025-09-11 | K70: 40918.31 | L70: 0 | M70: 40918.31 | N70: 0 | O70: 111870.2 | P70: 0 | Q70: 111870.2 | R70: 0 | S70: 317463.06 | T70: 0 | U70: 317463.06 | V70: 0 | W70: 46 | X70: 0 | Y70: 46 | Z70: 0 | AA70: 6901.37087 | AB70: 0 | AC70: 6901.37087 | AD70: 0 | AE70: 16 | AF70: 0 | AG70: 16 | AH70: 0 | AI70: 1421.516667 | AJ70: 0 | AK70: 1421.516667 | AL70: 0 | AM70: 543.5666667 | AN70: 0 | AO70: 543.5666667 | AP70: 0 | AQ70: 0.3823850113 | AR70: 0 | AS70: 0.3823850113 | AT70: 0 | AU70: 0 | AV70: 0 | AW70: 0 | AX70: 0 | AY70: 0 | AZ70: 0 | BA70: 1449.36 | BB70: 0 | BC70: 1449.36 | BD70: 0 | BE70: 0.03542081772 | BF70: 0 | BG70: 3.542081772
A71: G | B71: 248 | C71: 1222 | D71: ATTILA TOULON OUEST | E71: FIEVRE Jérôme | F71: CENTRE | G71: OUI | H71: ANNEE 1 | I71: 7 | J71: 2025-06-01 | K71: 4185.88 | L71: 0 | M71: 4185.88 | N71: 0 | O71: 11609.41 | P71: 0 | Q71: 11609.41 | R71: 0 | S71: 78847.61 | T71: 0 | U71: 78847.61 | V71: 0 | W71: 9 | X71: 0 | Y71: 9 | Z71: 0 | AA71: 8760.845556 | AB71: 0 | AC71: 8760.845556 | AD71: 0 | AE71: 7 | AF71: 0 | AG71: 7 | AH71: 0 | AI71: 385.6257898 | AJ71: 0 | AK71: 385.6257898 | AL71: 0 | AM71: 76.6295 | AN71: 0 | AO71: 76.6295 | AP71: 0 | AQ71: 0.1987146659 | AR71: 0 | AS71: 0.1987146659 | AT71: 0 | AU71: 0 | AV71: 0 | AW71: 0 | AX71: 0 | AY71: 0 | AZ71: 0 | BA71: 2661.34 | BB71: 0 | BC71: 2661.34 | BD71: 0 | BE71: 0.6357898459 | BF71: 0 | BG71: 63.57898459
A72: G | B72: 250 | C72: 1224 | D72: ATTILA BAIN-DE-BRETAGNE–JANZE | E72: HILLENWECK Marc | F72: BRETAGNE | G72: OUI | H72: ANNEE 1 | I72: 3 | J72: 2025-09-02 | K72: 0 | L72: 0 | M72: 0 | N72: 0 | O72: 2238.82 | P72: 0 | Q72: 2238.82 | R72: 0 | S72: 44742.33 | T72: 0 | U72: 44742.33 | V72: 0 | W72: 18 | X72: 0 | Y72: 18 | Z72: 0 | AA72: 2485.685 | AB72: 0 | AC72: 2485.685 | AD72: 0 | AE72: 1 | AF72: 0 | AG72: 1 | AH72: 0 | AI72: 257.425 | AJ72: 0 | AK72: 257.425 | AL72: 0 | AM72: 16 | AN72: 0 | AO72: 16 | AP72: 0 | AQ72: 0.06215402544 | AR72: 0 | AS72: 0.06215402544 | AT72: 0 | AU72: 0 | AV72: 0 | AW72: 0 | AX72: 0 | AY72: 0 | AZ72: 0 | BA72: 0 | BB72: 0 | BC72: 0 | BD72: 0 | BE72: 0 | BF72: 0 | BG72: 0
A73: G | B73: 251 | C73: 1225 | D73: ATTILA MELUN | E73: ENGEL Morgan | F73: NORD-EST | G73: OUI | H73: ANNEE 1 | I73: 3 | J73: 2025-09-02 | K73: 0 | L73: 0 | M73: 0 | N73: 0 | O73: 1097.22 | P73: 0 | Q73: 1097.22 | R73: 0 | S73: 54840.1 | T73: 0 | U73: 54840.1 | V73: 0 | W73: 17 | X73: 0 | Y73: 17 | Z73: 0 | AA73: 3225.888235 | AB73: 0 | AC73: 3225.888235 | AD73: 0 | AE73: 1 | AF73: 0 | AG73: 1 | AH73: 0 | AI73: 315.05 | AJ73: 0 | AK73: 315.05 | AL73: 0 | AM73: 8 | AN73: 0 | AO73: 8 | AP73: 0 | AQ73: 0.02539279479 | AR73: 0 | AS73: 0.02539279479 | AT73: 0 | AU73: 0 | AV73: 0 | AW73: 0 | AX73: 0 | AY73: 0 | AZ73: 0 | BA73: 13.84 | BB73: 0 | BC73: 13.84 | BD73: 0 | BE73: 0 | BF73: 0 | BG73: 0
A74: G | B74: 252 | C74: 1226 | D74: ATTILA PLOERMEL - REDON | E74: BAUVIN Xavier | F74: BRETAGNE | G74: OUI | H74: ANNEE 1 | I74: 3 | J74: 2025-09-02 | K74: 0 | L74: 0 | M74: 0 | N74: 0 | O74: 1970.43 | P74: 0 | Q74: 1970.43 | R74: 0 | S74: 10813.19 | T74: 0 | U74: 10813.19 | V74: 0 | W74: 3 | X74: 0 | Y74: 3 | Z74: 0 | AA74: 3604.396667 | AB74: 0 | AC74: 3604.396667 | AD74: 0 | AE74: 1 | AF74: 0 | AG74: 1 | AH74: 0 | AI74: 57.16666667 | AJ74: 0 | AK74: 57.16666667 | AL74: 0 | AM74: 11.75 | AN74: 0 | AO74: 11.75 | AP74: 0 | AQ74: 0.2055393586 | AR74: 0 | AS74: 0.2055393586 | AT74: 0 | AU74: 0 | AV74: 0 | AW74: 0 | AX74: 0 | AY74: 0 | AZ74: 0 | BA74: 0 | BB74: 0 | BC74: 0 | BD74: 0 | BE74: 0 | BF74: 0 | BG74: 0
A75: C | B75: 57 | C75: 57 | D75: ATTILA LA TOUR-DU-PIN | E75: RANDON Bruce | F75: RHONE-ALPES | G75: OUI | H75: +5ANS | I75: 139 | J75: 2014-05-28 | K75: 82736.99 | L75: 83072.4 | M75: -335.41 | N75: -0.004037562415 | O75: 144535.7475 | P75: 123725.02 | Q75: 20810.7275 | R75: 0.1682014479 | S75: 422590.73 | T75: 640101.895 | U75: -217511.165 | V75: -0.3398070943 | W75: 70 | X75: 61 | Y75: 9 | Z75: 0.1475409836 | AA75: 6037.010429 | AB75: 10493.47369 | AC75: -4456.46326 | AD75: -0.4246890393 | AE75: 32 | AF75: 46 | AG75: -14 | AH75: -0.3043478261 | AI75: 1752.085192 | AJ75: 2770.316456 | AK75: -1018.231265 | AL75: -0.3675505238 | AM75: 582.6791389 | AN75: 752.8700124 | AO75: -170.1908735 | AP75: -0.2260561196 | AQ75: 0.3325632461 | AR75: 0.2717631809 | AS75: 0.06080006517 | AT75: 663 | AU75: 1126.72 | AV75: -463.72 | AW75: -0.4115663164 | AX75: 0.008013344455 | AY75: 0.01356310881 | AZ75: -0.5549764352 | BA75: 0 | BB75: 759.65 | BC75: -759.65 | BD75: -1 | BE75: 0 | BF75: 0.009144433049 | BG75: -0.9144433049
A76: C | B76: 149 | C76: 146 | D76: ATTILA GRENOBLE OUEST | E76: FAGES Thierry | F76: RHONE-ALPES | G76: OUI | H76: +5ANS | I76: 75 | J76: 2019-09-17 | K76: 60310.03 | L76: 60756.44 | M76: -446.41 | N76: -0.007347533858 | O76: 91332.59 | P76: 74195.6645 | Q76: 17136.9255 | R76: 0.2309693648 | S76: 224020.2782 | T76: 263857.392 | U76: -39837.11385 | V76: -0.150979715 | W76: 57 | X76: 61 | Y76: -4 | Z76: -0.06557377049 | AA76: 3930.180318 | AB76: 4325.531016 | AC76: -395.350698 | AD76: -0.09139934414 | AE76: 27 | AF76: 35 | AG76: -8 | AH76: -0.2285714286 | AI76: 1295.462081 | AJ76: 1645.806832 | AK76: -350.3447516 | AL76: -0.2128711248 | AM76: 655.5696816 | AN76: 466.7666667 | AO76: 188.8030149 | AP76: 0.4044912124 | AQ76: 0.5060508457 | AR76: 0.2836096299 | AS76: 0.2224412158 | AT76: 4344.61 | AU76: 3076.36 | AV76: 1268.25 | AW76: 0.412256693 | AX76: 0.07203793465 | AY76: 0.05063430313 | AZ76: 2.140363152 | BA76: 918.61 | BB76: 0 | BC76: 918.61 | BD76: 0 | BE76: 0.01523146316 | BF76: 0 | BG76: 1.523146316
A77: C | B77: 66 | C77: 66 | D77: ATTILA TOURS OUEST | E77: MOREAU Jean-François | F77: CENTRE VAL-DE-LOIRE | G77: OUI | H77: +5ANS | I77: 126 | J77: 2015-06-08 | K77: 172813.19 | L77: 175210.99 | M77: -2397.8 | N77: -0.01368521461 | O77: 79712.32 | P77: 225598.55 | Q77: -145886.23 | R77: -0.6466629772 | S77: 801659.208 | T77: 1078656.62 | U77: -276997.412 | V77: -0.2567985092 | W77: 182 | X77: 301 | Y77: -119 | Z77: -0.3953488372 | AA77: 4404.720923 | AB77: 3583.576811 | AC77: 821.1441124 | AD77: 0.229140927 | AE77: 32 | AF77: 55 | AG77: -23 | AH77: -0.4181818182 | AI77: 4701.555455 | AJ77: 6217.900295 | AK77: -1516.344839 | AL77: -0.2438676671 | AM77: 470.4390592 | AN77: 1171.472645 | AO77: -701.0335855 | AP77: -0.59842079 | AQ77: 0.1000603021 | AR77: 0.1884032534 | AS77: -0.08834295128 | AT77: 17799.36 | AU77: 13071.76 | AV77: 4727.6 | AW77: 0.3616651469 | AX77: 0.1029976936 | AY77: 0.07460582239 | AZ77: 2.839187125 | BA77: 2430 | BB77: 10116.7 | BC77: -7686.7 | BD77: -0.7598030978 | BE77: 0.01406142668 | BF77: 0.05774009952 | BG77: -4.367867285
A78: C | B78: 26 | C78: 26 | D78: ATTILA LIMOGES NORD | E78: PELTIER Romain | F78: CENTRE | G78: OUI | H78: +5ANS | I78: 173 | J78: 2011-07-29 | K78: 92168.49 | L78: 96619.86 | M78: -4451.37 | N78: -0.04607096305 | O78: 162696.5145 | P78: 107096.9834 | Q78: 55599.5311 | R78: 0.5191512341 | S78: 717083.6863 | T78: 195693.9502 | U78: 521389.7361 | V78: 2.664311981 | W78: 123 | X78: 68 | Y78: 55 | Z78: 0.8088235294 | AA78: 5829.948669 | AB78: 2877.852209 | AC78: 2952.09646 | AD78: 1.025798493 | AE78: 66 | AF78: 56 | AG78: 10 | AH78: 0.1785714286 | AI78: 3720.471905 | AJ78: 1161.166431 | AK78: 2559.305475 | AL78: 2.204081522 | AM78: 952.0078107 | AN78: 634.5524401 | AO78: 317.4553706 | AP78: 0.5002823258 | AQ78: 0.2558836177 | AR78: 0.5464784576 | AS78: -0.2905948399 | AT78: 1117.99 | AU78: 4172.06 | AV78: -3054.07 | AW78: -0.7320292613 | AX78: 0.01212985045 | AY78: 0.04318014951 | AZ78: -3.105029905 | BA78: 1296.3 | BB78: 2742.9 | BC78: -1446.6 | BD78: -0.5273980094 | BE78: 0.01406445956 | BF78: 0.02838857353 | BG78: -1.432411397
A79: C | B79: 173 | C79: 1169 | D79: ATTILA YONNE CENTRE | E79: BERNOT Frédéric | F79: CENTRE VAL-DE-LOIRE | G79: OUI | H79: ANNEE 5 | I79: 52 | J79: 2021-08-26 | K79: 140013.77 | L79: 146992.34 | M79: -6978.57 | N79: -0.04747573921 | O79: 241527.06 | P79: 68247.042 | Q79: 173280.018 | R79: 2.539011405 | S79: 502866.7025 | T79: 758837.3 | U79: -255970.5975 | V79: -0.3373194722 | W79: 71 | X79: 51 | Y79: 20 | Z79: 0.3921568627 | AA79: 7082.629613 | AB79: 14879.16275 | AC79: -7796.533132 | AD79: -0.5239900434 | AE79: 26 | AF79: 22 | AG79: 4 | AH79: 0.1818181818 | AI79: 1605.925116 | AJ79: 2400.966925 | AK79: -795.0418096 | AL79: -0.3311340115 | AM79: 1091.479277 | AN79: 372.3451501 | AO79: 719.1341273 | AP79: 1.931364292 | AQ79: 0.679657642 | AR79: 0.1550813325 | AS79: 0.5245763095 | AT79: 3231.09 | AU79: 3740 | AV79: -508.91 | AW79: -0.1360721925 | AX79: 0.0230769445 | AY79: 0.0254435027 | AZ79: -0.2366558199 | BA79: 4342.53 | BB79: 3115.45 | BC79: 1227.08 | BD79: 0.3938692645 | BE79: 0.03101502088 | BF79: 0.02119464184 | BG79: 0.9820379036
A80: C | B80: 147 | C80: 144 | D80: ATTILA ANGERS NORD | E80: FORESTIER Xavier | F80: DEUX-SEVRES | G80: OUI | H80: +5ANS | I80: 75 | J80: 2019-09-17 | K80: 104515.26 | L80: 113281.3 | M80: -8766.04 | N80: -0.07738293964 | O80: 72781.435 | P80: 93141.0368 | Q80: -20359.6018 | R80: -0.2185889539 | S80: 563502.8485 | T80: 468115.9159 | U80: 95386.9326 | V80: 0.2037677621 | W80: 144 | X80: 125 | Y80: 19 | Z80: 0.152 | AA80: 3913.214226 | AB80: 3744.927327 | AC80: 168.2868985 | AD80: 0.04493729351 | AE80: 41 | AF80: 39 | AG80: 2 | AH80: 0.05128205128 | AI80: 3285.639825 | AJ80: 3048.649002 | AK80: 236.9908225 | AL80: 0.07773634234 | AM80: 520.825115 | AN80: 663.3580913 | AO80: -142.5329763 | AP80: -0.214865814 | AQ80: 0.1585155838 | AR80: 0.217590838 | AS80: -0.05907525422 | AT80: 0 | AU80: 3499.62 | AV80: -3499.62 | AW80: -1 | AX80: 0 | AY80: 0.03089318361 | AZ80: -3.089318361 | BA80: 0 | BB80: 0 | BC80: 0 | BD80: 0 | BE80: 0 | BF80: 0 | BG80: 0
A81: C | B81: 150 | C81: 147 | D81: ATTILA SAINT-ETIENNE FIRMINY | E81: MIGLIORE Laetitia | F81: CENTRE | G81: OUI | H81: ANNEE 1 | I81: 3 | J81: 2025-09-26 | K81: 42286.95 | L81: 45967.66 | M81: -3680.71 | N81: -0.08007172869 | O81: 19524.3455 | P81: 30757.8375 | Q81: -11233.492 | R81: -0.3652237255 | S81: 279471.9651 | T81: 239126.561 | U81: 40345.4041 | V81: 0.1687198776 | W81: 45 | X81: 68 | Y81: -23 | Z81: -0.3382352941 | AA81: 6210.488113 | AB81: 3516.567074 | AC81: 2693.92104 | AD81: 0.7660655928 | AE81: 8 | AF81: 24 | AG81: -16 | AH81: -0.6666666667 | AI81: 1544.703857 | AJ81: 1515.711548 | AK81: 28.99230972 | AL81: 0.01912785435 | AM81: 136 | AN81: 217.8394012 | AO81: -81.83940116 | AP81: -0.3756868625 | AQ81: 0.08804276584 | AR81: 0.1437208825 | AS81: -0.05567811661 | AT81: 0 | AU81: 0 | AV81: 0 | AW81: 0 | AX81: 0 | AY81: 0 | AZ81: 0 | BA81: 0 | BB81: 578.66 | BC81: -578.66 | BD81: -1 | BE81: 0 | BF81: 0.01258841542 | BG81: -1.258841542
A82: C | B82: 52 | C82: 52 | D82: ATTILA VILLENEUVE D'ASCQ | E82: RECQ Romuald | F82: NORMANDIE-PARIS | G82: OUI | H82: +5ANS | I82: 145 | J82: 2013-11-10 | K82: 52435.93 | L82: 58209.23 | M82: -5773.3 | N82: -0.09918186514 | O82: 64834.9 | P82: 50522.84 | Q82: 14312.06 | R82: 0.2832790081 | S82: 247344.2995 | T82: 114116.66 | U82: 133227.6395 | V82: 1.167468795 | W82: 87 | X82: 78 | Y82: 9 | Z82: 0.1153846154 | AA82: 2843.037925 | AB82: 1463.034103 | AC82: 1380.003823 | AD82: 0.9432478849 | AE82: 36 | AF82: 38 | AG82: -2 | AH82: -0.05263157895 | AI82: 1725.227877 | AJ82: 890.86967 | AK82: 834.3582073 | AL82: 0.9365659595 | AM82: 500.344147 | AN82: 412.9324167 | AO82: 87.4117303 | AP82: 0.2116853189 | AQ82: 0.290016266 | AR82: 0.4635160794 | AS82: -0.1734998134 | AT82: 3277 | AU82: 6160.22 | AV82: -2883.22 | AW82: -0.4680384791 | AX82: 0.06249531571 | AY82: 0.1058289209 | AZ82: -4.333360523 | BA82: 2245.72 | BB82: 1620.42 | BC82: 625.3 | BD82: 0.3858876094 | BE82: 0.04282788538 | BF82: 0.02783785321 | BG82: 1.499003218
A83: C | B83: 94 | C83: 94 | D83: ATTILA LE MANS SUD | E83: SAILLOUR Laure | F83: CENTRE VAL-DE-LOIRE | G83: OUI | H83: +5ANS | I83: 108 | J83: 2016-12-12 | K83: 152313.44 | L83: 175280.56 | M83: -22967.12 | N83: -0.1310306174 | O83: 185499.2593 | P83: 101259.2206 | Q83: 84240.0387 | R83: 0.8319246208 | S83: 636237.3909 | T83: 675308.9929 | U83: -39071.602 | V83: -0.05785736961 | W83: 113 | X83: 74 | Y83: 39 | Z83: 0.527027027 | AA83: 5630.419388 | AB83: 9125.797201 | AC83: -3495.377813 | AD83: -0.3830216403 | AE83: 60 | AF83: 34 | AG83: 26 | AH83: 0.7647058824 | AI83: 3143.65547 | AJ83: 3201.490359 | AK83: -57.83488884 | AL83: -0.01806498923 | AM83: 1014.357272 | AN83: 631.4583463 | AO83: 382.8989259 | AP83: 0.6063724205 | AQ83: 0.3226680793 | AR83: 0.1972388718 | AS83: 0.1254292075 | AT83: 0 | AU83: 0 | AV83: 0 | AW83: 0 | AX83: 0 | AY83: 0 | AZ83: 0 | BA83: 7202.88 | BB83: 12812.92 | BC83: -5610.04 | BD83: -0.4378424278 | BE83: 0.04728985177 | BF83: 0.07309949261 | BG83: -2.580964084
A84: C | B84: 215 | C84: 1190 | D84: ATTILA MONTPELLIER NORD | E84: BILLON David | F84: NORD-EST | G84: OUI | H84: ANNEE 4 | I84: 38 | J84: 2022-10-27 | K84: 50676.98 | L84: 58401.8 | M84: -7724.82 | N84: -0.1322702382 | O84: 80207.2 | P84: 32891.5 | Q84: 47315.7 | R84: 1.438538832 | S84: 306008.51 | T84: 128830.131 | U84: 177178.379 | V84: 1.375286803 | W84: 126 | X84: 38 | Y84: 88 | Z84: 2.315789474 | AA84: 2428.638968 | AB84: 3390.266605 | AC84: -961.627637 | AD84: -0.2836436626 | AE84: 37 | AF84: 20 | AG84: 17 | AH84: 0.85 | AI84: 2019.34706 | AJ84: 857.3938286 | AK84: 1161.953231 | AL84: 1.355215296 | AM84: 561.6315 | AN84: 210.12095 | AO84: 351.51055 | AP84: 1.672896253 | AQ84: 0.2781252967 | AR84: 0.245069352 | AS84: 0.03305594464 | AT84: 0 | AU84: 0 | AV84: 0 | AW84: 0 | AX84: 0 | AY84: 0 | AZ84: 0 | BA84: 1133.03 | BB84: -1758.4 | BC84: 2891.43 | BD84: -1.644352821 | BE84: 0.0223578832 | BF84: -0.03010866103 | BG84: 5.246654424
A85: C | B85: 9 | C85: 9 | D85: ATTILA CLERMONT-FERRAND | E85: GROUFFAL Eric | F85: CENTRE | G85: OUI | H85: +5ANS | I85: 190 | J85: 2010-02-15 | K85: 105566.41 | L85: 121802.96 | M85: -16236.55 | N85: -0.1333017687 | O85: 101877.05 | P85: 83997.8 | Q85: 17879.25 | R85: 0.212853789 | S85: 285533.47 | T85: 772365.457 | U85: -486831.987 | V85: -0.6303129983 | W85: 48 | X85: 63 | Y85: -15 | Z85: -0.2380952381 | AA85: 5948.613958 | AB85: 12259.76916 | AC85: -6311.1552 | AD85: -0.5147858103 | AE85: 23 | AF85: 19 | AG85: 4 | AH85: 0.2105263158 | AI85: 1444.788333 | AJ85: 3933.783528 | AK85: -2488.995195 | AL85: -0.6327229694 | AM85: 583.5116667 | AN85: 451.705 | AO85: 131.8066667 | AP85: 0.2917981131 | AQ85: 0.4038734624 | AR85: 0.1148271116 | AS85: 0.2890463509 | AT85: 0 | AU85: 0 | AV85: 0 | AW85: 0 | AX85: 0 | AY85: 0 | AZ85: 0 | BA85: 372.12 | BB85: 0 | BC85: 372.12 | BD85: 0 | BE85: 0.003524984889 | BF85: 0 | BG85: 0.3524984889
A86: C | B86: 219 | C86: 1194 | D86: ATTILA SAINTES | E86: BAZECK Eric | F86: DEUX-SEVRES | G86: OUI | H86: ANNEE 3 | I86: 29 | J86: 2023-07-26 | K86: 56602.32 | L86: 65541.5 | M86: -8939.18 | N86: -0.1363896157 | O86: 86008.85 | P86: 58785.48 | Q86: 27223.37 | R86: 0.4630968396 | S86: 244336.65 | T86: 276282.72 | U86: -31946.07 | V86: -0.115628187 | W86: 45 | X86: 59 | Y86: -14 | Z86: -0.2372881356 | AA86: 5429.703333 | AB86: 4682.757966 | AC86: 746.9453672 | AD86: 0.1595097104 | AE86: 25 | AF86: 29 | AG86: -4 | AH86: -0.1379310345 | AI86: 1409.89319 | AJ86: 1728.991693 | AK86: -319.0985032 | AL86: -0.1845575687 | AM86: 491.2126667 | AN86: 393.32664 | AO86: 97.88602667 | AP86: 0.2488670146 | AQ86: 0.34840417 | AR86: 0.2274890282 | AS86: 0.1209151418 | AT86: 580 | AU86: 9096.3 | AV86: -8516.3 | AW86: -0.936237811 | AX86: 0.01024692981 | AY86: 0.1387868755 | AZ86: -12.85399457 | BA86: 1801.29 | BB86: 3409.97 | BC86: -1608.68 | BD86: -0.4717578161 | BE86: 0.03182360723 | BF86: 0.05202764661 | BG86: -2.020403938
A87: C | B87: 56 | C87: 56 | D87: ATTILA BORDEAUX EST | E87: BEX Thomas | F87: SUD-OUEST | G87: OUI | H87: +5ANS | I87: 136 | J87: 2014-08-07 | K87: 88711.43 | L87: 104494.38 | M87: -15782.95 | N87: -0.1510411373 | O87: 119852.0655 | P87: 97977.41 | Q87: 21874.6555 | R87: 0.2232622346 | S87: 550327.299 | T87: 762308.341 | U87: -211981.042 | V87: -0.2780778205 | W87: 88 | X87: 120 | Y87: -32 | Z87: -0.2666666667 | AA87: 6253.719307 | AB87: 6352.569509 | AC87: -98.85020193 | AD87: -0.01556066436 | AE87: 20 | AF87: 23 | AG87: -3 | AH87: -0.1304347826 | AI87: 2937.858166 | AJ87: 4089.167756 | AK87: -1151.309591 | AL87: -0.2815510782 | AM87: 487.06382 | AN87: 545.8018992 | AO87: -58.73807927 | AP87: -0.1076179459 | AQ87: 0.1657887456 | AR87: 0.133475057 | AS87: 0.0323136886 | AT87: 726 | AU87: 0 | AV87: 726 | AW87: 0 | AX87: 0.008183838317 | AY87: 0 | AZ87: 0.8183838317 | BA87: 4238.13 | BB87: 4941 | BC87: -702.87 | BD87: -0.1422525804 | BE87: 0.04777433979 | BF87: 0.04728483962 | BG87: 0.04895001643
A88: C | B88: 145 | C88: 142 | D88: ATTILA TARARE - PLAINE DU FOREZ | E88: COSSARD François | F88: CENTRE | G88: OUI | H88: +5ANS | I88: 75 | J88: 2019-09-17 | K88: 90492.83 | L88: 107510.37 | M88: -17017.54 | N88: -0.1582874285 | O88: 81827.168 | P88: 105869.0695 | Q88: -24041.9015 | R88: -0.2270908927 | S88: 414442.443 | T88: 594200.6185 | U88: -179758.1755 | V88: -0.3025210172 | W88: 49 | X88: 74 | Y88: -25 | Z88: -0.3378378378 | AA88: 8458.009041 | AB88: 8029.738088 | AC88: 428.270953 | AD88: 0.05333560675 | AE88: 24 | AF88: 28 | AG88: -4 | AH88: -0.1428571429 | AI88: 1854.361285 | AJ88: 3363.321878 | AK88: -1508.960593 | AL88: -0.448651853 | AM88: 605.4175589 | AN88: 667.7600406 | AO88: -62.34248162 | AP88: -0.09336060535 | AQ88: 0.3264830666 | AR88: 0.1985418181 | AS88: 0.1279412485 | AT88: 1938.01 | AU88: 23582.87 | AV88: -21644.86 | AW88: -0.917821283 | AX88: 0.02141617187 | AY88: 0.2193543748 | AZ88: -19.7938203 | BA88: 205.2 | BB88: 3806.61 | BC88: -3601.41 | BD88: -0.9460937685 | BE88: 0.002267582968 | BF88: 0.03540691005 | BG88: -3.313932708
A89: C | B89: 48 | C89: 48 | D89: ATTILA TOULOUSE NORD | E89: BELLOT Marc | F89: SUD-OUEST | G89: OUI | H89: +5ANS | I89: 145 | J89: 2013-11-13 | K89: 92217.76 | L89: 109641.19 | M89: -17423.43 | N89: -0.1589131785 | O89: 105659.57 | P89: 85820.34 | Q89: 19839.23 | R89: 0.2311716546 | S89: 226401.06 | T89: 488719.98 | U89: -262318.92 | V89: -0.5367468709 | W89: 77 | X89: 141 | Y89: -64 | Z89: -0.4539007092 | AA89: 2940.273506 | AB89: 3466.099149 | AC89: -525.8256424 | AD89: -0.151705309 | AE89: 48 | AF89: 46 | AG89: 2 | AH89: 0.04347826087 | AI89: 1425.947579 | AJ89: 3181.912522 | AK89: -1755.964942 | AL89: -0.5518583338 | AM89: 725.2522458 | AN89: 591.511455 | AO89: 133.7407908 | AP89: 0.226100086 | AQ89: 0.5086107346 | AR89: 0.1858980883 | AS89: 0.3227126463 | AT89: 3392.36 | AU89: 10632.25 | AV89: -7239.89 | AW89: -0.6809367726 | AX89: 0.03678640644 | AY89: 0.09697313573 | AZ89: -6.01867293 | BA89: 3151.68 | BB89: 4685.62 | BC89: -1533.94 | BD89: -0.3273718313 | BE89: 0.03417649702 | BF89: 0.04273594623 | BG89: -0.8559449204
A90: C | B90: 82 | C90: 82 | D90: ATTILA BORDEAUX NORD | E90: MOAL Yannick | F90: SUD-OUEST | G90: OUI | H90: +5ANS | I90: 112 | J90: 2016-08-02 | K90: 56240.79 | L90: 67222.98 | M90: -10982.19 | N90: -0.1633695799 | O90: 40722.06 | P90: 78016.52 | Q90: -37294.46 | R90: -0.4780328577 | S90: 439819.396 | T90: 140028.4 | U90: 299790.996 | V90: 2.140929954 | W90: 50 | X90: 32 | Y90: 18 | Z90: 0.5625 | AA90: 8796.38792 | AB90: 4375.8875 | AC90: 4420.50042 | AD90: 1.010195171 | AE90: 27 | AF90: 25 | AG90: 2 | AH90: 0.08 | AI90: 1905.268759 | AJ90: 934.5813233 | AK90: 970.6874358 | AL90: 1.038633463 | AM90: 250.8110621 | AN90: 488.2242636 | AO90: -237.4132015 | AP90: -0.4862789894 | AQ90: 0.1316407782 | AR90: 0.5223989089 | AS90: -0.3907581307 | AT90: 1380 | AU90: 7719.96 | AV90: -6339.96 | AW90: -0.8212425971 | AX90: 0.02453735092 | AY90: 0.1148410856 | AZ90: -9.030373468 | BA90: 1797.27 | BB90: 1682.35 | BC90: 114.92 | BD90: 0.06830921033 | BE90: 0.03195669904 | BF90: 0.0250264121 | BG90: 0.6930286945
A91: C | B91: 162 | C91: 1157 | D91: ATTILA LAVAL | E91: GIBIER Valentin | F91: BRETAGNE | G91: OUI | H91: ANNEE 5 | I91: 59 | J91: 2021-01-20 | K91: 115322.16 | L91: 141767.72 | M91: -26445.56 | N91: -0.1865414778 | O91: 106907.0412 | P91: 88249.5 | Q91: 18657.5412 | R91: 0.2114180953 | S91: 290723.1312 | T91: 536942.196 | U91: -246219.0648 | V91: -0.4585578609 | W91: 62 | X91: 111 | Y91: -49 | Z91: -0.4414414414 | AA91: 4689.082761 | AB91: 4837.317081 | AC91: -148.2343198 | AD91: -0.03064391217 | AE91: 18 | AF91: 45 | AG91: -27 | AH91: -0.6 | AI91: 1646.4 | AJ91: 2811.155924 | AK91: -1164.755924 | AL91: -0.414333447 | AM91: 578.8854553 | AN91: 559.4232007 | AO91: 19.46225461 | AP91: 0.0347898596 | AQ91: 0.351606812 | AR91: 0.1990011283 | AS91: 0.1526056837 | AT91: 7142.4 | AU91: 12060.84 | AV91: -4918.44 | AW91: -0.4078024416 | AX91: 0.06193432381 | AY91: 0.08507465592 | AZ91: -2.314033211 | BA91: 6069.76 | BB91: 3357.85 | BC91: 2711.91 | BD91: 0.8076328603 | BE91: 0.0526330759 | BF91: 0.02368557525 | BG91: 2.894750065
A92: C | B92: 199 | C92: 1173 | D92: ATTILA OYONNAX | E92: PAVIET Louis | F92: RHONE-ALPES | G92: OUI | H92: ANNEE 4 | I92: 46 | J92: 2022-02-02 | K92: 176192.92 | L92: 216803.56 | M92: -40610.64 | N92: -0.1873153743 | O92: 258313.93 | P92: 141662.4541 | Q92: 116651.4759 | R92: 0.8234466686 | S92: 852836.3915 | T92: 838888.2522 | U92: 13948.1393 | V92: 0.01662693364 | W92: 85 | X92: 61 | Y92: 24 | Z92: 0.393442623 | AA92: 10033.36931 | AB92: 13752.26643 | AC92: -3718.897118 | AD92: -0.2704206712 | AE92: 33 | AF92: 33 | AG92: 0 | AH92: 0 | AI92: 4433.974866 | AJ92: 4020.564257 | AK92: 413.4106084 | AL92: 0.1028240272 | AM92: 1594.739021 | AN92: 897.5257948 | AO92: 697.2132263 | AP92: 0.776816923 | AQ92: 0.359663523 | AR92: 0.2232337894 | AS92: 0.1364297336 | AT92: 0 | AU92: 2465.33 | AV92: -2465.33 | AW92: -1 | AX92: 0 | AY92: 0.01137126162 | AZ92: -1.137126162 | BA92: 1646.57 | BB92: 2440.39 | BC92: -793.82 | BD92: -0.3252840734 | BE92: 0.009345267676 | BF92: 0.0112562266 | BG92: -0.1910958928
A93: C | B93: 3 | C93: 3 | D93: ATTILA LYON SUD OUEST | E93: LAHAYE Benoit | F93: RHONE-ALPES | G93: OUI | H93: +5ANS | I93: 194 | J93: 2009-10-28 | K93: 103671.1 | L93: 128823.25 | M93: -25152.15 | N93: -0.1952454235 | O93: 199668.6785 | P93: 127394.6385 | Q93: 72274.04 | R93: 0.5673240322 | S93: 559202.99 | T93: 500820.3752 | U93: 58382.6148 | V93: 0.1165739608 | W93: 132 | X93: 125 | Y93: 7 | Z93: 0.056 | AA93: 4236.386288 | AB93: 4006.563002 | AC93: 229.8232863 | AD93: 0.05736170533 | AE93: 47 | AF93: 63 | AG93: -16 | AH93: -0.253968254 | AI93: 2913.476496 | AJ93: 2636.436213 | AK93: 277.0402827 | AL93: 0.1050813524 | AM93: 1118.125599 | AN93: 881.6814442 | AO93: 236.4441544 | AP93: 0.2681741302 | AQ93: 0.3837771131 | AR93: 0.3344216863 | AS93: 0.0493554268 | AT93: 10750.64 | AU93: 1064 | AV93: 9686.64 | AW93: 9.103984962 | AX93: 0.1036994881 | AY93: 0.008259378645 | AZ93: 9.544010945 | BA93: 4424.73 | BB93: 1693.42 | BC93: 2731.31 | BD93: 1.612895797 | BE93: 0.04268045772 | BF93: 0.01314529792 | BG93: 2.95351598
A94: C | B94: 45 | C94: 45 | D94: ATTILA GRENOBLE | E94: FAGES Thierry | F94: RHONE-ALPES | G94: OUI | H94: +5ANS | I94: 151 | J94: 2013-05-21 | K94: 28811.31 | L94: 36574.33 | M94: -7763.02 | N94: -0.2122532388 | O94: 41753.27 | P94: 27285.01 | Q94: 14468.26 | R94: 0.5302640534 | S94: 207675.86 | T94: 53125.59 | U94: 154550.27 | V94: 2.909149244 | W94: 36 | X94: 27 | Y94: 9 | Z94: 0.3333333333 | AA94: 5768.773889 | AB94: 1967.614444 | AC94: 3801.159444 | AD94: 1.931861933 | AE94: 18 | AF94: 18 | AG94: 0 | AH94: 0 | AI94: 945.0402833 | AJ94: 366.7976667 | AK94: 578.2426167 | AL94: 1.576462091 | AM94: 268.65 | AN94: 178.1666667 | AO94: 90.48333333 | AP94: 0.507857811 | AQ94: 0.2842735963 | AR94: 0.4857355508 | AS94: -0.2014619545 | AT94: 0 | AU94: 0 | AV94: 0 | AW94: 0 | AX94: 0 | AY94: 0 | AZ94: 0 | BA94: 0 | BB94: 0 | BC94: 0 | BD94: 0 | BE94: 0 | BF94: 0 | BG94: 0
A95: C | B95: 170 | C95: 1166 | D95: ATTILA ROUEN EST | E95: DE VILLERS Loïc | F95: NORMANDIE-PARIS | G95: OUI | H95: ANNEE 5 | I95: 54 | J95: 2021-06-17 | K95: 85771.15 | L95: 112489.75 | M95: -26718.6 | N95: -0.2375203074 | O95: 174751.16 | P95: 95292.024 | Q95: 79459.136 | R95: 0.8338487595 | S95: 658755.994 | T95: 207857.0672 | U95: 450898.9267 | V95: 2.169273976 | W95: 138 | X95: 51 | Y95: 87 | Z95: 1.705882353 | AA95: 4773.594159 | AB95: 4075.62877 | AC95: 697.9653898 | AD95: 0.171253426 | AE95: 78 | AF95: 30 | AG95: 48 | AH95: 1.6 | AI95: 3922.053972 | AJ95: 1295.619689 | AK95: 2626.434283 | AL95: 2.027164533 | AM95: 1146.660073 | AN95: 627.1428334 | AO95: 519.5172399 | AP95: 0.8283874299 | AQ95: 0.2923621351 | AR95: 0.4840485511 | AS95: -0.191686416 | AT95: 0 | AU95: 5845.34 | AV95: -5845.34 | AW95: -1 | AX95: 0 | AY95: 0.05196331221 | AZ95: -5.196331221 | BA95: 0 | BB95: 0 | BC95: 0 | BD95: 0 | BE95: 0 | BF95: 0 | BG95: 0
A96: C | B96: 200 | C96: 1174 | D96: ATTILA ANNECY EST | E96: SCHILLER Gérald | F96: RHONE-ALPES | G96: OUI | H96: ANNEE 4 | I96: 46 | J96: 2022-02-02 | K96: 31695.75 | L96: 41631.54 | M96: -9935.79 | N96: -0.2386601601 | O96: 25510.3 | P96: 51224.58 | Q96: -25714.28 | R96: -0.5019910363 | S96: 170067.7497 | T96: 396522.709 | U96: -226454.9593 | V96: -0.5711021189 | W96: 25 | X96: 45 | Y96: -20 | Z96: -0.4444444444 | AA96: 6802.709988 | AB96: 8811.615756 | AC96: -2008.905768 | AD96: -0.227983814 | AE96: 9 | AF96: 15 | AG96: -6 | AH96: -0.4 | AI96: 841.9354438 | AJ96: 1993.96847 | AK96: -1152.033026 | AL96: -0.5777588981 | AM96: 149.4704438 | AN96: 280.9186411 | AO96: -131.4481973 | AP96: -0.4679226583 | AQ96: 0.1775319532 | AR96: 0.1408841942 | AS96: 0.03664775899 | AT96: 4051.34 | AU96: 3125 | AV96: 926.34 | AW96: 0.2964288 | AX96: 0.1278196604 | AY96: 0.07506328135 | AZ96: 5.275637902 | BA96: 405.72 | BB96: 1438.32 | BC96: -1032.6 | BD96: -0.7179209077 | BE96: 0.01280045432 | BF96: 0.03454880603 | BG96: -2.174835171
A97: C | B97: 223 | C97: 1198 | D97: ATTILA DREUX | E97: BOONE Jean-Baptiste | F97: CENTRE VAL-DE-LOIRE | G97: OUI | H97: ANNEE 3 | I97: 29 | J97: 2023-07-12 | K97: 37094.56 | L97: 51261.85 | M97: -14167.29 | N97: -0.2763710245 | O97: 25365.439 | P97: 88924.85 | Q97: -63559.411 | R97: -0.714754211 | S97: 1446802.27 | T97: 547796.5857 | U97: 899005.6841 | V97: 1.641130499 | W97: 104 | X97: 88 | Y97: 16 | Z97: 0.1818181818 | AA97: 13911.56029 | AB97: 6224.961201 | AC97: 7686.599085 | AD97: 1.23480273 | AE97: 18 | AF97: 24 | AG97: -6 | AH97: -0.25 | AI97: 8634.621822 | AJ97: 2972.6078 | AK97: 5662.014022 | AL97: 1.904729586 | AM97: 185.1447699 | AN97: 539.0928805 | AO97: -353.9481106 | AP97: -0.656562391 | AQ97: 0.02144213999 | AR97: 0.1813535175 | AS97: -0.1599113775 | AT97: 1134.97 | AU97: 0 | AV97: 1134.97 | AW97: 0 | AX97: 0.0305966697 | AY97: 0 | AZ97: 3.05966697 | BA97: 3942.4 | BB97: 5345.19 | BC97: -1402.79 | BD97: -0.2624396888 | BE97: 0.1062797348 | BF97: 0.1042722805 | BG97: 0.200745436
A98: C | B98: 58 | C98: 58 | D98: ATTILA VIENNE | E98: REVEL Aurélien | F98: CENTRE | G98: OUI | H98: +5ANS | I98: 139 | J98: 2014-05-28 | K98: 39959.62 | L98: 55222.88 | M98: -15263.26 | N98: -0.2763937701 | O98: 31076.31 | P98: 45562.3115 | Q98: -14486.0015 | R98: -0.3179382482 | S98: 78581.87 | T98: 245238.07 | U98: -166656.2 | V98: -0.6795690408 | W98: 47 | X98: 41 | Y98: 6 | Z98: 0.1463414634 | AA98: 1671.954681 | AB98: 5981.416341 | AC98: -4309.461661 | AD98: -0.7204751207 | AE98: 31 | AF98: 29 | AG98: 2 | AH98: 0.06896551724 | AI98: 356.42275 | AJ98: 1432.52 | AK98: -1076.09725 | AL98: -0.7511917809 | AM98: 201.80775 | AN98: 248.06 | AO98: -46.25225 | AP98: -0.1864558978 | AQ98: 0.5662033358 | AR98: 0.1731633764 | AS98: 0.3930399594 | AT98: 663 | AU98: 569.91 | AV98: 93.09 | AW98: 0.1633415802 | AX98: 0.01659174937 | AY98: 0.01032017888 | AZ98: 0.6271570489 | BA98: 111.74 | BB98: 0 | BC98: 111.74 | BD98: 0 | BE98: 0.002796322888 | BF98: 0 | BG98: 0.2796322888
A99: C | B99: 23 | C99: 23 | D99: ATTILA VILLEFRANCHE-SUR-SAONE | E99: BELLOT Marc | F99: RHONE-ALPES | G99: OUI | H99: +5ANS | I99: 174 | J99: 2011-06-06 | K99: 80492.69 | L99: 111406.96 | M99: -30914.27 | N99: -0.2774895752 | O99: 46615.4646 | P99: 114081.3347 | Q99: -67465.8701 | R99: -0.5913839479 | S99: 277342.0428 | T99: 197717.2416 | U99: 79624.8012 | V99: 0.4027205749 | W99: 81 | X99: 63 | Y99: 18 | Z99: 0.2857142857 | AA99: 3423.975837 | AB99: 3138.368914 | AC99: 285.6069228 | AD99: 0.09100489157 | AE99: 27 | AF99: 46 | AG99: -19 | AH99: -0.4130434783 | AI99: 1637.724527 | AJ99: 1183.047982 | AK99: 454.6765457 | AL99: 0.384326378 | AM99: 292.2470507 | AN99: 735.4583822 | AO99: -443.2113315 | AP99: -0.6026327828 | AQ99: 0.1784470134 | AR99: 0.6216640353 | AS99: -0.4432170219 | AT99: 0 | AU99: 1377.57 | AV99: -1377.57 | AW99: -1 | AX99: 0 | AY99: 0.01236520591 | AZ99: -1.236520591 | BA99: 4536.37 | BB99: 8920.7 | BC99: -4384.33 | BD99: -0.4914782472 | BE99: 0.05635754004 | BF99: 0.08007309418 | BG99: -2.371555413
A100: C | B100: 214 | C100: 1189 | D100: ATTILA SAINT NAZAIRE | E100: CLENET Benoit | F100: BRETAGNE | G100: OUI | H100: ANNEE 3 | I100: 35 | J100: 2023-01-05 | K100: 36465.58 | L100: 50628.14 | M100: -14162.56 | N100: -0.279736921 | O100: 36771.27 | P100: 33999.6 | Q100: 2771.67 | R100: 0.08152066495 | S100: 174981.14 | T100: 279820.8727 | U100: -104839.7327 | V100: -0.3746673066 | W100: 56 | X100: 52 | Y100: 4 | Z100: 0.07692307692 | AA100: 3124.663214 | AB100: 5381.170629 | AC100: -2256.507415 | AD100: -0.4193339275 | AE100: 21 | AF100: 28 | AG100: -7 | AH100: -0.25 | AI100: 960.7413638 | AJ100: 1292.935543 | AK100: -332.1941794 | AL100: -0.2569301936 | AM100: 218.4393403 | AN100: 245.1204314 | AO100: -26.68109109 | AP100: -0.1088489072 | AQ100: 0.2273653956 | AR100: 0.1895844172 | AS100: 0.03778097848 | AT100: 0 | AU100: 2865.11 | AV100: -2865.11 | AW100: -1 | AX100: 0 | AY100: 0.05659125538 | AZ100: -5.659125538 | BA100: 240.2 | BB100: 744.06 | BC100: -503.86 | BD100: -0.6771765718 | BE100: 0.006587033581 | BF100: 0.01469656993 | BG100: -0.8109536351
A101: C | B101: 154 | C101: 151 | D101: ATTILA SAINT BRIEUC | E101: JACOB Stéphane | F101: BRETAGNE | G101: OUI | H101: ANNEE 2 | I101: 19 | J101: 2024-05-16 | K101: 79666.1 | L101: 112168.7 | M101: -32502.6 | N101: -0.2897653267 | O101: 144571.0076 | P101: 83740.1 | Q101: 60830.90756 | R101: 0.7264250647 | S101: 363301.9749 | T101: 427353.46 | U101: -64051.4851 | V101: -0.1498794115 | W101: 107 | X101: 86 | Y101: 21 | Z101: 0.2441860465 | AA101: 3395.34556 | AB101: 4969.226279 | AC101: -1573.880719 | AD101: -0.3167255083 | AE101: 35 | AF101: 35 | AG101: 0 | AH101: 0 | AI101: 2297.796783 | AJ101: 2705.734857 | AK101: -407.9380742 | AL101: -0.1507679414 | AM101: 965.9734775 | AN101: 574.4185201 | AO101: 391.5549574 | AP101: 0.6816544795 | AQ101: 0.4203911698 | AR101: 0.2122966774 | AS101: 0.2080944924 | AT101: 0 | AU101: 2396.25 | AV101: -2396.25 | AW101: -1 | AX101: 0 | AY101: 0.0213629114 | AZ101: -2.13629114 | BA101: 1480.22 | BB101: 1999.42 | BC101: -519.2 | BD101: -0.2596753058 | BE101: 0.01858029953 | BF101: 0.01782511521 | BG101: 0.07551843192
A102: C | B102: 80 | C102: 80 | D102: ATTILA BOURG-EN-BRESSE | E102: BELLOT Marc | F102: RHONE-ALPES | G102: OUI | H102: +5ANS | I102: 137 | J102: 2014-07-17 | K102: 56037.5 | L102: 79082.85 | M102: -23045.35 | N102: -0.2914076819 | O102: 33061.19 | P102: 36468.262 | Q102: -3407.072 | R102: -0.09342567518 | S102: 139461.02 | T102: 200754.742 | U102: -61293.722 | V102: -0.3053164343 | W102: 40 | X102: 58 | Y102: -18 | Z102: -0.3103448276 | AA102: 3486.5255 | AB102: 3461.288655 | AC102: 25.23684483 | AD102: 0.007291170238 | AE102: 19 | AF102: 19 | AG102: 0 | AH102: 0 | AI102: 763.9463736 | AJ102: 1194.170766 | AK102: -430.2243921 | AL102: -0.3602704106 | AM102: 190.5079167 | AN102: 238.733724 | AO102: -48.22580729 | AP102: -0.2020066813 | AQ102: 0.2493734158 | AR102: 0.1999159005 | AS102: 0.04945751531 | AT102: 5429.06 | AU102: 2167.77 | AV102: 3261.29 | AW102: 1.50444466 | AX102: 0.09688262324 | AY102: 0.02741137933 | AZ102: 6.947124391 | BA102: 430.43 | BB102: 4082.9 | BC102: -3652.47 | BD102: -0.8945773837 | BE102: 0.007681106402 | BF102: 0.05162813429 | BG102: -4.394702789
A103: C | B103: 77 | C103: 77 | D103: ATTILA SAINT-GERMAIN-EN-LAYE | E103: CATHERINE Philippe | F103: NORMANDIE-PARIS | G103: OUI | H103: +5ANS | I103: 118 | J103: 2016-02-08 | K103: 39009.06 | L103: 55315.38 | M103: -16306.32 | N103: -0.2947881765 | O103: 28389.6 | P103: 33417.9 | Q103: -5028.3 | R103: -0.1504672645 | S103: 148577.63 | T103: 167989.81 | U103: -19412.18 | V103: -0.1155556995 | W103: 42 | X103: 64 | Y103: -22 | Z103: -0.34375 | AA103: 3537.562619 | AB103: 2624.840781 | AC103: 912.7218378 | AD103: 0.3477246484 | AE103: 17 | AF103: 32 | AG103: -15 | AH103: -0.46875 | AI103: 900.2918458 | AJ103: 962.8655587 | AK103: -62.57371289 | AL103: -0.06498696763 | AM103: 189.6580102 | AN103: 225.8896531 | AO103: -36.23164291 | AP103: -0.1603953187 | AQ103: 0.2106628102 | AR103: 0.2346014468 | AS103: -0.02393863661 | AT103: 9164.04 | AU103: 27286.98 | AV103: -18122.94 | AW103: -0.6641607096 | AX103: 0.2349208107 | AY103: 0.4932982473 | AZ103: -25.83774365 | BA103: 0 | BB103: 778.52 | BC103: -778.52 | BD103: -1 | BE103: 0 | BF103: 0.01407420504 | BG103: -1.407420504
A104: C | B104: 218 | C104: 1193 | D104: ATTILA CAEN OUEST | E104: TAVELIN Emilie | F104: NORMANDIE-PARIS | G104: OUI | H104: ANNEE 3 | I104: 29 | J104: 2023-07-12 | K104: 21586.2 | L104: 30647.99 | M104: -9061.79 | N104: -0.2956732236 | O104: 53787.1181 | P104: 67620.571 | Q104: -13833.4529 | R104: -0.2045746242 | S104: 207622.511 | T104: 124666.7247 | U104: 82955.7863 | V104: 0.665420436 | W104: 116 | X104: 44 | Y104: 72 | Z104: 1.636363636 | AA104: 1789.849233 | AB104: 2833.334652 | AC104: -1043.48542 | AD104: -0.3682888002 | AE104: 28 | AF104: 32 | AG104: -4 | AH104: -0.125 | AI104: 1088.789636 | AJ104: 823.2457333 | AK104: 265.5439031 | AL104: 0.3225572783 | AM104: 281.8071365 | AN104: 416.40512 | AO104: -134.5979835 | AP104: -0.3232380608 | AQ104: 0.2588260644 | AR104: 0.5058090229 | AS104: -0.2469829586 | AT104: 3660.58 | AU104: 7484.07 | AV104: -3823.49 | AW104: -0.5108837838 | AX104: 0.1695796388 | AY104: 0.2441944806 | AZ104: -7.461484177 | BA104: 0 | BB104: 140.52 | BC104: -140.52 | BD104: -1 | BE104: 0 | BF104: 0.004584966257 | BG104: -0.4584966257
A105: C | B105: 35 | C105: 35 | D105: ATTILA LA ROCHE-SUR-YON | E105: GODDE Fabien | F105: DEUX-SEVRES | G105: OUI | H105: ANNEE 1 | I105: 8 | J105: 2025-04-10 | K105: 53196.43 | L105: 75845.08 | M105: -22648.65 | N105: -0.2986172603 | O105: 61533.14 | P105: 101397.87 | Q105: -39864.73 | R105: -0.3931515524 | S105: 186202.08 | T105: 365001.07 | U105: -178798.99 | V105: -0.4898588106 | W105: 110 | X105: 126 | Y105: -16 | Z105: -0.126984127 | AA105: 1692.746182 | AB105: 2896.833889 | AC105: -1204.087707 | AD105: -0.4156564557 | AE105: 74 | AF105: 74 | AG105: 0 | AH105: 0 | AI105: 1176.179677 | AJ105: 2048.887515 | AK105: -872.7078374 | AL105: -0.4259422888 | AM105: 446.8133182 | AN105: 599.888948 | AO105: -153.0756299 | AP105: -0.2551732789 | AQ105: 0.3798852563 | AR105: 0.2927876439 | AS105: 0.08709761244 | AT105: 0 | AU105: 1494.92 | AV105: -1494.92 | AW105: -1 | AX105: 0 | AY105: 0.01971017764 | AZ105: -1.971017764 | BA105: 1207 | BB105: 91.84 | BC105: 1115.16 | BD105: 12.1424216 | BE105: 0.02268949251 | BF105: 0.001210889355 | BG105: 2.147860315
A106: C | B106: 168 | C106: 1164 | D106: ATTILA PAU | E106: SAUTIER Guillaume | F106: SUD-OUEST | G106: OUI | H106: ANNEE 5 | I106: 52 | J106: 2021-08-03 | K106: 65108.09 | L106: 93211.4 | M106: -28103.31 | N106: -0.3015007821 | O106: 136843.8 | P106: 60311.84 | Q106: 76531.96 | R106: 1.268937575 | S106: 210687.2 | T106: 302097.16 | U106: -91409.96 | V106: -0.3025846387 | W106: 59 | X106: 73 | Y106: -14 | Z106: -0.1917808219 | AA106: 3570.969492 | AB106: 4138.31726 | AC106: -567.3477687 | AD106: -0.1370962478 | AE106: 31 | AF106: 28 | AG106: 3 | AH106: 0.1071428571 | AI106: 1220.098885 | AJ106: 1820.375614 | AK106: -600.2767292 | AL106: -0.3297543236 | AM106: 758.5138201 | AN106: 367.2118633 | AO106: 391.3019568 | AP106: 1.06560271 | AQ106: 0.6216822502 | AR106: 0.2017231282 | AS106: 0.419959122 | AT106: 1328.13 | AU106: 3066 | AV106: -1737.87 | AW106: -0.5668199609 | AX106: 0.02039884752 | AY106: 0.03289297232 | AZ106: -1.24941248 | BA106: 1189.91 | BB106: 251.14 | BC106: 938.77 | BD106: 3.738034562 | BE106: 0.01827591625 | BF106: 0.002694305632 | BG106: 1.558161062
A107: C | B107: 148 | C107: 145 | D107: ATTILA LES SABLES D'OLONNE | E107: GODDE Fabien | F107: DEUX-SEVRES | G107: OUI | H107: ANNEE 1 | I107: 8 | J107: 2025-04-10 | K107: 29588.92 | L107: 42413.19 | M107: -12824.27 | N107: -0.3023651369 | O107: 17096.7 | P107: 28034.37 | Q107: -10937.67 | R107: -0.3901521597 | S107: 180203.6 | T107: 83399.76 | U107: 96803.84 | V107: 1.160720846 | W107: 59 | X107: 37 | Y107: 22 | Z107: 0.5945945946 | AA107: 3054.298305 | AB107: 2254.047568 | AC107: 800.2507375 | AD107: 0.3550283273 | AE107: 11 | AF107: 19 | AG107: -8 | AH107: -0.4210526316 | AI107: 1083.397729 | AJ107: 496.2735815 | AK107: 587.1241471 | AL107: 1.183065488 | AM107: 110.9915033 | AN107: 150.84407 | AO107: -39.85256667 | AP107: -0.2641971054 | AQ107: 0.1024476057 | AR107: 0.3039534555 | AS107: -0.2015058498 | AT107: 0 | AU107: 4159.89 | AV107: -4159.89 | AW107: -1 | AX107: 0 | AY107: 0.09808010197 | AZ107: -9.808010197 | BA107: 0 | BB107: 0 | BC107: 0 | BD107: 0 | BE107: 0 | BF107: 0 | BG107: 0
A108: C | B108: 206 | C108: 1180 | D108: ATTILA CHOLET EST | E108: PASQUET Christophe | F108: DEUX-SEVRES | G108: OUI | H108: ANNEE 5 | I108: 51 | J108: 2021-09-14 | K108: 54461.12 | L108: 78373.02 | M108: -23911.9 | N108: -0.3051037206 | O108: 113893.91 | P108: 96384.6865 | Q108: 17509.2235 | R108: 0.1816598065 | S108: 491332.85 | T108: 217404.5 | U108: 273928.35 | V108: 1.259993928 | W108: 65 | X108: 72 | Y108: -7 | Z108: -0.09722222222 | AA108: 7558.966923 | AB108: 3019.506944 | AC108: 4539.459979 | AD108: 1.50337789 | AE108: 28 | AF108: 35 | AG108: -7 | AH108: -0.2 | AI108: 2218.319861 | AJ108: 1251.851871 | AK108: 966.4679894 | AL108: 0.7720306305 | AM108: 709.2704462 | AN108: 604.2177739 | AO108: 105.0526723 | AP108: 0.1738655777 | AQ108: 0.3197331723 | AR108: 0.4826591611 | AS108: -0.1629259887 | AT108: 3590.09 | AU108: 644.82 | AV108: 2945.27 | AW108: 4.567584752 | AX108: 0.06592023814 | AY108: 0.008227576276 | AZ108: 5.769266187 | BA108: 332.69 | BB108: 0 | BC108: 332.69 | BD108: 0 | BE108: 0.006108761627 | BF108: 0 | BG108: 0.6108761627
A109: C | B109: 202 | C109: 1176 | D109: ATTILA AGEN | E109: BONVILA Bruno | F109: SUD-OUEST | G109: OUI | H109: ANNEE 4 | I109: 43 | J109: 2022-05-25 | K109: 29934.72 | L109: 43217.28 | M109: -13282.56 | N109: -0.3073437292 | O109: 54571.454 | P109: 92720.677 | Q109: -38149.223 | R109: -0.4114424553 | S109: 135905.768 | T109: 188770.16 | U109: -52864.392 | V109: -0.2800463378 | W109: 44 | X109: 53 | Y109: -9 | Z109: -0.1698113208 | AA109: 3088.767455 | AB109: 3561.701132 | AC109: -472.9336775 | AD109: -0.1327830888 | AE109: 16 | AF109: 26 | AG109: -10 | AH109: -0.3846153846 | AI109: 848.8879402 | AJ109: 1164.363108 | AK109: -315.475168 | AL109: -0.2709422566 | AM109: 337.6065167 | AN109: 631.9857845 | AO109: -294.3792678 | AP109: -0.4658004579 | AQ109: 0.3977044562 | AR109: 0.5427737963 | AS109: -0.14506934 | AT109: 1081.53 | AU109: 3543 | AV109: -2461.47 | AW109: -0.6947417443 | AX109: 0.03612961805 | AY109: 0.08198109645 | AZ109: -4.58514784 | BA109: 4945.64 | BB109: 1606.89 | BC109: 3338.75 | BD109: 2.077771347 | BE109: 0.1652141727 | BF109: 0.03718165512 | BG109: 12.80325176
A110: C | B110: 25 | C110: 25 | D110: ATTILA NANTES OUEST | E110: HEMERY Gildas | F110: BRETAGNE | G110: OUI | H110: ANNEE 2 | I110: 19 | J110: 2024-05-16 | K110: 80076.09 | L110: 117928.1 | M110: -37852.01 | N110: -0.3209753231 | O110: 116738.92 | P110: 115396.67 | Q110: 1342.25 | R110: 0.01163161814 | S110: 861868.12 | T110: 420254.98 | U110: 441613.14 | V110: 1.050821908 | W110: 131 | X110: 87 | Y110: 44 | Z110: 0.5057471264 | AA110: 6579.145954 | AB110: 4830.517011 | AC110: 1748.628943 | AD110: 0.3619962291 | AE110: 43 | AF110: 43 | AG110: 0 | AH110: 0 | AI110: 3813.003738 | AJ110: 2318.51122 | AK110: 1494.492518 | AL110: 0.644591454 | AM110: 799.5608084 | AN110: 844.7426351 | AO110: -45.18182674 | AP110: -0.05348590785 | AQ110: 0.2096931614 | AR110: 0.364347012 | AS110: -0.1546538505 | AT110: 4543.55 | AU110: 900 | AV110: 3643.55 | AW110: 4.048388889 | AX110: 0.05674040778 | AY110: 0.007631768849 | AZ110: 4.910863893 | BA110: 101.98 | BB110: 3644.88 | BC110: -3542.9 | BD110: -0.9720210268 | BE110: 0.001273538705 | BF110: 0.03090764627 | BG110: -2.963410756
A111: C | B111: 166 | C111: 1161 | D111: ATTILA LYON PLAINE DE L'AIN | E111: LAHAYE Benoit | F111: RHONE-ALPES | G111: OUI | H111: ANNEE 5 | I111: 55 | J111: 2021-05-28 | K111: 46606.84 | L111: 69491.06 | M111: -22884.22 | N111: -0.3293117129 | O111: 32395.78 | P111: 36618.24 | Q111: -4222.46 | R111: -0.1153102934 | S111: 155040.86 | T111: 572068.277 | U111: -417027.417 | V111: -0.7289818956 | W111: 49 | X111: 100 | Y111: -51 | Z111: -0.51 | AA111: 3164.099184 | AB111: 5720.68277 | AC111: -2556.583586 | AD111: -0.4469018278 | AE111: 25 | AF111: 26 | AG111: -1 | AH111: -0.03846153846 | AI111: 919.9296433 | AJ111: 2485.967679 | AK111: -1566.038035 | AL111: -0.6299510846 | AM111: 241.3656296 | AN111: 298.6398453 | AO111: -57.2742157 | AP111: -0.1917835701 | AQ111: 0.2623740102 | AR111: 0.1201302205 | AS111: 0.1422437897 | AT111: 1263.32 | AU111: 0 | AV111: 1263.32 | AW111: 0 | AX111: 0.02710589261 | AY111: 0 | AZ111: 2.710589261 | BA111: 568.56 | BB111: -529.8 | BC111: 1098.36 | BD111: -2.073159683 | BE111: 0.01219906778 | BF111: -0.007624002282 | BG111: 1.982307006
A112: C | B112: 76 | C112: 76 | D112: ATTILA ROANNE | E112: COSSARD François | F112: CENTRE | G112: OUI | H112: +5ANS | I112: 123 | J112: 2015-09-28 | K112: 77203.62 | L112: 116276.48 | M112: -39072.86 | N112: -0.3360340802 | O112: 73717.481 | P112: 47345.5605 | Q112: 26371.9205 | R112: 0.5570093631 | S112: 597985.801 | T112: 352494.3805 | U112: 245491.4205 | V112: 0.6964406643 | W112: 60 | X112: 55 | Y112: 5 | Z112: 0.09090909091 | AA112: 9966.430017 | AB112: 6408.988736 | AC112: 3557.44128 | AD112: 0.5550706089 | AE112: 29 | AF112: 20 | AG112: 9 | AH112: 0.45 | AI112: 3257.653069 | AJ112: 1954.275295 | AK112: 1303.377773 | AL112: 0.6669366266 | AM112: 390.7972983 | AN112: 324.3183919 | AO112: 66.47890643 | AP112: 0.2049803776 | AQ112: 0.1199628352 | AR112: 0.1659532783 | AS112: -0.04599044302 | AT112: 1175 | AU112: 0 | AV112: 1175 | AW112: 0 | AX112: 0.01521949359 | AY112: 0 | AZ112: 1.521949359 | BA112: 0 | BB112: 191.07 | BC112: -191.07 | BD112: -1 | BE112: 0 | BF112: 0.001643238598 | BG112: -0.1643238598
A113: C | B113: 102 | C113: 103 | D113: ATTILA CHAMBERY OUEST | E113: ADAM Thierry | F113: RHONE-ALPES | G113: OUI | H113: +5ANS | I113: 103 | J113: 2017-05-30 | K113: 42721.71 | L113: 64429.03 | M113: -21707.32 | N113: -0.3369183115 | O113: 39336.67 | P113: 59992.78 | Q113: -20656.11 | R113: -0.344309932 | S113: 79144.68 | T113: 281923.84 | U113: -202779.16 | V113: -0.7192692892 | W113: 30 | X113: 60 | Y113: -30 | Z113: -0.5 | AA113: 2638.156 | AB113: 4698.730667 | AC113: -2060.574667 | AD113: -0.4385385784 | AE113: 12 | AF113: 24 | AG113: -12 | AH113: -0.5 | AI113: 376.4386754 | AJ113: 1105.666759 | AK113: -729.228084 | AL113: -0.6595369516 | AM113: 222.3956923 | AN113: 326.6675854 | AO113: -104.2718931 | AP113: -0.3191987749 | AQ113: 0.590788638 | AR113: 0.2954484998 | AS113: 0.2953401381 | AT113: 552 | AU113: 5669.63 | AV113: -5117.63 | AW113: -0.9026391493 | AX113: 0.01292083112 | AY113: 0.08799806547 | AZ113: -7.507723435 | BA113: 427.57 | BB113: 0 | BC113: 427.57 | BD113: 0 | BE113: 0.01000826044 | BF113: 0 | BG113: 1.000826044
A114: C | B114: 198 | C114: 1172 | D114: ATTILA MONTELIMAR | E114: BERNARD Christophe | F114: CENTRE | G114: OUI | H114: ANNEE 4 | I114: 46 | J114: 2022-02-14 | K114: 61720.07 | L114: 95590.85 | M114: -33870.78 | N114: -0.3543307754 | O114: 168508.352 | P114: 68909.0542 | Q114: 99599.2978 | R114: 1.445373165 | S114: 406255.24 | T114: 693167.8298 | U114: -286912.5898 | V114: -0.4139150397 | W114: 74 | X114: 82 | Y114: -8 | Z114: -0.09756097561 | AA114: 5489.935676 | AB114: 8453.266217 | AC114: -2963.330541 | AD114: -0.3505545035 | AE114: 54 | AF114: 27 | AG114: 27 | AH114: 1 | AI114: 2084.471949 | AJ114: 3510.464302 | AK114: -1425.992352 | AL114: -0.4062118939 | AM114: 941.4860207 | AN114: 418.4805251 | AO114: 523.0054957 | AP114: 1.249772604 | AQ114: 0.4516664382 | AR114: 0.1192094518 | AS114: 0.3324569863 | AT114: 1016 | AU114: 9752.91 | AV114: -8736.91 | AW114: -0.8958259637 | AX114: 0.01646142009 | AY114: 0.1020276522 | AZ114: -8.556623214 | BA114: 1134.31 | BB114: 1565.36 | BC114: -431.05 | BD114: -0.2753679665 | BE114: 0.01837830061 | BF114: 0.01637562591 | BG114: 0.2002674698
A115: C | B115: 172 | C115: 1168 | D115: ATTILA BERNAY | E115: RENAULD Frédéric | F115: NORMANDIE-PARIS | G115: OUI | H115: ANNEE 5 | I115: 52 | J115: 2021-08-26 | K115: 57555.68 | L115: 89218.52 | M115: -31662.84 | N115: -0.3548908904 | O115: 192386.97 | P115: 164811.97 | Q115: 27575 | R115: 0.1673118767 | S115: 277564.87 | T115: 246413.4885 | U115: 31151.3815 | V115: 0.1264191408 | W115: 44 | X115: 47 | Y115: -3 | Z115: -0.06382978723 | AA115: 6308.2925 | AB115: 5242.840181 | AC115: 1065.452319 | AD115: 0.2032204459 | AE115: 35 | AF115: 28 | AG115: 7 | AH115: 0.25 | AI115: 1587.256157 | AJ115: 1514.845819 | AK115: 72.41033732 | AL115: 0.04780046682 | AM115: 1113.855708 | AN115: 1041.194517 | AO115: 72.6611913 | AP115: 0.06978637526 | AQ115: 0.7017491813 | AR115: 0.6873270559 | AS115: 0.0144221254 | AT115: 1650 | AU115: 13476.67 | AV115: -11826.67 | AW115: -0.877566194 | AX115: 0.02866789168 | AY115: 0.1510523824 | AZ115: -12.23844907 | BA115: 0 | BB115: 6644.37 | BC115: -6644.37 | BD115: -1 | BE115: 0 | BF115: 0.07447299059 | BG115: -7.447299059
A116: C | B116: 33 | C116: 33 | D116: ATTILA SAINT-ETIENNE ANDREZIEUX | E116: BASTIN Thierry | F116: CENTRE | G116: OUI | H116: +5ANS | I116: 163 | J116: 2012-05-02 | K116: 49365.42 | L116: 77265.16 | M116: -27899.74 | N116: -0.3610908202 | O116: 138419.4875 | P116: 105159.7185 | Q116: 33259.769 | R116: 0.3162786043 | S116: 403364.1388 | T116: 356523.9503 | U116: 46840.18852 | V116: 0.1313802017 | W116: 105 | X116: 117 | Y116: -12 | Z116: -0.1025641026 | AA116: 3841.563227 | AB116: 3047.21325 | AC116: 794.3499764 | AD116: 0.2606807962 | AE116: 64 | AF116: 60 | AG116: 4 | AH116: 0.06666666667 | AI116: 2346.366172 | AJ116: 2130.841482 | AK116: 215.5246898 | AL116: 0.1011453417 | AM116: 955.9496433 | AN116: 784.0245342 | AO116: 171.9251091 | AP116: 0.2192853688 | AQ116: 0.4074170753 | AR116: 0.3679412761 | AS116: 0.03947579913 | AT116: 2213.99 | AU116: 4254.26 | AV116: -2040.27 | AW116: -0.4795828182 | AX116: 0.04484900564 | AY116: 0.05506052146 | AZ116: -1.021151582 | BA116: 788 | BB116: 90.1 | BC116: 697.9 | BD116: 7.745837958 | BE116: 0.01596259082 | BF116: 0.001166114197 | BG116: 1.479647662
A117: C | B117: 60 | C117: 60 | D117: ATTILA ISSOIRE | E117: VILLIET Philippe | F117: CENTRE | G117: OUI | H117: +5ANS | I117: 130 | J117: 2015-02-16 | K117: 22719.41 | L117: 36219.07 | M117: -13499.66 | N117: -0.372722436 | O117: 18873.38 | P117: 48858.82 | Q117: -29985.44 | R117: -0.6137160087 | S117: 117240.09 | T117: 69336.44 | U117: 47903.65 | V117: 0.6908870718 | W117: 22 | X117: 24 | Y117: -2 | Z117: -0.08333333333 | AA117: 5329.095 | AB117: 2889.018333 | AC117: 2440.076667 | AD117: 0.8446040783 | AE117: 14 | AF117: 23 | AG117: -9 | AH117: -0.3913043478 | AI117: 402.7541667 | AJ117: 293.4068093 | AK117: 109.3473573 | AL117: 0.3726817302 | AM117: 110.025 | AN117: 259.8509887 | AO117: -149.8259887 | AP117: -0.5765842549 | AQ117: 0.2731815313 | AR117: 0.8856338041 | AS117: -0.6124522728 | AT117: 0 | AU117: 6278.5 | AV117: -6278.5 | AW117: -1 | AX117: 0 | AY117: 0.1733479076 | AZ117: -17.33479076 | BA117: 334.92 | BB117: 0 | BC117: 334.92 | BD117: 0 | BE117: 0.01474158 | BF117: 0 | BG117: 1.474158
A118: C | B118: 69 | C118: 69 | D118: ATTILA CHOLET OUEST | E118: PASQUET Christophe | F118: DEUX-SEVRES | G118: OUI | H118: +5ANS | I118: 126 | J118: 2015-06-29 | K118: 57668.57 | L118: 92595.99 | M118: -34927.42 | N118: -0.3772022957 | O118: 118018.38 | P118: 121977.7995 | Q118: -3959.4195 | R118: -0.03246016502 | S118: 284633.14 | T118: 246383.5295 | U118: 38249.6105 | V118: 0.1552441861 | W118: 96 | X118: 92 | Y118: 4 | Z118: 0.04347826087 | AA118: 2964.928542 | AB118: 2678.081842 | AC118: 286.8466993 | AD118: 0.1071090117 | AE118: 66 | AF118: 40 | AG118: 26 | AH118: 0.65 | AI118: 1594.842746 | AJ118: 1588.064391 | AK118: 6.778354786 | AL118: 0.004268312309 | AM118: 768.791127 | AN118: 886.7832727 | AO118: -117.9921457 | AP118: -0.1330563502 | AQ118: 0.4820482328 | AR118: 0.5584051112 | AS118: -0.07635687845 | AT118: 2590.26 | AU118: 0 | AV118: 2590.26 | AW118: 0 | AX118: 0.04491632097 | AY118: 0 | AZ118: 4.491632097 | BA118: 367.04 | BB118: 0 | BC118: 367.04 | BD118: 0 | BE118: 0.006364645421 | BF118: 0 | BG118: 0.6364645421
A119: C | B119: 43 | C119: 43 | D119: ATTILA ANGERS SUD | E119: FORESTIER Xavier | F119: DEUX-SEVRES | G119: OUI | H119: +5ANS | I119: 150 | J119: 2013-06-07 | K119: 69306.62 | L119: 112764.17 | M119: -43457.55 | N119: -0.3853843823 | O119: 95447.42 | P119: 191031.2636 | Q119: -95583.8436 | R119: -0.5003570714 | S119: 250455.85 | T119: 297597.72 | U119: -47141.87 | V119: -0.1584080348 | W119: 101 | X119: 130 | Y119: -29 | Z119: -0.2230769231 | AA119: 2479.760891 | AB119: 2289.213231 | AC119: 190.5476603 | AD119: 0.08323718287 | AE119: 48 | AF119: 64 | AG119: -16 | AH119: -0.25 | AI119: 1672.299645 | AJ119: 2052.234482 | AK119: -379.934837 | AL119: -0.1851322743 | AM119: 671.3133574 | AN119: 1190.268917 | AO119: -518.9555599 | AP119: -0.4359985818 | AQ119: 0.4014312622 | AR119: 0.5799868034 | AS119: -0.1785555412 | AT119: 1063.61 | AU119: 0 | AV119: 1063.61 | AW119: 0 | AX119: 0.01534644165 | AY119: 0 | AZ119: 1.534644165 | BA119: 7488.35 | BB119: 10070.43 | BC119: -2582.08 | BD119: -0.2564021596 | BE119: 0.1080466772 | BF119: 0.08930522878 | BG119: 1.874144844
A120: C | B120: 115 | C120: 118 | D120: ATTILA VICHY | E120: COSSARD François | F120: CENTRE | G120: OUI | H120: ANNEE 3 | I120: 35 | J120: 2023-01-02 | K120: 45578.53 | L120: 74967.04 | M120: -29388.51 | N120: -0.3920190793 | O120: 78207.9555 | P120: 47942.589 | Q120: 30265.3665 | R120: 0.6312835233 | S120: 114648.6545 | T120: 213173.0158 | U120: -98524.3613 | V120: -0.4621802667 | W120: 40 | X120: 42 | Y120: -2 | Z120: -0.04761904762 | AA120: 2866.216363 | AB120: 5075.547995 | AC120: -2209.331633 | AD120: -0.4352892801 | AE120: 23 | AF120: 15 | AG120: 8 | AH120: 0.5333333333 | AI120: 710.7056775 | AJ120: 1137.36379 | AK120: -426.6581128 | AL120: -0.3751289749 | AM120: 497.4691349 | AN120: 278.004957 | AO120: 219.4641779 | AP120: 0.7894254128 | AQ120: 0.6999650498 | AR120: 0.2444292313 | AS120: 0.4555358184 | AT120: 775 | AU120: 11361.25 | AV120: -10586.25 | AW120: -0.931785675 | AX120: 0.01700361991 | AY120: 0.1515499345 | AZ120: -13.45463146 | BA120: 5005.47 | BB120: 1495.2 | BC120: 3510.27 | BD120: 2.347692616 | BE120: 0.1098207862 | BF120: 0.01994476506 | BG120: 8.987602117
A121: C | B121: 19 | C121: 19 | D121: ATTILA ANCENIS - NANTES EST | E121: BOUCHER François | F121: BRETAGNE | G121: OUI | H121: +5ANS | I121: 179 | J121: 2011-01-29 | K121: 60652.26 | L121: 100142.53 | M121: -39490.27 | N121: -0.3943406463 | O121: 74410.8417 | P121: 83634.5 | Q121: -9223.6583 | R121: -0.1102853284 | S121: 261201.2593 | T121: 507357.9865 | U121: -246156.7272 | V121: -0.485173652 | W121: 81 | X121: 150 | Y121: -69 | Z121: -0.46 | AA121: 3224.706905 | AB121: 3382.386577 | AC121: -157.6796717 | AD121: -0.04661787414 | AE121: 36 | AF121: 63 | AG121: -27 | AH121: -0.4285714286 | AI121: 1721.737317 | AJ121: 3402.421174 | AK121: -1680.683857 | AL121: -0.4939670226 | AM121: 522.110744 | AN121: 628.1275114 | AO121: -106.0167674 | AP121: -0.1687822385 | AQ121: 0.3032464585 | AR121: 0.1846119217 | AS121: 0.1186345368 | AT121: 1471.56 | AU121: 4199.44 | AV121: -2727.88 | AW121: -0.649581849 | AX121: 0.02426224513 | AY121: 0.04193463057 | AZ121: -1.767238544 | BA121: 313.62 | BB121: 2347.02 | BC121: -2033.4 | BD121: -0.8663752333 | BE121: 0.00517078836 | BF121: 0.02343679554 | BG121: -1.826600718
A122: C | B122: 110 | C122: 112 | D122: ATTILA CHALLANS | E122: BUREAU Baptiste | F122: DEUX-SEVRES | G122: OUI | H122: +5ANS | I122: 93 | J122: 2018-03-14 | K122: 47899.99 | L122: 82137.81 | M122: -34237.82 | N122: -0.4168338552 | O122: 90725.0275 | P122: 49825.58 | Q122: 40899.4475 | R122: 0.8208524116 | S122: 113193.2965 | T122: 188384.94 | U122: -75191.6435 | V122: -0.3991382936 | W122: 53 | X122: 47 | Y122: 6 | Z122: 0.1276595745 | AA122: 2135.722575 | AB122: 4008.190213 | AC122: -1872.467637 | AD122: -0.4671603736 | AE122: 47 | AF122: 29 | AG122: 18 | AH122: 0.6206896552 | AI122: 596.175 | AJ122: 1007.853167 | AK122: -411.6781667 | AL122: -0.4084703807 | AM122: 566.466573 | AN122: 271.1960833 | AO122: 295.2704897 | AP122: 1.088771217 | AQ122: 0.9501682778 | AR122: 0.2690829302 | AS122: 0.6810853475 | AT122: 0 | AU122: 0 | AV122: 0 | AW122: 0 | AX122: 0 | AY122: 0 | AZ122: 0 | BA122: 0 | BB122: 217.12 | BC122: -217.12 | BD122: -1 | BE122: 0 | BF122: 0.002643362417 | BG122: -0.2643362417
A123: C | B123: 205 | C123: 1179 | D123: ATTILA MONTPELLIER SUD | E123: GERARDIN Marc | F123: NORD-EST | G123: OUI | H123: ANNEE 5 | I123: 51 | J123: 2021-09-14 | K123: 28499.84 | L123: 48883.31 | M123: -20383.47 | N123: -0.416982197 | O123: 87163.15 | P123: 16546.48 | Q123: 70616.67 | R123: 4.267775986 | S123: 507752.4712 | T123: 179543.1 | U123: 328209.3712 | V123: 1.828025534 | W123: 75 | X123: 26 | Y123: 49 | Z123: 1.884615385 | AA123: 6770.032949 | AB123: 6905.503846 | AC123: -135.4708968 | AD123: -0.01961781498 | AE123: 21 | AF123: 12 | AG123: 9 | AH123: 0.75 | AI123: 2257.748897 | AJ123: 823.2009346 | AK123: 1434.547963 | AL123: 1.742646178 | AM123: 396.5866484 | AN123: 97.72950385 | AO123: 298.8571445 | AP123: 3.058003292 | AQ123: 0.1756557821 | AR123: 0.1187188932 | AS123: 0.05693688891 | AT123: 1254.35 | AU123: 0 | AV123: 1254.35 | AW123: 0 | AX123: 0.04401252779 | AY123: 0 | AZ123: 4.401252779 | BA123: 0 | BB123: 0 | BC123: 0 | BD123: 0 | BE123: 0 | BF123: 0 | BG123: 0
A124: C | B124: 6 | C124: 6 | D124: ATTILA MONTARGIS | E124: LAHAYE Benoit | F124: CENTRE VAL-DE-LOIRE | G124: OUI | H124: +5ANS | I124: 272 | J124: 2003-05-01 | K124: 130076.64 | L124: 223155.34 | M124: -93078.7 | N124: -0.4171027232 | O124: 199701.8671 | P124: 172667.2916 | Q124: 27034.5755 | R124: 0.1565703339 | S124: 556497.8351 | T124: 686167.5834 | U124: -129669.7483 | V124: -0.1889767914 | W124: 96 | X124: 158 | Y124: -62 | Z124: -0.3924050633 | AA124: 5796.852449 | AB124: 4342.832806 | AC124: 1454.019643 | AD124: 0.3348090308 | AE124: 62 | AF124: 73 | AG124: -11 | AH124: -0.1506849315 | AI124: 3077.619348 | AJ124: 4229.361735 | AK124: -1151.742387 | AL124: -0.2723206145 | AM124: 1091.049452 | AN124: 1071.69576 | AO124: 19.35369196 | AP124: 0.01805894235 | AQ124: 0.3545108504 | AR124: 0.2533942064 | AS124: 0.101116644 | AT124: 3213.27 | AU124: 8112.01 | AV124: -4898.74 | AW124: -0.6038873226 | AX124: 0.02470289823 | AY124: 0.03635140436 | AZ124: -1.164850613 | BA124: 4628.16 | BB124: 2253.85 | BC124: 2374.31 | BD124: 1.053446325 | BE124: 0.03558025484 | BF124: 0.01009991515 | BG124: 2.548033969
A125: C | B125: 167 | C125: 1163 | D125: ATTILA ALBI | E125: JEANDEL Xavier | F125: SUD-OUEST | G125: OUI | H125: ANNEE 5 | I125: 52 | J125: 2021-08-03 | K125: 16327.85 | L125: 28713.16 | M125: -12385.31 | N125: -0.4313461145 | O125: 71016.68 | P125: 69189.3 | Q125: 1827.38 | R125: 0.02641130926 | S125: 386091.17 | T125: 177683.58 | U125: 208407.59 | V125: 1.172914177 | W125: 49 | X125: 46 | Y125: 3 | Z125: 0.0652173913 | AA125: 7879.411633 | AB125: 3862.686522 | AC125: 4016.725111 | AD125: 1.039878615 | AE125: 19 | AF125: 18 | AG125: 1 | AH125: 0.05555555556 | AI125: 2065.309 | AJ125: 1317.990167 | AK125: 747.3188333 | AL125: 0.5670139674 | AM125: 364.50525 | AN125: 536.17875 | AO125: -171.6735 | AP125: -0.3201796043 | AQ125: 0.1764894502 | AR125: 0.4068154403 | AS125: -0.2303259901 | AT125: 0 | AU125: 5661.5 | AV125: -5661.5 | AW125: -1 | AX125: 0 | AY125: 0.1971743967 | AZ125: -19.71743967 | BA125: 0 | BB125: 0 | BC125: 0 | BD125: 0 | BE125: 0 | BF125: 0 | BG125: 0
A126: C | B126: 133 | C126: 129 | D126: ATTILA BORDEAUX SUD | E126: BEX Thomas | F126: SUD-OUEST | G126: OUI | H126: +5ANS | I126: 84 | J126: 2018-12-18 | K126: 68897.19 | L126: 121237.59 | M126: -52340.4 | N126: -0.4317175886 | O126: 100688.629 | P126: 106091.8355 | Q126: -5403.2065 | R126: -0.05092952228 | S126: 318909.98 | T126: 175376.84 | U126: 143533.14 | V126: 0.8184269941 | W126: 60 | X126: 54 | Y126: 6 | Z126: 0.1111111111 | AA126: 5315.166333 | AB126: 3247.719259 | AC126: 2067.447074 | AD126: 0.6365842947 | AE126: 37 | AF126: 15 | AG126: 22 | AH126: 1.466666667 | AI126: 1593.980562 | AJ126: 1089.754902 | AK126: 504.22566 | AL126: 0.4626963908 | AM126: 628.9430971 | AN126: 576.0408915 | AO126: 52.90220562 | AP126: 0.09183758724 | AQ126: 0.3945738813 | AR126: 0.5285967427 | AS126: -0.1340228613 | AT126: 0 | AU126: 0 | AV126: 0 | AW126: 0 | AX126: 0 | AY126: 0 | AZ126: 0 | BA126: 7344.92 | BB126: 561.09 | BC126: 6783.83 | BD126: 12.09044895 | BE126: 0.1066069603 | BF126: 0.004628020072 | BG126: 10.19789402
A127: C | B127: 231 | C127: 1206 | D127: ATTILA SETE | E127: GERARDIN Marc | F127: NORD-EST | G127: OUI | H127: ANNEE 2 | I127: 18 | J127: 2024-06-05 | K127: 2879.38 | L127: 5126.74 | M127: -2247.36 | N127: -0.4383604396 | O127: 88539.878 | P127: 2160.23 | Q127: 86379.648 | R127: 39.98631998 | S127: 144799.29 | T127: 202997.72 | U127: -58198.43 | V127: -0.2866949934 | W127: 20 | X127: 14 | Y127: 6 | Z127: 0.4285714286 | AA127: 7239.9645 | AB127: 14499.83714 | AC127: -7259.872643 | AD127: -0.5006864954 | AE127: 11 | AF127: 2 | AG127: 9 | AH127: 4.5 | AI127: 692.4316357 | AJ127: 1121.201333 | AK127: -428.7696976 | AL127: -0.3824198963 | AM127: 372.2666667 | AN127: 12.11666667 | AO127: 360.15 | AP127: 29.72352132 | AQ127: 0.5376222683 | AR127: 0.01080686074 | AS127: 0.5268154076 | AT127: 0 | AU127: 0 | AV127: 0 | AW127: 0 | AX127: 0 | AY127: 0 | AZ127: 0 | BA127: 0 | BB127: 0 | BC127: 0 | BD127: 0 | BE127: 0 | BF127: 0 | BG127: 0
A128: C | B128: 99 | C128: 99 | D128: ATTILA LA ROCHELLE SUD | E128: MARTINEAU Florian | F128: DEUX-SEVRES | G128: OUI | H128: ANNEE 1 | I128: 3 | J128: 2025-09-26 | K128: 60368.99 | L128: 109743.24 | M128: -49374.25 | N128: -0.4499069829 | O128: 50968.45 | P128: 85948.8 | Q128: -34980.35 | R128: -0.4069905572 | S128: 541577.2 | T128: 823668.14 | U128: -282090.94 | V128: -0.3424813056 | W128: 64 | X128: 68 | Y128: -4 | Z128: -0.05882352941 | AA128: 8462.14375 | AB128: 12112.76676 | AC128: -3650.623015 | AD128: -0.3013863872 | AE128: 20 | AF128: 25 | AG128: -5 | AH128: -0.2 | AI128: 2900.082412 | AJ128: 3959.785892 | AK128: -1059.70348 | AL128: -0.2676163584 | AM128: 300.1780533 | AN128: 477.8495047 | AO128: -177.6714513 | AP128: -0.3718146605 | AQ128: 0.1035067321 | AR128: 0.1206755915 | AS128: -0.01716885936 | AT128: 11712.33 | AU128: 12833.31 | AV128: -1120.98 | AW128: -0.08734924973 | AX128: 0.1940123563 | AY128: 0.1169394124 | AZ128: 7.707294395 | BA128: 2000.51 | BB128: 9257.28 | BC128: -7256.77 | BD128: -0.7838987262 | BE128: 0.03313803991 | BF128: 0.08435398846 | BG128: -5.121594854
A129: C | B129: 100 | C129: 101 | D129: ATTILA ANGOULEME | E129: TESSON-RICHEZ Jérôme | F129: DEUX-SEVRES | G129: OUI | H129: +5ANS | I129: 103 | J129: 2017-05-30 | K129: 87682.39 | L129: 160021.46 | M129: -72339.07 | N129: -0.4520585551 | O129: 93555.956 | P129: 161268.0102 | Q129: -67712.0542 | R129: -0.4198728199 | S129: 175735.75 | T129: 335219.5132 | U129: -159483.7632 | V129: -0.4757591874 | W129: 70 | X129: 82 | Y129: -12 | Z129: -0.1463414634 | AA129: 2510.510714 | AB129: 4088.042844 | AC129: -1577.53213 | AD129: -0.3858893338 | AE129: 53 | AF129: 61 | AG129: -8 | AH129: -0.131147541 | AI129: 966.1611191 | AJ129: 1628.292445 | AK129: -662.1313264 | AL129: -0.406641527 | AM129: 566.9942736 | AN129: 911.2502763 | AO129: -344.2560027 | AP129: -0.3777842506 | AQ129: 0.5868527126 | AR129: 0.5596355119 | AS129: 0.0272172007 | AT129: 6190.87 | AU129: 0 | AV129: 6190.87 | AW129: 0 | AX129: 0.0706056256 | AY129: 0 | AZ129: 7.06056256 | BA129: 4176.35 | BB129: 20293.52 | BC129: -16117.17 | BD129: -0.79420278 | BE129: 0.04763043069 | BF129: 0.1268174906 | BG129: -7.918705991
A130: C | B130: 155 | C130: 152 | D130: ATTILA VALENCE | E130: BOUDROT Maxime | F130: CENTRE | G130: OUI | H130: +5ANS | I130: 65 | J130: 2020-07-02 | K130: 51891.57 | L130: 96448.12 | M130: -44556.55 | N130: -0.4619742718 | O130: 45645.2286 | P130: 170865.7 | Q130: -125220.4714 | R130: -0.7328590314 | S130: 407892.76 | T130: 401845.21 | U130: 6047.55 | V130: 0.0150494515 | W130: 40 | X130: 50 | Y130: -10 | Z130: -0.2 | AA130: 10197.319 | AB130: 8036.9042 | AC130: 2160.4148 | AD130: 0.2688118144 | AE130: 19 | AF130: 28 | AG130: -9 | AH130: -0.3214285714 | AI130: 1350.46081 | AJ130: 2083.023564 | AK130: -732.5627544 | AL130: -0.3516824135 | AM130: 254.0173739 | AN130: 802.3772564 | AO130: -548.3598825 | AP130: -0.6834190254 | AQ130: 0.1880968126 | AR130: 0.3851983579 | AS130: -0.1971015453 | AT130: 6555.07 | AU130: 0 | AV130: 6555.07 | AW130: 0 | AX130: 0.1263224451 | AY130: 0 | AZ130: 12.63224451 | BA130: -130.12 | BB130: 666.51 | BC130: -796.63 | BD130: -1.195225878 | BE130: -0.002507536388 | BF130: 0.006910554607 | BG130: -0.9418090995
A131: C | B131: 153 | C131: 150 | D131: ATTILA BOURGES | E131: PERCHER Nicolas | F131: CENTRE VAL-DE-LOIRE | G131: OUI | H131: +5ANS | I131: 65 | J131: 2020-07-02 | K131: 40452.35 | L131: 76125.77 | M131: -35673.42 | N131: -0.4686116147 | O131: 52907.96 | P131: 54957.846 | Q131: -2049.886 | R131: -0.03729924204 | S131: 254006.0045 | T131: 563812.2705 | U131: -309806.266 | V131: -0.5494847881 | W131: 33 | X131: 69 | Y131: -36 | Z131: -0.5217391304 | AA131: 7697.151652 | AB131: 8171.192326 | AC131: -474.0406746 | AD131: -0.05801364791 | AE131: 18 | AF131: 22 | AG131: -4 | AH131: -0.1818181818 | AI131: 1440.312939 | AJ131: 2991.484431 | AK131: -1551.171492 | AL131: -0.5185290205 | AM131: 356.7153011 | AN131: 367.5928952 | AO131: -10.87759414 | AP131: -0.02959141561 | AQ131: 0.2476651368 | AR131: 0.1228797621 | AS131: 0.1247853747 | AT131: 3434.15 | AU131: 16679.64 | AV131: -13245.49 | AW131: -0.7941112638 | AX131: 0.08489370828 | AY131: 0.2191063552 | AZ131: -13.42126469 | BA131: 1101.45 | BB131: 7158.89 | BC131: -6057.44 | BD131: -0.8461423489 | BE131: 0.0272283316 | BF131: 0.09404029674 | BG131: -6.681196513
A132: C | B132: 212 | C132: 1187 | D132: ATTILA SAUMUR | E132: FORESTIER Xavier | F132: DEUX-SEVRES | G132: OUI | H132: ANNEE 5 | I132: 51 | J132: 2021-09-22 | K132: 37741.7 | L132: 73528.97 | M132: -35787.27 | N132: -0.4867097962 | O132: 29704.11 | P132: 20132.61 | Q132: 9571.5 | R132: 0.4754227097 | S132: 123130.95 | T132: 278009.25 | U132: -154878.3 | V132: -0.5570976505 | W132: 54 | X132: 67 | Y132: -13 | Z132: -0.1940298507 | AA132: 2280.202778 | AB132: 4149.391791 | AC132: -1869.189013 | AD132: -0.4504730108 | AE132: 19 | AF132: 16 | AG132: 3 | AH132: 0.1875 | AI132: 807.9526198 | AJ132: 1712.201374 | AK132: -904.2487545 | AL132: -0.5281205634 | AM132: 201.9018123 | AN132: 139.461348 | AO132: 62.44046431 | AP132: 0.4477259485 | AQ132: 0.249893134 | AR132: 0.081451487 | AS132: 0.168441647 | AT132: 508 | AU132: 2057.48 | AV132: -1549.48 | AW132: -0.7530960204 | AX132: 0.01345991304 | AY132: 0.02798189612 | AZ132: -1.452198307 | BA132: 39.88 | BB132: 0 | BC132: 39.88 | BD132: 0 | BE132: 0.001056656165 | BF132: 0 | BG132: 0.1056656165
A133: C | B133: 213 | C133: 1188 | D133: ATTILA COGNAC | E133: TESSON-RICHEZ Jérôme | F133: DEUX-SEVRES | G133: OUI | H133: ANNEE 5 | I133: 51 | J133: 2021-09-14 | K133: 15017.79 | L133: 29480.17 | M133: -14462.38 | N133: -0.490579939 | O133: 19991.94 | P133: 65867.98 | Q133: -45876.04 | R133: -0.6964846956 | S133: 225779.6964 | T133: 224157.4668 | U133: 1622.2296 | V133: 0.007237008979 | W133: 26 | X133: 25 | Y133: 1 | Z133: 0.04 | AA133: 8683.834477 | AB133: 8966.298672 | AC133: -282.4641951 | AD133: -0.03150287598 | AE133: 9 | AF133: 17 | AG133: -8 | AH133: -0.4705882353 | AI133: 1286.030187 | AJ133: 1198.427929 | AK133: 87.6022582 | AL133: 0.0730976441 | AM133: 116.6130583 | AN133: 388.3902669 | AO133: -271.7772086 | AP133: -0.6997528819 | AQ133: 0.09067676602 | AR133: 0.324083124 | AS133: -0.233406358 | AT133: 0 | AU133: 3102.13 | AV133: -3102.13 | AW133: -1 | AX133: 0 | AY133: 0.1052276836 | AZ133: -10.52276836 | BA133: 1502 | BB133: 1118.2 | BC133: 383.8 | BD133: 0.3432301914 | BE133: 0.1000147159 | BF133: 0.03793058181 | BG133: 6.208413407
A134: C | B134: 83 | C134: 83 | D134: ATTILA POITIERS NORD | E134: DENIS Matthieu | F134: DEUX-SEVRES | G134: OUI | H134: ANNEE 3 | I134: 35 | J134: 2023-01-05 | K134: 17826.26 | L134: 36432.91 | M134: -18606.65 | N134: -0.5107099598 | O134: 23150.3 | P134: 128252.58 | Q134: -105102.28 | R134: -0.8194944694 | S134: 170172.99 | T134: 224061.91 | U134: -53888.92 | V134: -0.2405090629 | W134: 35 | X134: 58 | Y134: -23 | Z134: -0.3965517241 | AA134: 4862.085429 | AB134: 3863.136379 | AC134: 998.9490493 | AD134: 0.2585849815 | AE134: 13 | AF134: 36 | AG134: -23 | AH134: -0.6388888889 | AI134: 449.1785867 | AJ134: 1482.964767 | AK134: -1033.78618 | AL134: -0.697107715 | AM134: 168.2131467 | AN134: 818.5964038 | AO134: -650.3832571 | AP134: -0.794510279 | AQ134: 0.3744905738 | AR134: 0.5519999006 | AS134: -0.1775093268 | AT134: 630.43 | AU134: 5609.65 | AV134: -4979.22 | AW134: -0.8876168745 | AX134: 0.03536524206 | AY134: 0.1539720544 | AZ134: -11.86068123 | BA134: 0 | BB134: 0 | BC134: 0 | BD134: 0 | BE134: 0 | BF134: 0 | BG134: 0
A135: C | B135: 209 | C135: 1183 | D135: ATTILA PROVINS | E135: MAGLIANO Marc | F135: NORD-EST | G135: OUI | H135: ANNEE 4 | I135: 42 | J135: 2022-06-13 | K135: 22334.73 | L135: 47568.58 | M135: -25233.85 | N135: -0.530473056 | O135: 53346.34 | P135: 52472.1868 | Q135: 874.1532 | R135: 0.01665936286 | S135: 139515.9 | T135: 287369.52 | U135: -147853.62 | V135: -0.5145069665 | W135: 53 | X135: 38 | Y135: 15 | Z135: 0.3947368421 | AA135: 2632.375472 | AB135: 7562.355789 | AC135: -4929.980318 | AD135: -0.6519106552 | AE135: 20 | AF135: 15 | AG135: 5 | AH135: 0.3333333333 | AI135: 889.3369704 | AJ135: 1501.14621 | AK135: -611.8092394 | AL135: -0.4075613923 | AM135: 327.0260833 | AN135: 351.5335833 | AO135: -24.5075 | AP135: -0.06971595649 | AQ135: 0.3677189797 | AR135: 0.2341767784 | AS135: 0.1335422012 | AT135: 0 | AU135: 575 | AV135: -575 | AW135: -1 | AX135: 0 | AY135: 0.0120878109 | AZ135: -1.20878109 | BA135: 3076.27 | BB135: 0 | BC135: 3076.27 | BD135: 0 | BE135: 0.1377348193 | BF135: 0 | BG135: 13.77348193
A136: C | B136: 157 | C136: 154 | D136: ATTILA NANTES SUD | E136: BOUCHER François | F136: BRETAGNE | G136: OUI | H136: +5ANS | I136: 123 | J136: 2015-09-17 | K136: 30575.37 | L136: 67350.92 | M136: -36775.55 | N136: -0.5460289184 | O136: 50045.3647 | P136: 43937.05 | Q136: 6108.3147 | R136: 0.1390242335 | S136: 509082.3167 | T136: 147650.9857 | U136: 361431.331 | V136: 2.447876181 | W136: 26 | X136: 41 | Y136: -15 | Z136: -0.3658536585 | AA136: 19580.0891 | AB136: 3601.243554 | AC136: 15978.84555 | AD136: 4.437035516 | AE136: 21 | AF136: 31 | AG136: -10 | AH136: -0.3225806452 | AI136: 2668.393333 | AJ136: 858.1884118 | AK136: 1810.204922 | AL136: 2.109332749 | AM136: 298.2006667 | AN136: 294.9014597 | AO136: 3.299206929 | AP136: 0.01118748931 | AQ136: 0.11175289 | AR136: 0.3436325353 | AS136: -0.2318796453 | AT136: 1306.09 | AU136: 9254.5 | AV136: -7948.41 | AW136: -0.858869739 | AX136: 0.04271706279 | AY136: 0.1374071802 | AZ136: -9.46901174 | BA136: 1661.28 | BB136: 2197.06 | BC136: -535.78 | BD136: -0.2438622523 | BE136: 0.05433392956 | BF136: 0.03262108372 | BG136: 2.171284584
A137: C | B137: 87 | C137: 87 | D137: ATTILA LYON SUD EST | E137: LAHAYE Benoit | F137: RHONE-ALPES | G137: OUI | H137: +5ANS | I137: 79 | J137: 2019-05-17 | K137: 83969.24 | L137: 204678.63 | M137: -120709.39 | N137: -0.5897508206 | O137: 121980.16 | P137: 169554.75 | Q137: -47574.59 | R137: -0.2805854156 | S137: 525440.58 | T137: 484244.65 | U137: 41195.93 | V137: 0.08507255578 | W137: 88 | X137: 90 | Y137: -2 | Z137: -0.02222222222 | AA137: 5970.915682 | AB137: 5380.496111 | AC137: 590.4195707 | AD137: 0.1097332957 | AE137: 40 | AF137: 52 | AG137: -12 | AH137: -0.2307692308 | AI137: 3094.89881 | AJ137: 2511.4414 | AK137: 583.4574103 | AL137: 0.2323197389 | AM137: 791.2096233 | AN137: 1110.944176 | AO137: -319.7345527 | AP137: -0.2878043376 | AQ137: 0.2556495937 | AR137: 0.4423532144 | AS137: -0.1867036207 | AT137: 5889.51 | AU137: 2810.3 | AV137: 3079.21 | AW137: 1.095687293 | AX137: 0.07013889848 | AY137: 0.01373030492 | AZ137: 5.640859356 | BA137: 943.83 | BB137: 4489.79 | BC137: -3545.96 | BD137: -0.7897830411 | BE137: 0.01124018748 | BF137: 0.02193580248 | BG137: -1.0695615
A138: C | B138: 138 | C138: 134 | D138: ATTILA ORLEANS NORD | E138: LAHAYE Benoit | F138: CENTRE VAL-DE-LOIRE | G138: OUI | H138: +5ANS | I138: 77 | J138: 2019-07-17 | K138: 26648.62 | L138: 71761.81 | M138: -45113.19 | N138: -0.6286517857 | O138: 33789.6973 | P138: 121938.9175 | Q138: -88149.2202 | R138: -0.7228965289 | S138: 293640.1013 | T138: 307361.8244 | U138: -13721.7231 | V138: -0.0446435504 | W138: 87 | X138: 95 | Y138: -8 | Z138: -0.08421052632 | AA138: 3375.173578 | AB138: 3235.387625 | AC138: 139.7859529 | AD138: 0.04320531852 | AE138: 24 | AF138: 52 | AG138: -28 | AH138: -0.5384615385 | AI138: 1881.619793 | AJ138: 1988.226777 | AK138: -106.6069837 | AL138: -0.0536191268 | AM138: 233.4592515 | AN138: 853.2838113 | AO138: -619.8245599 | AP138: -0.7263990616 | AQ138: 0.1240735521 | AR138: 0.4291682524 | AS138: -0.3050947003 | AT138: 656 | AU138: 6723.43 | AV138: -6067.43 | AW138: -0.9024307534 | AX138: 0.02461665932 | AY138: 0.09369092 | AZ138: -6.907426068 | BA138: 1442.04 | BB138: 5091.65 | BC138: -3649.61 | BD138: -0.716783361 | BE138: 0.05411312105 | BF138: 0.0709520844 | BG138: -1.683896335
A139: C | B139: 113 | C139: 116 | D139: ATTILA LYON NORD OUEST | E139: LAURENT Aymeric | F139: CENTRE | G139: OUI | H139: +5ANS | I139: 87 | J139: 2018-09-13 | K139: 34670.22 | L139: 100018.84 | M139: -65348.62 | N139: -0.6533631064 | O139: 47658.19 | P139: 102171.89 | Q139: -54513.7 | R139: -0.5335489047 | S139: 361494.35 | T139: 166034.76 | U139: 195459.59 | V139: 1.177220902 | W139: 58 | X139: 84 | Y139: -26 | Z139: -0.3095238095 | AA139: 6232.661207 | AB139: 1976.604286 | AC139: 4256.056921 | AD139: 2.153216479 | AE139: 38 | AF139: 57 | AG139: -19 | AH139: -0.3333333333 | AI139: 1116.587323 | AJ139: 986.586281 | AK139: 130.0010416 | AL139: 0.1317685478 | AM139: 303.9338397 | AN139: 598.8421243 | AO139: -294.9082846 | AP139: -0.4924641614 | AQ139: 0.2721988989 | AR139: 0.6069840376 | AS139: -0.3347851387 | AT139: 6703.13 | AU139: 14503.73 | AV139: -7800.6 | AW139: -0.5378340606 | AX139: 0.1933397019 | AY139: 0.1450099801 | AZ139: 4.832972179 | BA139: 248.06 | BB139: 648 | BC139: -399.94 | BD139: -0.617191358 | BE139: 0.007154843552 | BF139: 0.006478779398 | BG139: 0.06760641537
A140: C | B140: 201 | C140: 1175 | D140: ATTILA LE PUY EN VELAY | E140: BASTIN Thierry | F140: CENTRE | G140: OUI | H140: ANNEE 5 | I140: 51 | J140: 2021-09-22 | K140: 14046.35 | L140: 45528.23 | M140: -31481.88 | N140: -0.6914804287 | O140: 16837.16 | P140: 48661.38 | Q140: -31824.22 | R140: -0.6539933722 | S140: 109409.2 | T140: 116515.63 | U140: -7106.43 | V140: -0.06099121637 | W140: 23 | X140: 26 | Y140: -3 | Z140: -0.1153846154 | AA140: 4756.921739 | AB140: 4481.370385 | AC140: 275.5513545 | AD140: 0.06148819019 | AE140: 8 | AF140: 11 | AG140: -3 | AH140: -0.2727272727 | AI140: 576.7501667 | AJ140: 579.8241103 | AK140: -3.073943662 | AL140: -0.005301510592 | AM140: 104 | AN140: 267.4906103 | AO140: -163.4906103 | AP140: -0.6112013058 | AQ140: 0.1803207108 | AR140: 0.4613306097 | AS140: -0.2810098989 | AT140: 0 | AU140: 1501 | AV140: -1501 | AW140: -1 | AX140: 0 | AY140: 0.03296855599 | AZ140: -3.296855599 | BA140: 2894.45 | BB140: 0 | BC140: 2894.45 | BD140: 0 | BE140: 0.2060642089 | BF140: 0 | BG140: 20.60642089
A141: C | B141: 220 | C141: 1195 | D141: ATTILA RODEZ | E141: CANEVET Christophe | F141: SUD-OUEST | G141: OUI | H141: ANNEE 3 | I141: 29 | J141: 2023-07-25 | K141: 17082.42 | L141: 58485.28 | M141: -41402.86 | N141: -0.707919326 | O141: 41686.49 | P141: 49170.54 | Q141: -7484.05 | R141: -0.1522059754 | S141: 51200.06 | T141: 213564.052 | U141: -162363.992 | V141: -0.7602589971 | W141: 32 | X141: 30 | Y141: 2 | Z141: 0.06666666667 | AA141: 1600.001875 | AB141: 7118.801733 | AC141: -5518.799858 | AD141: -0.7752428098 | AE141: 25 | AF141: 15 | AG141: 10 | AH141: 0.6666666667 | AI141: 320.70348 | AJ141: 1394.31175 | AK141: -1073.60827 | AL141: -0.7699915532 | AM141: 250.4196019 | AN141: 259.0721859 | AO141: -8.652584045 | AP141: -0.03339835195 | AQ141: 0.7808446663 | AR141: 0.1858064998 | AS141: 0.5950381665 | AT141: 0 | AU141: 741 | AV141: -741 | AW141: -1 | AX141: 0 | AY141: 0.01266985471 | AZ141: -1.266985471 | BA141: 3831.16 | BB141: 1876.1 | BC141: 1955.06 | BD141: 1.042087309 | BE141: 0.2242750149 | BF141: 0.0320781571 | BG141: 19.21968578
A142: P | B142: 137 | C142: 133 | D142: ATTILA MARNE LA VALLEE | E142: LOUPI Renaud | F142: NORD-EST | G142: OUI | H142: +5ANS | I142: 84 | J142: 2018-12-18 | K142: 0 | L142: 37441.87 | M142: -37441.87 | N142: -1 | O142: 0 | P142: 5995.34 | Q142: -5995.34 | R142: -1 | S142: 0 | T142: 102142.664 | U142: -102142.664 | V142: -1 | W142: 0 | X142: 30 | Y142: -30 | Z142: -1 | AA142: 0 | AB142: 3404.755467 | AC142: -3404.755467 | AD142: -1 | AE142: 0 | AF142: 4 | AG142: -4 | AH142: -1 | AI142: 0 | AJ142: 621.1350298 | AK142: -621.1350298 | AL142: -1 | AM142: 0 | AN142: 41 | AO142: -41 | AP142: -1 | AQ142: 0 | AR142: 0.06600819151 | AS142: -0.06600819151 | AT142: 0 | AU142: 4183.6 | AV142: -4183.6 | AW142: -1 | AX142: 0 | AY142: 0.1117358722 | AZ142: -11.17358722 | BA142: 0 | BB142: 1204.13 | BC142: -1204.13 | BD142: -1 | BE142: 0 | BF142: 0.0321599856 | BG142: -3.21599856
A143: P | B143: 29 | C143: 29 | D143: ATTILA ROISSY-EN-BRIE | E143: LOUPI Renaud | F143: NORD-EST | G143: OUI | H143: +5ANS | I143: 169 | J143: 2011-11-08 | K143: 0 | L143: 14856.44 | M143: -14856.44 | N143: -1 | O143: 0 | P143: 21309.268 | Q143: -21309.268 | R143: -1 | S143: 0 | T143: 116754.4905 | U143: -116754.4905 | V143: -1 | W143: 0 | X143: 35 | Y143: -35 | Z143: -1 | AA143: 0 | AB143: 3335.842586 | AC143: -3335.842586 | AD143: -1 | AE143: 0 | AF143: 15 | AG143: -15 | AH143: -1 | AI143: 0 | AJ143: 661.0966667 | AK143: -661.0966667 | AL143: -1 | AM143: 0 | AN143: 142.1693333 | AO143: -142.1693333 | AP143: -1 | AQ143: 0 | AR143: 0.215050749 | AS143: -0.215050749 | AT143: 0 | AU143: 9142.52 | AV143: -9142.52 | AW143: -1 | AX143: 0 | AY143: 0.6153910358 | AZ143: -61.53910358 | BA143: 0 | BB143: 844.16 | BC143: -844.16 | BD143: -1 | BE143: 0 | BF143: 0.05682114962 | BG143: -5.682114962
A144: C | B144: 156 | C144: 153 | D144: ATTILA NANCY | E144: GEAUFREAU Thomas | F144: SORTIE | G144: NON | H144: ANNEE 5 | I144: 59 | J144: 2021-01-14 | K144: 570.41 | L144: 125560.35 | M144: -124989.94 | N144: -0.995457085 | O144: 2207.35 | P144: 138685.34 | Q144: -136477.99 | R144: -0.9840837539 | S144: 4120.47 | T144: 226496.35 | U144: -222375.88 | V144: -0.9818077863 | W144: 3 | X144: 67 | Y144: -64 | Z144: -0.9552238806 | AA144: 1373.49 | AB144: 3380.542537 | AC144: -2007.052537 | AD144: -0.5937072275 | AE144: 2 | AF144: 35 | AG144: -33 | AH144: -0.9428571429 | AI144: 27.68717949 | AJ144: 1319.545224 | AK144: -1291.858045 | AL144: -0.979017635 | AM144: 16.18435897 | AN144: 779.5128603 | AO144: -763.3285013 | AP144: -0.9792378551 | AQ144: 0.584543434 | AR144: 0.5907435728 | AS144: -0.006200138791 | AT144: 0 | AU144: 58934.22 | AV144: -58934.22 | AW144: -1 | AX144: 0 | AY144: 0.4693696696 | AZ144: -46.93696696 | BA144: 0 | BB144: 5918.24 | BC144: -5918.24 | BD144: -1 | BE144: 0 | BF144: 0.0471346249 | BG144: -4.71346249
A145: P | B145: 65 | C145: 65 | D145: ATTILA STRASBOURG OUEST | E145: DELON Sylvain | F145: SORTIE | G145: NON | H145: +5ANS | I145: 127 | J145: 2015-05-12 | K145: 0 | L145: 62591 | M145: -62591 | N145: -1 | O145: 0 | P145: 92389.55 | Q145: -92389.55 | R145: -1 | S145: 0 | T145: 276672.01 | U145: -276672.01 | V145: -1 | W145: 0 | X145: 69 | Y145: -69 | Z145: -1 | AA145: 0 | AB145: 4009.739275 | AC145: -4009.739275 | AD145: -1 | AE145: 0 | AF145: 38 | AG145: -38 | AH145: -1 | AI145: 0 | AJ145: 1609.427717 | AK145: -1609.427717 | AL145: -1 | AM145: 0 | AN145: 668.8125861 | AO145: -668.8125861 | AP145: -1 | AQ145: 0 | AR145: 0.4155592569 | AS145: -0.4155592569 | AT145: 0 | AU145: 0 | AV145: 0 | AW145: 0 | AX145: 0 | AY145: 0 | AZ145: 0 | BA145: 0 | BB145: 1758.12 | BC145: -1758.12 | BD145: -1 | BE145: 0 | BF145: 0.02808902238 | BG145: -2.808902238
A146: P | B146: 73 | C146: 73 | D146: ATTILA DIJON OUEST | E146: BAILLY David | F146: SORTIE | G146: NON | H146: +5ANS | I146: 123 | J146: 2015-09-28 | K146: 0 | L146: 61663.29 | M146: -61663.29 | N146: -1 | O146: 0 | P146: 66367.22 | Q146: -66367.22 | R146: -1 | S146: 0 | T146: 1038192.15 | U146: -1038192.15 | V146: -1 | W146: 0 | X146: 84 | Y146: -84 | Z146: -1 | AA146: 0 | AB146: 12359.43036 | AC146: -12359.43036 | AD146: -1 | AE146: 0 | AF146: 22 | AG146: -22 | AH146: -1 | AI146: 0 | AJ146: 3778.524 | AK146: -3778.524 | AL146: -1 | AM146: 0 | AN146: 382.08281 | AO146: -382.08281 | AP146: -1 | AQ146: 0 | AR146: 0.1011195933 | AS146: -0.1011195933 | AT146: 0 | AU146: 11173.67 | AV146: -11173.67 | AW146: -1 | AX146: 0 | AY146: 0.1812045708 | AZ146: -18.12045708 | BA146: 0 | BB146: 796.24 | BC146: -796.24 | BD146: -1 | BE146: 0 | BF146: 0.01291270706 | BG146: -1.291270706
A147: P | B147: 95 | C147: 95 | D147: ATTILA HAGUENAU | E147: GEAUFREAU Thomas | F147: SORTIE | G147: NON | H147: +5ANS | I147: 107 | J147: 2017-01-25 | K147: 0 | L147: 71727.92 | M147: -71727.92 | N147: -1 | O147: 69091.26 | P147: 55766.92 | Q147: 13324.34 | R147: 0.2389290999 | S147: 74748.46 | T147: 173033.14 | U147: -98284.68 | V147: -0.568010729 | W147: 10 | X147: 26 | Y147: -16 | Z147: -0.6153846154 | AA147: 7474.846 | AB147: 6655.120769 | AC147: 819.7252308 | AD147: 0.1231721045 | AE147: 7 | AF147: 12 | AG147: -5 | AH147: -0.4166666667 | AI147: 355.4781538 | AJ147: 879.7437436 | AK147: -524.2655897 | AL147: -0.595929887 | AM147: 419.2837949 | AN147: 383.0400385 | AO147: 36.24375641 | AP147: 0.09462132616 | AQ147: 1.17949244 | AR147: 0.4353995595 | AS147: 0.74409288 | AT147: 0 | AU147: 0 | AV147: 0 | AW147: 0 | AX147: 0 | AY147: 0 | AZ147: 0 | BA147: 0 | BB147: 298.15 | BC147: -298.15 | BD147: -1 | BE147: 0 | BF147: 0.004156679854 | BG147: -0.4156679854
A148: C | B148: 160 | C148: 1155 | D148: ATTILA RENNES SUD | E148: PLAIRE Hervé | F148: SORTIE | G148: NON | H148: ANNEE 5 | I148: 59 | J148: 2021-01-20 | K148: -0.009999999998 | L148: 118217.54 | M148: -118217.55 | N148: -1.000000085 | O148: 73912.65 | P148: 261749.8939 | Q148: -187837.2439 | R148: -0.717621089 | S148: 21752.27 | T148: 882952.9632 | U148: -861200.6932 | V148: -0.9753641803 | W148: 4 | X148: 166 | Y148: -162 | Z148: -0.9759036145 | AA148: 5438.0675 | AB148: 5318.993754 | AC148: 119.0737458 | AD148: 0.02238651732 | AE148: 20 | AF148: 69 | AG148: -49 | AH148: -0.7101449275 | AI148: 147.788125 | AJ148: 4317.102304 | AK148: -4169.314179 | AL148: -0.9657668235 | AM148: 447.1784512 | AN148: 1503.639232 | AO148: -1056.460781 | AP148: -0.7026025647 | AQ148: 3.025807731 | AR148: 0.3482982626 | AS148: 2.677509469 | AT148: 0 | AU148: 5987.68 | AV148: -5987.68 | AW148: -1 | AX148: 0 | AY148: 0.05064967517 | AZ148: -5.064967517 | BA148: 241.92 | BB148: 2433.6 | BC148: -2191.68 | BD148: -0.900591716 | BE148: -24192 | BF148: 0.02058577771 | BG148: -2419202.059
A149: P | B149: 217 | C149: 1192 | D149: ATTILA CRETEIL | E149: BOUQUET OUAISSA | F149: SORTIE | G149: NON | H149: ANNEE 1 | J149: 2023-06-21 | BA149: 0 | BB149: -1739.76 | BC149: -1739.76 | BD149: 1 | BE149: 0 | BF149: 0 | BG149: 0

Sheet Synth_YTD
D4: ="Suivi du réseau - période cumulée à fin "&DE!$C$5 -> Suivi du réseau - période cumulée à fin Janvier
G6: TOTAL RESEAU | K6: =SUM(K$17:K$201) -> 7946997.98 | L6: =SUM(L$17:L$201) -> 8937733.32 | M6: =K6-L6 -> -990735.34 | N6: =M6/L6 -> -0.1108486128 | O6: =SUM(O$17:O$201) -> 10621307.39 | P6: =SUM(P$17:P$201) -> 9276860.998 | Q6: =O6-P6 -> 1344446.389 | R6: =Q6/P6 -> 0.1449247099 | S6: =SUM(S$17:S$201) -> 41032408.53 | T6: =SUM(T$17:T$201) -> 38925959.65 | U6: =S6-T6 -> 2106448.885 | V6: =U6/T6 -> 0.05411424418 | W6: =SUM(W$17:W$201) -> 8317 | X6: =SUM(X$17:X$201) -> 8103 | Y6: =W6-X6 -> 214 | Z6: =Y6/X6 -> 0.02640997162 | AA6: =$S$6/$W$6 -> 4933.558799 | AB6: =$T$6/$X$6 -> 4803.89481 | AC6: =AA6-AB6 -> 129.6639889 | AD6: =AC6/AB6 -> 0.02699142968 | AE6: =SUM(AE$17:AE$201) -> 3826 | AF6: =SUM(AF$17:AF$201) -> 3710 | AG6: =AE6-AF6 -> 116 | AH6: =AG6/AF6 -> 0.03126684636 | AI6: =SUM(AI$17:AI$201) -> 215829.6055 | AJ6: =SUM(AJ$17:AJ$201) -> 212860.1858 | AK6: =AI6-AJ6 -> 2969.419675 | AL6: =AK6/AJ6 -> 0.01395009435 | AM6: =SUM(AM$17:AM$201) -> 63899.14447 | AN6: =SUM(AN$17:AN$201) -> 58409.82412 | AO6: =AM6-AN6 -> 5489.320351 | AP6: =AO6/AN6 -> 0.09397940217 | AQ6: =AM6/AI6 -> 0.2960629258 | AR6: =AN6/AJ6 -> 0.2744046469 | AS6: =($AQ6-$AR6) -> 0.02165827892 | AT6: =SUM(AT$17:AT$201) -> 351041.51 | AU6: =SUM(AU$17:AU$201) -> 574010.26 | AV6: =AT6-AU6 -> -222968.75 | AW6: =AV6/AU6 -> -0.3884403564 | AX6: =$AT6/$K6 -> 0.044172845 | AY6: =$AU6/$L6 -> 0.0642232476 | AZ6: =(AX6-AY6)*100 -> -2.00504026 | BA6: =SUM(BA$17:BA$201) -> 212999.53 | BB6: =SUM(BB$17:BB$201) -> 293406.39 | BC6: =BA6-BB6 -> -80406.86 | BD6: =BC6/BB6 -> -0.2740460424 | BE6: =$BA6/$K6 -> 0.02680251468 | BF6: =$BB6/$L6 -> 0.03282783 | BG6: =(BE6-BF6)*100 -> -0.6025315321
H7: Nb d'agence | K7: =COUNT(K$17:K$201)-COUNTIFS(K$17:K$201,"<=0") -> 123 | L7: =COUNT(L$17:L$201)-COUNTIFS(L$17:L$201,"<=0") -> 120 | M7: =K7-L7 -> 3 | N7: =M7/L7 -> 0.025 | O7: =COUNT(O$17:O$201)-COUNTIFS(O$17:O$201,"<=0") -> 128 | P7: =COUNT(P$17:P$201)-COUNTIFS(P$17:P$201,"<=0") -> 120 | Q7: =O7-P7 -> 8 | R7: =Q7/P7 -> 0.06666666667 | S7: =COUNT(S$17:S$201)-COUNTIFS(S$17:S$201,"<=0") -> 128 | T7: =COUNT(T$17:T$201)-COUNTIFS(T$17:T$201,"<=0") -> 121 | U7: =S7-T7 -> 7 | V7: =U7/T7 -> 0.05785123967 | W7: =COUNT(W$17:W$201)-COUNTIFS(W$17:W$201,"<=0") -> 128 | X7: =COUNT(X$17:X$201)-COUNTIFS(X$17:X$201,"<=0") -> 121 | Y7: =W7-X7 -> 7 | Z7: =Y7/X7 -> 0.05785123967 | AE7: =COUNT(AE$17:AE$201)-COUNTIFS(AE$17:AE$201,"<=0") -> 128 | AF7: =COUNT(AF$17:AF$201)-COUNTIFS(AF$17:AF$201,"<=0") -> 120 | AG7: =AE7-AF7 -> 8 | AH7: =AG7/AF7 -> 0.06666666667 | AI7: =COUNT(AI$17:AI$201)-COUNTIFS(AI$17:AI$201,"<=0") -> 128 | AJ7: =COUNT(AJ$17:AJ$201)-COUNTIFS(AJ$17:AJ$201,"<=0") -> 121 | AK7: =AI7-AJ7 -> 7 | AL7: =AK7/AJ7 -> 0.05785123967 | AM7: =COUNT(AM$17:AM$201)-COUNTIFS(AM$17:AM$201,"<=0") -> 128 | AN7: =COUNT(AN$17:AN$201)-COUNTIFS(AN$17:AN$201,"<=0") -> 120 | AO7: =AM7-AN7 -> 8 | AP7: =AO7/AN7 -> 0.06666666667 | AT7: =COUNT(AT$17:AT$201)-COUNTIFS(AT$17:AT$201,"<=0") -> 77 | AU7: =COUNT(AU$17:AU$201)-COUNTIFS(AU$17:AU$201,"<=0") -> 84 | AV7: =AT7-AU7 -> -7 | AW7: =AV7/AU7 -> -0.08333333333 | AZ7: =AX7-AY7 -> 0 | BA7: =COUNT(BA$17:BA$201)-COUNTIFS(BA$17:BA$201,"<=0") -> 94 | BB7: =COUNT(BB$17:BB$201)-COUNTIFS(BB$17:BB$201,"<=0") -> 91 | BC7: =BA7-BB7 -> 3 | BD7: =BC7/BB7 -> 0.03296703297 | BG7: =BE7-BF7 -> 0
G9: TOTAL AGENCES ACTIVES | K9: =SUMIF($G$17:$G$201,"oui",K$17:K$201) -> 7946427.58 | L9: =SUMIF($G$17:$G$201,"oui",L$17:L$201) -> 8497973.22 | M9: =K9-L9 -> -551545.64 | N9: =M9/L9 -> -0.06490319818 | O9: =SUMIF($G$17:$G$201,"oui",O$17:O$201) -> 10476096.13 | P9: =SUMIF($G$17:$G$201,"oui",P$17:P$201) -> 8661902.074 | Q9: =O9-P9 -> 1814194.053 | R9: =Q9/P9 -> 0.2094452278 | S9: =SUMIF($G$17:$G$201,"oui",S$17:S$201) -> 40931787.33 | T9: =SUMIF($G$17:$G$201,"oui",T$17:T$201) -> 36328613.03 | U9: =S9-T9 -> 4603174.299 | V9: =U9/T9 -> 0.1267093322 | W9: =SUMIF($G$17:$G$201,"oui",W$17:W$201) -> 8300 | X9: =SUMIF($G$17:$G$201,"oui",X$17:X$201) -> 7691 | Y9: =W9-X9 -> 609 | Z9: =Y9/X9 -> 0.07918346119 | AA9: =$S$9/$W$9 -> 4931.540642 | AB9: =$T$9/$X$9 -> 4723.522693 | AC9: =AA9-AB9 -> 208.0179492 | AD9: =AC9/AB9 -> 0.04403873184 | AE9: =SUMIF($G$17:$G$201,"oui",AE$17:AE$201) -> 3797 | AF9: =SUMIF($G$17:$G$201,"oui",AF$17:AF$201) -> 3534 | AG9: =AE9-AF9 -> 263 | AH9: =AG9/AF9 -> 0.07441992077 | AI9: =SUMIF($G$17:$G$201,"oui",AI$17:AI$201) -> 215298.652 | AJ9: =SUMIF($G$17:$G$201,"oui",AJ$17:AJ$201) -> 200955.8428 | AK9: =AI9-AJ9 -> 14342.80921 | AL9: =AK9/AJ9 -> 0.07137293948 | AM9: =SUMIF($G$17:$G$201,"oui",AM$17:AM$201) -> 63016.49786 | AN9: =SUMIF($G$17:$G$201,"oui",AN$17:AN$201) -> 54692.73659 | AO9: =AM9-AN9 -> 8323.761273 | AP9: =AO9/AN9 -> 0.1521913474 | AQ9: =AM9/AI9 -> 0.2926934158 | AR9: =AN9/AJ9 -> 0.2721629579 | AS9: =($AQ9-$AR9) -> 0.02053045782 | AT9: =SUMIF($G$17:$G$201,"oui",AT$17:AT$201) -> 351041.51 | AU9: =SUMIF($G$17:$G$201,"oui",AU$17:AU$201) -> 497914.69 | AV9: =AT9-AU9 -> -146873.18 | AW9: =AV9/AU9 -> -0.2949765953 | AX9: =$AT9/$K9 -> 0.04417601576 | AY9: =$AU9/$L9 -> 0.05859216982 | AZ9: =(AX9-AY9)*100 -> -1.441615406 | BA9: =SUMIF($G$17:$G$201,"oui",BA$17:BA$201) -> 212757.61 | BB9: =SUMIF($G$17:$G$201,"oui",BB$17:BB$201) -> 283941.8 | BC9: =BA9-BB9 -> -71184.19 | BD9: =BC9/BB9 -> -0.2506999322 | BE9: =$BA9/$K9 -> 0.02677399471 | BF9: =$BB9/$L9 -> 0.03341288477 | BG9: =(BE9-BF9)*100 -> -0.6638890061
H10: Nb d'agence | K10: =COUNTIF($G$17:$G$201,"oui")-COUNTIFS(K$17:K$201,0,$G$17:$G$201,"oui",K$17:K$201,"<=0") -> 122 | L10: =COUNTIF($G$17:$G$201,"oui")-COUNTIFS(L$17:L$201,0,$G$17:$G$201,"oui") -> 115 | M10: =K10-L10 -> 7 | N10: =M10/L10 -> 0.06086956522 | O10: =COUNTIF($G$17:$G$201,"oui")-COUNTIFS(O$17:O$201,0,$G$17:$G$201,"oui") -> 125 | P10: =COUNTIF($G$17:$G$201,"oui")-COUNTIFS(P$17:P$201,0,$G$17:$G$201,"oui") -> 115 | Q10: =O10-P10 -> 10 | R10: =Q10/P10 -> 0.08695652174 | S10: =COUNTIF($G$17:$G$201,"oui")-COUNTIFS(S$17:S$201,0,$G$17:$G$201,"oui") -> 125 | T10: =COUNTIF($G$17:$G$201,"oui")-COUNTIFS(T$17:T$201,0,$G$17:$G$201,"oui") -> 116 | U10: =S10-T10 -> 9 | V10: =U10/T10 -> 0.0775862069 | W10: =COUNTIF($G$17:$G$201,"oui")-COUNTIFS(W$17:W$201,0,$G$17:$G$201,"oui") -> 125 | X10: =COUNTIF($G$17:$G$201,"oui")-COUNTIFS(X$17:X$201,0,$G$17:$G$201,"oui") -> 116 | Y10: =W10-X10 -> 9 | Z10: =Y10/X10 -> 0.0775862069 | AE10: =COUNTIF($G$17:$G$201,"oui")-COUNTIFS(AE$17:AE$201,0,$G$17:$G$201,"oui") -> 125 | AF10: =COUNTIF($G$17:$G$201,"oui")-COUNTIFS(AF$17:AF$201,0,$G$17:$G$201,"oui") -> 115 | AG10: =AE10-AF10 -> 10 | AH10: =AG10/AF10 -> 0.08695652174 | AI10: =COUNTIF($G$17:$G$201,"oui")-COUNTIFS(AI$17:AI$201,0,$G$17:$G$201,"oui") -> 125 | AJ10: =COUNTIF($G$17:$G$201,"oui")-COUNTIFS(AJ$17:AJ$201,0,$G$17:$G$201,"oui") -> 116 | AK10: =AI10-AJ10 -> 9 | AL10: =AK10/AJ10 -> 0.0775862069 | AM10: =COUNTIF($G$17:$G$201,"oui")-COUNTIFS(AM$17:AM$201,0,$G$17:$G$201,"oui") -> 125 | AN10: =COUNTIF($G$17:$G$201,"oui")-COUNTIFS(AN$17:AN$201,0,$G$17:$G$201,"oui") -> 115 | AO10: =AM10-AN10 -> 10 | AP10: =AO10/AN10 -> 0.08695652174 | AT10: =COUNTIF($G$17:$G$201,"oui")-COUNTIFS(AT$17:AT$201,0,$G$17:$G$201,"oui") -> 77 | AU10: =COUNTIF($G$17:$G$201,"oui")-COUNTIFS(AU$17:AU$201,0,$G$17:$G$201,"oui") -> 81 | AV10: =AT10-AU10 -> -4 | AW10: =AV10/AU10 -> -0.04938271605 | AZ10: =AX10-AY10 -> 0 | BA10: =COUNTIF($G$17:$G$201,"oui")-COUNTIFS(BA$17:BA$201,0,$G$17:$G$201,"oui") -> 98 | BB10: =COUNTIF($G$17:$G$201,"oui")-COUNTIFS(BB$17:BB$201,0,$G$17:$G$201,"oui") -> 88 | BC10: =BA10-BB10 -> 10 | BD10: =BC10/BB10 -> 0.1136363636 | BG10: =BE10-BF10 -> 0
G12: TOTAL AGENCES ACTIVES A PERIM. CST | K12: =SUMIFS(K$17:K$201,$G$17:$G$201,"oui",$A$17:$A$201,"C") -> 7756211.01 | L12: =SUMIFS(L$17:L$201,$G$17:$G$201,"oui",$A$17:$A$201,"C") -> 8445674.91 | M12: =K12-L12 -> -689463.9 | N12: =M12/L12 -> -0.08163514549 | O12: =SUMIFS(O$17:O$201,$G$17:$G$201,"oui",$A$17:$A$201,"C") -> 10093787.56 | P12: =SUMIFS(P$17:P$201,$G$17:$G$201,"oui",$A$17:$A$201,"C") -> 8633622.666 | Q12: =O12-P12 -> 1460164.889 | R12: =Q12/P12 -> 0.1691254003 | S12: =SUMIFS(S$17:S$201,$G$17:$G$201,"oui",$A$17:$A$201,"C") -> 38650463.82 | T12: =SUMIFS(T$17:T$201,$G$17:$G$201,"oui",$A$17:$A$201,"C") -> 36042590.67 | U12: =S12-T12 -> 2607873.153 | V12: =U12/T12 -> 0.07235531923 | W12: =SUMIFS(W$17:W$201,$G$17:$G$201,"oui",$A$17:$A$201,"C") -> 7961 | X12: =SUMIFS(X$17:X$201,$G$17:$G$201,"oui",$A$17:$A$201,"C") -> 7603 | Y12: =W12-X12 -> 358 | Z12: =Y12/X12 -> 0.04708667631 | AA12: =$S$12/$W$12 -> 4854.975986 | AB12: =$T$12/$X$12 -> 4740.574861 | AC12: =AA12-AB12 -> 114.4011246 | AD12: =AC12/AB12 -> 0.02413233163 | AE12: =SUMIFS(AE$17:AE$201,$G$17:$G$201,"oui",$A$17:$A$201,"C") -> 3674 | AF12: =SUMIFS(AF$17:AF$201,$G$17:$G$201,"oui",$A$17:$A$201,"C") -> 3514 | AG12: =AE12-AF12 -> 160 | AH12: =AG12/AF12 -> 0.04553215709 | AI12: =SUMIFS(AI$17:AI$201,$G$17:$G$201,"oui",$A$17:$A$201,"C") -> 204748.4725 | AJ12: =SUMIFS(AJ$17:AJ$201,$G$17:$G$201,"oui",$A$17:$A$201,"C") -> 199275.6444 | AK12: =AI12-AJ12 -> 5472.828045 | AL12: =AK12/AJ12 -> 0.02746360731 | AM12: =SUMIFS(AM$17:AM$201,$G$17:$G$201,"oui",$A$17:$A$201,"C") -> 60781.98046 | AN12: =SUMIFS(AN$17:AN$201,$G$17:$G$201,"oui",$A$17:$A$201,"C") -> 54505.31726 | AO12: =AM12-AN12 -> 6276.663199 | AP12: =AO12/AN12 -> 0.1151568969 | AQ12: =AM12/AI12 -> 0.2968617041 | AR12: =AN12/AJ12 -> 0.2735172048 | AS12: =($AQ12-$AR12) -> 0.02334449929 | AT12: =SUMIFS(AT$17:AT$201,$G$17:$G$201,"oui",$A$17:$A$201,"C") -> 346191.92 | AU12: =SUMIFS(AU$17:AU$201,$G$17:$G$201,"oui",$A$17:$A$201,"C") -> 484588.57 | AV12: =AT12-AU12 -> -138396.65 | AW12: =AV12/AU12 -> -0.2855961914 | AX12: =$AT12/$K12 -> 0.04463415443 | AY12: =$AU12/$L12 -> 0.05737712796 | AZ12: =(AX12-AY12)*100 -> -1.274297353 | BA12: =SUMIFS(BA$17:BA$201,$G$17:$G$201,"oui",$A$17:$A$201,"C") -> 203348.69 | BB12: =SUMIFS(BB$17:BB$201,$G$17:$G$201,"oui",$A$17:$A$201,"C") -> 279153.69 | BC12: =BA12-BB12 -> -75805 | BD12: =BC12/BB12 -> -0.2715529213 | BE12: =$BA12/$K12 -> 0.02621752938 | BF12: =$BB12/$L12 -> 0.03305285758 | BG12: =(BE12-BF12)*100 -> -0.6835328208
H13: Nb d'agence | K13: =COUNTIFS($G$17:$G$201,"oui",$A$17:$A$201,"C")-COUNTIFS(K$17:K$201,"<=0",$G$17:$G$201,"oui",$A$17:$A$201,"C") -> 113 | L13: =COUNTIFS($G$17:$G$201,"oui",$A$17:$A$201,"C")-COUNTIFS(L$17:L$201,"<=0",$G$17:$G$201,"oui",$A$17:$A$201,"C") -> 113 | M13: =K13-L13 -> 0 | N13: =M13/L13 -> 0 | O13: =COUNTIFS($G$17:$G$201,"oui",$A$17:$A$201,"C")-COUNTIFS(O$17:O$201,"<=0",$G$17:$G$201,"oui",$A$17:$A$201,"C") -> 113 | P13: =COUNTIFS($G$17:$G$201,"oui",$A$17:$A$201,"C")-COUNTIFS(P$17:P$201,"<=0",$G$17:$G$201,"oui",$A$17:$A$201,"C") -> 112 | Q13: =O13-P13 -> 1 | R13: =Q13/P13 -> 0.008928571429 | S13: =COUNTIFS($G$17:$G$201,"oui",$A$17:$A$201,"C")-COUNTIFS(S$17:S$201,"<=0",$G$17:$G$201,"oui",$A$17:$A$201,"C") -> 113 | T13: =COUNTIFS($G$17:$G$201,"oui",$A$17:$A$201,"C")-COUNTIFS(T$17:T$201,"<=0",$G$17:$G$201,"oui",$A$17:$A$201,"C") -> 113 | U13: =S13-T13 -> 0 | V13: =U13/T13 -> 0 | W13: =COUNTIFS($G$17:$G$201,"oui",$A$17:$A$201,"C")-COUNTIFS(W$17:W$201,"<=0",$G$17:$G$201,"oui",$A$17:$A$201,"C") -> 113 | X13: =COUNTIFS($G$17:$G$201,"oui",$A$17:$A$201,"C")-COUNTIFS(X$17:X$201,"<=0",$G$17:$G$201,"oui",$A$17:$A$201,"C") -> 113 | Y13: =W13-X13 -> 0 | Z13: =Y13/X13 -> 0 | AE13: =COUNTIFS($G$17:$G$201,"oui",$A$17:$A$201,"C")-COUNTIFS(AE$17:AE$201,"<=0",$G$17:$G$201,"oui",$A$17:$A$201,"C") -> 113 | AF13: =COUNTIFS($G$17:$G$201,"oui",$A$17:$A$201,"C")-COUNTIFS(AF$17:AF$201,"<=0",$G$17:$G$201,"oui",$A$17:$A$201,"C") -> 112 | AG13: =AE13-AF13 -> 1 | AH13: =AG13/AF13 -> 0.008928571429 | AI13: =COUNTIFS($G$17:$G$201,"oui",$A$17:$A$201,"C")-COUNTIFS(AI$17:AI$201,"<=0",$G$17:$G$201,"oui",$A$17:$A$201,"C") -> 113 | AJ13: =COUNTIFS($G$17:$G$201,"oui",$A$17:$A$201,"C")-COUNTIFS(AJ$17:AJ$201,"<=0",$G$17:$G$201,"oui",$A$17:$A$201,"C") -> 113 | AK13: =AI13-AJ13 -> 0 | AL13: =AK13/AJ13 -> 0 | AM13: =COUNTIFS($G$17:$G$201,"oui",$A$17:$A$201,"C")-COUNTIFS(AM$17:AM$201,"<=0",$G$17:$G$201,"oui",$A$17:$A$201,"C") -> 113 | AN13: =COUNTIFS($G$17:$G$201,"oui",$A$17:$A$201,"C")-COUNTIFS(AN$17:AN$201,"<=0",$G$17:$G$201,"oui",$A$17:$A$201,"C") -> 112 | AO13: =AM13-AN13 -> 1 | AP13: =AO13/AN13 -> 0.008928571429 | AT13: =COUNTIFS($G$17:$G$201,"oui",$A$17:$A$201,"C")-COUNTIFS(AT$17:AT$201,"<=0",$G$17:$G$201,"oui",$A$17:$A$201,"C") -> 75 | AU13: =COUNTIFS($G$17:$G$201,"oui",$A$17:$A$201,"C")-COUNTIFS(AU$17:AU$201,"<=0",$G$17:$G$201,"oui",$A$17:$A$201,"C") -> 79 | AV13: =AT13-AU13 -> -4 | AW13: =AV13/AU13 -> -0.05063291139 | AZ13: =AX13-AY13 -> 0 | BA13: =COUNTIFS($G$17:$G$201,"oui",$A$17:$A$201,"C")-COUNTIFS(BA$17:BA$201,"<=0",$G$17:$G$201,"oui",$A$17:$A$201,"C") -> 85 | BB13: =COUNTIFS($G$17:$G$201,"oui",$A$17:$A$201,"C")-COUNTIFS(BB$17:BB$201,"<=0",$G$17:$G$201,"oui",$A$17:$A$201,"C") -> 83 | BC13: =BA13-BB13 -> 2 | BD13: =BC13/BB13 -> 0.02409638554 | BG13: =BE13-BF13 -> 0
L15: CA HT | P15: Mtt Cde HT | T15: Mtt devis | X15: Nbre devis | AB15: Mtt Moyen devis | AF15: Nb de Cde | AJ15: Hres prévues | AN15: Hres Cde | AR15: Taux de transfo. | AU15: CA AGC | AY15: Taux CA AGC | BB15: CA ACA | BF15: Taux de captage ACA
A16: Périmêtre | B16: ID_Atlas | C16: ID Agences | D16: Agences | E16: Franchisés | F16: Régions | G16: Active | H16: Age | I16: Ecart de mois | J16: Date de création | K16: =DE!$C$3&" "&L$15 -> 2026 CA HT | L16: =DE!$C$3-1&" "&L$15 -> 2025 CA HT | M16: Ecart en Mtt | N16: Ecart en % | O16: =DE!$C$3&" "&P$15 -> 2026 Mtt Cde HT | P16: =DE!$C$3-1&" "&P$15 -> 2025 Mtt Cde HT | Q16: Ecart en Mtt | R16: Ecart en % | S16: =DE!$C$3&" "&T$15 -> 2026 Mtt devis | T16: =DE!$C$3-1&" "&T$15 -> 2025 Mtt devis | U16: Ecart en Mtt | V16: Ecart en % | W16: =DE!$C$3&" "&X$15 -> 2026 Nbre devis | X16: =DE!$C$3-1&" "&X$15 -> 2025 Nbre devis | Y16: Ecart en Mtt | Z16: Ecart en % | AA16: =DE!$C$3&" "&AB$15 -> 2026 Mtt Moyen devis | AB16: =DE!$C$3-1&" "&AB$15 -> 2025 Mtt Moyen devis | AC16: Ecart en Mtt | AD16: Ecart en % | AE16: =DE!$C$3&" "&AF$15 -> 2026 Nb de Cde | AF16: =DE!$C$3-1&" "&AF$15 -> 2025 Nb de Cde | AG16: Ecart en Mtt | AH16: Ecart en % | AI16: =DE!$C$3&" "&AJ$15 -> 2026 Hres prévues | AJ16: =DE!$C$3-1&" "&AJ$15 -> 2025 Hres prévues | AK16: Ecart en Mtt | AL16: Ecart en % | AM16: =DE!$C$3&" "&AN$15 -> 2026 Hres Cde | AN16: =DE!$C$3-1&" "&AN$15 -> 2025 Hres Cde | AO16: Ecart en Mtt | AP16: Ecart en % | AQ16: =DE!$C$3&" "&AR$15 -> 2026 Taux de transfo. | AR16: =DE!$C$3-1&" "&AR$15 -> 2025 Taux de transfo. | AS16: Tx de transfo écart à date | AT16: =DE!$C$3&" "&AU$15 -> 2026 CA AGC | AU16: =DE!$C$3-1&" "&AU$15 -> 2025 CA AGC | AV16: Ecart en Mtt | AW16: Ecart en % | AX16: =DE!$C$3&" "&AY$15 -> 2026 Taux CA AGC | AY16: =DE!$C$3-1&" "&AY$15 -> 2025 Taux CA AGC | AZ16: Ecart en pts | BA16: =DE!$C$3&" "&BB$15 -> 2026 CA ACA | BB16: =DE!$C$3-1&" "&BB$15 -> 2025 CA ACA | BC16: Ecart en Mtt | BD16: Ecart en % | BE16: =DE!$C$3&" "&BF$15 -> 2026 Taux de captage ACA | BF16: =DE!$C$3-1&" "&BF$15 -> 2025 Taux de captage ACA | BG16: Ecart en pts
A17: C | B17: 236 | C17: 1210 | D17: ATTILA MONT-DE-MARSAN | E17: MEZIL James | F17: SUD-OUEST | G17: OUI | H17: ANNEE 2 | I17: 17 | J17: 2024-07-10 | K17: 24555.41 | L17: 1778.99 | M17: 22776.42 | N17: 12.8030062 | O17: 34707.4686 | P17: 12475.1 | Q17: 22232.3686 | R17: 1.78213951 | S17: 171992.1686 | T17: 62433.2 | U17: 109558.9686 | V17: 1.754819048 | W17: 43 | X17: 24 | Y17: 19 | Z17: 0.7916666667 | AA17: 3999.817874 | AB17: 2601.383333 | AC17: 1398.434541 | AD17: 0.5375734223 | AE17: 14 | AF17: 3 | AG17: 11 | AH17: 3.666666667 | AI17: 945.8833333 | AJ17: 347.8666667 | AK17: 598.0166667 | AL17: 1.719097355 | AM17: 191.8158602 | AN17: 65.58333333 | AO17: 126.2325269 | AP17: 1.92476534 | AQ17: 0.2027901893 | AR17: 0.1885300882 | AS17: 0.01426010112 | AT17: 0 | AU17: 0 | AV17: 0 | AW17: 0 | AX17: 0 | AY17: 0 | AZ17: 0 | BA17: 1640.63 | BB17: 0 | BC17: 1640.63 | BD17: 0 | BE17: 0.06681338247 | BF17: 0 | BG17: 6.681338247
A18: C | B18: 238 | C18: 1212 | D18: ATTILA CARCASSONNE | E18: FAVIER Bertrand | F18: SUD-OUEST | G18: OUI | H18: ANNEE 2 | I18: 16 | J18: 2024-08-30 | K18: 13113.37 | L18: 1493.71 | M18: 11619.66 | N18: 7.779060192 | O18: 32385.72 | P18: 2636.63 | Q18: 29749.09 | R18: 11.28299761 | S18: 67015.93 | T18: 41437.72 | U18: 25578.21 | V18: 0.617268759 | W18: 36 | X18: 11 | Y18: 25 | Z18: 2.272727273 | AA18: 1861.553611 | AB18: 3767.065455 | AC18: -1905.511843 | AD18: -0.5058345459 | AE18: 12 | AF18: 4 | AG18: 8 | AH18: 2 | AI18: 471.848848 | AJ18: 132.0333333 | AK18: 339.8155146 | AL18: 2.573710033 | AM18: 208.3675573 | AN18: 15.55 | AO18: 192.8175573 | AP18: 12.39984291 | AQ18: 0.4415981053 | AR18: 0.1177732896 | AS18: 0.3238248157 | AT18: 0 | AU18: 0 | AV18: 0 | AW18: 0 | AX18: 0 | AY18: 0 | AZ18: 0 | BA18: 0 | BB18: 0 | BC18: 0 | BD18: 0 | BE18: 0 | BF18: 0 | BG18: 0
A19: C | B19: 234 | C19: 1208 | D19: ATTILA REIMS OUEST | E19: DIONISI Camille | F19: NORD-EST | G19: OUI | H19: ANNEE 2 | I19: 19 | J19: 2024-05-16 | K19: 30648.6 | L19: 3600.28 | M19: 27048.32 | N19: 7.51283789 | O19: 29544.54 | P19: 7646.55 | Q19: 21897.99 | R19: 2.863773859 | S19: 305365.12 | T19: 111846.15 | U19: 193518.97 | V19: 1.730224688 | W19: 53 | X19: 26 | Y19: 27 | Z19: 1.038461538 | AA19: 5761.606038 | AB19: 4301.775 | AC19: 1459.831038 | AD19: 0.3393555074 | AE19: 23 | AF19: 6 | AG19: 17 | AH19: 2.833333333 | AI19: 1571.576614 | AJ19: 524.9358896 | AK19: 1046.640725 | AL19: 1.993844859 | AM19: 217.2104693 | AN19: 55.38064103 | AO19: 161.8298283 | AP19: 2.922137145 | AQ19: 0.1382118233 | AR19: 0.1054998184 | AS19: 0.03271200487 | AT19: 861.63 | AU19: 0 | AV19: 861.63 | AW19: 0 | AX19: 0.02811319277 | AY19: 0 | AZ19: 2.811319277 | BA19: 843.37 | BB19: 581.5 | BC19: 261.87 | BD19: 0.4503353396 | BE19: 0.02751740699 | BF19: 0.1615152155 | BG19: -13.39978085
A20: C | B20: 230 | C20: 1205 | D20: ATTILA NANCY SUD | E20: RICKAL Pierre | F20: NORD-EST | G20: OUI | H20: ANNEE 2 | I20: 20 | J20: 2024-04-03 | K20: 56834.37 | L20: 8919.62 | M20: 47914.75 | N20: 5.371837589 | O20: 51304.45 | P20: 18786.87 | Q20: 32517.58 | R20: 1.730867356 | S20: 147674.45 | T20: 394535.89 | U20: -246861.44 | V20: -0.6257008456 | W20: 36 | X20: 33 | Y20: 3 | Z20: 0.09090909091 | AA20: 4102.068056 | AB20: 11955.63303 | AC20: -7853.564975 | AD20: -0.6568924418 | AE20: 19 | AF20: 12 | AG20: 7 | AH20: 0.5833333333 | AI20: 1171.083333 | AJ20: 1483.916667 | AK20: -312.8333333 | AL20: -0.2108159712 | AM20: 321.25 | AN20: 123.0833333 | AO20: 198.1666667 | AP20: 1.610020311 | AQ20: 0.2743186508 | AR20: 0.08294490931 | AS20: 0.1913737415 | AT20: 8730.09 | AU20: 0 | AV20: 8730.09 | AW20: 0 | AX20: 0.1536058199 | AY20: 0 | AZ20: 15.36058199 | BA20: 4179.7 | BB20: 3205.11 | BC20: 974.59 | BD20: 0.3040738071 | BE20: 0.07354176707 | BF20: 0.3593325725 | BG20: -28.57908054
A21: C | B21: 229 | C21: 1204 | D21: ATTILA TOULOUSE SUD | E21: DE BODINAT Maxime | F21: SUD-OUEST | G21: OUI | H21: ANNEE 3 | I21: 25 | J21: 2023-11-20 | K21: 46277.79 | L21: 7604.78 | M21: 38673.01 | N21: 5.085355526 | O21: 57454.52 | P21: 16117.12 | Q21: 41337.4 | R21: 2.564813068 | S21: 174926.86 | T21: 88618.13 | U21: 86308.73 | V21: 0.9739398699 | W21: 54 | X21: 31 | Y21: 23 | Z21: 0.7419354839 | AA21: 3239.386296 | AB21: 2858.649355 | AC21: 380.7369415 | AD21: 0.1331877031 | AE21: 30 | AF21: 10 | AG21: 20 | AH21: 2 | AI21: 995.0677121 | AJ21: 449.85 | AK21: 545.2177121 | AL21: 1.211998915 | AM21: 316.3861667 | AN21: 112.65 | AO21: 203.7361667 | AP21: 1.808576713 | AQ21: 0.3179544094 | AR21: 0.2504168056 | AS21: 0.06753760375 | AT21: 18011.8 | AU21: 0 | AV21: 18011.8 | AW21: 0 | AX21: 0.3892104614 | AY21: 0 | AZ21: 38.92104614 | BA21: 4209.79 | BB21: 1980.46 | BC21: 2229.33 | BD21: 1.125662725 | BE21: 0.09096782712 | BF21: 0.2604230497 | BG21: -16.94552226
A22: C | B22: 237 | C22: 1211 | D22: ATTILA VERSAILLES | E22: RIGAUD Lionel | F22: NORMANDIE-PARIS | G22: OUI | H22: ANNEE 2 | I22: 16 | J22: 2024-08-30 | K22: 39788.34 | L22: 8407.84 | M22: 31380.5 | N22: 3.732290339 | O22: 53511.654 | P22: 26082.03 | Q22: 27429.624 | R22: 1.051667527 | S22: 86135.69 | T22: 110195.08 | U22: -24059.39 | V22: -0.2183345209 | W22: 41 | X22: 26 | Y22: 15 | Z22: 0.5769230769 | AA22: 2100.870488 | AB22: 4238.272308 | AC22: -2137.40182 | AD22: -0.5043096962 | AE22: 29 | AF22: 10 | AG22: 19 | AH22: 1.9 | AI22: 439.0903981 | AJ22: 696.88 | AK22: -257.7896019 | AL22: -0.3699196445 | AM22: 331.5794074 | AN22: 144.95 | AO22: 186.6294074 | AP22: 1.287543342 | AQ22: 0.7551506678 | AR22: 0.2079985076 | AS22: 0.5471521602 | AT22: 2994 | AU22: 0 | AV22: 2994 | AW22: 0 | AX22: 0.07524817572 | AY22: 0 | AZ22: 7.524817572 | BA22: 3228.79 | BB22: 2533.64 | BC22: 695.15 | BD22: 0.2743681028 | BE22: 0.08114915073 | BF22: 0.3013425565 | BG22: -22.01934057
A23: C | B23: 222 | C23: 1197 | D23: ATTILA VITRE-FOUGERES | E23: LE MEZO Yoann | F23: BRETAGNE | G23: OUI | H23: ANNEE 3 | I23: 32 | J23: 2023-04-26 | K23: 65436.84 | L23: 15029.69 | M23: 50407.15 | N23: 3.353838303 | O23: 139500.244 | P23: 54194.2 | Q23: 85306.044 | R23: 1.574080695 | S23: 461021.1862 | T23: 381608.8475 | U23: 79412.3387 | V23: 0.2080987881 | W23: 74 | X23: 45 | Y23: 29 | Z23: 0.6444444444 | AA23: 6230.01603 | AB23: 8480.196611 | AC23: -2250.180581 | AD23: -0.2653453315 | AE23: 38 | AF23: 14 | AG23: 24 | AH23: 1.714285714 | AI23: 1960.655362 | AJ23: 2079.75702 | AK23: -119.1016586 | AL23: -0.05726710256 | AM23: 731.653886 | AN23: 343.4075194 | AO23: 388.2463667 | AP23: 1.130570371 | AQ23: 0.3731680235 | AR23: 0.1651190577 | AS23: 0.2080489658 | AT23: 0 | AU23: 0 | AV23: 0 | AW23: 0 | AX23: 0 | AY23: 0 | AZ23: 0 | BA23: 5295.91 | BB23: 5029.05 | BC23: 266.86 | BD23: 0.0530636999 | BE23: 0.08093162812 | BF23: 0.3346076998 | BG23: -25.36760717
A24: C | B24: 239 | C24: 1213 | D24: ATTILA LYON NORD EST | E24: LAURENT Aymeric | F24: CENTRE | G24: OUI | H24: ANNEE 3 | I24: 27 | J24: 2023-09-29 | K24: 45776.04 | L24: 11347.8 | M24: 34428.24 | N24: 3.033913181 | O24: 15976.88 | P24: 15434.79 | Q24: 542.09 | R24: 0.03512130713 | S24: 43909.34 | T24: 37916.54 | U24: 5992.8 | V24: 0.1580523961 | W24: 18 | X24: 27 | Y24: -9 | Z24: -0.3333333333 | AA24: 2439.407778 | AB24: 1404.316296 | AC24: 1035.091481 | AD24: 0.7370785942 | AE24: 6 | AF24: 15 | AG24: -9 | AH24: -0.6 | AI24: 259.557265 | AJ24: 226.100089 | AK24: 33.45717602 | AL24: 0.1479750679 | AM24: 99.95074341 | AN24: 92.70125204 | AO24: 7.249491365 | AP24: 0.07820273411 | AQ24: 0.3850816636 | AR24: 0.4100009534 | AS24: -0.02491928978 | AT24: 0 | AU24: 0 | AV24: 0 | AW24: 0 | AX24: 0 | AY24: 0 | AZ24: 0 | BA24: 0 | BB24: 0 | BC24: 0 | BD24: 0 | BE24: 0 | BF24: 0 | BG24: 0
A25: C | B25: 221 | C25: 1196 | D25: ATTILA MACON | E25: TOMAS Alexis | F25: RHONE-ALPES | G25: OUI | H25: ANNEE 3 | I25: 29 | J25: 2023-07-25 | K25: 77524.53 | L25: 27545.72 | M25: 49978.81 | N25: 1.814394759 | O25: 95328.57 | P25: 20005.13 | Q25: 75323.44 | R25: 3.765206225 | S25: 203850.63 | T25: 270016.9025 | U25: -66166.2725 | V25: -0.2450449283 | W25: 54 | X25: 35 | Y25: 19 | Z25: 0.5428571429 | AA25: 3775.011667 | AB25: 7714.768643 | AC25: -3939.756976 | AD25: -0.5106772683 | AE25: 26 | AF25: 12 | AG25: 14 | AH25: 1.166666667 | AI25: 1198.098826 | AJ25: 1453.151125 | AK25: -255.0522994 | AL25: -0.1755167064 | AM25: 556.7145029 | AN25: 132.903125 | AO25: 423.8113779 | AP25: 3.188874437 | AQ25: 0.4646649266 | AR25: 0.09145857077 | AS25: 0.3732063559 | AT25: 0 | AU25: 1354.07 | AV25: -1354.07 | AW25: -1 | AX25: 0 | AY25: 0.04915718304 | AZ25: -4.915718304 | BA25: 6652.06 | BB25: 3808.81 | BC25: 2843.25 | BD25: 0.7464929991 | BE25: 0.08580587332 | BF25: 0.1382722978 | BG25: -5.246642452
A26: C | B26: 233 | C26: 1207 | D26: ATTILA BORDEAUX MERIGNAC | E26: MOAL Yannick | F26: SUD-OUEST | G26: OUI | H26: ANNEE 2 | I26: 19 | J26: 2024-05-16 | K26: 19343.9 | L26: 7630.22 | M26: 11713.68 | N26: 1.535169366 | O26: 15584.6128 | P26: 13180.5123 | Q26: 2404.1005 | R26: 0.1823981075 | S26: 140202.0028 | T26: 84744.8323 | U26: 55457.1705 | V26: 0.6544017965 | W26: 41 | X26: 25 | Y26: 16 | Z26: 0.64 | AA26: 3419.561044 | AB26: 3389.793292 | AC26: 29.7677519 | AD26: 0.008781583223 | AE26: 12 | AF26: 9 | AG26: 3 | AH26: 0.3333333333 | AI26: 662.4610706 | AJ26: 576.8672093 | AK26: 85.59386126 | AL26: 0.1483770613 | AM26: 99.03333333 | AN26: 96.59950326 | AO26: 2.433830078 | AP26: 0.0251950579 | AQ26: 0.1494930612 | AR26: 0.1674553549 | AS26: -0.01796229373 | AT26: 0 | AU26: 0 | AV26: 0 | AW26: 0 | AX26: 0 | AY26: 0 | AZ26: 0 | BA26: 0 | BB26: 0 | BC26: 0 | BD26: 0 | BE26: 0 | BF26: 0 | BG26: 0
A27: C | B27: 228 | C27: 1203 | D27: ATTILA MONTAUBAN | E27: FANTINEL Albéric | F27: SUD-OUEST | G27: OUI | H27: ANNEE 3 | I27: 25 | J27: 2023-11-20 | K27: 68947.28 | L27: 28426.09 | M27: 40521.19 | N27: 1.425492919 | O27: 54115.35 | P27: 30849.29 | Q27: 23266.06 | R27: 0.7541846182 | S27: 246625.97 | T27: 409357.6644 | U27: -162731.6944 | V27: -0.3975293699 | W27: 50 | X27: 57 | Y27: -7 | Z27: -0.1228070175 | AA27: 4932.5194 | AB27: 7181.713411 | AC27: -2249.194011 | AD27: -0.3131834817 | AE27: 20 | AF27: 6 | AG27: 14 | AH27: 2.333333333 | AI27: 1540.407967 | AJ27: 2468.933198 | AK27: -928.5252317 | AL27: -0.3760835782 | AM27: 318.0960689 | AN27: 167.523991 | AO27: 150.5720779 | AP27: 0.8988090425 | AQ27: 0.206501184 | AR27: 0.06785278398 | AS27: 0.1386484 | AT27: 683 | AU27: 0 | AV27: 683 | AW27: 0 | AX27: 0.009906119574 | AY27: 0 | AZ27: 0.9906119574 | BA27: 3965.76 | BB27: 5343.37 | BC27: -1377.61 | BD27: -0.2578166962 | BE27: 0.05751873025 | BF27: 0.1879741463 | BG27: -13.0455416
A28: C | B28: 109 | C28: 111 | D28: ATTILA BEZIERS OUEST | E28: GERARDIN Marc | F28: NORD-EST | G28: OUI | H28: +5ANS | I28: 93 | J28: 2018-03-14 | K28: 158205.51 | L28: 67683.51 | M28: 90522 | N28: 1.337430639 | O28: 135037.2898 | P28: 123706.3752 | Q28: 11330.9146 | R28: 0.09159523575 | S28: 667019.6395 | T28: 296538.6202 | U28: 370481.0193 | V28: 1.249351666 | W28: 120 | X28: 86 | Y28: 34 | Z28: 0.3953488372 | AA28: 5558.496996 | AB28: 3448.123491 | AC28: 2110.373505 | AD28: 0.6120353609 | AE28: 41 | AF28: 43 | AG28: -2 | AH28: -0.04651162791 | AI28: 3341.923291 | AJ28: 1592.178134 | AK28: 1749.745157 | AL28: 1.098963187 | AM28: 669.3880922 | AN28: 683.80101 | AO28: -14.41291778 | AP28: -0.02107764915 | AQ28: 0.2003002564 | AR28: 0.4294751921 | AS28: -0.2291749356 | AT28: 1817.24 | AU28: 604.56 | AV28: 1212.68 | AW28: 2.00588858 | AX28: 0.01148657844 | AY28: 0.008932160876 | AZ28: 0.2554417562 | BA28: 2321.13 | BB28: 4129.94 | BC28: -1808.81 | BD28: -0.4379748858 | BE28: 0.01467161289 | BF28: 0.06101840759 | BG28: -4.634679469
A29: C | B29: 207 | C29: 1181 | D29: ATTILA MONTPELLIER EST | E29: DARLET Jauffrey | F29: NORD-EST | G29: OUI | H29: ANNEE 4 | I29: 42 | J29: 2022-06-13 | K29: 56638.26 | L29: 24365.55 | M29: 32272.71 | N29: 1.324522122 | O29: 45436.69 | P29: 41463.36 | Q29: 3973.33 | R29: 0.09582749686 | S29: 192471.04 | T29: 243438.04 | U29: -50967 | V29: -0.2093633353 | W29: 49 | X29: 42 | Y29: 7 | Z29: 0.1666666667 | AA29: 3927.980408 | AB29: 5796.14381 | AC29: -1868.163401 | AD29: -0.3223114303 | AE29: 22 | AF29: 26 | AG29: -4 | AH29: -0.1538461538 | AI29: 1035.105577 | AJ29: 1124.492986 | AK29: -89.38740801 | AL29: -0.07949129889 | AM29: 278.7335 | AN29: 259.0318333 | AO29: 19.70166667 | AP29: 0.07605886278 | AQ29: 0.2692802609 | AR29: 0.2303543345 | AS29: 0.03892592642 | AT29: 0 | AU29: 945 | AV29: -945 | AW29: -1 | AX29: 0 | AY29: 0.03878426713 | AZ29: -3.878426713 | BA29: 239.5 | BB29: 0 | BC29: 239.5 | BD29: 0 | BE29: 0.004228590356 | BF29: 0 | BG29: 0.4228590356
A30: C | B30: 216 | C30: 1191 | D30: ATTILA CHALON-SUR-SAONE | E30: VIDAL Alexandre | F30: RHONE-ALPES | G30: OUI | H30: ANNEE 3 | I30: 32 | J30: 2023-04-12 | K30: 103551.49 | L30: 45803.35 | M30: 57748.14 | N30: 1.2607842 | O30: 104968.46 | P30: 56904.25 | Q30: 48064.21 | R30: 0.8446506192 | S30: 602260.28 | T30: 249702.43 | U30: 352557.85 | V30: 1.411911971 | W30: 78 | X30: 61 | Y30: 17 | Z30: 0.2786885246 | AA30: 7721.285641 | AB30: 4093.482459 | AC30: 3627.803182 | AD30: 0.8862388488 | AE30: 30 | AF30: 14 | AG30: 16 | AH30: 1.142857143 | AI30: 2778.270951 | AJ30: 1406.182754 | AK30: 1372.088198 | AL30: 0.9757538229 | AM30: 584.2755098 | AN30: 282.0122078 | AO30: 302.263302 | AP30: 1.071809282 | AQ30: 0.210301846 | AR30: 0.2005516047 | AS30: 0.009750241301 | AT30: 1532 | AU30: 0 | AV30: 1532 | AW30: 0 | AX30: 0.01479457225 | AY30: 0 | AZ30: 1.479457225 | BA30: -650 | BB30: 3224.23 | BC30: -3874.23 | BD30: -1.201598521 | BE30: -0.00627707047 | BF30: 0.07039288611 | BG30: -7.666995658
A31: C | B31: 224 | C31: 1199 | D31: ATTILA PONTIVY LOUDEAC | E31: LANCHEC Yann | F31: BRETAGNE | G31: OUI | H31: ANNEE 3 | I31: 27 | J31: 2023-09-29 | K31: 120547.13 | L31: 55302.83 | M31: 65244.3 | N31: 1.179764218 | O31: 227841.183 | P31: 97392.0164 | Q31: 130449.1666 | R31: 1.339423614 | S31: 732794.3256 | T31: 427900.171 | U31: 304894.1546 | V31: 0.7125357157 | W31: 105 | X31: 60 | Y31: 45 | Z31: 0.75 | AA31: 6978.993577 | AB31: 7131.669517 | AC31: -152.6759395 | AD31: -0.02140816245 | AE31: 51 | AF31: 26 | AG31: 25 | AH31: 0.9615384615 | AI31: 4280.276325 | AJ31: 2317.287147 | AK31: 1962.989178 | AL31: 0.8471065749 | AM31: 1372.123853 | AN31: 665.2881899 | AO31: 706.8356634 | AP31: 1.06245034 | AQ31: 0.3205689888 | AR31: 0.2870978639 | AS31: 0.0334711249 | AT31: 7661.5 | AU31: 0 | AV31: 7661.5 | AW31: 0 | AX31: 0.0635560548 | AY31: 0 | AZ31: 6.35560548 | BA31: 3024.1 | BB31: 2218.7 | BC31: 805.4 | BD31: 0.3630053635 | BE31: 0.02508645374 | BF31: 0.04011910421 | BG31: -1.503265047
A32: C | B32: 144 | C32: 141 | D32: ATTILA BRIVE | E32: GUEDELHA Antonio | F32: CENTRE | G32: OUI | H32: ANNEE 2 | I32: 23 | J32: 2024-01-18 | K32: 123629.33 | L32: 70676.93 | M32: 52952.4 | N32: 0.7492176018 | O32: 86274.4125 | P32: 122204.701 | Q32: -35930.2885 | R32: -0.2940172367 | S32: 303316.082 | T32: 195972.476 | U32: 107343.606 | V32: 0.5477483787 | W32: 142 | X32: 95 | Y32: 47 | Z32: 0.4947368421 | AA32: 2136.028746 | AB32: 2062.868168 | AC32: 73.16057806 | AD32: 0.03546546463 | AE32: 78 | AF32: 79 | AG32: -1 | AH32: -0.01265822785 | AI32: 1785.19148 | AJ32: 1232.735048 | AK32: 552.4564321 | AL32: 0.4481550459 | AM32: 559.6002487 | AN32: 813.7419648 | AO32: -254.1417161 | AP32: -0.3123124124 | AQ32: 0.3134679136 | AR32: 0.6601109996 | AS32: -0.346643086 | AT32: 3604.09 | AU32: 10607.88 | AV32: -7003.79 | AW32: -0.6602440827 | AX32: 0.02915238641 | AY32: 0.150089711 | AZ32: -12.09373246 | BA32: 6568.97 | BB32: 2379.74 | BC32: 4189.23 | BD32: 1.760372982 | BE32: 0.0531343978 | BF32: 0.03367067585 | BG32: 1.946372195
A33: C | B33: 159 | C33: 156 | D33: ATTILA ROUEN SUD | E33: PEYRUSSE DIONISI Arnaud | F33: NORMANDIE-PARIS | G33: OUI | H33: ANNEE 5 | I33: 59 | J33: 2021-01-14 | K33: 68453.32 | L33: 41715.85 | M33: 26737.47 | N33: 0.6409427112 | O33: 58152.81 | P33: 73428.29 | Q33: -15275.48 | R33: -0.2080326261 | S33: 198280.02 | T33: 138257.18 | U33: 60022.84 | V33: 0.4341390444 | W33: 120 | X33: 55 | Y33: 65 | Z33: 1.181818182 | AA33: 1652.3335 | AB33: 2513.766909 | AC33: -861.4334091 | AD33: -0.3426862713 | AE33: 72 | AF33: 32 | AG33: 40 | AH33: 1.25 | AI33: 1157.922315 | AJ33: 933.6603842 | AK33: 224.2619307 | AL33: 0.2401964723 | AM33: 402.0661979 | AN33: 487.7368913 | AO33: -85.67069337 | AP33: -0.1756494022 | AQ33: 0.347230719 | AR33: 0.5223921884 | AS33: -0.1751614694 | AT33: 9252.8 | AU33: 12461.5 | AV33: -3208.7 | AW33: -0.2574890663 | AX33: 0.1351694848 | AY33: 0.2987233869 | AZ33: -16.35539021 | BA33: 1814.54 | BB33: 3165.1 | BC33: -1350.56 | BD33: -0.4267037376 | BE33: 0.02650769897 | BF33: 0.0758728397 | BG33: -4.936514073
A34: C | B34: 49 | C34: 49 | D34: ATTILA LORIENT | E34: LE CLOËREC Sylvain | F34: BRETAGNE | G34: OUI | H34: ANNEE 3 | I34: 32 | J34: 2023-04-26 | K34: 156856.87 | L34: 104363.11 | M34: 52493.76 | N34: 0.5029915264 | O34: 239231.61 | P34: 103583.55 | Q34: 135648.06 | R34: 1.309552144 | S34: 440416.16 | T34: 308127.06 | U34: 132289.1 | V34: 0.4293329512 | W34: 93 | X34: 67 | Y34: 26 | Z34: 0.3880597015 | AA34: 4735.657634 | AB34: 4598.911343 | AC34: 136.7462911 | AD34: 0.02973449169 | AE34: 58 | AF34: 42 | AG34: 16 | AH34: 0.380952381 | AI34: 2755.648603 | AJ34: 1928.363736 | AK34: 827.2848669 | AL34: 0.4290087246 | AM34: 1530.886144 | AN34: 698.2520025 | AO34: 832.6341414 | AP34: 1.192455071 | AQ34: 0.5555447608 | AR34: 0.3620955889 | AS34: 0.1934491719 | AT34: 2483 | AU34: 4962.64 | AV34: -2479.64 | AW34: -0.4996614705 | AX34: 0.01582971788 | AY34: 0.0475516684 | AZ34: -3.172195052 | BA34: 1317.74 | BB34: 2357.23 | BC34: -1039.49 | BD34: -0.4409794547 | BE34: 0.008400907145 | BF34: 0.02258681252 | BG34: -1.418590538
A35: C | B35: 211 | C35: 1185 | D35: ATTILA ORANGE 2 | E35: ARSIQUAUD Cédric | F35: CENTRE | G35: OUI | H35: +5ANS | I35: 136 | J35: 2014-08-07 | K35: 86943.17 | L35: 61217.32 | M35: 25725.85 | N35: 0.420238096 | O35: 120710.52 | P35: 43586.17 | Q35: 77124.35 | R35: 1.769468389 | S35: 294562.05 | T35: 503499.49 | U35: -208937.44 | V35: -0.4149705097 | W35: 56 | X35: 58 | Y35: -2 | Z35: -0.03448275862 | AA35: 5260.036607 | AB35: 8681.02569 | AC35: -3420.989083 | AD35: -0.3940765993 | AE35: 26 | AF35: 16 | AG35: 10 | AH35: 0.625 | AI35: 1493.380409 | AJ35: 2407.0195 | AK35: -913.6390911 | AL35: -0.3795727833 | AM35: 657.7399822 | AN35: 274.596 | AO35: 383.1439822 | AP35: 1.395300668 | AQ35: 0.4404369967 | AR35: 0.1140813359 | AS35: 0.3263556608 | AT35: 986.51 | AU35: 7976.94 | AV35: -6990.43 | AW35: -0.8763297706 | AX35: 0.01134660721 | AY35: 0.1303052796 | AZ35: -11.89586724 | BA35: 2073.6 | BB35: 2577 | BC35: -503.4 | BD35: -0.1953434226 | BE35: 0.02385006206 | BF35: 0.04209592971 | BG35: -1.824586766
A36: C | B36: 104 | C36: 105 | D36: ATTILA REIMS EST | E36: ETIENNE Nicolas | F36: NORD-EST | G36: OUI | H36: +5ANS | I36: 103 | J36: 2017-05-02 | K36: 150722.98 | L36: 107198.28 | M36: 43524.7 | N36: 0.406020507 | O36: 206216.75 | P36: 132412.62 | Q36: 73804.13 | R36: 0.5573798781 | S36: 489260.17 | T36: 267822.9635 | U36: 221437.2065 | V36: 0.8268044069 | W36: 113 | X36: 100 | Y36: 13 | Z36: 0.13 | AA36: 4329.736018 | AB36: 2678.229635 | AC36: 1651.506383 | AD36: 0.6166410681 | AE36: 87 | AF36: 73 | AG36: 14 | AH36: 0.1917808219 | AI36: 3097.233025 | AJ36: 1822.880856 | AK36: 1274.352169 | AL36: 0.699086923 | AM36: 1368.737023 | AN36: 1059.137323 | AO36: 309.5996999 | AP36: 0.2923130864 | AQ36: 0.4419225199 | AR36: 0.5810238885 | AS36: -0.1391013685 | AT36: 3388.04 | AU36: 6722.58 | AV36: -3334.54 | AW36: -0.4960208729 | AX36: 0.02247858953 | AY36: 0.06271164052 | AZ36: -4.023305099 | BA36: 6629.13 | BB36: 4590.07 | BC36: 2039.06 | BD36: 0.4442328766 | BE36: 0.0439822116 | BF36: 0.04281850418 | BG36: 0.1163707427
A37: C | B37: 240 | C37: 1214 | D37: ATTILA SENS | E37: LAHAYE Benoit | F37: CENTRE VAL-DE-LOIRE | G37: OUI | H37: ANNEE 1 | I37: 12 | J37: 2024-12-10 | K37: 51540.6 | L37: 38732.7 | M37: 12807.9 | N37: 0.3306740816 | O37: 47635.86 | P37: 0 | Q37: 47635.86 | R37: 0 | S37: 297677.02 | T37: 22.5 | U37: 297654.52 | V37: 13229.08978 | W37: 43 | X37: 1 | Y37: 42 | Z37: 42 | AA37: 6922.721395 | AB37: 22.5 | AC37: 6900.221395 | AD37: 306.6765065 | AE37: 7 | AF37: 0 | AG37: 7 | AH37: 0 | AI37: 1652.216667 | AJ37: 0.1666666667 | AK37: 1652.05 | AL37: 9912.3 | AM37: 242.55 | AN37: 0 | AO37: 242.55 | AP37: 0 | AQ37: 0.1468027801 | AR37: 0 | AS37: 0.1468027801 | AT37: 0 | AU37: 0 | AV37: 0 | AW37: 0 | AX37: 0 | AY37: 0 | AZ37: 0 | BA37: 381.81 | BB37: 1967.3 | BC37: -1585.49 | BD37: -0.8059218218 | BE37: 0.007407946357 | BF37: 0.0507917083 | BG37: -4.338376194
A38: C | B38: 210 | C38: 1184 | D38: ATTILA NARBONNE | E38: BAUZOU Guillaume | F38: NORD-EST | G38: OUI | H38: ANNEE 4 | I38: 40 | J38: 2022-08-17 | K38: 11816.41 | L38: 8894.66 | M38: 2921.75 | N38: 0.328483607 | O38: 6722.592 | P38: 15022.576 | Q38: -8299.984 | R38: -0.5525007163 | S38: 69980.75 | T38: 104592.82 | U38: -34612.07 | V38: -0.3309220461 | W38: 27 | X38: 64 | Y38: -37 | Z38: -0.578125 | AA38: 2591.87963 | AB38: 1634.262813 | AC38: 957.6168171 | AD38: 0.5859625574 | AE38: 5 | AF38: 7 | AG38: -2 | AH38: -0.2857142857 | AI38: 340.2028725 | AJ38: 713.4179115 | AK38: -373.2150389 | AL38: -0.5231366257 | AM38: 40.73333333 | AN38: 84.93069333 | AO38: -44.19736 | AP38: -0.5203932556 | AQ38: 0.1197324791 | AR38: 0.1190476045 | AS38: 0.0006848746701 | AT38: 0 | AU38: 0 | AV38: 0 | AW38: 0 | AX38: 0 | AY38: 0 | AZ38: 0 | BA38: 1005.29 | BB38: 82.64 | BC38: 922.65 | BD38: 11.16469022 | BE38: 0.08507575482 | BF38: 0.009290967839 | BG38: 7.578478698
A39: C | B39: 105 | C39: 106 | D39: ATTILA VITROLLES | E39: AVRIL Laurent | F39: RHONE-ALPES | G39: OUI | H39: +5ANS | I39: 119 | J39: 2016-01-29 | K39: 91150.37 | L39: 69103.55 | M39: 22046.82 | N39: 0.3190403387 | O39: 43658.67 | P39: 103299.69 | Q39: -59641.02 | R39: -0.5773591383 | S39: 363062.75 | T39: 292880.92 | U39: 70181.83 | V39: 0.2396258179 | W39: 60 | X39: 81 | Y39: -21 | Z39: -0.2592592593 | AA39: 6051.045833 | AB39: 3615.813827 | AC39: 2435.232006 | AD39: 0.6734948542 | AE39: 22 | AF39: 50 | AG39: -28 | AH39: -0.56 | AI39: 1848.376282 | AJ39: 1564.726081 | AK39: 283.6502012 | AL39: 0.1812778637 | AM39: 285.9690476 | AN39: 621.0263617 | AO39: -335.057314 | AP39: -0.5395218862 | AQ39: 0.1547136535 | AR39: 0.3968914235 | AS39: -0.24217777 | AT39: 4352.36 | AU39: 18917.61 | AV39: -14565.25 | AW39: -0.7699307682 | AX39: 0.0477492302 | AY39: 0.2737574264 | AZ39: -22.60081962 | BA39: 2292.12 | BB39: 319.1 | BC39: 1973.02 | BD39: 6.183077405 | BE39: 0.02514657922 | BF39: 0.004617707773 | BG39: 2.052887145
A40: C | B40: 143 | C40: 140 | D40: ATTILA LE MANS NORD | E40: SAILLOUR Laure | F40: CENTRE VAL-DE-LOIRE | G40: OUI | H40: +5ANS | I40: 75 | J40: 2019-09-18 | K40: 153768.83 | L40: 117995.86 | M40: 35772.97 | N40: 0.3031713994 | O40: 230387.3848 | P40: 124199.7716 | Q40: 106187.6132 | R40: 0.8549743034 | S40: 397090.4841 | T40: 440245.9201 | U40: -43155.436 | V40: -0.09802574886 | W40: 61 | X40: 57 | Y40: 4 | Z40: 0.0701754386 | AA40: 6509.680067 | AB40: 7723.612633 | AC40: -1213.932566 | AD40: -0.1571716014 | AE40: 50 | AF40: 21 | AG40: 29 | AH40: 1.380952381 | AI40: 1916.64117 | AJ40: 2163.452833 | AK40: -246.8116636 | AL40: -0.1140822946 | AM40: 1150.733333 | AN40: 607.4278333 | AO40: 543.3055 | AP40: 0.8944362938 | AQ40: 0.6003905955 | AR40: 0.2807677727 | AS40: 0.3196228228 | AT40: 9374.17 | AU40: 3389.5 | AV40: 5984.67 | AW40: 1.765649801 | AX40: 0.06096274518 | AY40: 0.0287255841 | AZ40: 3.223716108 | BA40: 5528.28 | BB40: 8790.92 | BC40: -3262.64 | BD40: -0.3711374919 | BE40: 0.0359518896 | BF40: 0.07450193592 | BG40: -3.855004632
A41: C | B41: 226 | C41: 1201 | D41: ATTILA CERGY-PONTOISE | E41: FOURCADE Sébastien | F41: NORMANDIE-PARIS | G41: OUI | H41: ANNEE 2 | I41: 23 | J41: 2024-02-01 | K41: 50617.7 | L41: 39293.03 | M41: 11324.67 | N41: 0.2882106572 | O41: 55173.6 | P41: 32349.63 | Q41: 22823.97 | R41: 0.7055403725 | S41: 160206.91 | T41: 152811.2228 | U41: 7395.6872 | V41: 0.04839753956 | W41: 39 | X41: 48 | Y41: -9 | Z41: -0.1875 | AA41: 4107.869487 | AB41: 3183.567142 | AC41: 924.3023455 | AD41: 0.2903354333 | AE41: 25 | AF41: 21 | AG41: 4 | AH41: 0.1904761905 | AI41: 957.6214437 | AJ41: 1020.500157 | AK41: -62.87871345 | AL41: -0.06161558429 | AM41: 316.3118333 | AN41: 209.7054825 | AO41: 106.6063508 | AP41: 0.5083622492 | AQ41: 0.3303098895 | AR41: 0.2054928469 | AS41: 0.1248170427 | AT41: 3304.76 | AU41: 3236.72 | AV41: 68.04 | AW41: 0.0210212808 | AX41: 0.06528862433 | AY41: 0.08237389685 | AZ41: -1.708527251 | BA41: 0 | BB41: 463.77 | BC41: -463.77 | BD41: -1 | BE41: 0 | BF41: 0.01180285664 | BG41: -1.180285664
A42: C | B42: 169 | C42: 1165 | D42: ATTILA ARRAS | E42: CHARLET Nicolas | F42: NORMANDIE-PARIS | G42: OUI | H42: ANNEE 5 | I42: 54 | J42: 2021-06-17 | K42: 85958.77 | L42: 67610.17 | M42: 18348.6 | N42: 0.2713881654 | O42: 174007.7418 | P42: 57742.52 | Q42: 116265.2218 | R42: 2.013511392 | S42: 328610 | T42: 285372.3393 | U42: 43237.6607 | V42: 0.1515131453 | W42: 83 | X42: 52 | Y42: 31 | Z42: 0.5961538462 | AA42: 3959.156627 | AB42: 5487.929602 | AC42: -1528.772975 | AD42: -0.2785700777 | AE42: 32 | AF42: 23 | AG42: 9 | AH42: 0.3913043478 | AI42: 1999.273689 | AJ42: 1655.491456 | AK42: 343.7822332 | AL42: 0.2076617381 | AM42: 863.1080695 | AN42: 428.6923184 | AO42: 434.4157511 | AP42: 1.01335091 | AQ42: 0.4317108129 | AR42: 0.2589516949 | AS42: 0.172759118 | AT42: 26073.48 | AU42: 10634.03 | AV42: 15439.45 | AW42: 1.45189077 | AX42: 0.3033254198 | AY42: 0.1572844736 | AZ42: 14.60409462 | BA42: 2751.87 | BB42: 1737.5 | BC42: 1014.37 | BD42: 0.5838100719 | BE42: 0.0320138364 | BF42: 0.0256987965 | BG42: 0.6315039903
A43: C | B43: 203 | C43: 1177 | D43: ATTILA VANNES OUEST | E43: LANCHEC Yann | F43: BRETAGNE | G43: OUI | H43: ANNEE 4 | I43: 43 | J43: 2022-05-25 | K43: 156694.96 | L43: 124667 | M43: 32027.96 | N43: 0.2569080831 | O43: 144972.2245 | P43: 72326.752 | Q43: 72645.4725 | R43: 1.004406675 | S43: 506443.7095 | T43: 341405.7156 | U43: 165037.9939 | V43: 0.4834072377 | W43: 111 | X43: 79 | Y43: 32 | Z43: 0.4050632911 | AA43: 4562.555941 | AB43: 4321.591337 | AC43: 240.9646047 | AD43: 0.05575830428 | AE43: 46 | AF43: 34 | AG43: 12 | AH43: 0.3529411765 | AI43: 2751.02977 | AJ43: 1857.76593 | AK43: 893.2638403 | AL43: 0.4808269039 | AM43: 822.0088868 | AN43: 459.08096 | AO43: 362.9279268 | AP43: 0.7905532104 | AQ43: 0.2988004331 | AR43: 0.2471145329 | AS43: 0.05168590019 | AT43: 0 | AU43: 2117.63 | AV43: -2117.63 | AW43: -1 | AX43: 0 | AY43: 0.01698629148 | AZ43: -1.698629148 | BA43: 1065.25 | BB43: 17207.55 | BC43: -16142.3 | BD43: -0.9380940343 | BE43: 0.006798240352 | BF43: 0.1380281069 | BG43: -13.12298665
A44: C | B44: 225 | C44: 1200 | D44: ATTILA ANNEMASSE | E44: PAVIET Louis | F44: RHONE-ALPES | G44: OUI | H44: ANNEE 3 | I44: 27 | J44: 2023-09-29 | K44: 36687.74 | L44: 30267.03 | M44: 6420.71 | N44: 0.212135449 | O44: 91402.29 | P44: 41935.5 | Q44: 49466.79 | R44: 1.179592231 | S44: 2191592.84 | T44: 1014812.49 | U44: 1176780.35 | V44: 1.159603731 | W44: 93 | X44: 60 | Y44: 33 | Z44: 0.55 | AA44: 23565.51441 | AB44: 16913.5415 | AC44: 6651.972909 | AD44: 0.3932927299 | AE44: 29 | AF44: 10 | AG44: 19 | AH44: 1.9 | AI44: 7485.322579 | AJ44: 4680.802667 | AK44: 2804.519913 | AL44: 0.5991536308 | AM44: 638.8329812 | AN44: 219.7276067 | AO44: 419.1053745 | AP44: 1.907386062 | AQ44: 0.0853447496 | AR44: 0.04694229225 | AS44: 0.03840245736 | AT44: 0 | AU44: 0 | AV44: 0 | AW44: 0 | AX44: 0 | AY44: 0 | AZ44: 0 | BA44: 202.48 | BB44: 0 | BC44: 202.48 | BD44: 0 | BE44: 0.005519009893 | BF44: 0 | BG44: 0.5519009893
A45: C | B45: 55 | C45: 55 | D45: ATTILA AVIGNON | E45: DECAVATA Franck | F45: CENTRE | G45: OUI | H45: +5ANS | I45: 139 | J45: 2014-05-28 | K45: 51527.55 | L45: 42534.55 | M45: 8993 | N45: 0.2114281214 | O45: 38436.72 | P45: 69146.17 | Q45: -30709.45 | R45: -0.4441236586 | S45: 228448.2 | T45: 129745.45 | U45: 98702.75 | V45: 0.7607415135 | W45: 50 | X45: 23 | Y45: 27 | Z45: 1.173913043 | AA45: 4568.964 | AB45: 5641.106522 | AC45: -1072.142522 | AD45: -0.1900589038 | AE45: 14 | AF45: 13 | AG45: 1 | AH45: 0.07692307692 | AI45: 1173.336976 | AJ45: 773.4930641 | AK45: 399.8439117 | AL45: 0.5169327694 | AM45: 227.9283704 | AN45: 451.20385 | AO45: -223.2754796 | AP45: -0.4948439151 | AQ45: 0.1942565308 | AR45: 0.5833327678 | AS45: -0.3890762371 | AT45: 7457.35 | AU45: 10491.63 | AV45: -3034.28 | AW45: -0.289209589 | AX45: 0.1447254915 | AY45: 0.2466613612 | AZ45: -10.19358697 | BA45: 0 | BB45: 529.09 | BC45: -529.09 | BD45: -1 | BE45: 0 | BF45: 0.01243906424 | BG45: -1.243906424
A46: C | B46: 161 | C46: 1156 | D46: ATTILA RENNES NORD | E46: BOIZIAU Julien | F46: BRETAGNE | G46: OUI | H46: ANNEE 5 | I46: 59 | J46: 2021-01-20 | K46: 112919.12 | L46: 93913.66 | M46: 19005.46 | N46: 0.2023716252 | O46: 186965.1129 | P46: 146283.986 | Q46: 40681.1269 | R46: 0.2780969265 | S46: 319507.4218 | T46: 532742.886 | U46: -213235.4642 | V46: -0.4002596183 | W46: 156 | X46: 165 | Y46: -9 | Z46: -0.05454545455 | AA46: 2048.124499 | AB46: 3228.744764 | AC46: -1180.620265 | AD46: -0.3656592117 | AE46: 85 | AF46: 82 | AG46: 3 | AH46: 0.03658536585 | AI46: 2115.979322 | AJ46: 3150.890715 | AK46: -1034.911393 | AL46: -0.3284504246 | AM46: 1049.561094 | AN46: 847.6738891 | AO46: 201.887205 | AP46: 0.2381661245 | AQ46: 0.4960167064 | AR46: 0.2690267501 | AS46: 0.2269899563 | AT46: 3599.19 | AU46: 4857.11 | AV46: -1257.92 | AW46: -0.2589852814 | AX46: 0.03187405286 | AY46: 0.05171888733 | AZ46: -1.984483447 | BA46: 2303.38 | BB46: 3571.35 | BC46: -1267.97 | BD46: -0.3550394109 | BE46: 0.02039849407 | BF46: 0.03802801424 | BG46: -1.762952017
A47: C | B47: 171 | C47: 1167 | D47: ATTILA TARBES | E47: POLIER Alexis | F47: SUD-OUEST | G47: OUI | H47: ANNEE 5 | I47: 54 | J47: 2021-06-17 | K47: 78513.44 | L47: 65919.41 | M47: 12594.03 | N47: 0.1910519223 | O47: 25324.15 | P47: 91411.3227 | Q47: -66087.1727 | R47: -0.7229648445 | S47: 56385.85 | T47: 332479.5662 | U47: -276093.7162 | V47: -0.830408074 | W47: 36 | X47: 60 | Y47: -24 | Z47: -0.4 | AA47: 1566.273611 | AB47: 5541.326103 | AC47: -3975.052492 | AD47: -0.7173467899 | AE47: 17 | AF47: 31 | AG47: -14 | AH47: -0.4516129032 | AI47: 368.3928333 | AJ47: 1821.110099 | AK47: -1452.717266 | AL47: -0.7977097412 | AM47: 194.6256863 | AN47: 547.1459324 | AO47: -352.5202462 | AP47: -0.6442892568 | AQ47: 0.5283101859 | AR47: 0.3004463776 | AS47: 0.2278638084 | AT47: 0 | AU47: 10346 | AV47: -10346 | AW47: -1 | AX47: 0 | AY47: 0.1569492203 | AZ47: -15.69492203 | BA47: 0 | BB47: 4892.55 | BC47: -4892.55 | BD47: -1 | BE47: 0 | BF47: 0.07422017278 | BG47: -7.422017278
A48: C | B48: 139 | C48: 135 | D48: ATTILA LIMOGES SUD | E48: PELTIER Romain | F48: CENTRE | G48: OUI | H48: +5ANS | I48: 84 | J48: 2018-12-18 | K48: 47688.79 | L48: 40177.29 | M48: 7511.5 | N48: 0.1869588516 | O48: 87131.0854 | P48: 46375.554 | Q48: 40755.5314 | R48: 0.8788149765 | S48: 239295.512 | T48: 191758.0805 | U48: 47537.4315 | V48: 0.2479031464 | W48: 84 | X48: 68 | Y48: 16 | Z48: 0.2352941176 | AA48: 2848.756095 | AB48: 2819.971772 | AC48: 28.78432318 | AD48: 0.01020730898 | AE48: 46 | AF48: 36 | AG48: 10 | AH48: 0.2777777778 | AI48: 1392.563927 | AJ48: 1135.600086 | AK48: 256.9638417 | AL48: 0.2262802239 | AM48: 529.9522839 | AN48: 291.0561922 | AO48: 238.8960917 | AP48: 0.8207902737 | AQ48: 0.3805586756 | AR48: 0.2563016645 | AS48: 0.124257011 | AT48: 0 | AU48: 2500 | AV48: -2500 | AW48: -1 | AX48: 0 | AY48: 0.06222420676 | AZ48: -6.222420676 | BA48: -300 | BB48: 0 | BC48: -300 | BD48: 0 | BE48: -0.006290786577 | BF48: 0 | BG48: -0.6290786577
A49: C | B49: 208 | C49: 1182 | D49: ATTILA CHARTRES | E49: MARTIN Nicolas | F49: CENTRE VAL-DE-LOIRE | G49: OUI | H49: ANNEE 4 | I49: 41 | J49: 2022-07-21 | K49: 84914.52 | L49: 72785.28 | M49: 12129.24 | N49: 0.1666441346 | O49: 38273.13 | P49: 70803.104 | Q49: -32529.974 | R49: -0.4594427668 | S49: 113947.84 | T49: 219936.644 | U49: -105988.804 | V49: -0.4819060711 | W49: 55 | X49: 80 | Y49: -25 | Z49: -0.3125 | AA49: 2071.778909 | AB49: 2749.20805 | AC49: -677.4291409 | AD49: -0.2464088307 | AE49: 21 | AF49: 43 | AG49: -22 | AH49: -0.511627907 | AI49: 645.2311912 | AJ49: 1401.852394 | AK49: -756.6212025 | AL49: -0.5397295792 | AM49: 212.1328095 | AN49: 525.2264728 | AO49: -313.0936633 | AP49: -0.5961117337 | AQ49: 0.3287702337 | AR49: 0.3746660313 | AS49: -0.04589579756 | AT49: 9423.47 | AU49: 1947.74 | AV49: 7475.73 | AW49: 3.838156017 | AX49: 0.1109759556 | AY49: 0.02676008116 | AZ49: 8.421587443 | BA49: 8346.75 | BB49: 4176.28 | BC49: 4170.47 | BD49: 0.9986088098 | BE49: 0.09829590982 | BF49: 0.05737808524 | BG49: 4.091782458
A50: C | B50: 63 | C50: 63 | D50: ATTILA PERIGUEUX | E50: VALETTE Mathieu | F50: DEUX-SEVRES | G50: OUI | H50: ANNEE 2 | I50: 14 | J50: 2024-10-15 | K50: 96878.28 | L50: 85240.57 | M50: 11637.71 | N50: 0.1365278294 | O50: 152157.72 | P50: 84523.76 | Q50: 67633.96 | R50: 0.800176897 | S50: 260316.009 | T50: 296443.56 | U50: -36127.551 | V50: -0.1218699134 | W50: 130 | X50: 137 | Y50: -7 | Z50: -0.05109489051 | AA50: 2002.430838 | AB50: 2163.821606 | AC50: -161.3907674 | AD50: -0.07458598571 | AE50: 90 | AF50: 95 | AG50: -5 | AH50: -0.05263157895 | AI50: 1372.09992 | AJ50: 1727.906533 | AK50: -355.806613 | AL50: -0.2059177428 | AM50: 984.3679941 | AN50: 575.0302291 | AO50: 409.337765 | AP50: 0.7118543414 | AQ50: 0.7174171354 | AR50: 0.3327901238 | AS50: 0.3846270116 | AT50: 2222.87 | AU50: 5939.05 | AV50: -3716.18 | AW50: -0.6257196016 | AX50: 0.02294497797 | AY50: 0.06967398271 | AZ50: -4.672900474 | BA50: -300 | BB50: 5601.92 | BC50: -5901.92 | BD50: -1.053553068 | BE50: -0.003096669346 | BF50: 0.06571894111 | BG50: -6.881561046
A51: C | B51: 107 | C51: 109 | D51: ATTILA SAINT-QUENTIN | E51: TREPANT Raphaël | F51: NORD-EST | G51: OUI | H51: +5ANS | I51: 98 | J51: 2017-10-16 | K51: 139289.56 | L51: 122730.22 | M51: 16559.34 | N51: 0.1349247154 | O51: 148829.3165 | P51: 143157.23 | Q51: 5672.0865 | R51: 0.03962137644 | S51: 405581.8065 | T51: 337954.5764 | U51: 67627.2301 | V51: 0.2001074547 | W51: 66 | X51: 75 | Y51: -9 | Z51: -0.12 | AA51: 6145.178886 | AB51: 4506.061019 | AC51: 1639.117868 | AD51: 0.3637584713 | AE51: 41 | AF51: 33 | AG51: 8 | AH51: 0.2424242424 | AI51: 2649.586061 | AJ51: 2215.976061 | AK51: 433.61 | AL51: 0.1956744965 | AM51: 1230.709545 | AN51: 1045.194394 | AO51: 185.5151515 | AP51: 0.1774934429 | AQ51: 0.4644912516 | AR51: 0.4716632154 | AS51: -0.007171963797 | AT51: 0 | AU51: 1543.66 | AV51: -1543.66 | AW51: -1 | AX51: 0 | AY51: 0.01257766832 | AZ51: -1.257766832 | BA51: 924.49 | BB51: 1970.23 | BC51: -1045.74 | BD51: -0.5307705192 | BE51: 0.006637180848 | BF51: 0.01605334041 | BG51: -0.941615956
A52: C | B52: 227 | C52: 1202 | D52: ATTILA DIJON NORD | E52: TOUVREY Florent | F52: NORD-EST | G52: OUI | H52: ANNEE 2 | I52: 23 | J52: 2024-02-01 | K52: 69828.06 | L52: 61798.82 | M52: 8029.24 | N52: 0.1299254581 | O52: 83921.76 | P52: 97993.32 | Q52: -14071.56 | R52: -0.143597135 | S52: 315906.99 | T52: 494145.7 | U52: -178238.71 | V52: -0.3607007205 | W52: 78 | X52: 50 | Y52: 28 | Z52: 0.56 | AA52: 4050.089615 | AB52: 9882.914 | AC52: -5832.824385 | AD52: -0.5901927695 | AE52: 27 | AF52: 18 | AG52: 9 | AH52: 0.5 | AI52: 1579.891654 | AJ52: 2579.86 | AK52: -999.9683462 | AL52: -0.3876056632 | AM52: 515.574641 | AN52: 588.9466667 | AO52: -73.37202564 | AP52: -0.1245817827 | AQ52: 0.3263354419 | AR52: 0.2282862894 | AS52: 0.09804915247 | AT52: 4131.68 | AU52: 0 | AV52: 4131.68 | AW52: 0 | AX52: 0.0591693368 | AY52: 0 | AZ52: 5.91693368 | BA52: 406.58 | BB52: 778.37 | BC52: -371.79 | BD52: -0.4776520164 | BE52: 0.005822587653 | BF52: 0.01259522431 | BG52: -0.6772636657
A53: C | B53: 204 | C53: 1178 | D53: ATTILA DAX | E53: CURUTCHET Jean-Bernard | F53: SUD-OUEST | G53: OUI | H53: ANNEE 5 | I53: 51 | J53: 2021-09-22 | K53: 66725.51 | L53: 60160.89 | M53: 6564.62 | N53: 0.1091177341 | O53: 110858.08 | P53: 83036.7708 | Q53: 27821.3092 | R53: 0.3350480628 | S53: 164186.75 | T53: 114397.59 | U53: 49789.16 | V53: 0.4352290988 | W53: 39 | X53: 37 | Y53: 2 | Z53: 0.05405405405 | AA53: 4209.916667 | AB53: 3091.826757 | AC53: 1118.08991 | AD53: 0.3616276065 | AE53: 17 | AF53: 26 | AG53: -9 | AH53: -0.3461538462 | AI53: 825.0074846 | AJ53: 762.5959793 | AK53: 62.41150534 | AL53: 0.08184085286 | AM53: 655.3344993 | AN53: 566.0344675 | AO53: 89.30003183 | AP53: 0.1577643005 | AQ53: 0.7943376412 | AR53: 0.7422468553 | AS53: 0.05209078592 | AT53: 1366 | AU53: 4551.05 | AV53: -3185.05 | AW53: -0.6998494853 | AX53: 0.02047193045 | AY53: 0.07564798327 | AZ53: -5.517605282 | BA53: 1985.15 | BB53: 6045.29 | BC53: -4060.14 | BD53: -0.6716203855 | BE53: 0.02975099029 | BF53: 0.1004853818 | BG53: -7.073439149
